{"text_format":"1","workbook":"xlsx","n_sheets":9,"sheets":["Содержание","Объективы","IP камеры и NVR","Аналоговые камеры и DVR","Мониторы","Тепловизоры","Кожухи и пр.","Raytec","NVT"],"not_rendered":{"charts":0,"images":113,"macros":1,"external_links":1,"defined_names":16,"comments":0,"pivot_tables":0},"unopened":[],"bounds":{"document_bytes":16777216,"sheet_cells":100000,"rows_first":2000,"rows_last":500,"rows_between":2000,"halvings":0,"cell_chars":16384,"cell_head_chars":4096},"cells_cut":0,"cells_raw":0,"read":"whole","date_system":"1900"}

{"sheet":"Содержание","index":0,"n_rows":969,"n_cols":8,"rows_kept":969,"cut":false,"hidden":false,"merged":[[0,0,0,4],[3,2,3,4],[4,2,4,4],[41,1,41,3],[9,1,9,3],[11,1,11,3],[25,1,25,3],[17,1,17,3],[28,2,28,5]]}
[]
[]
[]
[null,null,"Действует с 02.02.2016 v1.0",null,null,null,"Моя скидка",0]
[null,null,"Возможны изменения характеристик и цен"]
[]
[]
[]
[]
[]
[]
[]
[]
[]
[]
[]
[]
[]
[]
[]
[]
[]
[]
[]
[]
[]
[]
[]
[null,null,"новые позиции / цены выделены"]
[]
[null,{"$f":"C4","v":"Действует с 02.02.2016 v1.0"}]
[null,"Валюта прайса: USD"]
[]
[]
[]
[]
[]
[]
[]
[]
[]
[]
[]
[]
[]
[]
[]
[]
[]
[]
[]
[]
[]
[]
[]
[]
[]
[]
[]
[]
[]
[]
[]
[]
[]
[]
[]
[]
[]
[]
[]
[]
[]
[]
[]
[]
[]
[]
[]
[]
[]
[]
[]
[]
[]
[]
[]
[]
[]
[]
[]
[]
[]
[]
[]
[]
[]
[]
[]
[]
[]
[]
[]
[]
[]
[]
[]
[]
[]
[]
[]
[]
[]
[]
[]
[]
[]
[]
[]
[]
[]
[]
[]
[]
[]
[]
[]
[]
[]
[]
[]
[]
[]
[]
[]
[]
[]
[]
[]
[]
[]
[]
[]
[]
[]
[]
[]
[]
[]
[]
[]
[]
[]
[]
[]
[]
[]
[]
[]
[]
[]
[]
[]
[]
[]
[]
[]
[]
[]
[]
[]
[]
[]
[]
[]
[]
[]
[]
[]
[]
[]
[]
[]
[]
[]
[]
[]
[]
[]
[]
[]
[]
[]
[]
[]
[]
[]
[]
[]
[]
[]
[]
[]
[]
[]
[]
[]
[]
[]
[]
[]
[]
[]
[]
[]
[]
[]
[]
[]
[]
[]
[]
[]
[]
[]
[]
[]
[]
[]
[]
[]
[]
[]
[]
[]
[]
[]
[]
[]
[]
[]
[]
[]
[]
[]
[]
[]
[]
[]
[]
[]
[]
[]
[]
[]
[]
[]
[]
[]
[]
[]
[]
[]
[]
[]
[]
[]
[]
[]
[]
[]
[]
[]
[]
[]
[]
[]
[]
[]
[]
[]
[]
[]
[]
[]
[]
[]
[]
[]
[]
[]
[]
[]
[]
[]
[]
[]
[]
[]
[]
[]
[]
[]
[]
[]
[]
[]
[]
[]
[]
[]
[]
[]
[]
[]
[]
[]
[]
[]
[]
[]
[]
[]
[]
[]
[]
[]
[]
[]
[]
[]
[]
[]
[]
[]
[]
[]
[]
[]
[]
[]
[]
[]
[]
[]
[]
[]
[]
[]
[]
[]
[]
[]
[]
[]
[]
[]
[]
[]
[]
[]
[]
[]
[]
[]
[]
[]
[]
[]
[]
[]
[]
[]
[]
[]
[]
[]
[]
[]
[]
[]
[]
[]
[]
[]
[]
[]
[]
[]
[]
[]
[]
[]
[]
[]
[]
[]
[]
[]
[]
[]
[]
[]
[]
[]
[]
[]
[]
[]
[]
[]
[]
[]
[]
[]
[]
[]
[]
[]
[]
[]
[]
[]
[]
[]
[]
[]
[]
[]
[]
[]
[]
[]
[]
[]
[]
[]
[]
[]
[]
[]
[]
[]
[]
[]
[]
[]
[]
[]
[]
[]
[]
[]
[]
[]
[]
[]
[]
[]
[]
[]
[]
[]
[]
[]
[]
[]
[]
[]
[]
[]
[]
[]
[]
[]
[]
[]
[]
[]
[]
[]
[]
[]
[]
[]
[]
[]
[]
[]
[]
[]
[]
[]
[]
[]
[]
[]
[]
[]
[]
[]
[]
[]
[]
[]
[]
[]
[]
[]
[]
[]
[]
[]
[]
[]
[]
[]
[]
[]
[]
[]
[]
[]
[]
[]
[]
[]
[]
[]
[]
[]
[]
[]
[]
[]
[]
[]
[]
[]
[]
[]
[]
[]
[]
[]
[]
[]
[]
[]
[]
[]
[]
[]
[]
[]
[]
[]
[]
[]
[]
[]
[]
[]
[]
[]
[]
[]
[]
[]
[]
[]
[]
[]
[]
[]
[]
[]
[]
[]
[]
[]
[]
[]
[]
[]
[]
[]
[]
[]
[]
[]
[]
[]
[]
[]
[]
[]
[]
[]
[]
[]
[]
[]
[]
[]
[]
[]
[]
[]
[]
[]
[]
[]
[]
[]
[]
[]
[]
[]
[]
[]
[]
[]
[]
[]
[]
[]
[]
[]
[]
[]
[]
[]
[]
[]
[]
[]
[]
[]
[]
[]
[]
[]
[]
[]
[]
[]
[]
[]
[]
[]
[]
[]
[]
[]
[]
[]
[]
[]
[]
[]
[]
[]
[]
[]
[]
[]
[]
[]
[]
[]
[]
[]
[]
[]
[]
[]
[]
[]
[]
[]
[]
[]
[]
[]
[]
[]
[]
[]
[]
[]
[]
[]
[]
[]
[]
[]
[]
[]
[]
[]
[]
[]
[]
[]
[]
[]
[]
[]
[]
[]
[]
[]
[]
[]
[]
[]
[]
[]
[]
[]
[]
[]
[]
[]
[]
[]
[]
[]
[]
[]
[]
[]
[]
[]
[]
[]
[]
[]
[]
[]
[]
[]
[]
[]
[]
[]
[]
[]
[]
[]
[]
[]
[]
[]
[]
[]
[]
[]
[]
[]
[]
[]
[]
[]
[]
[]
[]
[]
[]
[]
[]
[]
[]
[]
[]
[]
[]
[]
[]
[]
[]
[]
[]
[]
[]
[]
[]
[]
[]
[]
[]
[]
[]
[]
[]
[]
[]
[]
[]
[]
[]
[]
[]
[]
[]
[]
[]
[]
[]
[]
[]
[]
[]
[]
[]
[]
[]
[]
[]
[]
[]
[]
[]
[]
[]
[]
[]
[]
[]
[]
[]
[]
[]
[]
[]
[]
[]
[]
[]
[]
[]
[]
[]
[]
[]
[]
[]
[]
[]
[]
[]
[]
[]
[]
[]
[]
[]
[]
[]
[]
[]
[]
[]
[]
[]
[]
[]
[]
[]
[]
[]
[]
[]
[]
[]
[]
[]
[]
[]
[]
[]
[]
[]
[]
[]
[]
[]
[]
[]
[]
[]
[]
[]
[]
[]
[]
[]
[]
[]
[]
[]
[]
[]
[]
[]
[]
[]
[]
[]
[]
[]
[]
[]
[]
[]
[]
[]
[]
[]
[]
[]
[]
[]
[]
[]
[]
[]
[]
[]
[]
[]
[]
[]
[]
[]
[]
[]
[]
[]
[]
[]
[]
[]
[]
[]
[]
[]
[]
[]
[]
[]
[]
[]
[]
[]
[]
[]
[]
[]
[]
[]
[null,null,null,null,null,null,"Make MSN my homepage"]
[]
[null,null,null,null,null,null,"Simply click the Run button at the bottom of your browser."]
[null,null,null,null,null,null,"Simply click the Run button at the bottom of your browser."]
[]
[null,null,null,null,null,null,"By clicking to run this downloaded file you agree to the Microsoft Service Agreement and Privacy Statement. Installation applies to Internet Explorer, Firefox, Chrome and Safari."]
[null,null,null,null,null,null,"Download didn't start? Try again"]

{"sheet":"Объективы","index":1,"n_rows":304,"n_cols":6,"rows_kept":304,"cut":false,"hidden":false,"merged":[[99,0,99,2],[102,0,102,2],[247,0,247,2]]}
["Объективы",null,"     "]
[]
[]
[null,"Модель","Описание","Розница, USD","Моя цена","Комментарии"]
[]
["Мегапиксельные объективы"]
["Ручная диафрагма",null,"     "]
["5МП","A3Z2812CS-MPWIR"," 1/2,7\", 2,8 - 8,5мм, 1.2 - 16С, 5-мегапиксельный, ИК коррекция, CS крепление",203,{"$f":"ROUNDUP(D8-(Содержание!$H$4*D8),0)","v":203},"Новая модель"]
["3МП","A4Z1214CS-MPIR","1/2,7\", 12,5-50 мм, 1.4 - 16C, 3-х мегапиксельный, ИК коррекция, CS крепление",291,{"$f":"ROUNDUP(D9-(Содержание!$H$4*D9),0)","v":291},"Цена снижена"]
["3МП","A4Z2812CS-MPIR","1/2,7\", 2,8 - 10,0 мм, 1.2 - 16C, 3-х мегапиксельный, ИК коррекция, CS крепление     ",170,{"$f":"ROUNDUP(D10-(Содержание!$H$4*D10),0)","v":170},"Цена снижена"]
["3МП","A6Z8516CS-MP","1/2,7\",  8,5 - 50 мм, 1.6 - 16C, 3-х мегапиксельный, CS крепление       ",162,{"$f":"ROUNDUP(D11-(Содержание!$H$4*D11),0)","v":162},"Цена снижена"]
["5МП","E3Z4518CS-MPIR","1/1,8\",  4.5мм-13,2, F1.8 - 16C, CS, IR, 5 мегапиксельный",396,{"$f":"ROUNDUP(D12-(Содержание!$H$4*D12),0)","v":396},"Цена снижена"]
["2МП","H2Z0414C-MP","1/2\", 4,0-8,0 мм, 1.4 – 16C, мегапиксельный, C крепление",216,{"$f":"ROUNDUP(D13-(Содержание!$H$4*D13),0)","v":216}]
["3МП","H5Z2518C-MP","1/2\", 25,0 - 135 мм, 1,8 - 16C, 3-х мегапиксельный, C крепление",633,{"$f":"ROUNDUP(D14-(Содержание!$H$4*D14),0)","v":633}]
["2МП","M3Z1228C-MP*","2/3\", 12,0 - 36,0 мм, 2.8 – 16C, C крепление, мегапиксельный",317,{"$f":"ROUNDUP(D15-(Содержание!$H$4*D15),0)","v":317},"Цена снижена. Уточняйте наличие на складе"]
["5МП","M2514FIC-MPIR",">2/3\", 25,0 мм, F1.4, 5-ти мегапиксельный, С крепление, IR",749,{"$f":"ROUNDUP(D16-(Содержание!$H$4*D16),0)","v":749}]
["5МП","M3518FIC-MPIR",">2/3\", 35,0 мм, F1.8, 5-ти мегапиксельный, С крепление, IR",792,{"$f":"ROUNDUP(D17-(Содержание!$H$4*D17),0)","v":792}]
["5МП","M5020FIC-MPIR",">2/3\", 50,0 мм, F2.0, 5-ти мегапиксельный, С крепление, IR",993,{"$f":"ROUNDUP(D18-(Содержание!$H$4*D18),0)","v":993}]
["DC диафрагма",null,"     "]
["3МП","TG4Z2816FCS-MPIR*","1/3\",  2,8 - 12мм, 1,6 - 360C, 3-х мегапиксельный, ИК коррекция, CS крепление",132,{"$f":"ROUNDUP(D20-(Содержание!$H$4*D20),0)","v":132},"Уточняйте наличие на складе"]
["5МП","AG3Z2812CS-MPWIR","1/2,7\", 2,8 - 8,5 мм, 1.2-360C, 5-мегапиксельный, ИК коррекция, CS крепление",203,{"$f":"ROUNDUP(D21-(Содержание!$H$4*D21),0)","v":203},"Новая модель"]
["3МП","AG4Z1214FCS-MPIR","1/2,7\", 12,5 - 50 мм, 1.4-360C, 3-х мегапиксельный, ИК коррекция, CS крепление",291,{"$f":"ROUNDUP(D22-(Содержание!$H$4*D22),0)","v":291},"Цена снижена"]
["3МП","AG4Z2812FCS-MPIR","1/2,7\", 2,8 - 10,0 мм, 1.2-360C, 3-х мегапиксельный, ИК коррекция, CS крепление     ",125,{"$f":"ROUNDUP(D23-(Содержание!$H$4*D23),0)","v":125},"Цена снижена"]
["3МП","AG6Z8516FCS-MP","1/2,7\",  8,5 - 50 мм, 1.6-360C, 3-х мегапиксельный, CS крепление       ",146,{"$f":"ROUNDUP(D24-(Содержание!$H$4*D24),0)","v":146},"Цена снижена"]
["3МП","HG5Z2518FC-MP","1/2\", 25,0-135,0 мм, 1,8-360С, 3-х мегапиксельный, C крепление",648,{"$f":"ROUNDUP(D25-(Содержание!$H$4*D25),0)","v":648}]
["2МП","MG3Z1228FC-MP","2/3\", 12,0 - 36,0 мм, 2.8 – 360C, C крепление, мегапиксельный",385,{"$f":"ROUNDUP(D26-(Содержание!$H$4*D26),0)","v":385},"Цена снижена. Уточняйте наличие на складе"]
["5МП","MG1616FC-MP","2/3\", 16,0 мм, F1.6, 5-ти мегапиксельный, С крепление  ",676,{"$f":"ROUNDUP(D27-(Содержание!$H$4*D27),0)","v":676}]
["5МП","MG2514FC-MP","2/3\", 25,0 мм, F1.4, 5-ти мегапиксельный, С крепление  ",676,{"$f":"ROUNDUP(D28-(Содержание!$H$4*D28),0)","v":676}]
["5МП","MG2514FC-MPIR","25,0mm, 2/3\", C, F1.4, DC-iris, IR-corrected, 5 Megapixel",1010,{"$f":"ROUNDUP(D29-(Содержание!$H$4*D29),0)","v":1010}]
["5МП","MG3518FC-MPIR",">2/3\", 35,0 мм, F1.8, 5-ти мегапиксельный, С крепление, IR",821,{"$f":"ROUNDUP(D30-(Содержание!$H$4*D30),0)","v":821}]
["5МП","MG5020FC-MPIR",">2/3\", 50,0 мм, F2.0, 5-ти мегапиксельный, С крепление, IR",1023,{"$f":"ROUNDUP(D31-(Содержание!$H$4*D31),0)","v":1023}]
["P-Iris",null,"     ",null,{"$f":"ROUNDUP(D32-(Содержание!$H$4*D32),0)","v":0}]
["5МП","AG3Z2812KCS-MPWIR"," 2,8 - 8,5mm, 1.2, 1/2.7\",  P-Iris, CS, IR, 3 Megapixel",226,{"$f":"ROUNDUP(D33-(Содержание!$H$4*D33),0)","v":226},"Новая модель"]
["3МП","AG4Z1214KCS-MPIR","1/2,7\", 12,5 - 50 мм, 1.4-16C, 3-х мегапиксельный, ИК коррекция, CS крепление",305,{"$f":"ROUNDUP(D34-(Содержание!$H$4*D34),0)","v":305},"Цена снижена"]
["3МП","AG4Z2812KCS-MPIR","1/2,7\", 2,8 - 10,0 мм, 1.2-360C, 3-х мегапиксельный, ИК коррекция, CS крепление     ",203,{"$f":"ROUNDUP(D35-(Содержание!$H$4*D35),0)","v":203},"Цена выросла"]
["3МП","AG6Z8516KCS-MP","1/2,7\",  8,5 - 50 мм, 1.6-360C, 3-х мегапиксельный, CS крепление       ",182,{"$f":"ROUNDUP(D36-(Содержание!$H$4*D36),0)","v":182},"Цена снижена"]
["5МП","MG2514KC-MPIR-V31","25,0mm, 2/3\", C, F1.4, P-iris, IR-corrected, 5 Megapixel",0,{"$f":"ROUNDUP(D37-(Содержание!$H$4*D37),0)","v":0}]
["5МП","MG3518KC-MPIR-V31","35,0mm, 2/3\", C, F1.8, P-iris, IR-corrected, 5 Megapixel",0,{"$f":"ROUNDUP(D38-(Содержание!$H$4*D38),0)","v":0}]
["5МП","MG5020KC-MPIR-V31","50,0mm, 2/3\", C, F2.0, P-iris, IR-corrected, 5 Megapixel",0,{"$f":"ROUNDUP(D39-(Содержание!$H$4*D39),0)","v":0}]
[]
["Объективы стандартного разрешения"]
["Ручная диафрагма"]
[null,"T2314FICS","1/3\", 2,3 мм, 1.4 – 16C, CS ",231,{"$f":"ROUNDUP(D43-(Содержание!$H$4*D43),0)","v":231}]
[null,"T2616FICS","1/3\", 2,6 мм, 1.6 – 11C, CS ",149,{"$f":"ROUNDUP(D44-(Содержание!$H$4*D44),0)","v":149}]
[null,"T2625CS-P","1/3\", 2,6 мм, 2.5 – 32C, CS, Pinhole",530,{"$f":"ROUNDUP(D45-(Содержание!$H$4*D45),0)","v":530}]
[null,"T0412FICS","1/3\", 4,0 мм, 1.2 – 16C, CS ",79,{"$f":"ROUNDUP(D46-(Содержание!$H$4*D46),0)","v":79}]
[null,"T0812FICS","1/3\", 8,0 мм, 1.2 – 16C, CS ",77,{"$f":"ROUNDUP(D47-(Содержание!$H$4*D47),0)","v":77}]
[null,"H1214FICS","1/2\", 12,0 мм, 1.4 – 16C, CS ",106,{"$f":"ROUNDUP(D48-(Содержание!$H$4*D48),0)","v":106}]
["DC диафрагма",null,"     "]
[null,"TG2314FCS","1/3\", 2,3 мм, 1.4 – 360C, CS ",276,{"$f":"ROUNDUP(D50-(Содержание!$H$4*D50),0)","v":276}]
[null,"TG2616FCS","1/3\", 2,6 мм, 1.6 – 360C, CS ",208,{"$f":"ROUNDUP(D51-(Содержание!$H$4*D51),0)","v":208}]
[null,"TG2625FCS-P","1/3\", 2,6 мм, 2.5 – 360C, CS, Pinhole",745,{"$f":"ROUNDUP(D52-(Содержание!$H$4*D52),0)","v":745}]
[null,"TG0412FCS","1/3\", 4,0 мм, 1.2 – 360C, CS ",143,{"$f":"ROUNDUP(D53-(Содержание!$H$4*D53),0)","v":143}]
[null,"TG0812FCS","1/3\", 8,0 мм, 1.2 – 360C, CS ",132,{"$f":"ROUNDUP(D54-(Содержание!$H$4*D54),0)","v":132}]
[null,"HG1214FCS","1/2\", 12,0 мм, 1.4 – 360C, CS ",166,{"$f":"ROUNDUP(D55-(Содержание!$H$4*D55),0)","v":166}]
["Video диафрагма",null,"     "]
[null,"TG2314AFCS","1/3\", 2,3 мм, 1.4 – 360C, CS ",326,{"$f":"ROUNDUP(D57-(Содержание!$H$4*D57),0)","v":326}]
[null,"TG2616AFCS","1/3\", 2,6 мм, 1.6 – 360C, CS ",251,{"$f":"ROUNDUP(D58-(Содержание!$H$4*D58),0)","v":251}]
[null,"TG2625AFCS-P","1/3\", 2,6 мм, 2.5 – 360C, CS, Pinhole",796,{"$f":"ROUNDUP(D59-(Содержание!$H$4*D59),0)","v":796}]
[null,"HG1214AFCS","1/2\", 12,0 мм, 1.4 – 360C, CS ",200,{"$f":"ROUNDUP(D60-(Содержание!$H$4*D60),0)","v":200}]
["Ручные вариофокальные объективы",null,"     "]
[null,"T2Z1816CS","1/3\", 2:1, 1,8-3,6 мм, 1.6 – 16C, CS ",305,{"$f":"ROUNDUP(D62-(Содержание!$H$4*D62),0)","v":305}]
[null,"T3Z2910CS","1/3\", 3:1, 2,9-8,2 мм, 1.0 – 16C, CS, ASP",72,{"$f":"ROUNDUP(D63-(Содержание!$H$4*D63),0)","v":72}]
[null,"T3Z2910CS-IR","1/3\", 3:1, 2,9-8,2 мм, 1.0 – 16C, CS, с ИК коррекцией, FS",86,{"$f":"ROUNDUP(D64-(Содержание!$H$4*D64),0)","v":86}]
[null,"T3Z3510CS","1/3\", 3:1, 3,5-10,5 мм, 1.0 – 16C, CS,  ASP",125,{"$f":"ROUNDUP(D65-(Содержание!$H$4*D65),0)","v":125}]
[null,"T3Z3510CS-IR","1/3\", 3:1, 3,5-10,5 мм, 1,0 – 16C, CS, с ИК коррекцией, FS, ASP",154,{"$f":"ROUNDUP(D66-(Содержание!$H$4*D66),0)","v":154}]
[null,"T4Z2813CS-IR","1/3\", 4:1, 2,8-12,0 мм, 1.3 – 16C, CS, с ИК коррекцией, FS, ASP",100,{"$f":"ROUNDUP(D67-(Содержание!$H$4*D67),0)","v":100}]
[null,"T5Z8513CS-IR","1/3\", 5:1, 8,5-40,0 мм, 1.3 – 16C, CS, с ИК коррекцией, FS, ASP",228,{"$f":"ROUNDUP(D68-(Содержание!$H$4*D68),0)","v":228}]
[null,"T10Z0513CS","1/3\", 10:1, 5,0-50,0 мм, 1.3 – 16C, CS",142,{"$f":"ROUNDUP(D69-(Содержание!$H$4*D69),0)","v":142}]
[null,"H2Z4516CS","1/2\", 2:1, 4,5-10,0 мм, 1.6 – 16C, CS, ИК коррекция",143,{"$f":"ROUNDUP(D70-(Содержание!$H$4*D70),0)","v":143}]
[null,"H3Z4512CS-IR","1/2\", 3:1, 4,5-12,5 мм, 1.2 – 16C, CS, ИК коррекция, FS, ASP",199,{"$f":"ROUNDUP(D71-(Содержание!$H$4*D71),0)","v":199}]
[null,"H3Z1014CS","1/2\", 3:1, 10,0-30,0 мм, 1.4 – 16C, CS, Flat, ASP",303,{"$f":"ROUNDUP(D72-(Содержание!$H$4*D72),0)","v":303}]
["Вариофокальные объективы с DC диафрагмой",null,"     ",null,{"$f":"ROUNDUP(D73-(Содержание!$H$4*D73),0)","v":0}]
[null,"TG2Z1816FCS","1/3\", 2:1, 1,8-3,6 мм, 1.6 – 360C, CS ",376,{"$f":"ROUNDUP(D74-(Содержание!$H$4*D74),0)","v":376}]
[null,"TG3Z2910FCS","1/3\", 3:1, 2,9-8,2 мм, 1.0 – 360C, CS, ASP",79,{"$f":"ROUNDUP(D75-(Содержание!$H$4*D75),0)","v":79}]
[null,"TG3Z2910FCS-IR","1/3\", 3:1, 2,9-8,2 мм, 1.0 – 360C, CS, ИК коррекция, FS, ASP",94,{"$f":"ROUNDUP(D76-(Содержание!$H$4*D76),0)","v":94}]
[null,"TG3Z3510FCS","1/3\", 3:1, 3,5-10,5 мм, 1.0 – 360C, CS ",145,{"$f":"ROUNDUP(D77-(Содержание!$H$4*D77),0)","v":145}]
[null,"TG3Z3510FCS-IR","1/3\", 3:1, 3,5-10,5 мм, 1.0 – 360C, CS, ИК коррекция, FS, ASP",188,{"$f":"ROUNDUP(D78-(Содержание!$H$4*D78),0)","v":188}]
[null,"TG4Z2813FCS-IR","1/3\", 4:1, 2,8-12,0 мм, 1.3 – 360C, CS ИК коррекция, FS, ASP",122,{"$f":"ROUNDUP(D79-(Содержание!$H$4*D79),0)","v":122}]
[null,"TG5Z8513FCS-IR","1/3\", 5:1, 8,5-40,0 мм, 1.3 – 360, CS, ИК коррекция, FS, ASP",228,{"$f":"ROUNDUP(D80-(Содержание!$H$4*D80),0)","v":228}]
[null,"TG10Z0513FCS","1/3\", 10:1, 5,0-50,0 мм, 1.3 – 360C, CS, ASP",143,{"$f":"ROUNDUP(D81-(Содержание!$H$4*D81),0)","v":143}]
[null,"HG2Z4516FCS","1/2\", 2:1, 4,5-10,0 мм, 1.6 – 360C, CS ",199,{"$f":"ROUNDUP(D82-(Содержание!$H$4*D82),0)","v":199}]
[null,"HG3Z4512FCS-IR","1/2\", 3:1, 4,5-12,5 мм, 1.2 – 360С, CS, ИК коррекция, FS, ASP",253,{"$f":"ROUNDUP(D83-(Содержание!$H$4*D83),0)","v":253}]
[null,"HG3Z1014FCS","1/2\", 3:1, 10,0-30,0 мм, 1.4 – 360C, CS, Flat, ASP",391,{"$f":"ROUNDUP(D84-(Содержание!$H$4*D84),0)","v":391}]
["Вариофокальные объективы с Video диафрагмой",null,"     ",null,{"$f":"ROUNDUP(D85-(Содержание!$H$4*D85),0)","v":0}]
[null,"TG2Z1816AFCS","1/3\", 2:1, 1,8-3,6 мм, 1.6 – 360C, CS ",396,{"$f":"ROUNDUP(D86-(Содержание!$H$4*D86),0)","v":396}]
[null,"TG3Z2910AFCS","1/3\", 3:1, 2,9-8,2 мм, 1.0 – 360C, CS, ASP",112,{"$f":"ROUNDUP(D87-(Содержание!$H$4*D87),0)","v":112}]
[null,"TG3Z2910AFCS-IR","1/3\", 3:1, 2,9-8,2 мм, 1.0 – 360C, CS, ИК коррекция, FS, ASP",126,{"$f":"ROUNDUP(D88-(Содержание!$H$4*D88),0)","v":126}]
[null,"TG3Z3510AFCS","1/3\", 3:1, 3,5-10,5 мм, 1.0 – 360C, CS, ASP",188,{"$f":"ROUNDUP(D89-(Содержание!$H$4*D89),0)","v":188}]
[null,"TG3Z3510AFCS-IR","1/3\", 3:1, 3,5-10,5 мм, 1.0 – 360C, CS, ИК коррекция, FS,  ASP",242,{"$f":"ROUNDUP(D90-(Содержание!$H$4*D90),0)","v":242}]
[null,"TG4Z2813AFCS-IR","1/3\", 4:1, 2,8-12,0 мм, 1.3 – 360C, CS, ИК коррекция, FS, ASP",169,{"$f":"ROUNDUP(D91-(Содержание!$H$4*D91),0)","v":169}]
[null,"TG5Z8513AFCS-IR","1/3\", 5:1, 8,5-40,0 мм, 1.3 – 360, CS, ИК коррекция, FS, ASP",328,{"$f":"ROUNDUP(D92-(Содержание!$H$4*D92),0)","v":328}]
[null,"TG10Z0513AFCS","1/3\", 10:1, 5,0-50,0 мм, 1.3 – 360C, CS, ASP",188,{"$f":"ROUNDUP(D93-(Содержание!$H$4*D93),0)","v":188}]
[null,"HG2Z4516AFCS","1/2\", 2:1, 4,5-10,0 мм, 1.6 – 360C, CS, ИК коррекция",222,{"$f":"ROUNDUP(D94-(Содержание!$H$4*D94),0)","v":222}]
[null,"HG3Z4512AFCS-IR","1/2\", 3:1, 4,5-12,5 мм, 1.2 – 360С, CS, ИК коррекция, FS, ASP",270,{"$f":"ROUNDUP(D95-(Содержание!$H$4*D95),0)","v":270}]
[null,"HG3Z1014AFCS","1/2\", 3:1, 10,0-30,0 мм, 1.4 – 360C, CS, Flat, ASP",408,{"$f":"ROUNDUP(D96-(Содержание!$H$4*D96),0)","v":408}]
["Трансфокаторы с ручным приводом",null,"     ",null,{"$f":"ROUNDUP(D97-(Содержание!$H$4*D97),0)","v":0}]
[null,"H6Z0812","1/2\", 6:1, 8,0-48,0 мм, 1.2 – 16C, C",622,{"$f":"ROUNDUP(D98-(Содержание!$H$4*D98),0)","v":622}]
[null,"M6Z1212","2/3\", 6:1, 12,5-75,0 мм, 1.2 – 16C, C",622,{"$f":"ROUNDUP(D99-(Содержание!$H$4*D99),0)","v":622}]
["Трансфокаторы с ручным приводом и автодиафрагмой DC (Direct Drive)",null,null,null,{"$f":"ROUNDUP(D100-(Содержание!$H$4*D100),0)","v":0}]
[null,"T6Z5710AIDC-CS","1/3\", 6:1, 5,7-34,2 мм, 1.0 – 360C, CS ",691,{"$f":"ROUNDUP(D101-(Содержание!$H$4*D101),0)","v":691}]
[null,"H6Z0812AIDC","1/2\", 6:1, 8,0-48,0 мм, 1.2 – 560C, C",656,{"$f":"ROUNDUP(D102-(Содержание!$H$4*D102),0)","v":656}]
["Трансфокаторы с ручным приводом и автодиафрагмой Video drive",null,null,null,{"$f":"ROUNDUP(D103-(Содержание!$H$4*D103),0)","v":0}]
[null,"T6Z5710AIVD-CS","1/3\", 6:1, 5,7-34,2 мм, 1.0 – 360C, CS ",759,{"$f":"ROUNDUP(D104-(Содержание!$H$4*D104),0)","v":759}]
[null,"H6Z0812AIVD","1/2\", 6:1, 8,0-48,0 мм, 1.2 – 560C, C",725,{"$f":"ROUNDUP(D105-(Содержание!$H$4*D105),0)","v":725}]
["Моторизованные трансфокаторы",null,"     ",null,{"$f":"ROUNDUP(D106-(Содержание!$H$4*D106),0)","v":0}]
[null,"T6Z5710M-CS","1/3\", 6:1, 5,7-34,2 мм, 1.0 – 16C, CS ",881,{"$f":"ROUNDUP(D107-(Содержание!$H$4*D107),0)","v":881}]
[null,"T6Z5710MS-CS","1/3\", 6:1, 5,7-34,2 мм, 1.0 – 360C, CS ",915,{"$f":"ROUNDUP(D108-(Содержание!$H$4*D108),0)","v":915}]
[null,"T6Z5710MP-CS","1/3\", 6:1, 5,7-34,2 мм, 1.0 – 16C, CS, предустановки ",1157,{"$f":"ROUNDUP(D109-(Содержание!$H$4*D109),0)","v":1157}]
[null,"T6Z5710MSP-CS","1/3\", 6:1, 5,7-34,2 мм, 1.0 – 360C, CS, предустановки",1192,{"$f":"ROUNDUP(D110-(Содержание!$H$4*D110),0)","v":1192}]
[null,"T6Z5710AMS-CS","1/3\", 6:1, 5,7-34,2 мм, 1.0 – 360C, CS ",950,{"$f":"ROUNDUP(D111-(Содержание!$H$4*D111),0)","v":950}]
[null,"T6Z5710AMSP-CS","1/3\", 6:1, 5,7-34,2 мм, 1.0 – 360C, CS, предустановки",1243,{"$f":"ROUNDUP(D112-(Содержание!$H$4*D112),0)","v":1243}]
[null,"T6Z5710DC-CS","1/3\", 6:1, 5,7-34,2 мм, 1.0 – 360C, CS ",898,{"$f":"ROUNDUP(D113-(Содержание!$H$4*D113),0)","v":898}]
[null,"T6Z5710PDC-CS","1/3\", 6:1, 5,7-34,2 мм, 1.0 – 360C, CS, предустановки",1066,{"$f":"ROUNDUP(D114-(Содержание!$H$4*D114),0)","v":1066}]
[null,"T10Z5712M-CS","1/3\", 10:1, 5,7-57,0 мм, 1.2 – 22C, CS ",1053,{"$f":"ROUNDUP(D115-(Содержание!$H$4*D115),0)","v":1053}]
[null,"T10Z5712MS-CS","1/3\", 10:1, 5,7-57,0 мм, 1.2 – 560C 1/3\" CS ",1106,{"$f":"ROUNDUP(D116-(Содержание!$H$4*D116),0)","v":1106}]
[null,"T10Z5712MP-CS","1/3\", 10:1, 5,7-57,0 мм, 1.2 – 22C, CS,  предустановки",1398,{"$f":"ROUNDUP(D117-(Содержание!$H$4*D117),0)","v":1398}]
[null,"T10Z5712MSP-CS","1/3\", 10:1, 5,7-57,0 мм, 1.2 – 560C, CS, предустановки",1451,{"$f":"ROUNDUP(D118-(Содержание!$H$4*D118),0)","v":1451}]
[null,"T10Z5712AMS-CS","1/3\", 10:1, 5,7-57,0 мм, 1.2 – 560C, CS ",1140,{"$f":"ROUNDUP(D119-(Содержание!$H$4*D119),0)","v":1140}]
[null,"T10Z5712AMSP-CS","1/3\", 10:1, 5,7-57,0 мм, 1.2 – 560C, CS, предустановки",1485,{"$f":"ROUNDUP(D120-(Содержание!$H$4*D120),0)","v":1485}]
[null,"T10Z5712DC-CS","1/3\", 10:1, 5,7-57,0 мм, 1.2 – 560C, CS ",935,{"$f":"ROUNDUP(D121-(Содержание!$H$4*D121),0)","v":935}]
[null,"T10Z5712PDC-CS","1/3\", 10:1, 5,7-57,0 мм, 1.2 – 560C, CS,  предустановки",1152,{"$f":"ROUNDUP(D122-(Содержание!$H$4*D122),0)","v":1152}]
[null,"T21Z5816M-CS","1/3\", 21:1, 5,8-121,8 мм, 1.6 – 22C, CS ",1796,{"$f":"ROUNDUP(D123-(Содержание!$H$4*D123),0)","v":1796}]
[null,"T21Z5816MS-CS","1/3\", 21:1, 5,8-121,8 мм, 1.6 – 560C, CS ",1831,{"$f":"ROUNDUP(D124-(Содержание!$H$4*D124),0)","v":1831}]
[null,"T21Z5816MP-CS","1/3\", 21:1, 5,8-121,8 мм, 1.6 – 22C, CS, предустановки",2107,{"$f":"ROUNDUP(D125-(Содержание!$H$4*D125),0)","v":2107}]
[null,"T21Z5816MSP-CS","1/3\", 21:1, 5,8-121,8 мм, 1.6 – 560C, CS, предустановки",2159,{"$f":"ROUNDUP(D126-(Содержание!$H$4*D126),0)","v":2159}]
[null,"T21Z5816AMS-CS","1/3\", 21:1, 5,8-121,8 мм, 1.6 – 560C, CS ",1814,{"$f":"ROUNDUP(D127-(Содержание!$H$4*D127),0)","v":1814}]
[null,"T21Z5816AMSP-CS","1/3\", 21:1, 5,8-121,8 мм, 1.6 – 560C, CS, предустановки",2193,{"$f":"ROUNDUP(D128-(Содержание!$H$4*D128),0)","v":2193}]
[null,"T21Z5816DC-CS","1/3\", 21:1, 5,8-121,8 мм, 1.6 – 560C, CS ",1726,{"$f":"ROUNDUP(D129-(Содержание!$H$4*D129),0)","v":1726}]
[null,"T21Z5816PDC-CS","1/3\", 21:1, 5,8-121,8 мм, 1.6 – 560C, CS, предустановки ",1943,{"$f":"ROUNDUP(D130-(Содержание!$H$4*D130),0)","v":1943}]
[null,"T34Z5518AMS-CS","1/3\", 34:1, 5,5-187,0 мм, 1.8 – 560C, CS ",2453,{"$f":"ROUNDUP(D131-(Содержание!$H$4*D131),0)","v":2453}]
[null,"T34Z5518AMSP-CS","1/3\", 34:1, 5,5-187,0 мм, 1.8 – 560C, CS, предустановки",2781,{"$f":"ROUNDUP(D132-(Содержание!$H$4*D132),0)","v":2781}]
[null,"T34Z5518AMSR-CS","1/3\", 34:1, 5,5-187,0 мм, 1.8 – 560C, CS ",2607,{"$f":"ROUNDUP(D133-(Содержание!$H$4*D133),0)","v":2607}]
[null,"T34Z5518AMSPR-CS","1/3\", 34:1, 5,5-187,0 мм, 1.8 – 560C, CS, предустановки",2918,{"$f":"ROUNDUP(D134-(Содержание!$H$4*D134),0)","v":2918}]
[null,"T34Z5518DC-CS","1/3\", 34:1, 5,5-187,0 мм, 1.8 – 560C, CS ",2435,{"$f":"ROUNDUP(D135-(Содержание!$H$4*D135),0)","v":2435}]
[null,"T34Z5518PDC-CS","1/3\", 34:1, 5,5-187,0 мм, 1.8 – 560C, CS, предустановки",2763,{"$f":"ROUNDUP(D136-(Содержание!$H$4*D136),0)","v":2763}]
[null,"H6Z0812M","1/2\", 6:1, 8,0-48,0 мм, 1.2 – 16C, C крепление",812,{"$f":"ROUNDUP(D137-(Содержание!$H$4*D137),0)","v":812}]
[null,"H6Z0812MS","1/2\", 6:1, 8,0-48,0 мм, 1.2 – 560C, C крепление",881,{"$f":"ROUNDUP(D138-(Содержание!$H$4*D138),0)","v":881}]
[null,"H6Z0812MP","1/2\", 6:1, 8,0-48,0 мм, предустановки, 1.2 – 16C, C крепление",1123,{"$f":"ROUNDUP(D139-(Содержание!$H$4*D139),0)","v":1123}]
[null,"H6Z0812MSP","1/2\", 6:1, 8,0-48,0 мм, предустановки, 1.2 – 560C C крепление",1157,{"$f":"ROUNDUP(D140-(Содержание!$H$4*D140),0)","v":1157}]
[null,"H6Z0812AMS","1/2\", 6:1, 8,0-48,0 мм, 1.2 – 560C, C крепление",933,{"$f":"ROUNDUP(D141-(Содержание!$H$4*D141),0)","v":933}]
[null,"H6Z0812AMSP","1/2\", 6:1, 8,0-48,0 мм, предустановки, 1.2 – 560C, C крепление",1209,{"$f":"ROUNDUP(D142-(Содержание!$H$4*D142),0)","v":1209}]
[null,"H10Z0812M","1/2\", 10:1, 8,0-80,0 мм, 1.2 – 22C, C крепление ",1243,{"$f":"ROUNDUP(D143-(Содержание!$H$4*D143),0)","v":1243}]
[null,"H10Z0812MS","1/2\", 10:1, 8,0-80,0 мм, 1.2 – 560C, C крепление",1331,{"$f":"ROUNDUP(D144-(Содержание!$H$4*D144),0)","v":1331}]
[null,"H10Z0812MP","1/2\", 10:1, 8,0-80,0 мм, 1.2 – 22C, предустановки, C крепление",1537,{"$f":"ROUNDUP(D145-(Содержание!$H$4*D145),0)","v":1537}]
[null,"H10Z0812MSP","1/2\", 10:1, 8,0-80,0 мм, 1.2 – 560C, предустановки, C крепление",1623,{"$f":"ROUNDUP(D146-(Содержание!$H$4*D146),0)","v":1623}]
[null,"H10Z0812AMS","1/2\", 10:1, 8,0-80,0 мм, 1.2 – 560C, C крепление",1152,{"$f":"ROUNDUP(D147-(Содержание!$H$4*D147),0)","v":1152}]
[null,"H10Z0812AMSP","1/2\", 10:1, 8,0-80,0 мм, 1.2 – 560C, предустановки, C крепление",1368,{"$f":"ROUNDUP(D148-(Содержание!$H$4*D148),0)","v":1368}]
["1МП","H10Z0819PDC-MP","1/2\", 10:1, 8,0-80,0мм, 1.9 – 1000 (с нейтр. фильтром), DC автодиафрагма, предустановки, C крепление",780,{"$f":"ROUNDUP(D149-(Содержание!$H$4*D149),0)","v":780},"Цена выросла"]
["1МП","H10Z0819DC-MP","1/2\", 10:1, 8,0-80,0мм, 1.9 – 1000 (с нейтр. фильтром), DC автодиафрагма, C крепление",724,{"$f":"ROUNDUP(D150-(Содержание!$H$4*D150),0)","v":724},"Цена выросла"]
["1МП","H10Z0819AMSP-MP","1/2\", 10:1, 8,0-80,0мм, 1.9 – 1000 (с нейтр. фильтром), Video автодиафрагма, предустановки, C крепление",780,{"$f":"ROUNDUP(D151-(Содержание!$H$4*D151),0)","v":780},"Цена выросла"]
["1МП","H10Z0819AMS-MP","1/2\", 10:1, 8,0-80,0мм, 1.9 – 1000 (с нейтр. фильтром), Video автодиафрагма, C крепление",724,{"$f":"ROUNDUP(D152-(Содержание!$H$4*D152),0)","v":724},"Цена выросла"]
[null,"H10Z1218M","1/2\", 10:1, 12,0-120,0 мм, 1.8 – 22C, C крепление",1331,{"$f":"ROUNDUP(D153-(Содержание!$H$4*D153),0)","v":1331}]
[null,"H10Z1218MS","1/2\", 10:1, 12,0-120,0 мм, 1.8 – 560C, C крепление",1417,{"$f":"ROUNDUP(D154-(Содержание!$H$4*D154),0)","v":1417}]
[null,"H10Z1218MP","1/2\", 10:1, 12,0-120,0 мм, 1.8 – 22C, предустановки, C крепление",1640,{"$f":"ROUNDUP(D155-(Содержание!$H$4*D155),0)","v":1640}]
[null,"H10Z1218MSP","1/2\", 10:1, 12,0-120,0 мм, 1.8 – 560C, предустановки, C крепление",1726,{"$f":"ROUNDUP(D156-(Содержание!$H$4*D156),0)","v":1726}]
[null,"H10Z1218AMS-2","1/2\", 10:1, 12,0-120,0 мм, 1.8 – 560C, C крепление",1503,{"$f":"ROUNDUP(D157-(Содержание!$H$4*D157),0)","v":1503}]
[null,"H10Z1218AMSP-2","1/2\", 10:1, 12,0-120,0 мм, 1.8 – 560C, предустановки, C крепление",1848,{"$f":"ROUNDUP(D158-(Содержание!$H$4*D158),0)","v":1848}]
[null,"H10Z1218DC","1/2\", 10:1, 12,0-120,0 мм, 1.8 – 560C, C крепление",1278,{"$f":"ROUNDUP(D159-(Содержание!$H$4*D159),0)","v":1278}]
[null,"H10Z1218PDC","1/2\", 10:1, 12,0-120,0 мм, 1.8 – 560C, предустановки, C крепление",1606,{"$f":"ROUNDUP(D160-(Содержание!$H$4*D160),0)","v":1606}]
[null,"H16Z7516AMS","1/2\", 16:1, 7,5-120,0 мм, 1.6 – 560C, C крепление",1762,{"$f":"ROUNDUP(D161-(Содержание!$H$4*D161),0)","v":1762}]
[null,"H16Z7516AMSP","1/2\", 16:1, 7,5-120,0 мм, 1.6 – 560C, предустановки, C крепление",2107,{"$f":"ROUNDUP(D162-(Содержание!$H$4*D162),0)","v":2107}]
[null,"H16Z7516AMSR","1/2\", 16:1, 7,5-120,0 мм, 1.6 – 560C, C крепление",1882,{"$f":"ROUNDUP(D163-(Содержание!$H$4*D163),0)","v":1882}]
[null,"H16Z7516AMSPR","1/2\", 16:1, 7,5-120,0 мм, 1.6 – 560C, предустановки, C крепление",2401,{"$f":"ROUNDUP(D164-(Содержание!$H$4*D164),0)","v":2401}]
[null,"H16Z7516DC","1/2\", 16:1, 7,5-120,0 мм, 1.6 – 560C, C крепление",1572,{"$f":"ROUNDUP(D165-(Содержание!$H$4*D165),0)","v":1572}]
[null,"H16Z7516PDC","1/2\", 16:1, 7,5-120,0 мм, 1.6 – 560C, предустановки, C крепление",2037,{"$f":"ROUNDUP(D166-(Содержание!$H$4*D166),0)","v":2037}]
[null,"H16Z7516AMS-IR","1/2\", 16:1, 7,5-120,0 мм, 1.6 – 560C, C крепление, ИК коррекция",3368,{"$f":"ROUNDUP(D167-(Содержание!$H$4*D167),0)","v":3368}]
[null,"H16Z7516AMSP-IR","1/2\", 16:1, 7,5-120,0 мм, 1.6 – 560C, предустановки, C крепление, ИК коррекция",3570,{"$f":"ROUNDUP(D168-(Содержание!$H$4*D168),0)","v":3570}]
[null,"H16Z7516AMSR-IR","1/2\", 16:1, 7,5-120,0 мм, 1.6 – 560C, C крепление, ИК коррекция",3368,{"$f":"ROUNDUP(D169-(Содержание!$H$4*D169),0)","v":3368}]
[null,"H16Z7516AMSPR-IR","1/2\", 16:1, 7,5-120,0 мм, 1.6 – 560C, предустановки, C крепление, ИК коррекция",3570,{"$f":"ROUNDUP(D170-(Содержание!$H$4*D170),0)","v":3570}]
["2МП","H21Z1016AMS-MP","1/2\", 21:1, 10,0-210,0 мм, 1,5 - 1000, C крепление, Video Auto Iris, 2 мегапиксельный",2677,{"$f":"ROUNDUP(D171-(Содержание!$H$4*D171),0)","v":2677}]
["2МП","H21Z1016AMSP-MP","1/2\", 21:1, 10,0-210,0 мм, 1,5 - 1000, предустановки, C крепление,  Video Auto Iris, Preset, 2 мегапиксельный",2937,{"$f":"ROUNDUP(D172-(Содержание!$H$4*D172),0)","v":2937}]
["3МП","H21Z1016DC-MP","1/2\", 21:1, 10,0-210,0 мм, 1,5 - 1000, C крепление, DC Iris, 2 мегапиксельный",2677,{"$f":"ROUNDUP(D173-(Содержание!$H$4*D173),0)","v":2677}]
["3МП","H21Z1016PDC-MP","1/2\", 21:1, 10,0-210,0 мм, 1,5 - 1000, предустановки, C крепление,  DC Iris, Preset, 2 мегапиксельный",2937,{"$f":"ROUNDUP(D174-(Содержание!$H$4*D174),0)","v":2937}]
["2МП","M24Z1527PDC-MP","2/3\" f15.0-360mm 2.7 DC 2MP 24X Preset Spot Filter C",7772,{"$f":"ROUNDUP(D175-(Содержание!$H$4*D175),0)","v":7772}]
["2МП","M24Z2138PDC-MP","2/3\" 21.0-500mm 3.8 DC 2MP 24X Preset Sport Filter. C",9499,{"$f":"ROUNDUP(D176-(Содержание!$H$4*D176),0)","v":9499}]
["3МП","E24Z1018M-MP","1/1.8, 24:1, 10,0мм - 240мм, 1.8 - 500C, 3 мегапиксельный",4491,{"$f":"ROUNDUP(D177-(Содержание!$H$4*D177),0)","v":4491}]
["3МП","E24Z1018M-MPIR","1/1.8, 24:1, 10,0мм - 240мм, 1.8 - 500C, 3 мегапиксельный, IR",5786,{"$f":"ROUNDUP(D178-(Содержание!$H$4*D178),0)","v":5786}]
["3МП","E24Z1018MS-MP","1/1.8, 24:1, 10,0мм - 240мм, 1.8 - 500C, Spotfilter, 3 мегапиксельный",4663,{"$f":"ROUNDUP(D179-(Содержание!$H$4*D179),0)","v":4663}]
["3МП","E24Z1018MS-MPIR","1/1.8, 24:1, 10,0мм - 240мм, 1.8 - 500C, Spotfilter, 3 мегапиксельный, IR",5958,{"$f":"ROUNDUP(D180-(Содержание!$H$4*D180),0)","v":5958}]
["3МП","E24Z1018MP-MP","1/1.8, 24:1, 10,0мм - 240мм, 1.8 - 500C, предустановки, 3 мегапиксельный",4663,{"$f":"ROUNDUP(D181-(Содержание!$H$4*D181),0)","v":4663}]
["3МП","E24Z1018MP-MPIR","1/1.8, 24:1, 10,0мм - 240мм, 1.8 - 500C, предустановки, 3 мегапиксельный, IR",5958,{"$f":"ROUNDUP(D182-(Содержание!$H$4*D182),0)","v":5958}]
["3МП","E24Z1018MSP-MP","1/1.8, 24:1, 10,0мм - 240мм, 1.8 - 500C, предустановки, Spotfilter, 3 мегапиксельный",4749,{"$f":"ROUNDUP(D183-(Содержание!$H$4*D183),0)","v":4749}]
["3МП","E24Z1018MSP-MPIR","1/1.8, 24:1, 10,0мм - 240мм, 1.8 - 500C, предустановки, Spotfilter, 3 мегапиксельный, IR",6045,{"$f":"ROUNDUP(D184-(Содержание!$H$4*D184),0)","v":6045}]
["3МП","E24Z1018AMS-MP","1/1.8, 24:1, 10,0мм - 240мм, 1.8 - 500C, Video Auto Iris,  C крепление, Spotfilter, 3 мегапиксельный",4146,{"$f":"ROUNDUP(D185-(Содержание!$H$4*D185),0)","v":4146}]
["3МП","E24Z1018AMS-MPIR","1/1.8, 24:1, 10,0мм - 240мм, 1.8 - 500C, Video Auto Iris,  C крепление, Spotfilter, IR, 3 мегапиксельный",5441,{"$f":"ROUNDUP(D186-(Содержание!$H$4*D186),0)","v":5441}]
["3МП","E24Z1018AMSP-MP","1/1.8, 24:1, 10,0мм - 240мм, 1.8 - 500C, \", Video Auto Iris,  C крепление, предустановки, 3 мегапиксельный",4275,{"$f":"ROUNDUP(D187-(Содержание!$H$4*D187),0)","v":4275}]
["3МП","E24Z1018AMSP-MPIR","1/1.8, 24:1, 10,0мм - 240мм, 1.8 - 500C, \", Video Auto Iris,  C крепление, предустановки, IR, 3 мегапиксельный",5613,{"$f":"ROUNDUP(D188-(Содержание!$H$4*D188),0)","v":5613}]
["3МП","E24Z1018DC-MP","10.0mm - 240mm, 1.8 - 500C, 1/1.8\", DC Auto Iris, C, 3 Megapixel",4146,{"$f":"ROUNDUP(D189-(Содержание!$H$4*D189),0)","v":4146},"Новая модель"]
["3МП","E24Z1018DC-MPIR","10.0mm - 240mm, 1.8 - 500C, 1/1.8\", DC Auto Iris, C, 3 Megapixel, IR",5441,{"$f":"ROUNDUP(D190-(Содержание!$H$4*D190),0)","v":5441},"Новая модель"]
["3МП","E24Z1018PDC-MP","1/1.8, 24:1, 10,0мм - 240мм, 1.8 - 500C, DC Auto Iris,  C крепление, предустановки, 3 мегапиксельный",4275,{"$f":"ROUNDUP(D191-(Содержание!$H$4*D191),0)","v":4275}]
["3МП","E24Z1018PDC-MPIR","1/1.8, 24:1, 10,0мм - 240мм, 1.8 - 500C, DC Auto Iris,  C крепление, предустановки, IR, 3 мегапиксельный",5613,{"$f":"ROUNDUP(D192-(Содержание!$H$4*D192),0)","v":5613}]
["1.3МП","H27Z9535AM-MP","1/2\", 9,5 - 256,5 mm, F3,5, C крепление, Video Auto Iris, 1.3 мегапиксельный",4150,{"$f":"ROUNDUP(D193-(Содержание!$H$4*D193),0)","v":4150},"Цена снижена"]
["1.3МП","H27Z9535AMP-MP","1/2\", 9,5 - 256,5 mm, F3,5, C крепление, Video Auto Iris, предустановки, 1.3 мегапиксельный",4400,{"$f":"ROUNDUP(D194-(Содержание!$H$4*D194),0)","v":4400},"Цена снижена"]
["1.3МП","H27Z9535DC-MP","1/2\", 9,5 - 256,5 mm, F3,5, C крепление, DC Auto Iris, 1.3 мегапиксельный",4150,{"$f":"ROUNDUP(D195-(Содержание!$H$4*D195),0)","v":4150},"Цена снижена"]
["1.3МП","H27Z9535PDC-MP","1/2\", 9,5 - 256,5 mm, F3,5, C крепление, DC Auto Iris, предустановки, 1.3 мегапиксельный",4400,{"$f":"ROUNDUP(D196-(Содержание!$H$4*D196),0)","v":4400},"Цена снижена"]
[null,"H30Z1015AMS","1/2\", 30:1, 10,0-300,0 мм,1.5 – 560C, C крепление, Video Auto Iris",5181,{"$f":"ROUNDUP(D197-(Содержание!$H$4*D197),0)","v":5181}]
[null,"H30Z1015AMSP","1/2\", 30:1, 10,0-300,0 мм,1.5 – 560C, C крепление, Video Auto Iris, Spot Filter, Preset",5613,{"$f":"ROUNDUP(D198-(Содержание!$H$4*D198),0)","v":5613}]
[null,"H30Z1015AMSR","1/2\", 30:1, 10,0-300,0 мм,1.5 – 560C, C крепление, Video Auto Iris / manual Override, Spot Filter",5924,{"$f":"ROUNDUP(D199-(Содержание!$H$4*D199),0)","v":5924}]
[null,"H30Z1015AMSPR","1/2\", 30:1, 10,0-300,0 мм,1.5 – 560C, C крепление, Video Auto Iris / manual Override, Spot Filter, Preset",6408,{"$f":"ROUNDUP(D200-(Содержание!$H$4*D200),0)","v":6408}]
["2МП","H35Z1015AMS-MP","1/2\", 10,0 - 350 мм, F1,5,  C крепление, Video Auto Iris, Spot Filter, C, 1.3 мегапиксельный",5428,{"$f":"ROUNDUP(D201-(Содержание!$H$4*D201),0)","v":5428},"Цена выросла"]
["2МП","H35Z1015AMSP-MP","1/2\", 10,0 - 350 мм, F1,5,  C крепление, Video Auto Iris, Spot Filter, Preset, 1.3 мегапиксельный",5767,{"$f":"ROUNDUP(D202-(Содержание!$H$4*D202),0)","v":5767},"Цена выросла"]
["2МП","H35Z1015DC-MP","1/2\", 10,0 - 350 мм, F1,5,  C крепление, DC Auto Iris, C, 1.3 мегапиксельный",5428,{"$f":"ROUNDUP(D203-(Содержание!$H$4*D203),0)","v":5428},"Цена выросла"]
["2МП","H35Z1015PDC-MP","1/2\", 10,0 - 350 мм, F1,5,  C крепление, DC Auto Iris, Preset, C, 1.3 мегапиксельный",5767,{"$f":"ROUNDUP(D204-(Содержание!$H$4*D204),0)","v":5767},"Цена выросла"]
[null,"H60Z1238A","1/2\", 60:1, 12,5-1500,0 мм, 3.8 - 3000, с 2x умножителем, C крепление, Video Auto Iris",25187,{"$f":"ROUNDUP(D205-(Содержание!$H$4*D205),0)","v":25187}]
[null,"H60Z1238A-IR","1/2\", 60:1, 12,5-1500,0 мм, 3.8 - 3000, с 2x умножителем, C крепление, Video Auto Iris, IR",27777,{"$f":"ROUNDUP(D206-(Содержание!$H$4*D206),0)","v":27777}]
[null,"H60Z1238A-IRF","1/2\", 60:1, 12,5-1500,0 мм, 3.8 - 3000, с 2x умножителем, C крепление, Video Auto Iris, IR, AntiFog функция",28641,{"$f":"ROUNDUP(D207-(Содержание!$H$4*D207),0)","v":28641}]
["2МП","H62Z1235AMS-MP","1/2\", 62:1, 12,5-775,0 мм, F3.5, C крепление, Video Auto Iris, Spot Filter, 2 мегапиксельный",21301,{"$f":"ROUNDUP(D208-(Содержание!$H$4*D208),0)","v":21301}]
["2МП","H62Z1235AMSP-MP","1/2\", 62:1, 12,5-775,0 мм, F3.5, C крепление, Video Auto Iris, Spot Filter, Preset, 2 мегапиксельный",22308,{"$f":"ROUNDUP(D209-(Содержание!$H$4*D209),0)","v":22308}]
["2МП","H62Z1235AM-MP","1/2\", 62:1, 12,5-775,0 мм, F3.5, C крепление, Video Auto Iris, 2 мегапиксельный",18135,{"$f":"ROUNDUP(D210-(Содержание!$H$4*D210),0)","v":18135}]
["2МП","H62Z1235AMP-MP","1/2\", 62:1, 12,5-775,0 мм, F3.5, C крепление, Video Auto Iris, Preset, 2 мегапиксельный",19430,{"$f":"ROUNDUP(D211-(Содержание!$H$4*D211),0)","v":19430}]
["2МП","H62Z1235AM-MP-EX","1/2\", 62:1, 25мм-1550 мм, F3.5, C крепление, Video Auto Iris, 2 мегапиксельный, 2x Extender",23172,{"$f":"ROUNDUP(D212-(Содержание!$H$4*D212),0)","v":23172}]
["2МП","H62Z1235AMP-MP-EX","1/2\", 62:1, 25мм-1550 мм, F3.5, C крепление, Video Auto Iris, Preset, 2 мегапиксельный, 2x Extender",24899,{"$f":"ROUNDUP(D213-(Содержание!$H$4*D213),0)","v":24899}]
["2МП","H62Z1235AMP-MPIR","1/2\", 62:1, 12,5-775,0 мм, F3.5, C крепление, Video Auto Iris, Preset, 2 мегапиксельный, IR",16963,{"$f":"ROUNDUP(D214-(Содержание!$H$4*D214),0)","v":16963},"Цена выросла"]
["2МП","H62Z1235AMP-MPIR-EX","1/2\", 62:1, 25мм-1550 мм, F3.5, C крепление, Video Auto Iris, Preset, 2 мегапиксельный, IR, 2x Extender",20355,{"$f":"ROUNDUP(D215-(Содержание!$H$4*D215),0)","v":20355},"Цена выросла"]
["2МП","H62Z1235DC-MP","1/2\", 62:1, 12,5-775,0 мм, F3.5, C крепление, DC Auto Iris, 2 мегапиксельный",11647,{"$f":"ROUNDUP(D216-(Содержание!$H$4*D216),0)","v":11647},"Цена выросла"]
["2МП","H62Z1235PDC-MP","1/2\", 62:1, 12,5-775,0 мм, F3.5, C крепление, DC Auto Iris, Preset, C, 2 мегапиксельный",12553,{"$f":"ROUNDUP(D217-(Содержание!$H$4*D217),0)","v":12553},"Цена выросла"]
["2МП","H62Z1235DC-MP-EX","1/2\", 62:1, 25мм-1550 мм, F3.5, C крепление, DC Auto Iris, 2 мегапиксельный, 2x Extender",14927,{"$f":"ROUNDUP(D218-(Содержание!$H$4*D218),0)","v":14927},"Цена выросла"]
["2МП","H62Z1235PDC-MP-EX","1/2\", 62:1, 25мм-1550 мм, F3.5, C крепление, DC Auto Iris, Preset, 2 мегапиксельный, 2x Extender",16058,{"$f":"ROUNDUP(D219-(Содержание!$H$4*D219),0)","v":16058},"Цена выросла"]
["2МП","H62Z1235PDC-MPIR","1/2\", 62:1, 12,5-775,0 мм, F3.5, C крепление, DC Auto Iris, Preset, 2 мегапиксельный, IR",16963,{"$f":"ROUNDUP(D220-(Содержание!$H$4*D220),0)","v":16963},"Цена выросла"]
["2МП","H62Z1235PDC-MPIR-EX","1/2\", 62:1, 25мм-1550 мм, F3.5, C крепление, DC Auto Iris, Preset, 2 мегапиксельный, IR, 2x Extender",20355,{"$f":"ROUNDUP(D221-(Содержание!$H$4*D221),0)","v":20355},"Цена выросла"]
["Объективы \"игольное ушко\"",null,"     ",null,{"$f":"ROUNDUP(D222-(Содержание!$H$4*D222),0)","v":0}]
[null,"T2625CS-P","1/3\", 2,6 мм, 2.5 – 32C, CS, Pinhole",530,{"$f":"ROUNDUP(D223-(Содержание!$H$4*D223),0)","v":530}]
[null,"TG2625FCS-P","1/3\", 2,6 мм, 2.5 – 360C, CS, Pinhole",745,{"$f":"ROUNDUP(D224-(Содержание!$H$4*D224),0)","v":745}]
[null,"TG2625FCS-P31","1/3\", 2,6 мм, 2.5 – 360C, CS, автодиафрагма DC, кабель 31 см",745,{"$f":"ROUNDUP(D225-(Содержание!$H$4*D225),0)","v":745}]
[null,"TG2625AFCS-P","1/3\", 2,6 мм, 2.5 – 360C, CS, Pinhole",796,{"$f":"ROUNDUP(D226-(Содержание!$H$4*D226),0)","v":796}]
["Машинное зрение",null,null,null,{"$f":"ROUNDUP(D227-(Содержание!$H$4*D227),0)","v":0}]
["Обработка изоражений",null,null,null,{"$f":"ROUNDUP(D228-(Содержание!$H$4*D228),0)","v":0}]
["1.5МП","H0514-MP2","1/2\", 5,0 мм, 1,4 - 16C, 1,5 мегапиксельный, C крепление  ",504,{"$f":"ROUNDUP(D229-(Содержание!$H$4*D229),0)","v":504}]
["1.5МП","M0814-MP2","2/3\", 8,0 мм, 1.4 – 16C, 1,5 мегапиксельный, С крепление",259,{"$f":"ROUNDUP(D230-(Содержание!$H$4*D230),0)","v":259}]
["1.5МП","M1214-MP2","2/3\", 12,0 мм, 1.4 – 16C, 1,5 мегапиксельный, С крепление ",259,{"$f":"ROUNDUP(D231-(Содержание!$H$4*D231),0)","v":259}]
["1.5МП","M1614-MP2","2/3\", 16,0 мм, 1.4 – 16C, 1,5 мегапиксельный, С крепление",225,{"$f":"ROUNDUP(D232-(Содержание!$H$4*D232),0)","v":225}]
["1.5МП","M2514-MP2","2/3\", 25,0 мм, 1.4 – 16C, 1,5 мегапиксельный, С крепление",242,{"$f":"ROUNDUP(D233-(Содержание!$H$4*D233),0)","v":242}]
["1.5МП","M3514-MP","2/3\", 35,0 мм, 1,4 – 16C, 1,5 мегапиксельный, С крепление",311,{"$f":"ROUNDUP(D234-(Содержание!$H$4*D234),0)","v":311}]
["1.5МП","M5018-MP2","2/3\", 50,0 мм, 1,8 – 16C, 1,5 мегапиксельный, С крепление",259,{"$f":"ROUNDUP(D235-(Содержание!$H$4*D235),0)","v":259}]
["1.5МП","M7528-MP","2/3\", 75,0 мм, 2,8 – 16C, 1,5 мегапиксельный, С крепление",397,{"$f":"ROUNDUP(D236-(Содержание!$H$4*D236),0)","v":397}]
[null,"M0824-MPW2"," 2/3\", 8,0 мм, 2.4-16C, 5-ти мегапиксельный, ручная регулировка фокуса и диафрагмы, ультра низкие оптические искажения (менее 0,1%), компактный корпус, С крепление",590,{"$f":"ROUNDUP(D237-(Содержание!$H$4*D237),0)","v":590}]
[null,"M1224-MPW2"," 2/3\", 12 мм, 2.4-16C, 5-ти мегапиксельный, ручная регулировка фокуса и диафрагмы, ультра низкие оптические искажения (менее 0,1%), компактный корпус, С крепление",547,{"$f":"ROUNDUP(D238-(Содержание!$H$4*D238),0)","v":547}]
[null,"M1620-MPW2","2/3\", 16,0 мм, F2.0, 5-ти мегапиксельный, ручная регулировка фокуса и диафрагмы, ультра низкие оптические искажения (менее 0,1%), компактный корпус, С крепление",490,{"$f":"ROUNDUP(D239-(Содержание!$H$4*D239),0)","v":490}]
[null,"M2518-MPW2","2/3\", 25,0 мм, F1.8, 5-ти мегапиксельный, ручная регулировка фокуса и диафрагмы, ультра низкие оптические искажения (менее 0,1%), компактный корпус, С крепление",490,{"$f":"ROUNDUP(D240-(Содержание!$H$4*D240),0)","v":490}]
[null,"M3520-MPW2","2/3\", 35,0 мм, F2.0, 5-ти мегапиксельный, ручная регулировка фокуса и диафрагмы, ультра низкие оптические искажения (менее 0,1%), компактный корпус, С крепление",490,{"$f":"ROUNDUP(D241-(Содержание!$H$4*D241),0)","v":490}]
[null,"M5028-MPW2","2/3\", 50,0 мм, F2.8, 5-ти мегапиксельный, ручная регулировка фокуса и диафрагмы, ультра низкие оптические искажения (менее 0,1%), компактный корпус, С крепление",490,{"$f":"ROUNDUP(D242-(Содержание!$H$4*D242),0)","v":490}]
["Макро",null,"     ",null,{"$f":"ROUNDUP(D243-(Содержание!$H$4*D243),0)","v":0}]
[null,"T1318C-WA","1/3\", 1,28 мм, 1,8-16C, C крепление",1232,{"$f":"ROUNDUP(D244-(Содержание!$H$4*D244),0)","v":1232}]
[null,"H0514-MP2","1/2\", 5,0 мм, 1,4 - 16C, 1,5 мегапиксельный, C крепление  ",504,{"$f":"ROUNDUP(D245-(Содержание!$H$4*D245),0)","v":504}]
[null,"MLH10XC","1/2'’, 13.0 – 130 мм, 5.6 – 32C, C крепление, макро",630,{"$f":"ROUNDUP(D246-(Содержание!$H$4*D246),0)","v":630}]
[null,"MLM-3XMP","2/3\", 27.0-91.0 мм, 4.5 – 22C,  C крепление, макро, 1МП",778,{"$f":"ROUNDUP(D247-(Содержание!$H$4*D247),0)","v":778}]
["Мегапиксельные объективы с резьбой М12",null,null,null,{"$f":"ROUNDUP(D248-(Содержание!$H$4*D248),0)","v":0}]
["3МП","E1220KV","1/1,8\", 12 мм, F2,0, 3 мегапиксельный, ультра низкие оптические искажения (менее 0,1%)",280,{"$f":"ROUNDUP(D249-(Содержание!$H$4*D249),0)","v":280}]
["3МП","E1620KV","1/1,8\", 16 мм, F2,0, 3 мегапиксельный, ультра низкие оптические искажения (менее 0,1%)",233,{"$f":"ROUNDUP(D250-(Содержание!$H$4*D250),0)","v":233}]
["3МП","E2520KV","1/1,8\", 25 мм, F2,0, 3 мегапиксельный, ультра низкие оптические искажения (менее 0,1%)",213,{"$f":"ROUNDUP(D251-(Содержание!$H$4*D251),0)","v":213}]
["3МП","H1328KP","1/2\", 1,27 мм, F2,8, 3 мегапиксельный, рыбий глаз",216,{"$f":"ROUNDUP(D252-(Содержание!$H$4*D252),0)","v":216}]
["1.5МП","H0320KP","1/2\", 3,0 мм, F2,0, мегапиксельный",142,{"$f":"ROUNDUP(D253-(Содержание!$H$4*D253),0)","v":142}]
["1.5МП","H0624KP","1/2\", 6,0 мм, F2,4, мегапиксельный",126,{"$f":"ROUNDUP(D254-(Содержание!$H$4*D254),0)","v":126}]
["1.5МП","H0924KP","1/2\", 9,0 мм, F2,4, мегапиксельный",126,{"$f":"ROUNDUP(D255-(Содержание!$H$4*D255),0)","v":126}]
["1.5МП","H1620KP","1/2\", 16 мм, F2,0, мегапиксельный",126,{"$f":"ROUNDUP(D256-(Содержание!$H$4*D256),0)","v":126}]
["1.5МП","H2520KP","1/2\", 25 мм, F2,0, мегапиксельный",126,{"$f":"ROUNDUP(D257-(Содержание!$H$4*D257),0)","v":126}]
[null,"M12*P0.5 Mount Adapter","Адаптер для установки объективов M12 на CS камеры",15,{"$f":"ROUNDUP(D258-(Содержание!$H$4*D258),0)","v":15}]
["Объективы для SWIR (КВИК) диапазона",null,null,null,{"$f":"ROUNDUP(D259-(Содержание!$H$4*D259),0)","v":0}]
[null,"M1624-SW","2/3\", 16мм, F1.4-16C, 800-1700нм, С крепление",835,{"$f":"ROUNDUP(D260-(Содержание!$H$4*D260),0)","v":835}]
[null,"M2514-SW","2/3\", 25мм, F1.4-16C, 800-1700нм, С крепление",835,{"$f":"ROUNDUP(D261-(Содержание!$H$4*D261),0)","v":835}]
[null,"M3514-SW","2/3\", 35мм, F1.4-16C, 800-1700нм, С крепление",835,{"$f":"ROUNDUP(D262-(Содержание!$H$4*D262),0)","v":835}]
[null,"M5018-SW","2/3\", 50мм, F1.8-16C, 800-1700нм, С крепление",835,{"$f":"ROUNDUP(D263-(Содержание!$H$4*D263),0)","v":835}]
["Телецентрические объективы",null,null,null,{"$f":"ROUNDUP(D264-(Содержание!$H$4*D264),0)","v":0}]
["1\" 5МП","TEC-V7X","1,1\", 47,65-106,25 мм, С, телецентрический, макро, 5МП",2199,{"$f":"ROUNDUP(D265-(Содержание!$H$4*D265),0)","v":2199}]
["1\" 5МП","TEC-M55MPW","2/3\", 55 мм, 3.0–22C, C крепление, телецентрический, 5МП",1029,{"$f":"ROUNDUP(D266-(Содержание!$H$4*D266),0)","v":1029}]
["2/3\" 0.3МП","TECM55","2/3’’, 55 мм, 2.8–32C, C крепление, телецентрический, 0.3МП",869,{"$f":"ROUNDUP(D267-(Содержание!$H$4*D267),0)","v":869}]
["2/3\" 0.3МП","TECM55-20","Экстендер для TECM55, 2x     ",248,{"$f":"ROUNDUP(D268-(Содержание!$H$4*D268),0)","v":248}]
["2/3\" 0.3МП","TECM55-75","Экстендер для TECM55, 0.75x     ",248,{"$f":"ROUNDUP(D269-(Содержание!$H$4*D269),0)","v":248}]
["2/3\" 2МП","TEC-M0565MPC","0.5x, Coaxial, 2/3\", C, 65мм рабочая дистанция",1440,{"$f":"ROUNDUP(D270-(Содержание!$H$4*D270),0)","v":1440},"Новая модель"]
["2/3\" 2МП","TEC-M0565MP","0.5x, 2/3\", C, 65мм рабочая дистанция",1223,{"$f":"ROUNDUP(D271-(Содержание!$H$4*D271),0)","v":1223},"Новая модель"]
["2/3\" 2МП","TEC-M0865MPC","0.8x, Coaxial, 2/3\", C, 65мм рабочая дистанция",1324,{"$f":"ROUNDUP(D272-(Содержание!$H$4*D272),0)","v":1324},"Новая модель"]
["2/3\" 2МП","TEC-M0865MP","0.8x, 2/3\", C, 65мм рабочая дистанция",1152,{"$f":"ROUNDUP(D273-(Содержание!$H$4*D273),0)","v":1152},"Новая модель"]
["2/3\" 2МП","TEC-M1065MPC","1.0x, Coaxial, 2/3\", C, 65мм рабочая дистанция",1324,{"$f":"ROUNDUP(D274-(Содержание!$H$4*D274),0)","v":1324},"Новая модель"]
["2/3\" 2МП","TEC-M1065MP","1.0x, 2/3\", C, 65мм рабочая дистанция",1152,{"$f":"ROUNDUP(D275-(Содержание!$H$4*D275),0)","v":1152},"Новая модель"]
["2/3\" 2МП","TEC-M2065MPC","2.0x, Coaxial, 2/3\", C, 65мм рабочая дистанция",1338,{"$f":"ROUNDUP(D276-(Содержание!$H$4*D276),0)","v":1338},"Новая модель"]
["2/3\" 2МП","TEC-M2065MP","2.0x, 2/3\", C, 65мм рабочая дистанция",1152,{"$f":"ROUNDUP(D277-(Содержание!$H$4*D277),0)","v":1152},"Новая модель"]
["2/3\" 2МП","TEC-M03110MPC","0.3x, Coaxial, 2/3\", C, 110мм рабочая дистанция",2735,{"$f":"ROUNDUP(D278-(Содержание!$H$4*D278),0)","v":2735},"Новая модель"]
["2/3\" 2МП","TEC-M03110MP","0.3x, 2/3\", C, 110мм рабочая дистанция",2447,{"$f":"ROUNDUP(D279-(Содержание!$H$4*D279),0)","v":2447},"Новая модель"]
["2/3\" 2МП","TEC-M05110MPC","0.5x, Coaxial, 2/3\", C, 110мм рабочая дистанция",1656,{"$f":"ROUNDUP(D280-(Содержание!$H$4*D280),0)","v":1656},"Новая модель"]
["2/3\" 2МП","TEC-M05110MP","0.5x, 2/3\", C, 110мм рабочая дистанция",1425,{"$f":"ROUNDUP(D281-(Содержание!$H$4*D281),0)","v":1425},"Новая модель"]
["2/3\" 2МП","TEC-M08110MPC","0.8x, Coaxial, 2/3\", C, 110мм рабочая дистанция",1511,{"$f":"ROUNDUP(D282-(Содержание!$H$4*D282),0)","v":1511},"Новая модель"]
["2/3\" 2МП","TEC-M08110MP","0.8x, 2/3\", C, 110мм рабочая дистанция",1425,{"$f":"ROUNDUP(D283-(Содержание!$H$4*D283),0)","v":1425},"Новая модель"]
["2/3\" 2МП","TEC-M10110MPC","1.0x, Coaxial, 2/3\", C, 110мм рабочая дистанция",1511,{"$f":"ROUNDUP(D284-(Содержание!$H$4*D284),0)","v":1511},"Новая модель"]
["2/3\" 2МП","TEC-M10110MP","1.0x, 2/3\", C, 110мм рабочая дистанция",1381,{"$f":"ROUNDUP(D285-(Содержание!$H$4*D285),0)","v":1381},"Новая модель"]
["2/3\" 2МП","TEC-M15110MPC","1.5x, Coaxial, 2/3\", C, 110мм рабочая дистанция",1511,{"$f":"ROUNDUP(D286-(Содержание!$H$4*D286),0)","v":1511},"Новая модель"]
["2/3\" 2МП","TEC-M15110MP","1.5x, 2/3\", C, 110мм рабочая дистанция",1381,{"$f":"ROUNDUP(D287-(Содержание!$H$4*D287),0)","v":1381},"Новая модель"]
["2/3\" 2МП","TEC-M20110MPC","2.0x, Coaxial, 2/3\", C, 110мм рабочая дистанция",1511,{"$f":"ROUNDUP(D288-(Содержание!$H$4*D288),0)","v":1511},"Новая модель"]
["2/3\" 2МП","TEC-M20110MP","2.0x, 2/3\", C, 110мм рабочая дистанция",1381,{"$f":"ROUNDUP(D289-(Содержание!$H$4*D289),0)","v":1381},"Новая модель"]
["1\" 5МП","TEC-V0565MPW","0.5x, 1\", C, 65мм рабочая дистанция",2706,{"$f":"ROUNDUP(D290-(Содержание!$H$4*D290),0)","v":2706},"Новая модель"]
["1\" 5МП","TEC-V1065MPW","1.0x, 1\", C, 65мм рабочая дистанция",2735,{"$f":"ROUNDUP(D291-(Содержание!$H$4*D291),0)","v":2735},"Новая модель"]
["1\" 5МП","TEC-V05110MPW","0.5x, 1\", C, 110мм рабочая дистанция",2706,{"$f":"ROUNDUP(D292-(Содержание!$H$4*D292),0)","v":2706},"Новая модель"]
["1\" 5МП","TEC-V10110MPW","1.0x, 1\", C, 110мм рабочая дистанция",2735,{"$f":"ROUNDUP(D293-(Содержание!$H$4*D293),0)","v":2735},"Новая модель"]
["Принадлежности",null,"     ",null,{"$f":"ROUNDUP(D294-(Содержание!$H$4*D294),0)","v":0}]
[null,"VM100","Длиннофокусные насадки (0.5, 1, 5, 10, 20, 40 мм)     ",80,{"$f":"ROUNDUP(D295-(Содержание!$H$4*D295),0)","v":80}]
[null,"VM400","Кольцо-переходник C-CS, 5 мм",11,{"$f":"ROUNDUP(D296-(Содержание!$H$4*D296),0)","v":11}]
[null,"EX1.5CS","Длиннофокусная насадка, 1.5x, CS     ",97,{"$f":"ROUNDUP(D297-(Содержание!$H$4*D297),0)","v":97}]
[null,"EX1.5C","Длиннофокусная насадка, 1.5x, C     ",95,{"$f":"ROUNDUP(D298-(Содержание!$H$4*D298),0)","v":95}]
[null,"EX2CS","Длиннофокусная насадка, 2x, CS     ",119,{"$f":"ROUNDUP(D299-(Содержание!$H$4*D299),0)","v":119},"Уточнение названия"]
[null,"EX2C","Длиннофокусная насадка, 2x, C     ",131,{"$f":"ROUNDUP(D300-(Содержание!$H$4*D300),0)","v":131},"Уточнение названия"]
[null,"LP1","4-штырьковый штекер для объективов с автодиафрагмой ",6,{"$f":"ROUNDUP(D301-(Содержание!$H$4*D301),0)","v":6}]
[]
[null,"***новые позиции выделены красным"]
[null,"***снижение цены выделено синим"]

{"sheet":"IP камеры и NVR","index":2,"n_rows":195,"n_cols":7,"rows_kept":195,"cut":false,"hidden":false,"merged":[[63,0,63,3],[114,0,114,3],[150,0,150,5]]}
["IP-камеры и NVR",null,null,"     "]
[]
[]
[null,null,"Модель","Описание    ","Розница, USD","Моя цена","Комментарии"]
[]
[null,"CS-крепление объектива"]
[null,null,"ZN-C2M*","FullHD камера мех. день/ночь, разрешение 2МП (1920х1080), двойной поток (H.264, MJPEG), 1/2,7\" прогрессивная КМОП матрица, цв. 0,8 люкс (F1,2, 30 IRE), ч/б 0,07 люкс (F1,2, медленный затвор вкл., 30 IRE), C/CS крепление (DC/ручная), 12VDC/24VAC или PoE, BNC выход видео (настроечный), аудио вх/вых (G.711/8K), тревожный вх/вых, слот Micro SD (до 32ГБ), Onvif, -10..+50C; (*720p запись на NVR серии PixelMaster)",551,{"$f":"ROUNDUP(E7-(Содержание!$H$4*E7),0)","v":551},"*720p recording with PixelMaster"]
[null,"Цилиндрический корпус"]
[null,null,"ZN-B2MTP","FullHD камера мех. день/ночь в цилиндрическом корпусе со встроенной ИК-подсветкой, разрешение 2МП (1920x1080), двойной поток (H.264, MJPEG), 1/2.8\" Sony IMX122 CMOS, цв. 0,16 люкс (F1,4, 25 IRE), ч/б 0 люкс с ИК-подсветкой (42 светодиода, до 25м), встроенный варифокальный объектив computar 3-9 мм, автодиафрагма P-iris, удаленное управление зумом, фокусировкой и диафрагмой, 12VDC/24VAC или PoE, выход на сервисный монитор, аудио вх/вых (G.711/8K), тревожный вх/вых, слот Micro SD (до 32ГБ), Onvif, IP66, -40..+50C (24В АС)    ",936,{"$f":"ROUNDUP(E9-(Содержание!$H$4*E9),0)","v":936}]
[null,null,"ZN-B2MTP-2","FullHD камера мех. день/ночь в цилиндрическом корпусе со встроенной ИК-подсветкой, разрешение 2МП (1920x1080), двойной поток (H.264, MJPEG), 1/2.8\" Sony IMX122 CMOS, цв. 0,16 люкс (F1,4, 25 IRE), ч/б 0 люкс с ИК-подсветкой (42 светодиода, до 25м), встроенный варифокальный объектив computar 10-23 мм, автодиафрагма P-iris, удаленное управление зумом, фокусировкой и диафрагмой, 12VDC/24VAC или PoE, выход на сервисный монитор, аудио вх/вых (G.711/8K), тревожный вх/вых, слот Micro SD (до 32ГБ), Onvif, IP66, -40..+50C (24В АС)     ",939,{"$f":"ROUNDUP(E10-(Содержание!$H$4*E10),0)","v":939}]
[null,"Внутренние купольные"]
[null,null,"ZN-D1MTP","HD камера день/ночь в купольном корпусе, разрешение 1,3МП (1280х1024), двойной поток (H.264, MJPEG), 1/2.8\" Sony IMX122 CMOS, цв. 0,21 люкс (50 IRE), ч/б 0,06 люкс (50IRE), встроенный варифокальный объектив 3 - 9 мм, автодиафрагма P-iris, удаленное управление зумом, фокусировкой и диафрагмой, 12VDC/24VAC или PoE, выход на сервисный монитор, аудио вх/вых (G.711/8K), тревожный вх/вых,  Onvif, -10..+50C                                                      ",597,{"$f":"ROUNDUP(E12-(Содержание!$H$4*E12),0)","v":597}]
[null,null,"ZN-D1MTP-IR","HD камера мех. день/ночь в купольном корпусе со встроенной ИК-подсветкой, разрешение 1,3МП (1280х1024), двойной поток (H.264, MJPEG), 1/2.8\" Sony IMX122 CMOS, цв. 0,21 люкс (50 IRE), ч/б 0 люкс (с ИК-подсветкой), встроенный варифокальный объектив 3 - 9 мм, автодиафрагма P-iris, удаленное управление зумом, фокусировкой и диафрагмой, 12VDC/24VAC или PoE, выход на сервисный монитор, аудио вх/вых (G.711/8K), тревожный вх/вых,  Onvif, -10..+50C                                                      ",232,{"$f":"ROUNDUP(E13-(Содержание!$H$4*E13),0)","v":232}]
[null,null,"ZN-D2MTP-IR","FullHD камера мех. день/ночь в купольном корпусе, разрешение 2МП (1920x1080), двойной поток (H.264, MJPEG), 1/2.8\" Sony IMX122 CMOS, цв. 0,21 люкс (50 IRE), ч/б 0,06 люкс (50IRE), встроенный варифокальный объектив 3 - 9 мм, автодиафрагма P-iris, удаленное управление зумом, фокусировкой и диафрагмой, 12VDC/24VAC или PoE, выход на сервисный монитор, аудио вх/вых (G.711/8K), тревожный вх/вых,  Onvif, -10..+50C                                                      ",700,{"$f":"ROUNDUP(E14-(Содержание!$H$4*E14),0)","v":700}]
[null,"Уличные купольные"]
[null,null,"ZN-DT1MTP","HD антивандальная камера мех. день/ночь в купольном корпусе, разрешение 1,3МП (1280х1024), двойной поток (H.264, MJPEG), 1/2,5\" прогрессивный CMOS сенсор, цв. 0,21 люкс (F1,2 50 IRE) ч/б 0,06 люкс (F1,2 50 IRE), встроенный варифокальный объектив 3 - 9 мм, автодиафрагма P-iris,  удаленное управление зумом и фокусировкой, 12VDC/24VAC или PoE, выход на сервисный монитор, аудио вх/вых (G.711/8K), тревожный вх/вых, слот Micro SD (до 32ГБ), Onvif, IP66, -10ºC ~ 50ºC, с нагревателем (ZNA-HD2) -28,9ºC ~ 50ºC",715,{"$f":"ROUNDUP(E16-(Содержание!$H$4*E16),0)","v":715}]
[null,null,"ZN-DT1MTP-IR","HD антивандальная камера мех. день/ночь в купольном корпусе  со встроенной ИК-подсветкой, разрешение 1,3МП (1280х1024), двойной поток (H.264, MJPEG), 1/2,5\" прогрессивный CMOS сенсор, цв. 0,21 люкс (F1,2 50 IRE) ч/б 0 люкс (с ИК-подсветкой), встроенный варифокальный объектив 3 - 9 мм, автодиафрагма P-iris,  удаленное управление зумом и фокусировкой, 12VDC/24VAC или PoE, выход на сервисный монитор, аудио вх/вых (G.711/8K), тревожный вх/вых, , слот Micro SD (до 32ГБ), Onvif, IP66, -10ºC ~ 50ºC, с нагревателем (ZNA-HD2) -28,9ºC ~ 50ºC",751,{"$f":"ROUNDUP(E17-(Содержание!$H$4*E17),0)","v":751}]
[null,null,"ZN-DT2MTP","FulHD антивандальная камера мех. день/ночь в купольном корпусе, разрешение 2МП (1920x1080), двойной поток (H.264, MJPEG), 1/2.8\" Sony IMX122 CMOS, цв. 0,21 люкс (F1,2 50 IRE) ч/б 0,06 люкс (F1,2 50 IRE), встроенный варифокальный объектив 3 - 9 мм, автодиафрагма P-iris,  удаленное управление зумом и фокусировкой, 12VDC/24VAC или PoE, выход на сервисный монитор, аудио вх/вых (G.711/8K), тревожный вх/вых, , слот Micro SD (до 32ГБ), Onvif, IP66, -10ºC ~ 50ºC, с нагревателем (ZNA-HD2) -28,9ºC ~ 50ºC",785,{"$f":"ROUNDUP(E18-(Содержание!$H$4*E18),0)","v":785}]
[null,null,"ZN-DT2MTP-IR","FulHD антивандальная камера мех. день/ночь в купольном корпусе  со встроенной ИК-подсветкой, разрешение 2МП (1920x1080), двойной поток (H.264, MJPEG), 1/2.8\" Sony IMX122 CMOS, цв. 0,21 люкс (F1,2 50 IRE) ч/б 0 люкс (с ИК-подсветкой), встроенный варифокальный объектив 3 - 9 мм, автодиафрагма P-iris,  удаленное управление зумом и фокусировкой, 12VDC/24VAC или PoE, выход на сервисный монитор, аудио вх/вых (G.711/8K), тревожный вх/вых, слот Micro SD (до 32ГБ), Onvif, IP66, -10ºC ~ 50ºC, с нагревателем (ZNA-HD2) -28,9ºC ~ 50ºC",818,{"$f":"ROUNDUP(E19-(Содержание!$H$4*E19),0)","v":818}]
[null,"Мини-серия, встроенный 5х AF объектив"]
[null,null,"ZN-M2AF*","FullHD мини-камера, мех. день/ночь, разрешение 2МП (1920x1080), двойной поток (H.264, MJPEG), 1/2.8\" Sony IMX-036 CMOS, 0,24 люкс (F3.5 / 30IRE (цвет)), встроенный автофокусный объектив 5,0- 25 мм 51,3-11град.гор., удаленное управление зумом и фокусировкой, Onvif, PoE, выход на сервисный монитор, 51x48х63мм, -10..+50С",506,{"$f":"ROUNDUP(E21-(Содержание!$H$4*E21),0)","v":506},"Уточняйте наличие на складе"]
[null,"Мини-серия"]
[null,null,"ZN-MB243M","FullHD уличная цилиндрическая мини-камера, мех. день/ночь, ИК-подсветка (18 светодиодов), разрешение 2МП (1920x1080), двойной поток (H.264, MJPEG), 1/2.8\" Sony IMX-036 CMOS, 0,14 люкс (F2.0 / 30IRE (цвет)) встроенный объектив  4мм 84,4град. гор., Onvif, PoE, выход на сервисный монитор, Ø58x85мм(Д), длина кабелей 40см, IP66, от -20 до 50°C",402.91176470588243,{"$f":"ROUNDUP(E23-(Содержание!$H$4*E23),0)","v":403}]
[null,null,"ZN-MB260M","FullHD уличная цилиндрическая мини-камера, мех. день/ночь, ИК-подсветка (18 светодиодов), разрешение 2МП (1920x1080), двойной поток (H.264, MJPEG), 1/2.8\" Sony IMX-036 CMOS, 0,14 люкс (F2.0 / 30IRE (цвет)) встроенный объектив  6мм 53град. гор., Onvif, PoE, выход на сервисный монитор, Ø58x85мм(Д), длина кабелей 40см, IP66, от -20 до 50°C",402.91176470588243,{"$f":"ROUNDUP(E24-(Содержание!$H$4*E24),0)","v":403}]
[null,null,"ZN-MDI243M-IR","FullHD внутренняя купольная мини-камера, мех. день/ночь, ИК-подсветка (2 светодиода), разрешение 2МП (1920x1080), двойной поток (H.264, MJPEG), 1/2.8\" Sony IMX-036 CMOS, 0,63 люкс (F2.0 / 50IRE (цвет)), встроенный объектив  4,3мм 84,4град. гор., Onvif, PoE, выход на сервисный монитор, Ø130x76мм(В), IP66, от -10 до 40°C",369.58823529411768,{"$f":"ROUNDUP(E25-(Содержание!$H$4*E25),0)","v":370}]
[null,null,"ZN-MDI260M-IR","FullHD внутренняя купольная мини-камера, мех. день/ночь, ИК-подсветка (2 светодиода), разрешение 2МП (1920x1080), двойной поток (H.264, MJPEG), 1/2.8\" Sony IMX-036 CMOS, 0,63 люкс (F2.0 / 50IRE (цвет)), встроенный объектив  6мм 53,3град. гор., Onvif, PoE, выход на сервисный монитор, Ø130x76мм(В), IP66, от -10 до 40°C",369.58823529411768,{"$f":"ROUNDUP(E26-(Содержание!$H$4*E26),0)","v":370}]
[null,null,"ZN-MD221M","FullHD уличная купольная мини-камера, эл. день/ночь, разрешение 2МП (1920x1080), двойной поток (H.264, MJPEG), 1/2.8\" Sony IMX-036 CMOS, 0,14 люкс (F2.0 / 30IRE (цвет)) встроенный объектив 2,1мм 132,6град.гор., Onvif, PoE, выход на сервисный монитор, Ø110x67,5мм (В), IP66, от -30 до 50°C",415,{"$f":"ROUNDUP(E27-(Содержание!$H$4*E27),0)","v":415},"Цена снижена"]
[null,null,"ZN-MD243M","FullHD уличная купольная мини-камера, эл. день/ночь, разрешение 2МП (1920x1080), двойной поток (H.264, MJPEG), 1/2.8\" Sony IMX-036 CMOS, 0,14 люкс (F2.0 / 30IRE (цвет)) встроенный объектив 4,3мм 71,45град.гор., Onvif, PoE, выход на сервисный монитор, Ø110x67,5мм (В), IP66, от -30 до 50°C",415,{"$f":"ROUNDUP(E28-(Содержание!$H$4*E28),0)","v":415},"Цена снижена"]
[null,"Скоростные поворотные камеры"]
[null,null,"ZN-P4NT50","PTZ Dome IP66 / IK10, 25 fps @ 2MP Full-HD, 1/2.8\" CMOS, ICR, DWDR, 0.4 Lux F1.6 50 IRE, 0.03 Lux F1.6 50 IRE (n/b), 4.7 - 94mm, SD card slot, 24VAC / PoE+",3416,{"$f":"ROUNDUP(E30-(Содержание!$H$4*E30),0)","v":3416},"Новая модель"]
[null,null,"ZN-P4NT50L","PTZ Dome IP66, 25 fps @ 2MP Full-HD, 1/2.8\" CMOS, ICR, DWDR, IR-LEDs, 0.4 Lux F1.6 50 IRE, 0 Lux F1.6 50 IRE (n/b IR on), 4.7 - 94mm, SD card slot, 24VAC ",4963,{"$f":"ROUNDUP(E31-(Содержание!$H$4*E31),0)","v":4963},"Новая модель"]
[null,null,"ZN-PTZ220M-XT","FullHD уличная купольная PTZ камера, эл. день/ночь, разрешение 2МП (1920х1080) (до 3 пользователей одновременно), двойной поток (H.264, MJPEG), 1/3\" CMOS, цв. 1,7 люкс (F1,6 50 IRE) ч/б 0,3 люкс (F1,6, 50 IRE), объектив 20х 4.7 - 94.0 мм AF, удаленное управление зумом и фокусировкой, 128 предустановок, 4 маршрута, 8 режимов автосканирования, протоколы Pelco P/D, D-Max, GANZ и т.д., Onvif, 24VAC, BNC выход видео (настроечный), аудио вх/вых (G.711/8K), тревожный вх/вых, слот Micro SD (до 32ГБ), IP66, от -40 до +50°C",3118,{"$f":"ROUNDUP(E32-(Содержание!$H$4*E32),0)","v":3118},"Снята с производства"]
[]
[null,"Принадлежности"]
[null,null,"ZNA-CA1","Адаптер для подвесной установки купольных уличных камер PixelPro (кроме мини-серии)",88,{"$f":"ROUNDUP(E35-(Содержание!$H$4*E35),0)","v":88}]
[null,null,"PMA2","Pole mount adapter for ZNA-WM2A",94,{"$f":"ROUNDUP(E36-(Содержание!$H$4*E36),0)","v":94},"Новая модель"]
[null,null,"ZNA-HD2","Дополнительный нагреватель для купольных уличных камер PixelPro -MTP, до -29°C (кроме мини-серии)",59,{"$f":"ROUNDUP(E37-(Содержание!$H$4*E37),0)","v":59}]
[null,null,"ZNA-WM2A","Адаптер для настенной установки купольных уличных камер серии PixelPro (кроме мини-серии)",165,{"$f":"ROUNDUP(E38-(Содержание!$H$4*E38),0)","v":165},"Цена снижена"]
[null,null,"ZC-FM3","Адаптер для установки в подвесной потолок внутренних купольных камер PixelPro (кроме мини-серии)",88,{"$f":"ROUNDUP(E39-(Содержание!$H$4*E39),0)","v":88}]
[null,null,"ZC7-PM1","Адаптер для подвесной установки внутренних купольных камер PixelPro (кроме мини-серии)",45,{"$f":"ROUNDUP(E40-(Содержание!$H$4*E40),0)","v":45}]
[null,null,"ZC7-WM1","Адаптер для подвесной установки внутренних купольных камер PixelPro (кроме мини-серии)",103,{"$f":"ROUNDUP(E41-(Содержание!$H$4*E41),0)","v":103}]
[null,null,"ZNA-SDI","Дымчатая полусфера для внутренних камер PixelPro (кроме мини-серии)",29,{"$f":"ROUNDUP(E42-(Содержание!$H$4*E42),0)","v":29}]
[null,null,"ZNA-MDPM1","Адаптер для подвесной установки уличных купольных камер PixelPro мини-серии",0,{"$f":"ROUNDUP(E43-(Содержание!$H$4*E43),0)","v":0}]
[null,null,"ZNA-WMB2","Адаптер для настенного монтажа ZN-PTZ220M-XT \"гусиная шея\"",448,{"$f":"ROUNDUP(E44-(Содержание!$H$4*E44),0)","v":448}]
[null,null,"ZNA-CMB2","Адаптер для потолочного монтажа ZN-PTZ220M-XT прямой",448,{"$f":"ROUNDUP(E45-(Содержание!$H$4*E45),0)","v":448}]
[null,null,"ZNA-POEExtender","Инжектор PoE 56В 19,6Вт, питание 220В",62,"Fixed price","Цена снижена"]
[null,"Сетевые видеорегистраторы"]
[null,null,"NR4HL-V","4-канальный сетевой триплексный FullHD видеорегистратор, сжатие H.264, LINUX OS, HDMI, VGA 1920х1080, запись 100к/с 1080p, аудио вх(4xIP, 1x лин.), вых(4xIP, 1x лин.), трев. вх(4xIP+2), вых(4xIP+1 реле), до 2 SATA жёстких дисков по 4ТБ каждый, LAN, WAN, 4xLAN PoE питание камер, 2хUSB, RS-485, RS-232, eSATA, пульт ДУ, Watchdog, высота 1U, 2 БП, Android/iOS, работа с камерами PixelPro, ПО DMS Lite на 64 канала",912,{"$f":"ROUNDUP(E48-(Содержание!$H$4*E48),0)","v":912},"Новая модель"]
[null,null,"NR8HL-V","8-канальный сетевой триплексный FullHD видеорегистратор, сжатие H.264, LINUX OS, HDMI, VGA 1920х1080, запись 200к/с 1080p, аудио вх(8xIP, 1x лин.), вых(8xIP, 1x лин.), трев. вх(8xIP+2), вых(8xIP+1 реле), до 2 SATA жёстких дисков по 4ТБ каждый, LAN, WAN, 8xLAN PoE питание камер, 2хUSB, RS-485, RS-232, eSATA, пульт ДУ, Watchdog, высота 1U, 2 БП, Android/iOS, работа с камерами PixelPro, ПО DMS Lite на 64 канала",1291,{"$f":"ROUNDUP(E49-(Содержание!$H$4*E49),0)","v":1291},"Нвоая модель"]
[null,null,"NR8H","8-канальный сетевой триплексный FullHD видеорегистратор, сжатие H.264, LINUX OS, HDMI-выход 1920х1080, запись 200к/с 1080p, аудио вх(8xIP, 1x лин.), вых(8xIP, 1x лин.), трев. вх(8xIP+2), вых(8xIP+1 реле), до 5 SATA жёстких дисков по 4ТБ каждый, LAN, WAN, 8xLAN PoE питание камер, (2+1)хUSB, RS-485, RS-232, eSATA, пульт ДУ, Watchdog, высота 2U, 1 БП, Android/iOS, работа с камерами PixelPro, ПО DMS Lite на 64 канала",2060,{"$f":"ROUNDUP(E50-(Содержание!$H$4*E50),0)","v":2060},"Цена снижена"]
[null,null,"NR16H","16-канальный сетевой триплексный FullHD видеорегистратор, сжатие H.264, LINUX OS, HDMI-выход 1920х1080, запись 400к/с 1080p, аудио вх(16xIP, 1x лин.), вых(16xIP, 1x лин.), трев. вх(16xIP+2), вых(16xIP+1 реле), до 5 SATA жёстких дисков по 4ТБ каждый, LAN, WAN, 8xLAN PoE встр. + 8xLAN PoE хаб для питания камер, (2+1)хUSB, RS-485, RS-232, eSATA, пульт ДУ, Watchdog, высота 2U, 2 БП, Android/iOS, работа с камерами PixelPro, ПО DMS Lite на 64 канала",2600,{"$f":"ROUNDUP(E51-(Содержание!$H$4*E51),0)","v":2600},"Цена снижена"]
[null,"Принадлежности"]
[null,null,"NR-RM1","Адаптер для монтажа NR4HL / NR8HL в 19\" стойку ",25,{"$f":"ROUNDUP(E53-(Содержание!$H$4*E53),0)","v":25},"Цена снижена"]
[null,null,"NR-RM2","Адаптер для монтажа NR8H / NR16H в 19\" стойку ",25,{"$f":"ROUNDUP(E54-(Содержание!$H$4*E54),0)","v":25},"Цена снижена"]
[null,null,"NR4PoE","4-х портовый коммутатор, каскадируемый до 4 уровней (см. схему подключения)",380,{"$f":"ROUNDUP(E55-(Содержание!$H$4*E55),0)","v":380},"Цена снижена"]
[null,null,"NR16PoE-2","8-ми портовый коммутатор, каскадируемый",535,{"$f":"ROUNDUP(E56-(Содержание!$H$4*E56),0)","v":535},"Новая модель"]
[null,"Жесткие диски - 24/7"]
[null,null,"Таблица совместимости камер PixelPro и регистраторов PixelMaster"]
[null,null,"Список рекомендованных жестких дисков для Pixelmaster"]
[null,null,"ZRS-HDD1000","S-ATA HDD 1TB 24/7",152,"Fixed price"]
[null,null,"ZRS-HDD2000","S-ATA HDD 2TB 24/7",183,"Fixed price"]
[null,null,"ZRS-HDD3000","S-ATA HDD 3TB 24/7",216,"Fixed price"]
[null,null,"ZRS-HDD4000","S-ATA HDD 4TB 24/7",246,"Fixed price"]
["Серия PixelPro GXi с видеоаналитикой"]
[null,"CS-крепление объектива",null,"     "]
[null,null,"ZN-NH22XE","FullHD камера мех. день/ночь, прогрессивная 1/2,9\" CMOS, 2МП 1920x1080@25 к/с, двойной поток (H.264, MJPEG), 0,5 люкс цвет, 0.001 люкс ч/б (DSS вкл) @F1.2, 50IRE, С/CS крепление, BNC выход видео (настроечный), аудио вх/вых (G.711/8K), экранное меню, Onvif, интерфейсы RS485/232, MicroSD (до 64ГБ) и USB, PoE/12VDC, 0..+50С, встроенная видеоаналитика (расширяемая лицензия)",788,{"$f":"ROUNDUP(E66-(Содержание!$H$4*E66),0)","v":788}]
[null,"Купольные камеры "]
[null,null,"ZN-D212XE","FullHD купольная фишай-камера эл. день/ночь, 1/2,7\" CMOS, разрешение 2МП 1920x1080@25к/с, двойной поток (H.264, MJPEG, MPEG4), объектив 1,2мм F2.0, 180 град гор. 160град. верт., аудио вх./вых(G711), PoE, 12В DC 4Вт, Onvif, слот MicroSD (до 64ГБ), Ø144мм x 63,5мм(В), поверхностный монтаж, вес 360г, -10..+50C, встроенная видеоаналитика (расширяемая лицензия)",844,{"$f":"ROUNDUP(E68-(Содержание!$H$4*E68),0)","v":844}]
[null,null,"ZN1-F5FN8","FullHD купольная фишай-камера эл. день/ночь, 1/2,5\" CMOS, разрешение 3МП 2048x1536@14к/с, двойной поток (H.264, MJPEG, MPEG4), объектив 1,2мм F2.0, 180ºx180º, ImmerVision, e-PTZ, аудио вх./вых(G711), PoE, 12В DC 4Вт, Onvif G, S, слот MicroSD (до 64ГБ), Ø144мм x 57,2мм(В), поверхностный монтаж, вес 360г, -10..+50C, встроенная видеоаналитика (расширяемая лицензия)",844,{"$f":"ROUNDUP(E69-(Содержание!$H$4*E69),0)","v":844}]
[null,null,"ZN-DT352VE","UXGA купольная антивандальная камера эл. день/ночь, 1/3.2\" 4:3 CMOS, разрешение 2МП UXGA (1600х1200@5к/с), двойной поток (H.264, MJPEG), встроенный вариофокальный объектив 3,3 - 12мм F1.6, 0,5 люкс, аудио вх./вых (G711), , PoE, 12В DC 500мA, слот MicroSD (до 8ГБ),  150ммØ x 113мм(В), вес 1170г, -10..+50C, встроенная видеоаналитика (расширяемая лицензия)",794.12999999999988,{"$f":"ROUNDUP(E70-(Содержание!$H$4*E70),0)","v":795}]
[null,null,"ZN-DN312XE-M","FullHD купольная камера мех. день/ночь, 1/2,7\" CMOS, разрешение 2МП 1920x1080@25к/с, двойной поток (H.264, MJPEG), объектив 3 - 9мм, цвет 0,5 люкс, ч/б 0,01 люкс, аудио вх./вых(G711), PoE/12VDC, Ø144мм x 121мм(В), вес 520г, 0..+50C, встроенная видеоаналитика (расширяемая лицензия)",840.48,{"$f":"ROUNDUP(E71-(Содержание!$H$4*E71),0)","v":841}]
[null,null,"ZN-DNT352XE-M","FullHD уличная вандалозащищенная купольная камера мех. день/ночь, 1/2,9\" CMOS, разрешение 2МП 1920x1080@25к/с, двойной поток (H.264, MJPEG), объектив 3 - 9мм,  цвет 0,5 люкс, ч/б 0,01 люкс, аудио вх./вых(G711), , PoE/12VDC, слот MicroSD (до 64ГБ), Onvif, Ø155мм x 129мм(В), вес 1200г, -40..+50C при 12В (14Вт), встроенная видеоаналитика (расширяемая лицензия)",1090.77,{"$f":"ROUNDUP(E72-(Содержание!$H$4*E72),0)","v":1091}]
[null,null,"ZN-DNT352XE-MIR","FullHD уличная вандалозащищенная купольная камера мех. день/ночь с ИК-подсветкой, 1/2,7\" CMOS, разрешение 2МП 1920x1080@25к/с, двойной поток (H.264, MJPEG), объектив 3 - 9мм,  цвет 0,5 люкс, ч/б 0 люкс (с ИК-подсветкой), аудио вх./вых(G711), PoE/12VDC, слот MicroSD (до 64ГБ), Onvif, Ø155мм x 129мм(В), вес 1200г, -40..+50C при 12В (16Вт), встроенная видеоаналитика (расширяемая лицензия)",960.99,{"$f":"ROUNDUP(E73-(Содержание!$H$4*E73),0)","v":961}]
[null,null,"ZN-DN332XE-MPD","FullHD купольная PTZ камера мех. день/ночь, 1/2,7\" CMOS, разрешение 2МП 1920x1080@25к/с, двойной поток (H.264, MJPEG), объектив 3 - 9мм с удаленным управлением, панорамирование 0-355°, наклон 0-80град., 16 предустановок, цвет 0,5 люкс, ч/б 0,001 люкс, аудио вх./вых(G711), BNC выход видео (настроечный), PoE/12В DC/24В АС, слот MicroSD (до 64ГБ), Onvif, Ø154мм x 130мм(В), вес 1200г, установка за потолок, 0..+50C, встроенная видеоаналитика (расширяемая лицензия)",1090.77,{"$f":"ROUNDUP(E74-(Содержание!$H$4*E74),0)","v":1091}]
[null,null,"ZN-DNT372XE-MPD","FullHD уличная вандалозащищенная купольная PTZ камера мех. день/ночь, 1/2,7\" CMOS, разрешение 2МП 1920x1080@30к/с, двойной поток (H.264, MJPEG), объектив 3 - 9мм с удаленным управлением, панорамирование 0-355°, наклон 0-80град., 16 предустановок, цвет 0,5 люкс, ч/б 0,001 люкс, аудио вх./вых(G711), PoE/12В DC/24В АС, слот MicroSD (до 64ГБ), Onvif, Ø154мм x 130мм(В), вес 1600г, -20..+50C при 12/24В, встроенная видеоаналитика (расширяемая лицензия)",1242,{"$f":"ROUNDUP(E75-(Содержание!$H$4*E75),0)","v":1242}]
[null,null,"ZN1-D4FN5","FullHD купольная камера эл. день/ночь, 1/2,9\" CMOS, разрешение 2МП 1920x1080@25к/с, двойной поток (H.264, MJPEG), объектив 4мм, цвет 1 люкс, ч/б 0,01 люкс, аудио вх./вых(G711), PoE/12VDC, слот MicroSD (до 64ГБ), Onvif, Ø110мм x 95мм(В), вес 300г, 0..+40C, встроенная видеоаналитика (расширяемая лицензия)",538,{"$f":"ROUNDUP(E76-(Содержание!$H$4*E76),0)","v":538}]
[null,null,"ZN1-D4NFN6L","FullHD купольная камера мех. день/ночь, 1/2,9\" CMOS, разрешение 2МП 1920x1080@25к/с, двойной поток (H.264, MJPEG), объектив 4,3мм F2.0 74,4° гор., цвет 1 люкс, ч/б 0 люкс (с ИК-подсветкой), BNC выход видео (настроечный), PoE/12В, слот MicroSD (до 64ГБ), Onvif, Ø148x100(H)мм, вес 430г, 0..+40C, встроенная видеоаналитика (расширяемая лицензия)",534,{"$f":"ROUNDUP(E77-(Содержание!$H$4*E77),0)","v":534}]
[null,null,"ZN1-D4NMZ43L","FullHD купольная камера мех. день/ночь, 1/2,9\" CMOS, разрешение 2МП 1920x1080@25к/с, двойной поток (H.264, MJPEG), моторизованный объектив 3-9мм 133,5°-40,8° гор., цвет 1 люкс, ч/б 0 люкс (с ИК-подсветкой), BNC выход видео (настроечный), PoE/12В, слот MicroSD (до 64ГБ), Onvif, Ø148x100(H)мм, вес 470г, 0..+40C, встроенная видеоаналитика (расширяемая лицензия)",686,{"$f":"ROUNDUP(E78-(Содержание!$H$4*E78),0)","v":686}]
[null,null,"ZN1-M4FN3","FullHD купольная камера эл. день/ночь, 1/2.7\" CMOS, разрешение 2МП 1920x1080@25к/с, двойной поток (H.264, MJPEG), объектив 2,8мм F2.0 110° гор., цвет 1 люкс, ч/б 0,001 люкс, DWDR, только PoE, слот MicroSD (до 64ГБ), Onvif, Ø106мм x 56мм(В), вес 270г, 0..+40C, IK09, встроенная видеоаналитика (расширяемая лицензия)",438,{"$f":"ROUNDUP(E79-(Содержание!$H$4*E79),0)","v":438}]
[null,"Кубический корпус"]
[null,null,"ZN1-Q3FN2","HD куб-камера эл. день/ночь, 1/4\" CMOS, разрешение 1МП 1280x720@25к/с, двойной поток (H.264, MJPEG), объектив 2,7мм F2.0 91° гор., цвет 0,8 люкс, ч/б 0,1 люкс, DWDR, аудио вх./вых(G711), ИК датчик движения, встроенные микрофон и динамик, WiFi, 12В DC (без PoE), слот MicroSD (до 64ГБ), Onvif, 76x143x92мм, вес 142г, 0..+40C, встроенная видеоаналитика (расширяемая лицензия)",411,{"$f":"ROUNDUP(E81-(Содержание!$H$4*E81),0)","v":411}]
[null,"Цилиндрический корпус"]
[null,null,"ZN-BT662XE-MIR","FullHD камера мех. день/ночь, 1/2,7\" CMOS, 2МП FullHD разрешение 1920x1080@25к/с, двойной поток (H.264, MJPEG), объектив 3 - 9мм F1.2, удаленное управление зумом и фокусировкой, 1 люкс цвет 0 люкс ч/б (с ИК-пдсветкой), аудио вх./вых(G711), BNC выход видео (настроечный), PoE/12VDC, вес 1.5кг, встроенная ИК-подсветка до 25м, -40..+50C 12В, IP66, встроенная видеоаналитика (расширяемая лицензия)",1165,{"$f":"ROUNDUP(E83-(Содержание!$H$4*E83),0)","v":1165}]
[null,null,"ZN1-B4NVD43","FullHD камера мех. день/ночь, 1/2,9\" CMOS, 2МП FullHD разрешение 1920x1080@25к/с, двойной поток (H.264, MJPEG), объектив 3 - 9мм F1.2 98,2°-37,4° гор., 1 люкс цвет 0 люкс ч/б (с ИК-подсветкой, 12 светодиодов), трев.вх./вых, BNC выход видео (настроечный), PoE/12VDC, вес 860г, встроенная ИК-подсветка до 25м,  -20..+50C РоЕ/12В, IP66, встроенная видеоаналитика (расширяемая лицензия)",748,{"$f":"ROUNDUP(E84-(Содержание!$H$4*E84),0)","v":748}]
[null,null,"ZN1-B4NMZ43","FullHD камера мех. день/ночь, 1/2,9\" CMOS, 2МП FullHD разрешение 1920x1080@25к/с, двойной поток (H.264, MJPEG), моторизованный объектив 3-9мм 133,5°-40,8° гор., 0,5 люкс цвет 0 люкс ч/б (с ИК-подсветкой, 16 светодиодов), трев.вх./вых, BNC выход видео (настроечный), PoE/12VDC, вес 870г, встроенная ИК-подсветка до 25м, -20..+50C РоЕ/12В, IP66, встроенная видеоаналитика (расширяемая лицензия)",810,{"$f":"ROUNDUP(E85-(Содержание!$H$4*E85),0)","v":810}]
[null,"Pinhole камеры"]
[null,null,"ZN1-V4FN3","FullHD пинхол-камера эл. день/ночь, 1/3\" CMOS, 2МП FullHD разрешение 1920x1080@25к/с, двойной поток (H.264, MJPEG), объектив 2.8мм F2.0 82° гор., 1 люкс цвет 0,007 люкс ч/б (DSS вкл), аудио вх./вых(G711), PoE/12VDC, вес эл. блока 225г, камеры 250г, -10..+40C, длина кабеля 6,1м, встроенная видеоаналитика (расширяемая лицензия)",739,{"$f":"ROUNDUP(E87-(Содержание!$H$4*E87),0)","v":739}]
[null,"Применение","ZN1-V4FN4","FullHD пинхол-камера эл. день/ночь, 1/3\" CMOS, 2МП FullHD разрешение 1920x1080@25к/с, двойной поток (H.264, MJPEG), объектив 3.7мм F2.5 63° гор., 1,4 люкс цвет 0,01 люкс ч/б (DSS вкл), аудио вх./вых(G711), PoE/12VDC, вес эл. блока 225г, камеры 250г, -10..+40C, длина кабеля 6,1м, встроенная видеоаналитика (расширяемая лицензия)",739,{"$f":"ROUNDUP(E88-(Содержание!$H$4*E88),0)","v":739}]
[null,"Скоростные поворотные камеры"]
[null,null,"ZN-PTZ202XE","FullHD купольная PTZ камера мех. день/ночь, 1/3\" CMOS, разрешение 2МП 1920x1080@25к/с, двойной поток (H.264, MJPEG), объектив 4,45-80мм 20х опт. зум, панорамирование 360град., наклон -5-185град., 255 предустановок, 6 туров, цвет 1,5 (0,02) люкс, ч/б 0,1 (0,01)люкс, аудио вх./вых(G711), трев. вх/вых, PoE+/24В АС, слот MicroSD (до 64ГБ), Onvif, Ø180мм x 240мм(В), вес 2100г, 0..+50C, встроенная видеоаналитика слежения (расширяемая лицензия)                                       ",3594,{"$f":"ROUNDUP(E90-(Содержание!$H$4*E90),0)","v":3594}]
[]
[null,null,"ZN-PTZ202XE-XT","FullHD уличная купольная PTZ камера мех. день/ночь, 1/3\" CMOS, разрешение 2МП 1920x1080@25к/с, двойной поток (H.264, MJPEG), объектив 4,45-89мм 20х опт. зум, панорамирование 360град., наклон -5-185град., 255 предустановок, 6 туров, цвет 1,5 (0,02) люкс, ч/б 0,1 (0,01)люкс, аудио вх./вых(G711), трев. вх/вых, PoE+/24В АС, слот MicroSD (до 64ГБ), Onvif, Ø232мм x 296мм(В), вес 4600г, -40..+50C 24В, встроенная видеоаналитика слежения (расширяемая лицензия)                                       ",3971,{"$f":"ROUNDUP(E92-(Содержание!$H$4*E92),0)","v":3971}]
["IP-видеосерверы",null,null,"     "]
[null,null,null,"     "]
[null,null,"ZS1-1DS","1-канальный H.264, MJPEG двухпотоковый видеоэнкодер, 1хBNC видео вх/вых, разрешение D1, 2CIF, CIF, QCIF, 25к/с, 2x цифровые вх/вых, 1x аудио вх/вых (G.711), 485/422, RS-232C, USB2.0, слот SD card, 12В пост./240мА или PoE, 10/100Base-T, металлический корпус, (ШxВxГ) 103x38x141мм, 385г",555,{"$f":"ROUNDUP(E95-(Содержание!$H$4*E95),0)","v":555}]
[null,null,"ZS1-4DS","4-канальный H.264, MJPEG двухпотоковый видеоэнкодер, 4x BNC видео вх/вых., разрешение D1, 4CIF, VGA, CIF, QVGA, QCIF, 25к/с, 4x цифровые вх/вых, 4x аудио вх 1х вых(G.711), RS-485/422, RS-232C, слот SD card, 12В пост./1100мА, 10/100 Base-T,  металлически корпус, (ШxВxГ), 137x38x244мм,780г              ",1277,{"$f":"ROUNDUP(E96-(Содержание!$H$4*E96),0)","v":1277}]
[null,null,"ZA-NVE12K","19\" кассета для 3 карт-энкодеров ZN-RS4012VE (12 каналов) (HotSwap), 1U, с блоком питания для карт (85~264VAC/43~63 Гц/2 A), (ШxВxГ) 482x44x286 мм, 1,8 кг без карт (370 г/карта)  ",969,{"$f":"ROUNDUP(E97-(Содержание!$H$4*E97),0)","v":969}]
[null,null,"ZA-NVE40K","19\" кассета для 10 карт-энкодеров ZN-RS4040VE (40 каналов) (HotSwap), 4U, с блоком питания для карт (90~264VAC/43~63 Гц/2 A), (ШxВxГ) 482x177x325мм, 6,9 кг без карт (380 г/карта)                   ",2992,{"$f":"ROUNDUP(E98-(Содержание!$H$4*E98),0)","v":2992}]
[null,null,"ZS1-4DB1","4-канальная H.264, MPEG4, MJPEG двухпотоковая карта-видеоэнкодер, 4 BNC видео входа, разрешение D1, 2CIF, CIF, QCIF, 100 к/с, 4 цифровые вх/ 4 вых., 4 аудио вх./ 1аудио вых. (G.711), RS-485 4шт, 12VDC/845 мА, 10/100Base-T, (ШxВ) 241x125 мм, 370 г, встроенная видеоаналитика (расширяемая), Onvif, для работы в корпусе ZA-NVE12K",1173,{"$f":"ROUNDUP(E99-(Содержание!$H$4*E99),0)","v":1173}]
[null,null,"ZS1-4DB2","4-канальная H.264, MPEG4, MJPEG двухпотоковая карта-видеоэнкодер, 4 BNC видео входа, разрешение D1, 2CIF, CIF, QCIF, 100 к/с, 4 цифровые вх/ 4 вых., 4 аудио вх./ 1аудио вых. (G.711), RS-485 4шт, 12VDC/845 мА, 10/100Base-T, (ШxВ) 100x220 мм, 240г, встроенная видеоаналитика (расширяемая), Onvif, для работы в корпусе ZA-NVE40K ",1173,{"$f":"ROUNDUP(E100-(Содержание!$H$4*E100),0)","v":1173}]
["Лицензии видеоаналитики для GXi оборудования "]
[null,"Лицензии, поставляемые в комплекте с оборудованием"]
[null,null,"ZNS-PRES1","1 зона детектирования, определение вмешательства, устранение дрожания камеры, фильтр присутствия"]
[null,null,"ZNS-PRES","40 зон детектирования, определение вмешательства, устранение дрожания камеры, фильтр присутствия"]
[null,"Расширенные лицензии"]
[null,null,"ZNS-COUNT","40 зон детектирования, определение вмешательства, счётчики на экране, подсчёт пересечений линии",162,{"$f":"ROUNDUP(E106-(Содержание!$H$4*E106),0)","v":162},"Цена снижена"]
[null,null,"ZNS-ACCESS","40 зон детектирования, фильтр несоблюдения дистанции, счётчики на экране, подсчёт пересечений линии)",193,{"$f":"ROUNDUP(E107-(Содержание!$H$4*E107),0)","v":193},"Цена снижена"]
[null,null,"ZNS-DETECT","40 зон детектирования, определение вмешательства, уменьшение дрожания камеры, слежение за объектом, фильтр присутствия, фильтр класса и скорости, фильтр направления и задержки в зоне",193,{"$f":"ROUNDUP(E108-(Содержание!$H$4*E108),0)","v":193},"Цена снижена"]
[null,null,"ZNS-FOLLOW","Определение вмешательства, уменьшение дрожания камеры, слежение за объектом, автослежение для поворотной камеры",293,{"$f":"ROUNDUP(E109-(Содержание!$H$4*E109),0)","v":293},"Цена снижена"]
[null,null,"ZNS-SURV","40 зон детектирования, определение вмешательства, уменьшение дрожания камеры, слежение за объектом, фильтр оставленных/удалённых объектов, фильтр класса и скорости, фильтр несоблюдения дистанции, счётчики на экране, метаданные",262,{"$f":"ROUNDUP(E110-(Содержание!$H$4*E110),0)","v":262},"Цена снижена"]
[null,null,"ZNS-PRO","40 зон детектирования, определение вмешательства, уменьшение дрожания камеры, слежение за объектом, фильтр присутствия, фильтр оставленных/удалённых объектов, фильтр класса и скорости, фильтр несоблюдения дистанции, счётчики на экране, метаданные, слежение за людьми, подсчёт пересечений линии",385,{"$f":"ROUNDUP(E111-(Содержание!$H$4*E111),0)","v":385},"Цена снижена"]
[null,null,"ZNS-ADVANCEDIP","40 зон детектирования, определение вмешательства, уменьшение дрожания камеры, слежение за объектом, фильтр оставленных/удалённых объектов, фильтр класса и скорости, фильтр несоблюдения дистанции, счётчики на экране, метаданные,счетчик",323,{"$f":"ROUNDUP(E112-(Содержание!$H$4*E112),0)","v":323},"Цена снижена"]
[null,null,"ZNS-TRACK","40 зон детектирования, определение вмешательства, уменьшение дрожания камеры, слежение за объектом, фильтр присутствия, фильтр оставленных/удалённых объектов, фильтр класса и скорости, фильтр несоблюдения дистанции, счётчики на экране, метаданные, автослежение для поворотной камеры",539,{"$f":"ROUNDUP(E113-(Содержание!$H$4*E113),0)","v":539},"Цена снижена"]
[null,null,"Таблица совместимоси лицензий и оборудования"]
["Принадлежности для GXi оборудования"]
[null,null,"ZNA-POEExtender","Инжектор PoE 56В 19,6Вт, питание 220В",62,"Fixed price","Цена снижена"]
[null,null,"ZCA-220-3.0A","Блок питания для внутренней установки, 24 VAC, 3.0 A     ",104,{"$f":"ROUNDUP(E117-(Содержание!$H$4*E117),0)","v":104},"Цена выросла"]
[null,null,"ZCA-PSU220","Уличный блок питания (IP66) 24 VAC, 3.1 A     ",330,{"$f":"ROUNDUP(E118-(Содержание!$H$4*E118),0)","v":330},"Цена снижена"]
[null,"ZN-DN312XE-M / ZN-DNT352XE-M"]
[null,null,"WMB-3000","Стенной кронштейн ",92,{"$f":"ROUNDUP(E120-(Содержание!$H$4*E120),0)","v":92}]
[null,null,"CMB-3000","Потолочный кронштейн",117,{"$f":"ROUNDUP(E121-(Содержание!$H$4*E121),0)","v":117}]
[null,null,"CMA-3000","Адаптер для углового крепления",117,{"$f":"ROUNDUP(E122-(Содержание!$H$4*E122),0)","v":117}]
[null,null,"PMA-3000","Адаптер для крепления на столб ",117,{"$f":"ROUNDUP(E123-(Содержание!$H$4*E123),0)","v":117}]
[null,null,"GBP-35XX","Кронштейн для клеммной коробки",29,{"$f":"ROUNDUP(E124-(Содержание!$H$4*E124),0)","v":29}]
[null,null,"SD-35XX","Дымчатая полусфера",15,{"$f":"ROUNDUP(E125-(Содержание!$H$4*E125),0)","v":15}]
[null,"ZN-DN312XE"]
[null,null,"FMB-3102","Кронштейн для монтажа заподлицо",185,{"$f":"ROUNDUP(E127-(Содержание!$H$4*E127),0)","v":185}]
[null,"ZN-DNT352XE"]
[null,null,"FMB-3502","Кронштейн для монтажа заподлицо",185,{"$f":"ROUNDUP(E129-(Содержание!$H$4*E129),0)","v":185}]
[null,"ZN-PTZ202XE-XT"]
[null,null,"WMB-4600","Стенной кронштейн ",262,{"$f":"ROUNDUP(E131-(Содержание!$H$4*E131),0)","v":262}]
[null,null,"CMB-4600","Потолочный кронштейн",262,{"$f":"ROUNDUP(E132-(Содержание!$H$4*E132),0)","v":262}]
[null,null,"CMA-4600","Адаптер для углового крепления",262,{"$f":"ROUNDUP(E133-(Содержание!$H$4*E133),0)","v":262}]
[null,null,"PMA-4600","Адаптер для крепления на столб ",200,{"$f":"ROUNDUP(E134-(Содержание!$H$4*E134),0)","v":200}]
[null,"ZN-DNT372XE"]
[null,null,"WMB-3000S","Стенной кронштейн ",169,{"$f":"ROUNDUP(E136-(Содержание!$H$4*E136),0)","v":169}]
[null,null,"CMB-3000S","Потолочный кронштейн",185,{"$f":"ROUNDUP(E137-(Содержание!$H$4*E137),0)","v":185}]
[null,null,"FMB-3702","Кронштейн для монтажа заподлицо",231,{"$f":"ROUNDUP(E138-(Содержание!$H$4*E138),0)","v":231}]
[null,"ZN-DN332XE"]
[null,null,"FMB-3302","Кронштейн для монтажа заподлицо",185,{"$f":"ROUNDUP(E140-(Содержание!$H$4*E140),0)","v":185}]
[null,"ZN-BT662XE"]
[null,null,"PMA-6600","Адаптер для крепления на столб ",169,{"$f":"ROUNDUP(E142-(Содержание!$H$4*E142),0)","v":169}]
[null,null,"JBK-6600","Адаптер распределительной коробки",123,{"$f":"ROUNDUP(E143-(Содержание!$H$4*E143),0)","v":123}]
[null,"ZN1-D4FN"]
[null,null,"WMB-3200","Стенной кронштейн ",62,{"$f":"ROUNDUP(E145-(Содержание!$H$4*E145),0)","v":62}]
[null,null,"CMB-3200","Потолочный кронштейн",200,{"$f":"ROUNDUP(E146-(Содержание!$H$4*E146),0)","v":200}]
[null,"ZN1-M4FN3"]
[null,null,"SGB-300","Круглая площадка для монтажа на подвесной потолок",77,{"$f":"ROUNDUP(E148-(Содержание!$H$4*E148),0)","v":77}]
[null,null,"DGB-300","Круглая площадка для монтажа на подвесной потолок увел. диаметра",77,{"$f":"ROUNDUP(E149-(Содержание!$H$4*E149),0)","v":77}]
[null,null,"PMC-300","Адаптер для монтажа на прямой потолочный кронштейн",77,{"$f":"ROUNDUP(E150-(Содержание!$H$4*E150),0)","v":77}]
["Ganz GenSTAR"]
[null,"CS- камеры"]
[null,null,"ZN8-CAN","4МП IP камера мех. день/ночь, матрица 1/3\" CMOS, 1-й поток 2688x1520, 2560x1440@20к/с / 2304x1296, 1920x1080@25к/с, 2-й поток до 1280x720@25к/с, H.264/MJPEG, BNC, 2D/3D DNR, DWDR, CS крепление (DC/ручная), цвет 0,01люкс, ч/б 0,005люкс, DWDR, 2D/3D DNR, трев. вх/вых, аудио вх/вых, слот MicroSD (до 64ГБ), ROI, коридорный режим, 12В DC / 24В AC / PoE 3Вт макс., -10°C - 50°C, Onvif",370,{"$f":"ROUNDUP(E153-(Содержание!$H$4*E153),0)","v":370}]
[null,"Уличные цилиндрические камеры"]
[null,null,"ZN8-BANVF59","4МП уличная цилиндрическая IP камера мех. день/ночь со встроенной ИК-подсветкой 25м, матрица 1/3\" CMOS, разрешение 2688x1520@15к/с / 2304x1296@20к/с / FullHD 1920x1080@25к/с, двойной поток H.264/MJPEG, 3D DNR, DWDR, объектив 3-12мм 87° - 35° гор., цвет 0,01люкс, ч/б 0люкс (с ИК-подсветкой), ROI, слот MicroSD (до 64ГБ), 12В DC / PoE 5.5Вт макс., Onvif, IP66, -40°C - 60°C, 264.5мм(В)x80.3мм(Ø)",326,{"$f":"ROUNDUP(E155-(Содержание!$H$4*E155),0)","v":326}]
[null,null,"ZN8-NANFN4","4МП уличная цилиндрическая IP камера мех. день/ночь со встроенной ИК-подсветкой 30м, матрица 1/3\" CMOS, разрешение 2688x1520@15к/с / 2304x1296@20к/с / FullHD 1920x1080@25к/с, двойной поток H.264/MJPEG, 2D/3D DNR, DWDR, объектив 3,6мм 75° гор., цвет 0,01люкс, ч/б 0люкс (с ИК-подсветкой), ROI, 12В DC / PoE 5Вт макс., Onvif, IP66, -40°C - 55°C, 169(Г)×70(В)×60(Ш)",200,{"$f":"ROUNDUP(E156-(Содержание!$H$4*E156),0)","v":200}]
[null,null,"ZN8-N4NFN4","2 Мегапиксельная цилиндрическая камера, 1,3\" CMOS, 3.6мм, TDN, DNR, DWDR,  IR подсветка 20-30м, IP66, 12vdc/POE"]
[null,null,"ZN8-B4NVF56","2 Мегапиксельная цилиндрическая камера, 1,3\" CMOS,  2.8 ~ 12мм, TDN, DNR, DWDR, IR подсветка 20-30м, IP66, 12vdc/POE"]
[null,"Рыбий глаз"]
[null,null,"ZN8-F7NTFN10L","6МП купольная фишай IP камера мех. день/ночь с ИК-подсветкой до 10м, 1/1.8\" CMOS, разрешение 3072х2048@15к/с / 1920x1920 / 1440ч1440 / 1920x1080@25к/с / DEWARP 1х полный кадр + 3/5/7 регионов, 180° панорама, двойной поток (H.264, MJPEG), 2D/3D DNR, объектив 1,6мм F2.0 180°гор. 180°верт., аудио вх./вых, PoE / 12В DC 8Вт, слот MicroSD (до 64ГБ), Ø160мм x 47мм(В), 700г, Onvif, IP66, -30..+50C",700,{"$f":"ROUNDUP(E160-(Содержание!$H$4*E160),0)","v":700}]
[null,"Купольные скоростные поворотные камеры"]
[null,null,"ZN8-P4NTAF60L","FullHD уличная купольная IP PTZ камера, мех. день/ночь, разрешение 2МП, ИК-подсветка до 100м, двойной поток (H.264, MJPEG), 1/2.8\" CMOS, цв.0.02 люкс, ч/б 0,002 люкс, ч/б ИК вкл. 0 люкс, объектив 4.7мм - 103мм 58.16°-2.9° 22x оптический зум, 8 светодиодов ИК-подсветки с автоподстройкой яркости, 3D DNR, DWDR, 255 предустановок, 12 туров, автосканирование, Pelco P/D, 7х трев.вх 2х трев.вых.,BNC выход видео (настроечный), аудио вх/вых, слот Micro SD (до 64ГБ), Onvif, 24В AC 40Вт, IP66, от -40 до +60°C, 332ммx 205мм 4.3кг БП 24В 3А в комплекте, кронштейн для крепления на стену поставляется в комплекте",1679,{"$f":"ROUNDUP(E162-(Содержание!$H$4*E162),0)","v":1679}]
[null,"Купольные стациолнарные камеры"]
[null,null,"ZN8-MANTFN4L","4МП уличная купольная IP камера мех. день/ночь со встроенной ИК-подсветкой 7м, матрица 1/3\" CMOS, разрешение 2688x1520@15к/с / 2304x1296@20к/с / FullHD 1920x1080@25к/с, двойной поток H.264/MJPEG, 2D/3D DNR, DWDR, объектив 3,6мм 75° гор., цвет 0,01люкс, ч/б 0люкс (с ИК-подсветкой), ROI, 12В DC / PoE 5Вт макс., Onvif, IP65, -40°C - 60°C, 53мм(В)x100мм(Ø)",195,{"$f":"ROUNDUP(E164-(Содержание!$H$4*E164),0)","v":195}]
[null,null,"ZN8-DANTVF59L","4МП уличная купольная IP камера мех. день/ночь со встроенной ИК-подсветкой 20м, матрица 1/3\" CMOS, разрешение 2688x1520@15к/с / 2304x1296@20к/с / FullHD 1920x1080@25к/с, двойной поток H.264/MJPEG, 3D DNR, DWDR, объектив 3-12мм 87° - 35° гор., цвет 0,2люкс, ч/б 0люкс (с ИК-подсветкой), слот MicroSD (до 64ГБ), ROI, 12В DC / PoE 7.5Вт макс., Onvif, IP66, -40°C - 60°C, 112мм(В)x130мм(Ø)",312,{"$f":"ROUNDUP(E165-(Содержание!$H$4*E165),0)","v":312}]
[null,null,"ZN8-M4NTFN4L","2МП уличная антивандальная купольная камера, 1/3“ CMOS, 3.6mm, TDN, DNR, DWDR, IR подсветка до 10м, IP65, 12vdc/POE"]
[null,"Сетевые видеорегистраторы"]
[null,null,"NR8-4M71","4-канальный сетевой триплексный видеорегистратор, сжатие H.264, LINUX OS, запись 6MP/5MP/4MP/3MP 15к/с; 1080P 25к/с на канал, аудио вх/вых, трев. вх/вых 2/2, 1xSATA до 4ТБ, WAN, 4xLAN PoE питание камер до 9Вт на порт, 2хUSB, HDMI, VGA, Android/iOS, работа с камерами Onvif, ПО для ПК в комплекте. 255 x 47.5 x 235мм, 930г",227,{"$f":"ROUNDUP(E168-(Содержание!$H$4*E168),0)","v":227}]
[null,null,"NR8-8M71","8-канальный сетевой триплексный видеорегистратор, сжатие H.264, LINUX OS, запись 6MP/5MP/4MP/3MP 15к/с; 1080P 25к/с на канал, аудио вх/вых, трев. вх/вых 2/2, 1xSATA до 4ТБ, WAN, 8xLAN PoE питание камер до 15Вт на порт, 2хUSB, HDMI, VGA, Android/iOS, работа с камерами Onvif, ПО для ПК в комплекте. 372 x 44.5 x 311мм, 2.8кг",300,{"$f":"ROUNDUP(E169-(Содержание!$H$4*E169),0)","v":300}]
[null,null,"NR8-8M72","8-канальный сетевой триплексный видеорегистратор, сжатие H.264, LINUX OS, запись 6MP/5MP/4MP/3MP 15к/с; 1080P 25к/с на канал, аудио вх/вых, трев. вх/вых 2/2, 2xSATA до 4ТБ, WAN, 8xLAN PoE питание камер до 15Вт на порт, 2хUSB, HDMI, VGA, Android/iOS, работа с камерами Onvif, ПО для ПК в комплекте. 372 x 44.5 x 311мм, 2.8кг",400,{"$f":"ROUNDUP(E170-(Содержание!$H$4*E170),0)","v":400}]
[null,null,"NR8-16M74","16-канальный сетевой триплексный видеорегистратор, сжатие H.264, LINUX OS, запись 6MP/5MP/4MP/3MP 15к/с; 1080P 25к/с на канал, аудио вх/вых, трев. вх/вых 2/2, до 4 SATA жёстких дисков по 4ТБ каждый, WAN, 16xLAN PoE питание камер до 10Вт на порт, 3хUSB, HDMI, VGA, Android/iOS, работа с камерами Onvif, ПО для ПК в комплекте. 440 x 67 x 376мм, 4кг",560,{"$f":"ROUNDUP(E171-(Содержание!$H$4*E171),0)","v":560}]
[null,null,"NR8-32M78-0","32-канальный сетевой триплексный видеорегистратор, сжатие H.264, LINUX OS, запись 6MP/5MP/4MP/3MP 15к/с; 1080P 25к/с на канал, аудио вх/вых, трев. вх/вых 1/1, до 8 SATA жёстких дисков по 4ТБ каждый, 1xGigabit LAN, 1x100Mbit LAN, 2хUSB, RS-485, HDMI, VGA, Android/iOS, работа с камерами Onvif, ПО для ПК в комплекте. 440 x 89.9 x 435мм, 7.2кг",763,{"$f":"ROUNDUP(E172-(Содержание!$H$4*E172),0)","v":763}]
[null,null,"Примечание","В регистраторах серии NR8 рекомендуется использовать жесткие диски из специальных серий для систем видеонаблюдения: Seagate SV35 и Western Digital AV-GP"]
[null,"Принадлежности"]
[null,null,"ZA8-CBK625","Адаптер для крепления купольной камеры на потолочный кронштейн. Заменяет стандартное основание камеры ZN8-DANTVF59L",45,{"$f":"ROUNDUP(E175-(Содержание!$H$4*E175),0)","v":45}]
[null,null,"ZA8-CBK624 ","Стенной Г-образный кронштейн для купольной камеры ZN8-DANTVF59L",120,{"$f":"ROUNDUP(E176-(Содержание!$H$4*E176),0)","v":120}]
[null,null,"ZA8-CBK626","Адаптер для крепления кронштейна на угол, совместим с ZA8-CBK624 ",75,{"$f":"ROUNDUP(E177-(Содержание!$H$4*E177),0)","v":75}]
[null,null,"ZA8-CBK627","Адаптер для крепления кронштейна на столб",89,{"$f":"ROUNDUP(E178-(Содержание!$H$4*E178),0)","v":89}]
[null,null,"ZA8-CBK623","Адаптер для крепления купольнйо камеры на потолок, совместим с ZN8-DANTVF59L",89,{"$f":"ROUNDUP(E179-(Содержание!$H$4*E179),0)","v":89}]
[null,null,"ZA8-CBK633","Коммутационная коробка круглая для купольных и цилиндрических камер, совместима с ZA8-CBK624, ZN8-BANVF59, ZN8-NANFN4, ZN8-DANTVF59L",105,{"$f":"ROUNDUP(E180-(Содержание!$H$4*E180),0)","v":105}]
[null,null,"ZA8-CBK634","Коммутационная коробка для ZN8-MANTFN4L",45,{"$f":"ROUNDUP(E181-(Содержание!$H$4*E181),0)","v":45}]
[null,null,"ZA8-CBK636 ","Стенной кронштейн для фишай-камеры ZN8-F7NTFN10L",105,{"$f":"ROUNDUP(E182-(Содержание!$H$4*E182),0)","v":105}]
[null,null,"ZA8-CBK637 ","Потолочный кронштейн для фишай-камеры ZN8-F7NTFN10L",89,{"$f":"ROUNDUP(E183-(Содержание!$H$4*E183),0)","v":89}]
[null,null,"ZA8-BK604","Адаптер для крепления кронштейна PTZ на столб",314,{"$f":"ROUNDUP(E184-(Содержание!$H$4*E184),0)","v":314}]
[null,null,"ZA8-BK605","Адаптер для крепления кронштейна PTZ на угол",240,{"$f":"ROUNDUP(E185-(Содержание!$H$4*E185),0)","v":240}]
[null,null,"ZA8-BK607B","Потолочный кронштейн для ZN8-P4NTAF60L.",60,{"$f":"ROUNDUP(E186-(Содержание!$H$4*E186),0)","v":60}]
[null,"Жесткие диски - 24/7"]
[null,null,"ZRS-HDD1000","S-ATA HDD 1TB 24/7",152,"Fixed price"]
[null,null,"ZRS-HDD2000","S-ATA HDD 2TB 24/7",183,"Fixed price"]
[null,null,"ZRS-HDD3000","S-ATA HDD 3TB 24/7",216,"Fixed price"]
[null,null,"ZRS-HDD4000","S-ATA HDD 4TB 24/7",246,"Fixed price"]
[]
[]
[null,null,"***новые позиции выделены красным"]
[null,null,"***снижение цены выделено синим"]

{"sheet":"Аналоговые камеры и DVR","index":3,"n_rows":186,"n_cols":7,"rows_kept":186,"cut":false,"hidden":false,"merged":[[0,0,0,3],[21,1,21,3],[37,1,37,3],[90,2,90,3],[129,1,129,2],[4,1,4,2],[26,1,26,2],[49,1,49,3],[90,0,90,1]]}
["Аналоговые камеры и  DVR / GANZ кожухи"]
[]
[]
[null,null,"Модель","Описание    ","Розница, USD","Моя цена","Комментарии"]
[null,"CS- камеры "]
[null,"GX5 - технология сверхвысокой чувствительности"]
[null,null,"ZC-YX270P","1/3\" CCD, цветная телекамера эл. день/ночь, 700 TVL,  0.0003 lux (colour) / 0.00003 lux (b/w) F1.2 / 30IRE / Sens-up, DNR, DWDR, BLC, HLC, 16x digital zoom, DC-Iris, 12/24VDC, 108.4мм x 46мм x 60мм",210,{"$f":"ROUNDUP(E7-(Содержание!$H$4*E7),0)","v":210},"Цена снижена"]
[null,null,"ZC-YX270PE*","1/3\" CCD, цветная телекамера эл. день/ночь, 700 TVL, 0.0003 lux (colour) / 0.00003 lux (b/w) F1.2 / 30IRE / Sens-up, DNR, DWDR, BLC, HLC, 16x digital zoom, DC-Iris, 230VAC, 108.4мм x 46мм x 60мм",250,{"$f":"ROUNDUP(E8-(Содержание!$H$4*E8),0)","v":250},"Уточняйте наличие на складе"]
[null,null,"ZC-NX270P","1/3\" CCD, цветная телекамера мех. день/ночь, 700 TVL, 0.00007 lux (colour) / 0.000007 lux (b/w) F1.2 / 30IRE / Sens-up, DNR, DWDR, BLC, HLC, 16x digital zoom,  DC-Iris, 12/24VDC, 108.4мм x 46мм x 60мм",350,{"$f":"ROUNDUP(E9-(Содержание!$H$4*E9),0)","v":350},"Цена снижена"]
[null,null,"ZC-NXW270PR","1/3\" CCD, цветная телекамера мех. день/ночь, 700 TVL, 0.00007 lux (colour) / 0.000007 lux (b/w) F1.2 / 30IRE / Sens-up,  DNR, BLC, HLC, 16x digital zoom, WDR, DC-Iris, 12/24VDC, RS-485, 108.4мм x 46мм x 60мм",450,{"$f":"ROUNDUP(E10-(Содержание!$H$4*E10),0)","v":450},"Цена снижена"]
[null,"Камеры стандартной чувствительности",null,"     "]
[null,null,"ZC-YX280P","1/3\" CCD, цветная телекамера, 700TVL,  0,4L, день/ночь (электронное переключение), цифровой WDR, BLC, HLC, OSD меню, 12VDC/24VAC",190,{"$f":"ROUNDUP(E12-(Содержание!$H$4*E12),0)","v":190},"Цена снижена"]
[null,null,"ZC-YX280PE","1/3\" CCD, цветная телекамера, 700TVL,  0,4L, день/ночь (электронное переключение), цифровой WDR, BLC, HLC, OSD меню, 230VAC",190,{"$f":"ROUNDUP(E13-(Содержание!$H$4*E13),0)","v":190},"Цена снижена"]
[null,null,"ZC-NX280P","1/3\" CCD, цветная телекамера, 700TVL,  0,04L, день/ночь (мех. переключение), цифровой WDR, BLC, HLC, OSD меню, 12VDC/24VAC",250,{"$f":"ROUNDUP(E14-(Содержание!$H$4*E14),0)","v":250},"Цена снижена"]
[null,null,"ZC-NX280PE","1/3\" CCD, цветная телекамера, 700TVL,  0,04L, день/ночь (мех. переключение), цифровой WDR, BLC, HLC, OSD меню, 230VAC",250,{"$f":"ROUNDUP(E15-(Содержание!$H$4*E15),0)","v":250},"Цена снижена"]
[null,"Уличные цилиндрические камеры с ИК подсветкой"]
[null,null,"ZC-BNT8039PXA","Уличная камера (IP67) с механическим переключением день/ночь с варифокальным объективом 3-9 мм, с автодиафрагмой DC, 1/3\" Sony HAD II CCD, 700 линий, 0 люкс (с ИК подсветкой), 24 встроенных ИК светодиода, 12/24 вольт, прокладка кабеля в кронштейне",357,{"$f":"ROUNDUP(E17-(Содержание!$H$4*E17),0)","v":357},"Цена снижена"]
[null,null,"ZC-BNX8039PBA","Уличная камера (IP67) с механическим переключением день/ночь с варифокальным объективом 3-9 мм, с автодиафрагмой DC, 1/3\" Sony HAD II CCD, 600 линий, 0 люкс (с ИК подсветкой), 24 встроенных ИК светодиода, внешняя настройка фокусного расстояния, 12/24 вольт, прокладка кабеля в кронштейне ",357,{"$f":"ROUNDUP(E18-(Содержание!$H$4*E18),0)","v":357},"Цена снижена"]
[null,"Купольные внутренние камеры ",null,"     "]
[null,null,"ZC-D8039PBA","Цветная камера с варифокальным объективом 3,0 - 9,0 мм, автодиафрагма DC, 1/3\" Sony HAD II CCD, 600 линий, 0,5 люкс (F1,2) электронное переключение день/ночь, 3-осный модуль, 12/24 вольт",214,{"$f":"ROUNDUP(E20-(Содержание!$H$4*E20),0)","v":214},"Цена снижена"]
[null,null,"ZC-D8039PXA","Цветная камера с варифокальным объективом 3,0 - 9,0 мм, автодиафрагма DC, 1/3\" Sony HAD II CCD, 700 линий, 0,5 люкс (F1,2) электронное переключение день/ночь, 3-осный модуль, 12/24 вольт",233,{"$f":"ROUNDUP(E21-(Содержание!$H$4*E21),0)","v":233},"Цена снижена"]
[null,"Купольные камеры ZC-D в вандалозащищенных кожухах"]
[null,null,"ZC-DNT8039PBA","Цветная уличная (IP67) камера с варифокальным объективом 3,0 - 9,0 мм, автодиафрагма DC,  1/3\" Sony HAD II CCD, 600 линий, 0,04 люкс (F1,4) механическое переключение день/ночь, 3-осный модуль, 12/24 вольт",308,{"$f":"ROUNDUP(E23-(Содержание!$H$4*E23),0)","v":308},"Цена снижена"]
[null,null,"ZC-DNT8039PXA","Цветная уличная (IP67) камера с варифокальным объективом 3,0 - 9,0 мм, автодиафрагма DC,  1/3\" Sony HAD II CCD, 700 линий, 0,04 люкс (F1,4) механическое переключение день/ночь, 3-осный модуль, 12/24 вольт",337,{"$f":"ROUNDUP(E24-(Содержание!$H$4*E24),0)","v":337},"Цена снижена"]
[null,null,"ZC-DNT8039PBA-IR","Цветная уличная (IP67) камера с варифокальным объективом 3,0 - 9,0 мм, автодиафрагма DC, 1/3\" Sony HAD II CCD, 600 линий, 0 люкс (ИК вкл.), 24 встроенных ИК светодиода, механическое переключение день/ночь, 3-осный модуль, 12/24 вольт",353,{"$f":"ROUNDUP(E25-(Содержание!$H$4*E25),0)","v":353},"Цена снижена"]
[null,null,"ZC-DNT8039PXA-IR","Цветная уличная (IP67) камера с варифокальным объективом 3,0 - 9,0 мм, автодиафрагма DC, 1/3\" , 700 линий, 0 люкс (ИК вкл.), 24 встроенных ИК светодиода, механическое переключение день/ночь, 3-осный модуль, 12/24 вольт",382,{"$f":"ROUNDUP(E26-(Содержание!$H$4*E26),0)","v":382},"Цена снижена"]
[null,"Принадлежности для 8000 серии"]
[null,null,"ZCA-SM800","Сервисный кабель (video) для камер 8000 серии",15,{"$f":"ROUNDUP(E28-(Содержание!$H$4*E28),0)","v":15}]
[null,null,"ZCA-FM8T","Адаптер для крепления в подвесной потолок для уличной купольной камеры ZC-DT8000",45,{"$f":"ROUNDUP(E29-(Содержание!$H$4*E29),0)","v":45}]
[null,null,"ZC-FM3","Адаптер для крепления в подвесной потолок для уличной купольной камеры ZC-D8000",88,{"$f":"ROUNDUP(E30-(Содержание!$H$4*E30),0)","v":88}]
[null,null,"ZCA-PM8T","Адаптер для подвесной установки уличных купольных камер ZC-DT8000",59,{"$f":"ROUNDUP(E31-(Содержание!$H$4*E31),0)","v":59}]
[null,null,"ZCA-UP8T","UTP модуль для уличных купольных камер ZC-DT8000",45,{"$f":"ROUNDUP(E32-(Содержание!$H$4*E32),0)","v":45}]
[null,null,"ZCA-UP8　","UTP модуль для внутренних купольных камер ZC-D8000",45,{"$f":"ROUNDUP(E33-(Содержание!$H$4*E33),0)","v":45}]
[null,null,"ZCA-SD8","Дымчатая сфера для внутренних камер ZC-D8000",29,{"$f":"ROUNDUP(E34-(Содержание!$H$4*E34),0)","v":29}]
[null,null,"ZC7-WM1","Настенное крепление, внутреннее",103,{"$f":"ROUNDUP(E35-(Содержание!$H$4*E35),0)","v":103}]
[null,null,"ZC8-WM2","Настенное крепление, уличное",180,{"$f":"ROUNDUP(E36-(Содержание!$H$4*E36),0)","v":180}]
[null,null,"PMA2","Адаптер для крепления на столб",88,{"$f":"ROUNDUP(E37-(Содержание!$H$4*E37),0)","v":88}]
[null,"Кронштейны для настенного крепления камер"]
[null,null,"ZP-B10","Кронштейн 18 см. пластиковый, белый или серый, внутренняя прокладка кабеля, регулировка без инструментов  ",12,{"$f":"ROUNDUP(E39-(Содержание!$H$4*E39),0)","v":12},"Цена снижена. Уточняйте цвет"]
[null,null,"BK140","Кронштейн 14 см, металлический, белый или черный, регулировка без инструментов",15,{"$f":"ROUNDUP(E40-(Содержание!$H$4*E40),0)","v":15},"Цена снижена"]
[null,null,"BCV140","Кронштейн 14 см, металлический, черный или белый, регулировка без инструментов с использованием накидной гайки",20,{"$f":"ROUNDUP(E41-(Содержание!$H$4*E41),0)","v":20},"Цена снижена"]
[null,null,"BKX","Удлинитель 50 мм черный/белый   ",8,{"$f":"ROUNDUP(E42-(Содержание!$H$4*E42),0)","v":8},"Цена снижена"]
[null,"Блоки питания",null,"     "]
[null,null,"CV12P","Блок питания 12 вольт 1000 мА   ",62,{"$f":"ROUNDUP(E44-(Содержание!$H$4*E44),0)","v":62}]
[null,null,"CV12UP","Блок питания для скрытой установки, 12 вольт 1000 мА",79,{"$f":"ROUNDUP(E45-(Содержание!$H$4*E45),0)","v":79}]
[null,null,"CV12-II","Блок питания 12 вольт 800 мА с фланцами",40,{"$f":"ROUNDUP(E46-(Содержание!$H$4*E46),0)","v":40}]
[null,null,"CV24-II","Блок питания 24 вольт 400 мА с фланцами",40,{"$f":"ROUNDUP(E47-(Содержание!$H$4*E47),0)","v":40},"Цена снижена"]
[null,null,"CV2408-6A","Блок питания для монтажа в 19' стойку, входное напряжение 110/240 В, 2,4/1,2 А, выходное напряжение - 24/28 В на 8 выходов, макс. 1А на камеру, суммарный ток не более 6А, светодиодный дисплей состояния каждого канала.",554,{"$f":"ROUNDUP(E48-(Содержание!$H$4*E48),0)","v":554}]
[null,null,"CV2416-12A","Блок питания для монтажа в 19' стойку, входное напряжение 110/240 В, 4,8/2,4 А, выходное напряжение - 24/28 В на 16 выходов, макс. 1А на камеру, суммарный ток не более 12А, светодиодный дисплей состояния каждого канала.",1078,{"$f":"ROUNDUP(E49-(Содержание!$H$4*E49),0)","v":1078}]
[null,"Поворотные купольные камеры ZC-PT"]
[null,null,"ZC-PT212P","Моторизованная купольная камера в кожухе для внутреннего использования, 12x оптическое увеличение, 3,8 - 45,6 мм, 1/4\"-CCD , 0.002 lux (цвет), 0.0002 lux (ч/б), 650 ТВЛ, маскирование, WDR, DNR           ",1466,{"$f":"ROUNDUP(E51-(Содержание!$H$4*E51),0)","v":1466}]
[null,null,"ZC-PT212P-XT","Моторизованная купольная камера в уличном кожухе  (IP66), 12x оптическое увеличение, 3,8 - 45,6 мм, 1/4\"-CCD , 0.002 lux (цвет), 0.0002 lux (ч/б), 650 ТВЛ, маскирование, WDR, DNR, 24В           ",1760,{"$f":"ROUNDUP(E52-(Содержание!$H$4*E52),0)","v":1760}]
[null,null,"ZC-PT236P-II","Моторизованная купольная камера в кожухе для внутреннего использования, 36x оптическое увеличение, 3.4 - 120 мм, 1/4\"-CCD ExView, 0.01 люкс, 650 ТВЛ, маскирование, WDR, DNR",1907,{"$f":"ROUNDUP(E53-(Содержание!$H$4*E53),0)","v":1907}]
[null,null,"ZC-PT236P-XT-II","Моторизованная купольная камера в уличном кожухе, 36x оптическое увеличение, 3.4 - 120 мм, 1/4\"-CCD ExView, 0.01 люкс, 650 ТВЛ, маскирование, WDR, DNR, 24В АС, IP66, -40..+50C",2053,{"$f":"ROUNDUP(E54-(Содержание!$H$4*E54),0)","v":2053}]
[null,"Принадлежности для камер серии ZC-PT",null,"     "]
[null,null,"ZCA-SC201","Клавиатура управления (3 оси), для макс. 223 камер серии ZC-PT, управление мультиплексором и цифровым регистратором.",1113,{"$f":"ROUNDUP(E56-(Содержание!$H$4*E56),0)","v":1113}]
[null,null,"ZCA-DS4","RS485 дистрибьютор команд управления, 1 вход, 4 выхода, 1HE, 19\", питание 12 вольт постоянного тока, 8 Ватт (без блока питания)",661,{"$f":"ROUNDUP(E57-(Содержание!$H$4*E57),0)","v":661}]
[null,null,"ZCA-DS8","RS485 дистрибьютор команд управления, 1 вход, 8 выходов, 1HE, 19\", питание 12 вольт постоянного тока, 8 Ватт (без блока питания)",733,{"$f":"ROUNDUP(E58-(Содержание!$H$4*E58),0)","v":733}]
[null,null,"ZCA-DS16","RS485 дистрибьютор команд управления, 1 вход, 16 выходов, 1HE, 19\", питание 12 вольт постоянного тока, 8 Ватт (без блока питания)",807,{"$f":"ROUNDUP(E59-(Содержание!$H$4*E59),0)","v":807}]
[null,null,"ZCA-TB200","Адаптер для установки в подвесные потолки",117,{"$f":"ROUNDUP(E60-(Содержание!$H$4*E60),0)","v":117}]
[null,null,"ZCA-TB200A","Адаптер для установки ZC-PT212P в подвесные потолки",66,{"$f":"ROUNDUP(E61-(Содержание!$H$4*E61),0)","v":66}]
[null,null,"ZCA-HC200","Адаптер для установки на жесткие потолки  ",83,{"$f":"ROUNDUP(E62-(Содержание!$H$4*E62),0)","v":83}]
[null,null,"ZCA-GT100","Простой кронштейн для установки внутренних и уличных камер на стенной, угловой или подвесной кронштейн ",117,{"$f":"ROUNDUP(E63-(Содержание!$H$4*E63),0)","v":117}]
[null,null,"ZCA-ST25","Трубчатый удлинитель, 25 см, для подвеса уличного или внутреннего кожуха купольной камеры   ",117,{"$f":"ROUNDUP(E64-(Содержание!$H$4*E64),0)","v":117}]
[null,null,"ZCA-ST50","Трубчатый удлинитель, 50 см, для подвеса уличного или внутреннего кожуха купольной камеры",136,{"$f":"ROUNDUP(E65-(Содержание!$H$4*E65),0)","v":136}]
[null,null,"ZCA-SP200","Крепление на стену",180,{"$f":"ROUNDUP(E66-(Содержание!$H$4*E66),0)","v":180},"Цена снижена"]
[null,null,"ZCA-PTDM","Адаптер для крепления на трубе, узкий (232х136 мм)",134,{"$f":"ROUNDUP(E67-(Содержание!$H$4*E67),0)","v":134},"Цена снижена"]
[null,null,"ZCA-PWDM","Адаптер для крепления на трубе, широкий (270х170 мм)  ",134,{"$f":"ROUNDUP(E68-(Содержание!$H$4*E68),0)","v":134},"Цена снижена"]
[null,null,"ZCA-PTB","Адаптер -коробка для крепления GT200 на шесте, с внутренней прокладкой кабеля, узкий (291х170х250 мм)",371,{"$f":"ROUNDUP(E69-(Содержание!$H$4*E69),0)","v":371}]
[null,null,"ZCA-PWB","Адаптер -коробка для крепления GT200 на шесте, с внутренней прокладкой кабеля, широкий (270х168х155 мм)",371,{"$f":"ROUNDUP(E70-(Содержание!$H$4*E70),0)","v":371}]
[null,null,"ZCA-CST","Угловой адаптер для GT200/100",134,{"$f":"ROUNDUP(E71-(Содержание!$H$4*E71),0)","v":134}]
[null,null,"ZCA-CTB","Угловой адаптер-коробка для GT200/100, узкий (300х164х222 мм)",337,{"$f":"ROUNDUP(E72-(Содержание!$H$4*E72),0)","v":337}]
[null,null,"ZCA-CWB","Угловой адаптер-коробка для GT200/100, широкий (232х234х210 мм)",337,{"$f":"ROUNDUP(E73-(Содержание!$H$4*E73),0)","v":337}]
[null,null,"ZCA-220-1.5A","Блок питания ZC-PT для внутренней установки, 24 вольт, 1,5 А.",102,{"$f":"ROUNDUP(E74-(Содержание!$H$4*E74),0)","v":102}]
[null,null,"ZCA-220-3.0A","Блок питания ZC-PT для внутренней установки, 24 вольт, 3 А.",132,{"$f":"ROUNDUP(E75-(Содержание!$H$4*E75),0)","v":132}]
[null,null,"ZCA-PSU220","Уличный блок питания (IP66) с клеммной коробкой, 24 вольт, 3,1А.",330,{"$f":"ROUNDUP(E76-(Содержание!$H$4*E76),0)","v":330}]
[null,null,"ZCA-IPA","Адаптер для крепления внутренней камеры к GT100/200 и ST25/50    ",117,{"$f":"ROUNDUP(E77-(Содержание!$H$4*E77),0)","v":117}]
[null,null,"ZCA-IPA3","Адаптер для крепления внутренней камеры ZC-PT212P к GT100/200 и ST25/50",117,{"$f":"ROUNDUP(E78-(Содержание!$H$4*E78),0)","v":117}]
[null,"Поворотная камера ZC-PT336P-IR 360°"]
[null,null,"ZC-PT336P-IR","360° PTZ уличная поворотная камера, IP68, 1/4\" Sony Super HAD CCD, день/ночь механический, 0.1 люкс (50 IRE), 0.01 люкс (ICR включен): (ночной режим), 3.4-122.4мм 36x оптическое увеличение, 12x цифровое увеличение, широкий динамический диапазон, DNR, двухконтурный ИК-прожектор, дальность 50м, IP68, -40..+50C",4458,{"$f":"ROUNDUP(E80-(Содержание!$H$4*E80),0)","v":4458}]
[null,"Принадлежности для ZC-PT336P-IR"]
[null,null,"ZCA-CM3","Адаптер для потолочного крепления",162,{"$f":"ROUNDUP(E82-(Содержание!$H$4*E82),0)","v":162}]
[null,null,"ZCA-WM3","Адаптер для крепления на стену",191,{"$f":"ROUNDUP(E83-(Содержание!$H$4*E83),0)","v":191}]
[null,null,"ZCA-CMA3","Адаптер для углового крепления",205,{"$f":"ROUNDUP(E84-(Содержание!$H$4*E84),0)","v":205}]
[null,null,"ZCA-PMA3","Адаптер для установки на столб квадратного профиля",234,{"$f":"ROUNDUP(E85-(Содержание!$H$4*E85),0)","v":234}]
[null,null,"ZCA-PM3","Адаптер для установки на плоскую площадку",176,{"$f":"ROUNDUP(E86-(Содержание!$H$4*E86),0)","v":176}]
[null,null,"ZCA-SC301","Клавиатура управления по RS-485, с джойстиком",953,{"$f":"ROUNDUP(E87-(Содержание!$H$4*E87),0)","v":953}]
[null,null,"ZCA-J307","Разветвительная коробка с PCB",220,{"$f":"ROUNDUP(E88-(Содержание!$H$4*E88),0)","v":220}]
[null,null,"ZCA-J308","Разветвительная коробка без PCB",162,{"$f":"ROUNDUP(E89-(Содержание!$H$4*E89),0)","v":162}]
[]
["DVR",null,null,"     "]
[null,null,null,"     "]
[null,"DigiMaster серия",null,"     "]
[null,null,"DR-4FX1","4-канальный пентаплексный цифровой видеорегистратор, сжатие H.264, ОС Linux, VGA, HDMI, 1хSPOT выходы, запись 100к/с (960H/4CIF/2CIF/CIF), аудио вх/вых 4/1, трев. вх/вых 4/1, HDD 1xSATA до 4ТБ, LAN, 2хUSB, RS-485, пульт ДУ, высота 1U",379,{"$f":"ROUNDUP(E94-(Содержание!$H$4*E94),0)","v":379}]
[null,null,"DR-8FX2","8-канальный пентаплексный цифровой видеорегистратор, сжатие H.264, ОС Linux, VGA, HDMI, 1хSPOT выходы, запись 200к/с (960H/4CIF/2CIF/CIF), аудио вх/вых 4/1, трев. вх/вых 4/1, HDD 2xSATA до 4ТБ каждый, LAN, 2хUSB, RS-485, пульт ДУ, Watchdog, высота 1U",622,{"$f":"ROUNDUP(E95-(Содержание!$H$4*E95),0)","v":622}]
[null,null,"DR-16FX2","16-канальный пентаплексный цифровой видеорегистратор, сжатие H.264, ОС Linux, VGA, HDMI, 1хSPOT выходы, запись 400к/с (960H/4CIF/2CIF/CIF), аудио вх/вых 4/1, трев. вх/вых 4/1, HDD 2xSATA до 4ТБ каждый, LAN, 2хUSB, RS-485, пульт ДУ, Watchdog, высота 1U",784,{"$f":"ROUNDUP(E96-(Содержание!$H$4*E96),0)","v":784}]
[null,null,"DR4H-DVD","4-канальный триплексный цифровой видеорегистратор, сжатие H.264, ОС Linux, скорость записи 100к/с (CIF), 50 к/с (2CIF), 25 к/с (4CIF), поддержка смартфонов и КПК, установка до 2 x SATA по 2ТБ, CD/DVD пишущий привод, LAN, VGA выход, 4 х тревожные вх/вых, RS-485, 2 x USB",784,{"$f":"ROUNDUP(E97-(Содержание!$H$4*E97),0)","v":784}]
[null,null,"DR8H-DVD*","8-канальный пентаплексный цифровой видеорегистратор, сжатие H.264, ОС Linux, скорость записи 200к/с (CIF), 100 к/с (2CIF), 50 к/с (4CIF), аудио вх/вых 4/1, поддержка смартфонов и КПК, установка до 4 x SATA жёстких дисков по 2ТБ каждый, CD/DVD пишущий привод, LAN, HDMI, VGA выход, 8 х тревожные вх/вых, RS-485, (2+1)хUSB, высота 2U, POS",1324,{"$f":"ROUNDUP(E98-(Содержание!$H$4*E98),0)","v":1324},"Уточняйте наличие на складе"]
[null,null,"DR-8FX5","8-канальный пентаплексный цифровой видеорегистратор, сжатие H.264, ОС Linux, VGA, HDMI, композитный,  2хSPOT, 8x кольцевые выходы, запись 200к/с (960H/4CIF/2CIF/CIF), аудио вх/вых 8/1, трев. вх/вых (8+2)/4, HDD 5xSATA до 4ТБ каждый, LAN, WAN, (2+1)хUSB, 2xRS-485, RS-232, eSATA, пульт ДУ, Watchdog, высота 2U",1512,{"$f":"ROUNDUP(E99-(Содержание!$H$4*E99),0)","v":1512}]
[null,null,"DR-16FX5","16-канальный пентаплексный цифровой видеорегистратор, сжатие H.264, ОС Linux, VGA, HDMI, композитный,  2хSPOT, 16x кольцевые выходы, запись 400к/с (960H/4CIF/2CIF/CIF), аудио вх/вых 16/1, трев. вх/вых (16+2)/4, HDD 5xSATA до 4ТБ каждый, LAN, WAN, (2+1)хUSB, 2xRS-485, RS-232, eSATA, пульт ДУ, Watchdog, высота 2U",1688,{"$f":"ROUNDUP(E100-(Содержание!$H$4*E100),0)","v":1688}]
[null,"Принадлежности"]
[null,null,"DR-RM1","Адаптер для монтажа DR4H в 19\" стойку (кроме моделей HL)",28,{"$f":"ROUNDUP(E102-(Содержание!$H$4*E102),0)","v":28}]
[null,null,"DR-RM2 ","Адаптер для монтажа 8 и 16-канальных DVR в 19\" стойку",28,{"$f":"ROUNDUP(E103-(Содержание!$H$4*E103),0)","v":28}]
[null,"Жесткие диски 24/7",null,"     "]
[null,null,"ZRS-HDD1000","S-ATA HDD 1TB 24/7",152,"Fixed price"]
[null,null,"ZRS-HDD2000","S-ATA HDD 2TB 24/7",183,"Fixed price"]
[null,null,"ZRS-HDD3000","S-ATA HDD 3TB 24/7",216,"Fixed price"]
[null,null,"ZRS-HDD4000","S-ATA HDD 4TB 24/7",246,"Fixed price"]
[null,null,"Список рекомендованных к установке жестких дисков для DVR Digimaster DRxH, DR-xFX"]
[null,null,"DMS Lite","Программное обеспечения для работы с камерами GANZ PixelPro и регистраторами PixelMaster (без видеоаналитики). Запись/просмотр до 64 каналов на один сервер, поддержка нескольких мониторов, просмотр живого и архивного видео, поддержка аудио, трев. Вх/вых, карт, уведомление оператора о тревогах.",0]
["Ganz Genstar AHD оборудование"]
[null,"Купольные AHD камеры"]
[null,null,"Z8-M4NTFN4LAP","Купольная AHD камера, 1920х1080, Sony IMX322, 0.01Lux, F1.2, 3.6мм,  12В пост., мех. ИК-фильтр, ИК-подсветка 15м, 3D DNR, dWDR, ICR, BLC, HLC, ATW, 12В, IP66, -40…+55С, Ф106.07×96.42×77.65мм, 300г",90,{"$f":"ROUNDUP(E113-(Содержание!$H$4*E113),0)","v":90}]
[null,null,"Z8-D4NTVF56LAP","Купольная AHD камера, 1920х1080, Sony IMX322, 0.01Lux, F1.2, F1.2, 2.8-12мм,  12В пост., мех. ИК-фильтр, ИК-подсветка 30м, 3D DNR, dWDR, ICR, BLC, HLC, ATW, 12В, IP66, -40…+55С, Ф133×144.8×101.6мм, 540г",128,{"$f":"ROUNDUP(E114-(Содержание!$H$4*E114),0)","v":128}]
[null,"Цилиндрические AHD камеры"]
[null,null,"Z8-N4NFN4AP","Цилиндрическая AHD камера, 1920х1080, Sony IMX322, 0.001Lux, F1.2, 3.6мм,  12В пост., мех. ИК-фильтр, ИК-подсветка 20м, 3D DNR, dWDR, ICR, BLC, HLC, ATW, 12В, IP66,-40…+55С, Φ170×69×65мм, 350г",90,{"$f":"ROUNDUP(E116-(Содержание!$H$4*E116),0)","v":90}]
[null,null,"Z8-N4NVF56AP","Цилиндрическая AHD камера, 1920х1080, Sony IMX322, 0.001Lux, F1.2, F1.2, 2.8-12мм,  12В пост., мех. ИК-фильтр, ИК-подсветка 30м, 3D DNR, dWDR, ICR, BLC, HLC, ATW, 12В, IP66, -40…+55С, Φ228×975×84мм, 550г",131,{"$f":"ROUNDUP(E117-(Содержание!$H$4*E117),0)","v":131}]
[null,null,"Z8-B4NVF56AP","Цилиндрическая AHD камера, 1920х1080, Sony IMX322, 0.001Lux, F1.2, F1.2, 2.8-12мм,  12В пост., мех. ИК-фильтр, ИК-подсветка 35м, 3D DNR, dWDR, ICR, BLC, HLC, ATW, 12В, IP66, -40…+55С, Φ230×105×90мм, 800г",134,{"$f":"ROUNDUP(E118-(Содержание!$H$4*E118),0)","v":134}]
[null,"AHD DVR"]
[null,null,"DRH8-4M41-A","4-канальный AHD видеорегистратор, запись видео 15к/с, 4х аудио входа RCA, интерком, 4 трев.вх 4 трев.вых, 1х VGA, 1х HDMI, 1х RJ45, 2х USB, 1xSATA до 4ТБ; 12В DC/4A, 350x295x45мм, ПО GANZ CMS в комплекте",154,{"$f":"ROUNDUP(E120-(Содержание!$H$4*E120),0)","v":154}]
[null,null,"DRH8-8M41-A","8-канальный AHD видеорегистратор, запись видео 15к/с, 4х аудио входа RCA, интерком, 4 трев.вх 4 трев.вых, 1х VGA, 1х HDMI, 1х RJ45, 2х USB, 1xSATA до 4ТБ; 12В DC/4A, 350x295x45мм, ПО GANZ CMS в комплекте",208,{"$f":"ROUNDUP(E121-(Содержание!$H$4*E121),0)","v":208}]
[null,null,"DRH8-16M44-A","16-канальный AHD видеорегистратор, запись видео 15к/с, 16х аудио входов RCA, интерком, 16 трев.вх 4 трев.вых, 1х VGA, 1х HDMI, 1х RJ45, 2х USB, 4xSATA до 6ТБ каждый, RS-485; 12В DC/6A, 440x400.5x60мм, ПО GANZ CMS в комплекте",591,{"$f":"ROUNDUP(E122-(Содержание!$H$4*E122),0)","v":591}]
[null,"Жесткие диски 24/7"]
[null,null,"ZRS-HDD1000","S-ATA HDD 1TB 24/7",152,"Fixed price"]
[null,null,"ZRS-HDD2000","S-ATA HDD 2TB 24/7",183,"Fixed price"]
[null,null,"ZRS-HDD3000","S-ATA HDD 3TB 24/7",216,"Fixed price"]
[null,null,"ZRS-HDD4000","S-ATA HDD 4TB 24/7",246,"Fixed price"]
[null,null,"Примечание","В регистраторах серии DRH8 рекомендуется использовать жесткие диски из специальных серий для систем видеонаблюдения: Seagate SV35.5TM Series,Barracuda XT Series"]
["GANZ Lite"]
[null,"Цилиндрические камеры"]
[null,null,"LYB-IR212PS","Уличная цилиндрическая камера, IP66, 1/3\" Sony Super HAD CCD, 4мм - 9мм, 650 TVL, 0 Lux (IR on), IR-LEDs, 12VDC",133,{"$f":"ROUNDUP(E131-(Содержание!$H$4*E131),0)","v":133},"Цена снижена"]
[null,null,"LYX-IR622PS","Уличная цилиндрическая камера, IP66, 1/3\" Sony Super HAD CCD,  6мм - 22мм, 700TVL, 0 Lux (IR on), IR-LEDs, 12VDC",145,{"$f":"ROUNDUP(E132-(Содержание!$H$4*E132),0)","v":145},"Цена снижена"]
[null,null,"LYB-IR-212PS-CB","Уличная цилиндрическая камера, IP66, 1/3\" Sony Super HAD CCD, 2.8мм - 12мм, 650 TVL, 0 Lux (IR on), IR-LEDs, 12VDC, для потолочного крепления",133,{"$f":"ROUNDUP(E133-(Содержание!$H$4*E133),0)","v":133},"Новая модель"]
[null,null,"LYB-SIR212PS","Уличная цилиндрическая камера, IP66, 1/3\" Sony Super HAD CCDII, 2.8мм - 12мм, 650 TVL, 0 Lux (IR on), Smart-IR-LEDs, 12VDC/24 VAC",145,{"$f":"ROUNDUP(E134-(Содержание!$H$4*E134),0)","v":145},"Цена снижена"]
[null,null,"LYB-SIR622PS","Уличная цилиндрическая камера, IP66, 1/3\" Sony Super HAD CCDII, 6мм - 22мм, 650 TVL, 0 Lux (IR on), Smart-IR-LEDs, 12VDC/24 VAC",157,{"$f":"ROUNDUP(E135-(Содержание!$H$4*E135),0)","v":157},"Цена снижена"]
[null,"Купольные камеры"]
[null,null,"LDWB212PS-2","Внутреняя купольная камера, 4мм - 9мм lens, 1/3\" Pixim CMOS, 0,1 Lux (F1,2 / 50IRE), 690TVL, WDR, 3DNR, 12 VDC",133,{"$f":"ROUNDUP(E137-(Содержание!$H$4*E137),0)","v":133},"Новая модель"]
[null,null,"LFTB-IR3.6PS","Плоская мини-купольная камера,with 3.6мм lens, 1/3\" Sony Effio-E ExView CCD II, 0 Lux (IR on), 650 TVL, 12 VDC, integrated IR-LED, IP66",97,{"$f":"ROUNDUP(E138-(Содержание!$H$4*E138),0)","v":97},"Цена снижена"]
[null,null,"LTB-IR3.6PS","Уличная камера, IP66, 1/3\" IT-CCD, 3.6мм, 650 TVL, 0 Lux (IR on), integrated IR-LEDs, 12 VDC",85,{"$f":"ROUNDUP(E139-(Содержание!$H$4*E139),0)","v":85},"Цена снижена"]
[null,null,"LTB-IR49PS","Уличная купольная камера,IP66 with variolens, 1/3\" IT-CCD, 4мм - 9мм, 650 TVL, 0 Lux (IR on), integrated IR-LEDs, 12 VDC",121,{"$f":"ROUNDUP(E140-(Содержание!$H$4*E140),0)","v":121},"Цена снижена"]
[null,null,"LTX-IR212PS","Уличная купольная камера, IP66 with Variolens, 1/3\" IT-CCD, 2.8мм - 12мм, 700 TVL, 0 Lux (IR on), integrated IR-LEDs, 12 VDC",169,{"$f":"ROUNDUP(E141-(Содержание!$H$4*E141),0)","v":169},"Цена снижена"]
[null,null,"LTNX-IR212PA","Уличная купольная камера, IP66 with Variolens 2.8 - 12мм, 1/3\" IT-CCD, 650 TVL, 0 Lux (IR on), IR-LEDs with ca. 20m range, 12VDC/24 VAC",205,{"$f":"ROUNDUP(E142-(Содержание!$H$4*E142),0)","v":205},"Цена снижена"]
[null,"CS- камеры"]
[null,null,"LCNX-PS","Цветная камера, 1/3\" 960H High Sensivity CCD, 700 TVL, 0.01 Lux, DWDR, BLC, DNR, 12VDC",109,{"$f":"ROUNDUP(E144-(Содержание!$H$4*E144),0)","v":109},"Цена снижена"]
[null,null,"LCNX-PES","Цветная камера, 1/3\" 960H High Sensivity CCD, 700 TVL, 0.01 Lux, DWDR, BLC, DNR, 230VAC",121,{"$f":"ROUNDUP(E145-(Содержание!$H$4*E145),0)","v":121},"Цена снижена"]
[null,null,"LCWB-P-2","Цветная камера, WDR, день/ночь - мех. переключение, 690 TVL, 1/3\" Pixim CMOS, 0,1 lux, 12VDC/24VAC",194,{"$f":"ROUNDUP(E146-(Содержание!$H$4*E146),0)","v":194},"Цена снижена"]
[null,null,"LCWB-PE-2","Цветная камера, WDR, день/ночь - мех. переключение, 690 TVL, 1/3\" Pixim CMOS, 0,1 lux, 230VAC",194,{"$f":"ROUNDUP(E147-(Содержание!$H$4*E147),0)","v":194},"Цена снижена"]
[null,"DVR"]
[null,null,"LR04","4-канальный цифровой видеорегистратор, H.264, LINUX OS, LAN, VGA-Out, 1x S-ATA HDD, до 2 TB.,  смартфон & КПК поддержка., тревожные вх./вых, RS485",290,{"$f":"ROUNDUP(E149-(Содержание!$H$4*E149),0)","v":290},"Цена снижена"]
[null,null,"LR08","8-канальный цифровой видеорегистратор, H.264, LINUX OS, LAN, VGA-Out, 1x S-ATA HDD, до 2 TB.,  смартфон & КПК поддержка., тревожные вх./вых, RS485",424,{"$f":"ROUNDUP(E150-(Содержание!$H$4*E150),0)","v":424},"Цена снижена"]
[null,null,"LR16","16-канальный цифровой видеорегистратор, H.264, LINUX OS, LAN, VGA-Out, 1x S-ATA HDD, до 2 TB.,  смартфон & КПК поддержка., тревожные вх./вых, RS485",629,{"$f":"ROUNDUP(E151-(Содержание!$H$4*E151),0)","v":629},"Цена снижена"]
["Кожухи GANZ"]
[null,null,"GH-FI","Пылезащищенный внутренний пластиковый кожух (IP66) без козырька и обогревателя, со стенным кронштейном   (GH-FWM)     ",111,{"$f":"ROUNDUP(E153-(Содержание!$H$4*E153),0)","v":111}]
[null,null,"GH-12","Уличный кожух IP67, с козырьком и нагревателем, без кронштейна, 12 вольт, -20…+50C, <700мА ",157,{"$f":"ROUNDUP(E154-(Содержание!$H$4*E154),0)","v":157},"Цена выросла"]
[null,null,"GH-24","Уличный кожух IP67, с козырьком и нагревателем, без кронштейна, 24 вольт, -20…+50C, <350мА ",157,{"$f":"ROUNDUP(E155-(Содержание!$H$4*E155),0)","v":157},"Цена выросла"]
[null,null,"GH-230","Уличный кожух IP67, с козырьком и нагревателем, без кронштейна, 230 вольт, -20…+50C, <40мА ",157,{"$f":"ROUNDUP(E156-(Содержание!$H$4*E156),0)","v":157},"Цена выросла"]
[null,null,null,"     "]
[null,null,"GH-FWC12","Уличный пластиковый кожух IP66, с козырьком, нагревателем 12 вольт и стенным кронштейном с кабелем 90 см, проведенным внутри него (коаксиал и питание), открывается с обеих сторон, -20…+55C, 8.4Вт нагрев, 17Вт общая",153,{"$f":"ROUNDUP(E158-(Содержание!$H$4*E158),0)","v":153}]
[null,null,"GH-FWC24","Уличный пластиковый кожух IP66, с козырьком, нагревателем 24 вольт и стенным кронштейном с кабелем 90 см, проведенным внутри него (коаксиал и питание), открывается с обеих сторон, -20…+55C, 8.4Вт нагрев, 17Вт общая",153,{"$f":"ROUNDUP(E159-(Содержание!$H$4*E159),0)","v":153}]
[null,null,"GH-FWC230","Уличный пластиковый кожух IP66, с козырьком, нагревателем 230 вольт и стенным кронштейном с кабелем 90 см, проведенным внутри него  (коаксиал и питание), открывается с обеих сторон, -20…+55C, 8.4Вт нагрев, 17Вт общая",153,{"$f":"ROUNDUP(E160-(Содержание!$H$4*E160),0)","v":153}]
[null,null,"GH-FWU230-G","Уличный пластиковый кожух IP66, с козырьком, нагревателем 230 вольт и стенным кронштейном с кабелем 90 см, проведенным внутри него, открывается с обеих сторон,  материал смотрового окошка - стекло, -20…+55C, 8.4Вт нагрев, 17Вт общая",231,{"$f":"ROUNDUP(E161-(Содержание!$H$4*E161),0)","v":231}]
[null,null,"GH-FW230-G","Уличный пластиковый кожух IP66, с козырьком, нагревателем 230 вольт и стенным кронштейном с кабелями питания и  CAT5, проведенными внутри него, открывается с обеих сторон-20…+55C, материал смотрового окошка - стекло, 8.4Вт нагрев, 17Вт общая",200,{"$f":"ROUNDUP(E162-(Содержание!$H$4*E162),0)","v":200}]
[null,null,"GH-FW12","Уличный пластиковый кожух IP66, с козырьком, нагревателем 12 вольт и стенным кронштейном, открывается с обеих сторон, -20…+55C, 8.4Вт нагрев, 17Вт общая",129,{"$f":"ROUNDUP(E163-(Содержание!$H$4*E163),0)","v":129},"Цена выросла"]
[null,null,"GH-FW24","Уличный пластиковый кожух IP66, с козырьком, нагревателем 24 вольт и стенным кронштейном, открывается с обеих сторон, -20…+55C, 8.4Вт нагрев, 17Вт общая",129,{"$f":"ROUNDUP(E164-(Содержание!$H$4*E164),0)","v":129},"Цена выросла"]
[null,null,"GH-FW230","Уличный пластиковый кожух IP66, с козырьком, нагревателем 230 вольт и стенным кронштейном, открывается с обеих сторон, -20…+55C, 8.4Вт нагрев, 17Вт общая",129,{"$f":"ROUNDUP(E165-(Содержание!$H$4*E165),0)","v":129},"Цена выросла"]
[null,null,"GH-F12","Уличный пластиковый кожух IP66, с козырьком и нагревателем 12 вольт, открывается с обеих сторон, без кронштейна, -20…+55C, 8.4Вт нагрев, 17Вт общая",94,{"$f":"ROUNDUP(E166-(Содержание!$H$4*E166),0)","v":94},"Цена выросла"]
[null,null,"GH-F24","Уличный пластиковый кожух IP66, с козырьком и нагревателем 24 вольт, открывается с обеих сторон, без кронштейна, -20…+55C, 8.4Вт нагрев, 17Вт общая",94,{"$f":"ROUNDUP(E167-(Содержание!$H$4*E167),0)","v":94},"Цена выросла"]
[null,null,"GH-F-iPaK-P","Уличный пластиковый кожух IP66, с козырьком, стенным кронштейном, открывается с обеих сторон. Установлены  нагреватель и PoE сплиттер для питания кожуха и камеры 12 вольт, -20…+55C, 8.4Вт нагрев, 17Вт общая",412,{"$f":"ROUNDUP(E168-(Содержание!$H$4*E168),0)","v":412}]
[null,"Принадлежности"]
[null,null,"GH-FWM","Стенной кронштейн 20 см, с соединительным шарниром для кожухов GH-Fast",31,{"$f":"ROUNDUP(E170-(Содержание!$H$4*E170),0)","v":31},"Цена снижена"]
[null,null,"GH-CM","Кронштейн для крепления кожухов GH на потолке с соединительным шарниром и внутренней прокладкой кабеля  ",196,{"$f":"ROUNDUP(E171-(Содержание!$H$4*E171),0)","v":196}]
[null,null,"GH-CM2","Кронштейн для крепления кожухов GH-Fast на потолке с соединительным шарниром и внутренней прокладкой кабеля ",245,{"$f":"ROUNDUP(E172-(Содержание!$H$4*E172),0)","v":245},"Цена снижена"]
[null,null,"GH-SM","Спейсер для WM при наружной прокладке кабеля    ",25,{"$f":"ROUNDUP(E173-(Содержание!$H$4*E173),0)","v":25},"Цена снижена"]
[null,null,"GH-PAR","Адаптер для крепления на шесте (диаметр шеста от 60 до 140 мм) ",66,{"$f":"ROUNDUP(E174-(Содержание!$H$4*E174),0)","v":66},"Цена снижена"]
[null,null,"GH-PS24/12 ","Блок питания для камеры 24 В. вх/12 В. вых., 360 мА",69,{"$f":"ROUNDUP(E175-(Содержание!$H$4*E175),0)","v":69},"Цена снижена"]
[null,null,"GH-PS230/12 ","Блок питания для камеры 230 В. вх/12 В. вых., 360 мА",69,{"$f":"ROUNDUP(E176-(Содержание!$H$4*E176),0)","v":69},"Цена снижена"]
[null,null,"GH-PS230/24 ","Блок питания для камеры 230 В. вх/24 В. вых., 500 мА ",69,{"$f":"ROUNDUP(E177-(Содержание!$H$4*E177),0)","v":69},"Цена снижена"]
[null,null,"GH-PS230/12H","Блок питания для камеры  в кожухах GH-Fast, 230 В. вх/12В. вых., 1,5 А",83,{"$f":"ROUNDUP(E178-(Содержание!$H$4*E178),0)","v":83}]
[null,null,"GH-B24","Вентилятор 24 В для кожухов серии GH и GH-Fast ",89,{"$f":"ROUNDUP(E179-(Содержание!$H$4*E179),0)","v":89}]
[null,null,"GH-B12","Вентилятор 12 В для кожухов серии GH и GH-Fast ",91,{"$f":"ROUNDUP(E180-(Содержание!$H$4*E180),0)","v":91},"Цена снижена"]
[null,null,"GH-FHT12","Опциональный нагреватель с вентилятором 12 вольт для кожухов серии GH-Fast. Увеличивает температурный диапазон от -40 до +50°C   ",89,{"$f":"ROUNDUP(E181-(Содержание!$H$4*E181),0)","v":89}]
[null,null,"GH-FHT24","Опциональный нагреватель с вентилятором 24 вольт для кожухов серии GH-Fast. Увеличивает температурный диапазон от -40 до +50°C",98,{"$f":"ROUNDUP(E182-(Содержание!$H$4*E182),0)","v":98}]
[null,null,"GH-FHT230","Опциональный нагреватель с вентилятором 230 вольт для кожухов серии GH-Fast. Увеличивает температурный диапазон от -40 до +50°C",173,{"$f":"ROUNDUP(E183-(Содержание!$H$4*E183),0)","v":173}]
[]
[null,null,null,"***новые позиции выделены красным"]
[null,null,null,"***снижение цены выделено синим"]

{"sheet":"Мониторы","index":4,"n_rows":17,"n_cols":7,"rows_kept":17,"cut":false,"hidden":false,"merged":[]}
["МОНИТОРЫ GANZ"]
[null,null,"Модель","Описание    ","Розница, USD","Моя цена","Комментарии"]
["LED"]
[null,null,"LME17","TFT ЖК-монитор со светодиодной подсветкой, диагональ 17\", разрешение до 1280х1024 4:3, PAL//NTSC, встроенные динамики, 2xBNC вх/вых, питание 12В, БП в комплекте, VESA 75x75mm (BS M4 x 12мм), на подставке",562,{"$f":"ROUNDUP(E4-(Содержание!$H$4*E4),0)","v":562},"Цена снижена"]
[null,null,"LME19","TFT ЖК-монитор со светодиодной подсветкой, диагональ 19\", разрешение до 1280х1024 4:3, PAL//NTSC, встроенные динамики, 2xBNC вх/вых, питание 12В, БП в комплекте, VESA 75x75mm (BS M4 x 12мм), на подставке",660,{"$f":"ROUNDUP(E5-(Содержание!$H$4*E5),0)","v":660}]
[null,null,"LME23.6SP","ЖК монитор со светодиодной подсветкой 23,6\" макс. 1920x1080 при 60 Гц, 5 мс, до 300кд/м2, 16,7млн цветов, контраст 5000:1, формат изображения 16:9, PIP, POP, деинтерлейс, 3Д фильтр, PAL/NTSC, RGB вход (15-штырьковый разъём, D-sub), HDMI вход, BNC вх/вы х2, встроенные динамики 2х1,5Вт, вход аудио PC stereo, RCA, 12В 33 Вт, VESA 100 x 100 мм (M4 x 10 мм винт), на подставке, вес 3,2кг, 580х428х164мм, VGA кабель, кабель питания и пульт ДУ в комплекте, экран защищен листом оргстекла",770,{"$f":"E6-(Содержание!$H$4*E6)","v":770}]
[null,null,"LME32","ЖК монитор со светодиодной подсветкой 32\" макс. 1920x1080 при 60 Гц, 8,5 мс, до 400кд/м2, 16,7млн цветов, контраст 5000:1, формат изображения 16:9, PIP, POP, деинтерлейс, 3Д фильтр, PAL/NTSC, RGB вход (15-штырьковый разъём, D-sub), 2хHDMI, BNC вx/вых, вход триггера, встроенные динамики 2х1,5Вт, вход аудио PC stereo, RCA, 220В 70Вт, VESA 200x100мм/200х200мм, на подставке, вес 12,1кг, 747х450х80мм, HDMI кабель и пульт ДУ в комплекте, металлический корус",1351,{"$f":"E7-(Содержание!$H$4*E7)","v":1351}]
[]
[null,null,"Принадлежности"]
[null,null,"ZMA-HL3-2-S","LCD wall mount, black, for VESA standard hole spacing (75/100/100x200/200), 2-part, distance from wall 18mm, can be loaded by up to 35 kg, for LCDs from 23\" to 37\"",23.1,{"$f":"E10-(Содержание!$H$4*E10)","v":23.1},"Новая модель"]
[null,null,"ZMA-H9-2-S","LCD wall mount can be tilted by ±6°, black, for VESA standard hole spacing (50/75/100), 2-part, distance from wall 40mm, can be loaded by up to 20 kg, for LCDs from 10\" to 30\"",16.5,{"$f":"E11-(Содержание!$H$4*E11)","v":16.5},"Новая модель"]
[null,null,"ZMA-H5-1-S","LCD wall mount, can be tilted/swivelled by ±20°/±10°, black, for VESA standard hole spacing (75/100), with spirit level, with cable suspension, with snap function, distance from wall 75mm, can be loaded by up to 20 kg, for LCDs from 10\" to 30\"",36.300000000000004,{"$f":"E12-(Содержание!$H$4*E12)","v":36.300000000000004},"Новая модель"]
[null,null,"ZMA-HL4-1-S","LCD ceiling mount, can be tilted/swivelled by ±20°/±135°, with cable feed through the mount tube, black, for VESA standard hole spacing (50/75/100), can be loaded by up to 30 kg, for LCDs from 10\" to 30\", adjustable length 600 - 850mm",77,{"$f":"E13-(Содержание!$H$4*E13)","v":77},"Новая модель"]
[null,null,"LMA-UWM100","LCD wall mount, for VESA standard hole spacing (200x200/300x200/400x100/400x200), can be loaded by up to 100 kg",78.100000000000009,{"$f":"E14-(Содержание!$H$4*E14)","v":78.100000000000009},"Новая модель"]
[]
[null,null,null,"***новые позиции выделены красным"]
[null,null,null,"***снижение цены выделено синим"]

{"sheet":"Тепловизоры","index":5,"n_rows":116,"n_cols":7,"rows_kept":116,"cut":false,"hidden":false,"merged":[[4,0,4,1],[10,0,10,1]]}
["ТЕПЛОВИЗОРЫ GANZ и Low Light камеры"]
[]
[]
[null,null,"Модель","Описание    ","Розница, USD","Моя цена","Комментарии"]
["PixelPro GXi тепловизоры"]
[null,null,"ZN-TH1109VE-07-H","H.264 IP тепловизор, 9Hz, разрешение 320х240 (масштабирование QCIF/D1), объектив 7.5мм F1.4, 42,1° гор.,  матрица 17мкм неохлаждаемый микроболометр на оксиде ванадия, спектральный диапазон 8-14мкм, чувствительность менее 50мK, BNC выход видео (настроечный), интерфейсы RS485,  аудио вх./вых(G711), слот SD, питание PoE, 12VDC,  встроенная видеоаналитика (расширяемая лицензия), работа при температуре от -40 до 50°C (холодный старт при 0°C), поставляется с кожухом",8753,{"$f":"ROUNDUP(E6-(Содержание!$H$4*E6),0)","v":8753}]
[null,null,"ZN-TH1109VE-16-H","H.264 IP тепловизор, 9Hz, разрешение 320х240 (масштабирование QCIF/D1), объектив 16,7мм F1.2, 18,7° гор., матрица 17мкм неохлаждаемый микроболометр на оксиде ванадия, спектральный диапазон 8-14мкм, чувствительность менее 50мK, BNC выход видео (настроечный), интерфейсы RS485,  аудио вх./вых(G711), слот SD, питание PoE, 12VDC,  встроенная видеоаналитика (расширяемая лицензия), работа при температуре от -40 до 50°C (холодный старт при 0°C), поставляется с кожухом",9857,{"$f":"ROUNDUP(E7-(Содержание!$H$4*E7),0)","v":9857}]
[null,null,"ZN-TH1109VE-25-H","H.264 IP тепловизор, 9Hz, разрешение 320х240 (масштабирование QCIF/D1), объектив 25мм F1.2, 12,4° гор., матрица 17мкм неохлаждаемый микроболометр на оксиде ванадия, спектральный диапазон 8-14мкм, чувствительность менее 50мK, BNC выход видео (настроечный), интерфейсы RS485,  аудио вх./вых(G711), слот SD, питание PoE, 12VDC,  встроенная видеоаналитика (расширяемая лицензия), работа при температуре от -40 до 50°C (холодный старт при 0°C), поставляется с кожухом",9857,{"$f":"ROUNDUP(E8-(Содержание!$H$4*E8),0)","v":9857}]
[null,null,"ZN-TH1109VE-35-H","H.264 IP тепловизор, 9Hz, разрешение 320х240 (масштабирование QCIF/D1), объектив 35мм F1.2, 8,9° гор., матрица 17мкм неохлаждаемый микроболометр на оксиде ванадия, спектральный диапазон 8-14мкм, чувствительность менее 50мK, BNC выход видео (настроечный), интерфейсы RS485,  аудио вх./вых(G711), слот SD, питание PoE, 12VDC,  встроенная видеоаналитика (расширяемая лицензия), работа при температуре от -40 до 50°C (холодный старт при 0°C), поставляется с кожухом",11360,{"$f":"ROUNDUP(E9-(Содержание!$H$4*E9),0)","v":11360}]
[null,null,"ZN-TH1109VE-50-H","H.264 IP тепловизор, 9Hz, разрешение 320х240 (масштабирование QCIF/D1), объектив 50мм F1.2, 6,2° гор., матрица 17мкм неохлаждаемый микроболометр на оксиде ванадия, спектральный диапазон 8-14мкм, чувствительность менее 50мK, BNC выход видео (настроечный), интерфейсы RS485,  аудио вх./вых(G711), слот SD, питание PoE, 12VDC,  встроенная видеоаналитика (расширяемая лицензия), работа при температуре от -40 до 50°C (холодный старт при 0°C), поставляется с кожухом",12079,{"$f":"ROUNDUP(E10-(Содержание!$H$4*E10),0)","v":12079}]
["GANZ Thermal серия"]
[null,null,"ZNT6-HBT1FN20-P","H.264 IP тепловизор, 9Hz, разрешение 320х240 , объектив 7.5мм F1.2, 40° гор.,  матрица 17мкм неохлаждаемый микроболометр на оксиде ванадия, спектральный диапазон 8-14мкм, чувствительность менее 50мK, BNC выход видео, интерфейс RS485, Pelco-D, питание PoE, 12VDC/24VAC, IP66, работа при температуре от -40 до 50°C, Onvif",4849,{"$f":"ROUNDUP(E12-(Содержание!$H$4*E12),0)","v":4849},"Цена выросла"]
[null,null,"ZNT6-HBT1FN29-P","H.264 IP тепловизор, 9Hz, разрешение 320х240 , объектив 13мм F1.0, 24° гор.,  матрица 17мкм неохлаждаемый микроболометр на оксиде ванадия, спектральный диапазон 8-14мкм, чувствительность менее 50мK, BNC выход видео, интерфейс RS485, Pelco-D, питание PoE, 12VDC/24VAC, IP66, работа при температуре от -40 до 50°C, Onvif",5120,{"$f":"ROUNDUP(E13-(Содержание!$H$4*E13),0)","v":5120},"Цена выросла"]
[null,null,"ZNT6-HBT1FN23-P","H.264 IP тепловизор, 9Hz, разрешение 320х240 , объектив 19мм F1.1, 16° гор.,  матрица 17мкм неохлаждаемый микроболометр на оксиде ванадия, спектральный диапазон 8-14мкм, чувствительность менее 50мK, BNC выход видео, интерфейс RS485, Pelco-D, питание PoE, 12VDC/24VAC, IP66, работа при температуре от -40 до 50°C, Onvif",5235,{"$f":"ROUNDUP(E14-(Содержание!$H$4*E14),0)","v":5235},"Цена выросла"]
[null,null,"ZNT6-HBT1FN25-P","H.264 IP тепловизор, 9Hz, разрешение 320х240 , объектив 35мм F1.2, 9° гор.,  матрица 17мкм неохлаждаемый микроболометр на оксиде ванадия, спектральный диапазон 8-14мкм, чувствительность менее 50мK, BNC выход видео, интерфейс RS485, Pelco-D, питание PoE, 12VDC/24VAC, IP66, работа при температуре от -40 до 50°C, Onvif",6350,{"$f":"ROUNDUP(E15-(Содержание!$H$4*E15),0)","v":6350},"Цена выросла"]
[null,null,"ZNT6-HBT1FN26-P","H.264 IP тепловизор, 9Hz, разрешение 320х240 , объектив 50мм F1.2, 6° гор.,  матрица 17мкм неохлаждаемый микроболометр на оксиде ванадия, спектральный диапазон 8-14мкм, чувствительность менее 50мK, BNC выход видео, интерфейс RS485, Pelco-D, питание PoE, 12VDC/24VAC, IP66, работа при температуре от -40 до 50°C, Onvif",7920,{"$f":"ROUNDUP(E16-(Содержание!$H$4*E16),0)","v":7920},"Цена выросла"]
[null,null,"ZNT6-PBT1FN20-P","H.264 PTZ IP тепловизор, 9Hz, разрешение 320х240 , объектив 7.5мм F1.2, 40° гор.,  матрица 17мкм неохлаждаемый микроболометр на оксиде ванадия, спектральный диапазон 8-14мкм, чувствительность менее 50мK, пан.360°, накл. ±120°, 30°/с ±2,5°,  BNC выход видео, интерфейс RS485, Pelco-D, питание PoE, 12VDC/24VAC, IP66, работа при температуре от -20 до 50°C, внутренняя память 2ГБ, Onvif",7467,{"$f":"ROUNDUP(E17-(Содержание!$H$4*E17),0)","v":7467},"Цена выросла"]
[null,null,"ZNT6-PBT1FN29-P","H.264 PTZ IP тепловизор, 9Hz, разрешение 320х240 , объектив 13мм F1.0, 24° гор.,  матрица 17мкм неохлаждаемый микроболометр на оксиде ванадия, спектральный диапазон 8-14мкм, чувствительность менее 50мK, пан.360°, накл. ±120°, 30°/с ±2,5°, BNC выход видео, интерфейс RS485, Pelco-D, питание PoE, 12VDC/24VAC, IP66, работа при температуре от -20 до 50°C, внутренняя память 2ГБ, Onvif",7685,{"$f":"ROUNDUP(E18-(Содержание!$H$4*E18),0)","v":7685},"Цена выросла"]
[null,null,"ZNT6-PBT1FN23-P","H.264 PTZ IP тепловизор, 9Hz, разрешение 320х240 , объектив 19мм F1.1, 16° гор.,  матрица 17мкм неохлаждаемый микроболометр на оксиде ванадия, спектральный диапазон 8-14мкм, чувствительность менее 50мK, пан.360°, накл. ±120°, 30°/с ±2,5°, BNC выход видео, интерфейс RS485, Pelco-D, питание PoE, 12VDC/24VAC, IP66, работа при температуре от -20 до 50°C, внутренняя память 2ГБ, Onvif",7894,{"$f":"ROUNDUP(E19-(Содержание!$H$4*E19),0)","v":7894},"Цена выросла"]
[null,null,"ZNT6-PBT1FN25-P","H.264 PTZ IP тепловизор, 9Hz, разрешение 320х240 , объектив 35мм F1.2, 9° гор.,  матрица 17мкм неохлаждаемый микроболометр на оксиде ванадия, спектральный диапазон 8-14мкм, чувствительность менее 50мK, пан.360°, накл. ±120°, 30°/с ±2,5°, BNC выход видео, интерфейс RS485, Pelco-D, питание PoE, 12VDC/24VAC, IP66, работа при температуре от -20 до 50°C, внутренняя память 2ГБ, Onvif",8980,{"$f":"ROUNDUP(E20-(Содержание!$H$4*E20),0)","v":8980},"Цена выросла"]
[null,null,"ZNT6-HBT2FN32-P","H.264 IP тепловизор, 9Hz, разрешение 640х480 , объектив 7.5мм F1.4, 90° гор.,  матрица 17мкм неохлаждаемый микроболометр на оксиде ванадия, спектральный диапазон 8-14мкм, чувствительность менее 50мK, BNC выход видео, интерфейс RS485, Pelco-D, питание PoE, 12VDC/24VAC, IP66, работа при температуре от -40 до 50°C, внутренняя память 2ГБ, Onvif",11000,{"$f":"ROUNDUP(E21-(Содержание!$H$4*E21),0)","v":11000},"Цена выросла"]
[null,null,"ZNT6-HBT2FN21-P","H.264 IP тепловизор, 9Hz, разрешение 640х480 , объектив 14.25мм F1.2, 44° гор.,  матрица 17мкм неохлаждаемый микроболометр на оксиде ванадия, спектральный диапазон 8-14мкм, чувствительность менее 50мK, BNC выход видео, интерфейс RS485, Pelco-D, питание PoE, 12VDC/24VAC, IP66, работа при температуре от -40 до 50°C, внутренняя память 2ГБ, Onvif",10450,{"$f":"ROUNDUP(E22-(Содержание!$H$4*E22),0)","v":10450},"Цена выросла"]
[null,null,"ZNT6-HBT2FN22-P","H.264 IP тепловизор, 9Hz, разрешение 640х480 , объектив 16.7мм F1.2, 37° гор.,  матрица 17мкм неохлаждаемый микроболометр на оксиде ванадия, спектральный диапазон 8-14мкм, чувствительность менее 50мK, BNC выход видео, интерфейс RS485, Pelco-D, питание PoE, 12VDC/24VAC, IP66, работа при температуре от -40 до 50°C, внутренняя память 2ГБ, Onvif",10390,{"$f":"ROUNDUP(E23-(Содержание!$H$4*E23),0)","v":10390},"Цена выросла"]
[null,null,"ZNT6-HBT2FN24-P","H.264 IP тепловизор, 9Hz, разрешение 640х480 , объектив 25мм F1.2, 25° гор.,  матрица 17мкм неохлаждаемый микроболометр на оксиде ванадия, спектральный диапазон 8-14мкм, чувствительность менее 50мK, BNC выход видео, интерфейс RS485, Pelco-D, питание PoE, 12VDC/24VAC, IP66, работа при температуре от -40 до 50°C, внутренняя память 2ГБ, Onvif",10430,{"$f":"ROUNDUP(E24-(Содержание!$H$4*E24),0)","v":10430},"Цена выросла"]
[null,null,"ZNT6-HBT2FN25-P","H.264 IP тепловизор, 9Hz, разрешение 640х480 , объектив 35мм F1.2, 18° гор.,  матрица 17мкм неохлаждаемый микроболометр на оксиде ванадия, спектральный диапазон 8-14мкм, чувствительность менее 50мK, BNC выход видео, интерфейс RS485, Pelco-D, питание PoE, 12VDC/24VAC, IP66, работа при температуре от -40 до 50°C, внутренняя память 2ГБ, Onvif",10600,{"$f":"ROUNDUP(E25-(Содержание!$H$4*E25),0)","v":10600},"Цена выросла"]
[null,null,"ZNT6-HBT2FN26-P","H.264 IP тепловизор, 9Hz, разрешение 640х480 , объектив 50мм F1.2, 12° гор.,  матрица 17мкм неохлаждаемый микроболометр на оксиде ванадия, спектральный диапазон 8-14мкм, чувствительность менее 50мK, BNC выход видео, интерфейс RS485, Pelco-D, питание PoE, 12VDC/24VAC, IP66, работа при температуре от -40 до 50°C, внутренняя память 2ГБ, Onvif",12190,{"$f":"ROUNDUP(E26-(Содержание!$H$4*E26),0)","v":12190},"Цена выросла"]
[null,null,"ZNT6-PBT2FN21-P","H.264 PTZ IP тепловизор, 9Hz, разрешение 640х480 , объектив 14.25мм F1.2, 44° гор.,  матрица 17мкм неохлаждаемый микроболометр на оксиде ванадия, спектральный диапазон 8-14мкм, чувствительность менее 50мK, пан.360°, накл. ±120°, 30°/с ±2,5°, BNC выход видео, интерфейс RS485, Pelco-D, питание PoE, 12VDC/24VAC, IP66, работа при температуре от -20 до 50°C, внутренняя память 2ГБ, Onvif",13440,{"$f":"ROUNDUP(E27-(Содержание!$H$4*E27),0)","v":13440},"Цена выросла"]
[null,null,"ZNT6-PBT2FN22-P","H.264 PTZ IP тепловизор, 9Hz, разрешение 640х480 , объектив 16.7мм F1.2, 37° гор.,  матрица 17мкм неохлаждаемый микроболометр на оксиде ванадия, спектральный диапазон 8-14мкм, чувствительность менее 50мK, пан.360°, накл. ±120°, 30°/с ±2,5°, BNC выход видео, интерфейс RS485, Pelco-D, питание PoE, 12VDC/24VAC, IP66, работа при температуре от -20 до 50°C, внутренняя память 2ГБ, Onvif",13450,{"$f":"ROUNDUP(E28-(Содержание!$H$4*E28),0)","v":13450},"Цена выросла"]
[null,null,"ZNT6-PBT2FN24-P","H.264 PTZ IP тепловизор, 9Hz, разрешение 640х480 , объектив 25мм F1.2, 25° гор.,  матрица 17мкм неохлаждаемый микроболометр на оксиде ванадия, спектральный диапазон 8-14мкм, чувствительность менее 50мK, пан.360°, накл. ±120°, 30°/с ±2,5°, BNC выход видео, интерфейс RS485, Pelco-D, питание PoE, 12VDC/24VAC, IP66, работа при температуре от -20 до 50°C, внутренняя память 2ГБ, Onvif",13640,{"$f":"ROUNDUP(E29-(Содержание!$H$4*E29),0)","v":13640},"Цена выросла"]
[null,null,"ZNT6-PBT2FN25-P","H.264 PTZ IP тепловизор, 9Hz, разрешение 640х480 , объектив 35мм F1.2, 18° гор.,  матрица 17мкм неохлаждаемый микроболометр на оксиде ванадия, спектральный диапазон 8-14мкм, чувствительность менее 50мK, пан.360°, накл. ±120°, 30°/с ±2,5°, BNC выход видео, интерфейс RS485, Pelco-D, питание PoE, 12VDC/24VAC, IP66, работа при температуре от -20 до 50°C, внутренняя память 2ГБ, Onvif",13820,{"$f":"ROUNDUP(E30-(Содержание!$H$4*E30),0)","v":13820},"Цена выросла"]
[null,null,"WB-1W","Настенный кронштейн для ZNT6-Hxxx",140,{"$f":"ROUNDUP(E31-(Содержание!$H$4*E31),0)","v":140}]
[null,null,"JB-1W","Потолочный кронштейн для ZNT6-Hxxx",166,{"$f":"ROUNDUP(E32-(Содержание!$H$4*E32),0)","v":166}]
[null,null,"WMK3-1W","Настенный кронштейн для ZNT6-Pxxx",303,{"$f":"ROUNDUP(E33-(Содержание!$H$4*E33),0)","v":303}]
["GANZ"]
[null,null,"ZT-M320","Тепловизионный модуль, неохлаждаемый микроболометр, разрешение D1, 40mK NETD, 12VDC",17380,{"$f":"ROUNDUP(E35-(Содержание!$H$4*E35),0)","v":17380},"Новая модель"]
[null,null,"ZT-M335","Тепловизионный модуль, неохлаждаемый микроболометр, разрешение D1, 40mK NETD, 12VDC",20768,{"$f":"ROUNDUP(E36-(Содержание!$H$4*E36),0)","v":20768},"Новая модель"]
[null,null,"ZT-M360","Тепловизионный модуль, неохлаждаемый микроболометр, разрешение D1, 40mK NETD, 12VDC",23731,{"$f":"ROUNDUP(E37-(Содержание!$H$4*E37),0)","v":23731},"Новая модель"]
[null,null,"ZT-M311T","Тепловизионный модуль, неохлаждаемый микроболометр, разрешение D1, 40mK NETD, 12VDC",20768,{"$f":"ROUNDUP(E38-(Содержание!$H$4*E38),0)","v":20768},"Новая модель"]
[null,null,"ZT-M319T","Тепловизионный модуль, неохлаждаемый микроболометр, разрешение D1, 40mK NETD, 12VDC",20343,{"$f":"ROUNDUP(E39-(Содержание!$H$4*E39),0)","v":20343},"Новая модель"]
[null,null,"ZT-M320-V","Тепловизионный модуль, неохлаждаемый микроболометр, матрица 640х480, 40mK NETD, 12VDC",26268,{"$f":"ROUNDUP(E40-(Содержание!$H$4*E40),0)","v":26268},"Новая модель"]
[null,null,"ZT-M335-V","Тепловизионный модуль, неохлаждаемый микроболометр, матрица 640х480, 40mK NETD, 12VDC",29656,{"$f":"ROUNDUP(E41-(Содержание!$H$4*E41),0)","v":29656},"Новая модель"]
[null,null,"ZT-M360-V","Тепловизионный модуль, неохлаждаемый микроболометр, матрица 640х480, 40mK NETD, 12VDC",33895,{"$f":"ROUNDUP(E42-(Содержание!$H$4*E42),0)","v":33895},"Новая модель"]
[null,null,"ZT-W320","Тепловизионная камера для уличной установки (IP66), 8-14µm, 9Hz, чувствительность - NETD : 40mK / F1.0, объектив 20мм, поле зрения по горизонтали - 27,8°, D1 разрешение при использовании оригинальной технологии масштабирования, дальность детекции движения человека - 459м, OSD меню, 12VDC, -35°C...+55°C",18172,{"$f":"ROUNDUP(E43-(Содержание!$H$4*E43),0)","v":18172}]
[null,null,"ZT-W335","Тепловизионная камера для уличной установки (IP66), 8-14µm, 9Hz, чувствительность - NETD : 40mK / F1.0, объектив 35мм, поле зрения по горизонтали - 15,7°, D1 разрешение при использовании оригинальной технологии масштабирования, дальность детекции движения человека - 803м, OSD меню, 12VDC, -35°C...+55°C",19866,{"$f":"ROUNDUP(E44-(Содержание!$H$4*E44),0)","v":19866}]
[null,null,"ZT-W320-IP","Тепловизионная IP камера для уличной установки (IP66), 8-14µm, 9Hz, чувствительность - NETD : 40mK / F1.0, объектив 20мм, поле зрения по горизонтали - 27,8°, D1 разрешение при использовании оригинальной технологии масштабирования, дальность детекции движения человека - 459м, OSD меню, 12VDC, -35°C...+55°C",18172,{"$f":"ROUNDUP(E45-(Содержание!$H$4*E45),0)","v":18172}]
[null,null,"ZT-W335-IP","Тепловизионная IP камера для уличной установки (IP66), 8-14µm, 9Hz, чувствительность - NETD : 40mK / F1.0, объектив 35мм, поле зрения по горизонтали - 15,7°, D1 разрешение при использовании оригинальной технологии масштабирования, дальность детекции движения человека - 803м, OSD меню, 12VDC, -35°C...+55°C",19866,{"$f":"ROUNDUP(E46-(Содержание!$H$4*E46),0)","v":19866}]
[null,null,"ZT-W311T","Тепловизионная камера для уличной установки (IP66), 8-14µm, 9Hz, чувствительность - NETD : 40mK / F1.0, объектив 11мм, D1 разрешение при использовании оригинальной технологии масштабирования, функция измерения температуры, OSD меню, 12VDC, -35°C...+55°C",0,{"$f":"ROUNDUP(E47-(Содержание!$H$4*E47),0)","v":0}]
[null,null,"ZT-W319T","Тепловизионная камера для уличной установки (IP66), 8-14µm, 9Hz, чувствительность - NETD : 40mK / F1.0, объектив 19мм, D1 разрешение при использовании оригинальной технологии масштабирования, функция измерения температуры, OSD меню, 12VDC, -35°C...+55°C",21691,{"$f":"ROUNDUP(E48-(Содержание!$H$4*E48),0)","v":21691}]
[null,null,"ZT-W311T-IP","Тепловизионная IP камера для уличной установки (IP66), 8-14µm, 9Hz, чувствительность - NETD : 40mK / F1.0, объектив 11мм, D1 разрешение при использовании оригинальной технологии масштабирования, функция измерения температуры, OSD меню, 12VDC, -35°C...+55°C",0,{"$f":"ROUNDUP(E49-(Содержание!$H$4*E49),0)","v":0}]
[null,null,"ZT-W319T-IP","Тепловизионная IP камера для уличной установки (IP66), 8-14µm, 9Hz, чувствительность - NETD : 40mK / F1.0, объектив 19мм, D1 разрешение при использовании оригинальной технологии масштабирования, функция измерения температуры, OSD меню, 12VDC, -35°C...+55°C",21691,{"$f":"ROUNDUP(E50-(Содержание!$H$4*E50),0)","v":21691}]
[null,null,"ZT-W320-V","Тепловизионная IP камера для уличной установки (IP66), 8-14µm, 9Hz, чувствительность - NETD : 40mK / F1.0, объектив 20мм, матрица 640х480 D1 разрешение при использовании оригинальной технологии масштабирования, OSD меню, 12VDC, -35°C...+55°C",24280,{"$f":"ROUNDUP(E51-(Содержание!$H$4*E51),0)","v":24280}]
[null,null,"ZT-W335-V","Тепловизионная IP камера для уличной установки (IP66), 8-14µm, 9Hz, чувствительность - NETD : 40mK / F1.0, объектив 35мм, матрица 640х480 D1 разрешение при использовании оригинальной технологии масштабирования, OSD меню, 12VDC, -35°C...+55°C",27519,{"$f":"ROUNDUP(E52-(Содержание!$H$4*E52),0)","v":27519}]
[null,null,"ZT-PTS320","Тепловизионная PTZ камера для уличной установки (IP68), 8-14µm, 25 кадр./с, чувствительность - NETD : 40mK / F1.0, объектив 20мм, угол зрения по горизонтали - 27,8°, D1 разрешение при использовании оригинальной технологии масштабирования, дальность детекции движения человека - 459м, OSD меню, 12-24VDC/24VAC, -30°C...+55°C, возможность применения в морских условиях",28458.591999999997,{"$f":"ROUNDUP(E53-(Содержание!$H$4*E53),0)","v":28459}]
[null,null,"ZT-PTS335","Тепловизионная PTZ камера для уличной установки (IP68), 8-14µm, 25 кадр./с, чувствительность - NETD : 40mK / F1.0, объектив 35мм, угол зрения по горизонтали - 15,7°, D1 разрешение при использовании оригинальной технологии масштабирования, дальность детекции движения человека - 803м, OSD меню, 12-24VDC/24VAC, -30°C...+55°C, возможность применения в морских условиях",30696.316000000003,{"$f":"ROUNDUP(E54-(Содержание!$H$4*E54),0)","v":30697}]
[null,null,"ZT-PTS320-IP","Тепловизионная IP PTZ камера для уличной установки (IP68), 8-14µm, 25 кадр./с, чувствительность - NETD : 40mK / F1.0, объектив 20мм, угол зрения по горизонтали - 27,8°, D1 разрешение при использовании оригинальной технологии масштабирования, дальность детекции движения человека - 459м, OSD меню, 12-24VDC/24VAC, -30°C...+55°C, возможность применения в морских условиях",26723.311999999998,{"$f":"ROUNDUP(E55-(Содержание!$H$4*E55),0)","v":26724}]
[null,null,"ZT-PTS335-IP","Тепловизионная IP PTZ камера для уличной установки (IP68), 8-14µm, 25 кадр./с, чувствительность - NETD : 40mK / F1.0, объектив 35мм, угол зрения по горизонтали - 15,7°, D1 разрешение при использовании оригинальной технологии масштабирования, дальность детекции движения человека - 803м, OSD меню, 12-24VDC/24VAC, -30°C...+55°C, возможность применения в морских условиях",30713.760000000002,{"$f":"ROUNDUP(E56-(Содержание!$H$4*E56),0)","v":30714}]
[null,null,"ZT-PTS311T","Тепловизионная PTZ камера для уличной установки (IP68), 8-14µm, 25 кадр./с, чувствительность - NETD : 40mK / F1.0, объектив 11мм, D1 разрешение при использовании оригинальной технологии масштабирования, функция измерения температуры, OSD меню, 12-24VDC/24VAC, -30°C...+55°C, возможность применения в морских условиях",0,{"$f":"ROUNDUP(E57-(Содержание!$H$4*E57),0)","v":0}]
[null,null,"ZT-PTS319T","Тепловизионная PTZ камера для уличной установки (IP68), 8-14µm, 25 кадр./с, чувствительность - NETD : 40mK / F1.0, объектив 19мм, дальность детекции движения человека - 990м, D1 разрешение при использовании оригинальной технологии масштабирования, функция измерения температуры, OSD меню, 12-24VDC/24VAC, -30°C...+55°C, возможность применения в морских условиях",40283.936000000002,{"$f":"ROUNDUP(E58-(Содержание!$H$4*E58),0)","v":40284}]
[null,null,"ZT-PTS311T-IP","Тепловизионная IP PTZ камера для уличной установки (IP68), 8-14µm, 25 кадр./с, чувствительность - NETD : 40mK / F1.0, объектив 11мм, D1 разрешение при использовании оригинальной технологии масштабирования, функция измерения температуры, OSD меню, 12-24VDC/24VAC, -30°C...+55°C, возможность применения в морских условиях",0,{"$f":"ROUNDUP(E59-(Содержание!$H$4*E59),0)","v":0}]
[null,null,"ZT-PTS319T-IP","Тепловизионная IP PTZ камера для уличной установки (IP68), 8-14µm, 25 кадр./с, чувствительность - NETD : 40mK / F1.0, объектив 19мм, дальность детекции движения человека - 990м, D1 разрешение при использовании оригинальной технологии масштабирования, функция измерения температуры, OSD меню, 12-24VDC/24VAC, -30°C...+55°C, возможность применения в морских условиях",40283.936000000002,{"$f":"ROUNDUP(E60-(Содержание!$H$4*E60),0)","v":40284}]
[null,null,"ZT-PTS320-V","Тепловизионная PTZ камера для уличной установки (IP68), 8-14µm, 25 кадр./с, чувствительность - NETD : 40mK / F1.0, объектив 20мм, матрица 640х480 D1 разрешение при использовании оригинальной технологии масштабирования, OSD меню, 12-24VDC/24VAC, -30°C...+55°C, возможность применения в морских условиях",40283.936000000002,{"$f":"ROUNDUP(E61-(Содержание!$H$4*E61),0)","v":40284}]
[null,null,"ZT-PTS335-V","Тепловизионная PTZ камера для уличной установки (IP68), 8-14µm, 25 кадр./с, чувствительность - NETD : 40mK / F1.0, объектив 35мм, матрица 640х480 D1 разрешение при использовании оригинальной технологии масштабирования, OSD меню, 12-24VDC/24VAC, -30°C...+55°C, возможность применения в морских условиях",46264.064000000006,{"$f":"ROUNDUP(E62-(Содержание!$H$4*E62),0)","v":46265}]
[null,null,"ZT-PTS320-V-IP","Тепловизионная IP PTZ камера для уличной установки (IP68), 8-14µm, 25 кадр./с, чувствительность - NETD : 40mK / F1.0, объектив 20мм, матрица 640х480 D1 разрешение при использовании оригинальной технологии масштабирования, OSD меню, 12-24VDC/24VAC, -30°C...+55°C, возможность применения в морских условиях",40283.936000000002,{"$f":"ROUNDUP(E63-(Содержание!$H$4*E63),0)","v":40284}]
[null,null,"ZT-PTS335-V-IP","Тепловизионная IP PTZ камера для уличной установки (IP68), 8-14µm, 25 кадр./с, чувствительность - NETD : 40mK / F1.0, объектив 35мм, матрица 640х480 D1 разрешение при использовании оригинальной технологии масштабирования, OSD меню, 12-24VDC/24VAC, -30°C...+55°C, возможность применения в морских условиях",46264.064000000006,{"$f":"ROUNDUP(E64-(Содержание!$H$4*E64),0)","v":46265}]
[null,null,"ZT-PTD320-36XP","Комбинированная x36-аналоговая камера c тепловизионным модулем, поворотная уличная система, IP68, разрешение 384x288 с программным масштабированием до 720х576, диапазон 8-14 мкм, 9Hz фокус 20мм. Дальность детекции движения человека - 459м. Полный поворот на 360° по горизонтали. Охрана объектов в полной темноте и в любых погодных условиях до -30°С. ",40601.879999999997,{"$f":"ROUNDUP(E65-(Содержание!$H$4*E65),0)","v":40602}]
[null,null,"ZT-PTD335-36XP","Комбинированная x36-аналоговая камера c тепловизионным модулем, поворотная уличная система, IP68, разрешение 384x288 с программным масштабированием до 720х576, диапазон 8-14 мкм, 9Hz фокус 35мм. Дальность детекции движения человека - до 1376м. Полный поворот на 360° по горизонтали. Охрана объектов в полной темноте и в любых погодных условиях  до -30°С. ",45307.68,{"$f":"ROUNDUP(E66-(Содержание!$H$4*E66),0)","v":45308}]
[null,null,"ZT-PTD360-36X(N/P)","Комбинированная IP 36x D1 камера c тепловизионным модулем,, поворотная уличная система, IP68, разрешение 384x288 с программным масштабированием до 720х576, диапазон 8-14 мкм, 9Hz фокус 60мм. Полный поворот на 360° по горизонтали. Охрана объектов в полной темноте и в любых погодных условиях  до -30°С. ",57185,{"$f":"ROUNDUP(E67-(Содержание!$H$4*E67),0)","v":57185}]
[null,null,"ZT-PTD320-36X(N/P)-IP","Комбинированная IP 36x D1 камера c тепловизионным модулем, поворотная уличная система, IP68, разрешение 384x288 с программным масштабированием до 720х576, диапазон 8-14 мкм, 9Hz фокус 20мм. Дальность детекции движения человека - 459м. Полный поворот на 360° по горизонтали. Охрана объектов в полной темноте и в любых погодных условиях до -30°С. ",40245,{"$f":"ROUNDUP(E68-(Содержание!$H$4*E68),0)","v":40245}]
[null,null,"ZT-PTD335-36X(N/P)-IP","Комбинированная IP 36x D1 камера c тепловизионным модулем, поворотная уличная система, IP68, разрешение 384x288 с программным масштабированием до 720х576, диапазон 8-14 мкм, 9Hz фокус 35мм. Дальность детекции движения человека - до 1376м. Полный поворот на 360° по горизонтали. Охрана объектов в полной темноте и в любых погодных условиях  до -30°С. ",44909,{"$f":"ROUNDUP(E69-(Содержание!$H$4*E69),0)","v":44909}]
[null,null,"ZT-PTD360-36X(N/P)-IP","Комбинированная IP 36x D1 камера c тепловизионным модулем, поворотная уличная система, IP68, разрешение 384x288 с программным масштабированием до 720х576, диапазон 8-14 мкм, 9Hz фокус 60мм. Полный поворот на 360° по горизонтали. Охрана объектов в полной темноте и в любых погодных условиях  до -30°С. ",57185,{"$f":"ROUNDUP(E70-(Содержание!$H$4*E70),0)","v":57185}]
[null,null,"ZT-PTD311T-30X(N/P)","Комбинированная x30-аналоговая камера c тепловизионным модулем, поворотная уличная система, IP68, разрешение 384x288 с программным масштабированием до 720х576, диапазон 8-14 мкм, 9Hz фокус 11мм. Полный поворот на 360° по горизонтали, функция измерения температуры. Охрана объектов в полной темноте и в любых погодных условиях  до -30°С. ",76252,{"$f":"ROUNDUP(E71-(Содержание!$H$4*E71),0)","v":76252}]
[null,null,"ZT-PTD319T-30X(N/P)","Комбинированная x30-аналоговая камера c тепловизионным модулем, поворотная уличная система, IP68, разрешение 384x288 с программным масштабированием до 720х576, диапазон 8-14 мкм, 9Hz объектив 19мм, дальность детекции движения человека - 990м. Полный поворот на 360° по горизонтали, функция измерения температуры. Охрана объектов в полной темноте и в любых погодных условиях  до -30°С. ",70312,{"$f":"ROUNDUP(E72-(Содержание!$H$4*E72),0)","v":70312}]
[null,null,"ZT-PTD311T-30X(N/P)-IP","Комбинированная x30-аналоговая камера c тепловизионным модулем, поворотная уличная система, IP68, разрешение 384x288 с программным масштабированием до 720х576, диапазон 8-14 мкм, 9Hz фокус 11мм.  Полный поворот на 360° по горизонтали. Охрана объектов в полной темноте и в любых погодных условиях до -30°С. ",0,{"$f":"ROUNDUP(E73-(Содержание!$H$4*E73),0)","v":0}]
[null,null,"ZT-PTD319T-30X(N/P)-IP","Комбинированная IP 30x D1 камера c тепловизионным модулем, поворотная уличная система, IP68, разрешение 384x288 с программным масштабированием до 720х576, диапазон 8-14 мкм, 9Hz объектив 19мм, дальность детекции движения человека - 990м. Полный поворот на 360° по горизонтали, функция измерения температуры. Охрана объектов в полной темноте и в любых погодных условиях  до -30°С. ",70312,{"$f":"ROUNDUP(E74-(Содержание!$H$4*E74),0)","v":70312}]
[null,null,"ZT-PTD320V-30X(N/P)-IP","Комбинированная IP 30x D1 камера c тепловизионным модулем, поворотная уличная система, IP68, разрешение 640x480 с программным масштабированием до 720х576, диапазон 8-14 мкм, 9Hz фокус 20мм. Дальность детекции движения человека - 459м. Полный поворот на 360° по горизонтали. Охрана объектов в полной темноте и в любых погодных условиях до -30°С. ",71588,{"$f":"ROUNDUP(E75-(Содержание!$H$4*E75),0)","v":71588}]
[null,null,"ZT-PTD335V-30X(N/P)-IP","Комбинированная IP 30x D1 камера c тепловизионным модулем, поворотная уличная система, IP68, разрешение 640x480 с программным масштабированием до 720х576, диапазон 8-14 мкм, 9Hz фокус 35мм. Дальность детекции движения человека - до 1376м. Полный поворот на 360° по горизонтали. Охрана объектов в полной темноте и в любых погодных условиях  до -30°С. ",79640,{"$f":"ROUNDUP(E76-(Содержание!$H$4*E76),0)","v":79640}]
[null,null,"ZT-PTD360V-30X(N/P)-IP","Комбинированная IP 36x D1 камера c тепловизионным модулем, поворотная уличная система, IP68, разрешение 640x480 с программным масштабированием до 720х576, диапазон 8-14 мкм, 9Hz фокус 60мм. Полный поворот на 360° по горизонтали. Охрана объектов в полной темноте и в любых погодных условиях  до -30°С. ",88953,{"$f":"ROUNDUP(E77-(Содержание!$H$4*E77),0)","v":88953}]
[null,null,"ZT-WD307P","Тепловизор с аналоговой камерой 700ТВЛ, 0,005Lux, для уличной установки (IP66), тепловизионный модуль 384x288 с программным масштабированием до 720х576, 8-14µm, 9Hz, чувствительность - NETD : 40mK / F1.0, объектив 7мм, дальность детекции движения человека - 370м, OSD меню, 12VDC, -35°C...+55°C *поле зрения аналоговой и тепловизионной камер совпадает",11014,{"$f":"ROUNDUP(E78-(Содержание!$H$4*E78),0)","v":11014}]
[null,null,"ZT-WD319P","Тепловизор с аналоговой камерой 700ТВЛ, 0,005Lux, для уличной установки (IP66), тепловизионный модуль 384x288 с программным масштабированием до 720х576, 8-14µm, 9Hz, чувствительность - NETD : 40mK / F1.0, объектив 19мм, дальность детекции движения человека - 990м, OSD меню, 12VDC, -35°C...+55°C  *поле зрения аналоговой и тепловизионной камер совпадает",12291,{"$f":"ROUNDUP(E79-(Содержание!$H$4*E79),0)","v":12291}]
[null,null,"ZT-WD335P","Тепловизор с аналоговой камерой 700ТВЛ, 0,005Lux, для уличной установки (IP66), тепловизионный модуль 384x288 с программным масштабированием до 720х576, 8-14µm, 9Hz, чувствительность - NETD : 40mK / F1.0, объектив 35мм, дальность детекции движения человека - 1620м, OSD меню, 12VDC, -35°C...+55°C  *поле зрения аналоговой и тепловизионной камер совпадает",13977,{"$f":"ROUNDUP(E80-(Содержание!$H$4*E80),0)","v":13977}]
[null,null,"ZT-WD307P-IP","Тепловизор с аналоговой камерой 700ТВЛ 0,005Lux, IP версия, для уличной установки (IP66), тепловизионный модуль 384x288 с программным масштабированием до 720х576, 8-14µm, 9Hz, чувствительность - NETD : 40mK / F1.0, объектив 7мм, дальность детекции движения человека - 370м, OSD меню, 12VDC, -35°C...+55°C *поле зрения аналоговой и тепловизионной камер совпадает",8418,{"$f":"ROUNDUP(E81-(Содержание!$H$4*E81),0)","v":8418}]
[null,null,"ZT-WD319P-IP","Тепловизор с аналоговой камерой 700ТВЛ, 0,005Lux, IP версия, для уличной установки (IP66), тепловизионный модуль 384x288 с программным масштабированием до 720х576, 8-14µm, 9Hz, чувствительность - NETD : 40mK / F1.0, объектив 19мм, дальность детекции движения человека - 990м, OSD меню, 12VDC, -35°C...+55°C  *поле зрения аналоговой и тепловизионной камер совпадает",11396,{"$f":"ROUNDUP(E82-(Содержание!$H$4*E82),0)","v":11396}]
[null,null,"ZT-WD335P-IP","Тепловизор с аналоговой камерой 700ТВЛ, 0,005Lux, IP версия, для уличной установки (IP66), тепловизионный модуль 384x288 с программным масштабированием до 720х576, 8-14µm, 9Hz, чувствительность - NETD : 40mK / F1.0, объектив 35мм, дальность детекции движения человека - 1620м, OSD меню, 12VDC, -35°C...+55°C  *поле зрения аналоговой и тепловизионной камер совпадает",12320,{"$f":"ROUNDUP(E83-(Содержание!$H$4*E83),0)","v":12320}]
["Low Light камеры"]
[null,null,"SSC-9600","2 Мегапиксельная CS-Mount цветная камера, сверх высокая чувствительность - Color Night Vision, день/ночь переключение, матрица 2/3\" Progressive Scan CMOS, 0.005 lux, WDR, DNR, DFOG, SDI / BNC Out, 650g",15750,{"$f":"ROUNDUP(E85-(Содержание!$H$4*E85),0)","v":15750}]
[null,null,"KC-2000","HD, CS-Mount цветная камера, сверх высокая чувствительность - Color Night Vision, 2/3\" CMOS, в цвете 0.005 lux , SD-card slot, HDMI-out, интегрированный микрофон, DFOG, DNR, Mic-In, Audio-Out, 1.1kg",65000,{"$f":"ROUNDUP(E86-(Содержание!$H$4*E86),0)","v":65000}]
["Серия тепловизоров Genstar IP"]
[null,null,"ZNT8-BA1F33","H.264 IP тепловизор, 25Hz, разрешение 420х315 , объектив 8мм, 75° гор., матрица 25мкм неохлаждаемый микроболометр, 8-14мкм, NETD 50мK, BNC, Ethernet, аудио и тревожные вх/вых, питание PoE / 12VDC, IP66, работа при температуре от -40 до 50°C, Onvif, RTSP",5900,{"$f":"ROUNDUP(E88-(Содержание!$H$4*E88),0)","v":5900}]
[null,null,"ZNT8-BA1F30","H.264 IP тепловизор, 25Hz, разрешение 420х315 , объектив 15мм, 40° гор., матрица 25мкм неохлаждаемый микроболометр, 8-14мкм, NETD 50мK, BNC, Ethernet, аудио и тревожные вх/вых, питание PoE / 12VDC, IP66, работа при температуре от -40 до 50°C, Onvif, RTSP",6350,{"$f":"ROUNDUP(E89-(Содержание!$H$4*E89),0)","v":6350}]
[null,null,"ZNT8-BA1F24","H.264 IP тепловизор, 25Hz, разрешение 420х315 , объектив 25мм, 24° гор., матрица 25мкм неохлаждаемый микроболометр, 8-14мкм, NETD 50мK, BNC, Ethernet, аудио и тревожные вх/вых, питание PoE / 12VDC, IP66, работа при температуре от -40 до 50°C, Onvif, RTSP",6450,{"$f":"ROUNDUP(E90-(Содержание!$H$4*E90),0)","v":6450}]
[null,null,"ZNT8-BA1F25","H.264 IP тепловизор, 25Hz, разрешение 420х315 , объектив 35мм, 17° гор., матрица 25мкм неохлаждаемый микроболометр, 8-14мкм, NETD 50мK, BNC, Ethernet, аудио и тревожные вх/вых, питание PoE / 12VDC, IP66, работа при температуре от -40 до 50°C, Onvif, RTSP",7100,{"$f":"ROUNDUP(E91-(Содержание!$H$4*E91),0)","v":7100}]
[null,null,"ZNT8-BA1F26","H.264 IP тепловизор, 25Hz, разрешение 420х315 , объектив 50мм, 12° гор., матрица 25мкм неохлаждаемый микроболометр, 8-14мкм, NETD 50мK, BNC, Ethernet, аудио и тревожные вх/вых, питание PoE / 12VDC, IP66, работа при температуре от -40 до 50°C, Onvif, RTSP",7450,{"$f":"ROUNDUP(E92-(Содержание!$H$4*E92),0)","v":7450}]
[null,null,"ZNT8-BA1F33-T","ZNT8-BA1F33 с функцией мониторинга температуры: • Несколько точек измерения температуры в кадре\n• Значения температуры: низшая, высшая, температура в точке, \n• Тревоги: изменение температуры, превышение температуры, реле",6230,{"$f":"ROUNDUP(E93-(Содержание!$H$4*E93),0)","v":6230}]
[null,null,"ZNT8-BA1F30-T","ZNT8-BA1F30 с функцией мониторинга температуры: • Несколько точек измерения температуры в кадре\n• Значения температуры: низшая, высшая, температура в точке, средняя температура в области и по всему кадру\n• Тревоги: изменение температуры, превышение температуры, реле",6680,{"$f":"ROUNDUP(E94-(Содержание!$H$4*E94),0)","v":6680}]
[null,null,"ZNT8-BA1F24-T","ZNT8-BA1F24 с функцией мониторинга температуры: • Несколько точек измерения температуры в кадре\n• Значения температуры: низшая, высшая, температура в точке, средняя температура в области и по всему кадру\n• Тревоги: изменение температуры, превышение температуры, реле",6780,{"$f":"ROUNDUP(E95-(Содержание!$H$4*E95),0)","v":6780}]
[null,null,"ZNT8-BA1F25-T","ZNT8-BA1F25 с функцией мониторинга температуры: • Несколько точек измерения температуры в кадре\n• Значения температуры: низшая, высшая, температура в точке, средняя температура в области и по всему кадру\n• Тревоги: изменение температуры, превышение температуры, реле",7430,{"$f":"ROUNDUP(E96-(Содержание!$H$4*E96),0)","v":7430}]
[null,null,"ZNT8-BA1F26-T","ZNT8-BA1F26 с функцией мониторинга температуры: • Несколько точек измерения температуры в кадре\n• Значения температуры: низшая, высшая, температура в точке, средняя температура в области и по всему кадру\n• Тревоги: изменение температуры, превышение температуры, реле",7780,{"$f":"ROUNDUP(E97-(Содержание!$H$4*E97),0)","v":7780}]
[null,null,"ZNT8-CA1F33","H.264 IP тепловизионный модуль, 25Hz, разрешение 420х315 , объектив 8мм, 75° гор., матрица 25мкм неохлаждаемый микроболометр, 8-14мкм, NETD 50мK, BNC, Ethernet,  Onvif, RTSP",0,{"$f":"ROUNDUP(E98-(Содержание!$H$4*E98),0)","v":0}]
[null,null,"ZNT8-CA1F30","H.264 IP тепловизионный модуль, 25Hz, разрешение 420х315 , объектив 15мм, 40° гор., матрица 25мкм неохлаждаемый микроболометр, 8-14мкм, NETD 50мK, BNC, Ethernet,  Onvif, RTSP",0,{"$f":"ROUNDUP(E99-(Содержание!$H$4*E99),0)","v":0}]
[null,null,"ZNT8-CA1F24","H.264 IP тепловизионный модуль, 25Hz, разрешение 420х315 , объектив 25мм, 24° гор., матрица 25мкм неохлаждаемый микроболометр, 8-14мкм, NETD 50мK, BNC, Ethernet,  Onvif, RTSP",0,{"$f":"ROUNDUP(E100-(Содержание!$H$4*E100),0)","v":0}]
[null,null,"ZNT8-CA1F25","H.264 IP тепловизионный модуль, 25Hz, разрешение 420х315 , объектив 35мм, 17° гор., матрица 25мкм неохлаждаемый микроболометр, 8-14мкм, NETD 50мK, BNC, Ethernet,  Onvif, RTSP",0,{"$f":"ROUNDUP(E101-(Содержание!$H$4*E101),0)","v":0}]
[null,null,"ZNT8-CA1F26","H.264 IP тепловизионный модуль, 25Hz, разрешение 420х315 , объектив 50мм, 12° гор., матрица 25мкм неохлаждаемый микроболометр, 8-14мкм, NETD 50мK, BNC, Ethernet,  Onvif, RTSP",0,{"$f":"ROUNDUP(E102-(Содержание!$H$4*E102),0)","v":0}]
[null,null,"ZNT8-CA1F33-T","ZNT8-CA1F33 с функцией мониторинга температуры",0,{"$f":"ROUNDUP(E103-(Содержание!$H$4*E103),0)","v":0}]
[null,null,"ZNT8-CA1F30-T","ZNT8-CA1F30 с функцией мониторинга температуры",0,{"$f":"ROUNDUP(E104-(Содержание!$H$4*E104),0)","v":0}]
[null,null,"ZNT8-CA1F24-T","ZNT8-CA1F24 с функцией мониторинга температуры",0,{"$f":"ROUNDUP(E105-(Содержание!$H$4*E105),0)","v":0}]
[null,null,"ZNT8-CA1F25-T","ZNT8-CA1F25 с функцией мониторинга температуры",0,{"$f":"ROUNDUP(E106-(Содержание!$H$4*E106),0)","v":0}]
[null,null,"ZNT8-CA1F26-T","ZNT8-CA1F26 с функцией мониторинга температуры",0,{"$f":"ROUNDUP(E107-(Содержание!$H$4*E107),0)","v":0}]
[null,null,"ZNT8-PC124-T","Двухканальный тепловизор, разрешение 420х315 , 8-14um, разрешение на выходе D1/CIF, 50mK, поддержка различных режимов отображения тепла, система улучшения изображения,  функция мониторинга температуры объектов в кадре.  Канал видимого диапазона: 1/2.8\" Sony COMS Sensor, 1920x1080/25fps(PAL); 1920x1080/30fps(NTSC), 22X ZOOM, ICR, DeFog, AWB, Pan:0°to 360°；Tilt -90°to 90°, Protocol Pelco-D, Bitrate 2400/4800/9600/19200 bps, DC9-DC36V , AC24V(Optional),-20℃ ~ +55℃, IP66 ,Onvif Profile S, 10Kg",11300,{"$f":"ROUNDUP(E108-(Содержание!$H$4*E108),0)","v":11300}]
[null,null,"ZNT8-PC125-T","Двухканальный тепловизор, разрешение 420х315 , 8-14um, разрешение на выходе D1/CIF, 50mK, поддержка различных режимов отображения тепла, система улучшения изображения,  функция мониторинга температуры объектов в кадре.  Канал видимого диапазона: 1/2.8\" Sony COMS Sensor, 1920x1080/25fps(PAL); 1920x1080/30fps(NTSC), 22X ZOOM, ICR, DeFog, AWB, Pan:0°to 360°；Tilt -90°to 90°, Protocol Pelco-D, Bitrate 2400/4800/9600/19200 bps, DC9-DC36V , AC24V(Optional),-20℃ ~ +55℃, IP66 ,Onvif Profile S, 10Kg",10800,{"$f":"ROUNDUP(E109-(Содержание!$H$4*E109),0)","v":10800}]
[null,null,"ZNT8-PC126-T","Двухканальный тепловизор, разрешение 420х315 , 8-14um, разрешение на выходе D1/CIF, 50mK, поддержка различных режимов отображения тепла, система улучшения изображения,  функция мониторинга температуры объектов в кадре.  Канал видимого диапазона: 1/2.8\" Sony COMS Sensor, 1920x1080/25fps(PAL); 1920x1080/30fps(NTSC), 22X ZOOM, ICR, DeFog, AWB, Pan:0°to 360°；Tilt -90°to 90°, Protocol Pelco-D, Bitrate 2400/4800/9600/19200 bps, DC9-DC36V , AC24V(Optional),-20℃ ~ +55℃, IP66 ,Onvif Profile S, 10Kg",11600,{"$f":"ROUNDUP(E110-(Содержание!$H$4*E110),0)","v":11600}]
[null,null,"ZNT8-PC135-T","Двухканальный тепловизор, разрешение 420х315 , 8-14um, разрешение на выходе D1/CIF, 50mK, поддержка различных режимов отображения тепла, система улучшения изображения,  функция мониторинга температуры объектов в кадре.  Канал видимого диапазона: : 1/2.8\" Sony COMS Sensor, 1920x1080/25fps(PAL); 1920x1080/30fps(NTSC); Super WDR >120dB, ICR,V-F Lens 10 ~320mm, Auto Iris(Optional), Pan:0°to 360°；Tilt -45°to 45°, Protocol Pelco-D,Bitrate 2400/4800/9600/19200 bps,DC9-DC36V ,AC24V(Optional),-20℃～+55℃, IP66, Onvif Profile S, 50Kg",43800,{"$f":"ROUNDUP(E111-(Содержание!$H$4*E111),0)","v":43800}]
[null,null,"ZNT8-PC134-T","H.264 IP PTZ двухканальный тепловизор, 25Hz, разрешение 420х315 , объектив 75мм, 7.3° гор., матрица 25мкм неохлаждаемый микроболометр, 8-14мкм, NETD 50мK, Ethernet,  и тревожные вх/вых, питание AC 24В, Pelco-D, IP66, работа при температуре от -40 до 50°C, Onvif, RTSP, функция мониторинга температуры объектов в кадре. Канал видимого диапазона: FullHD 1920x1080, 10-320мм 32x AF zoom, ICR, DeFog, AWB.",36063,{"$f":"ROUNDUP(E112-(Содержание!$H$4*E112),0)","v":36063}]
[null,null,"ZNT8-PC136-T","H.264 IP PTZ двухканальный тепловизор, 25Hz, разрешение 420х315 , объектив 150мм, 3.7° гор., матрица 25мкм неохлаждаемый микроболометр, 8-14мкм, NETD 50мK, Ethernet,  и тревожные вх/вых, питание AC 24В, Pelco-D, IP66, работа при температуре от -40 до 50°C, Onvif, RTSP, функция мониторинга температуры объектов в кадре. Канал видимого диапазона: FullHD 1920x1080, 10-320мм 32x AF zoom, ICR, DeFog, AWB.",73060,{"$f":"ROUNDUP(E113-(Содержание!$H$4*E113),0)","v":73060}]
[]
[null,null,null,"***новые позиции выделены красным"]
[null,null,null,"***снижение цены выделено синим"]

{"sheet":"Кожухи и пр.","index":6,"n_rows":629,"n_cols":6,"rows_kept":629,"cut":false,"hidden":false,"merged":[[0,0,0,2],[23,0,23,2],[2,0,2,3]]}
["Кожухи и другое оборудование"]
[null,"Модель","Описание    ","Розница, USD","Моя цена","Комментарии"]
["Outdoor housings"]
[null,"CHEB230 ","IP66, с козырьком и нагревателем, 230 VAC",182,{"$f":"D4-(Содержание!$H$4*D4)","v":182},"Цена выросла"]
[null,"CHEB12/24","IP66, с козырьком и нагревателем, 12 VDC/24 VAC",182,{"$f":"D5-(Содержание!$H$4*D5)","v":182},"Цена выросла"]
[null,"CHOV230-2 ","IP66, с козырьком и нагревателем, 230 VAC",194,{"$f":"D6-(Содержание!$H$4*D6)","v":194},"Цена выросла"]
[null,"CHOV12/24-2","IP66, с козырьком и нагревателем, 12 VDC/24 VAC",194,{"$f":"D7-(Содержание!$H$4*D7)","v":194},"Цена выросла"]
[null,"CHEG","IP66, с козырьком и нагревателем, 230 VAC",254,{"$f":"D8-(Содержание!$H$4*D8)","v":254},"Цена выросла"]
["Accessories for outdoor housings"]
[null,"WBJ ","Удлиненный внешний кронштейн для CHOV и CHEG",36,{"$f":"D10-(Содержание!$H$4*D10)","v":36}]
[null,"WBM","Стандартный внешний кронштейн для CHEB и CHEM",36,{"$f":"D11-(Содержание!$H$4*D11)","v":36}]
[null,"WBOV","Кронштейн для CHOV",48,{"$f":"D12-(Содержание!$H$4*D12)","v":48}]
[null,"WBOV/P","WBOV с клеммной коробкой",218,{"$f":"D13-(Содержание!$H$4*D13)","v":218},"Цена выросла"]
[null,"CP","Панель крепления для WBM, WBJ и WBOV",50,{"$f":"D14-(Содержание!$H$4*D14)","v":50}]
[null,"CW","Угловое крепление для WBM, WBJ и WBOV",69,{"$f":"D15-(Содержание!$H$4*D15)","v":69}]
[null,"SFP","Крепление на шесте для WBM, WBJ и WBOV",66,{"$f":"D16-(Содержание!$H$4*D16)","v":66}]
[null,"CMP","Удлинитель для CM4/5, MCM",40,{"$f":"D17-(Содержание!$H$4*D17)","v":40}]
[null,"HE/GB","Клеммная коробка IP65 для кожухов CH",72,{"$f":"D18-(Содержание!$H$4*D18)","v":72}]
[null,"HEATER","Нагреватель для кожухов CH (3 версии: 220 вольт, 24 или 12 вольт). При заказе следует указать тип кожуха и напряжение питания.",22,{"$f":"D19-(Содержание!$H$4*D19)","v":22},"Цена выросла"]
[null,"CHEB/PSU12-2","Блок питания 12 вольт, 1 А для кожухов CHEB",63,{"$f":"D20-(Содержание!$H$4*D20)","v":63}]
[null,"CHEB/PSU24-2","Блок питания 24 вольт, 400 мА для кожухов CHEB",63,{"$f":"D21-(Содержание!$H$4*D21)","v":63}]
[null,"CHOV/PSU12-2","Блок питания 12 вольт, 1А  для кожухов CHOV-2",53,{"$f":"D22-(Содержание!$H$4*D22)","v":53}]
[null,"CHOV/PSU24-2","Блок питания 24 вольт, 400 мА для кожухов CHOV-2",42,{"$f":"D23-(Содержание!$H$4*D23)","v":42}]
["Vandal proof housing and accessories "]
[null,"TPSC","Вандалоустойчивый для потолочного монтажа",254,{"$f":"D25-(Содержание!$H$4*D25)","v":254},"Цена выросла"]
[null,"TPSC/H230","Нагреватель для TPSC, 230VAC",37,{"$f":"D26-(Содержание!$H$4*D26)","v":37}]
[null,"TPSC/H12","Нагреватель для TPSC, 12VDC/24VAC",37,{"$f":"D27-(Содержание!$H$4*D27)","v":37}]
[null,"TPSC/PS12-2","Блок питания камеры для TPSC, 12VDC, 1 A",58,{"$f":"D28-(Содержание!$H$4*D28)","v":58}]
[null,"TPSC/PS24-2","Блок питания камеры для TPSC, 24VDC, 400 мА",58,{"$f":"D29-(Содержание!$H$4*D29)","v":58}]
[null,"TPSK-2","Вандалоустойчивый для потолочного монтажа",448,{"$f":"D30-(Содержание!$H$4*D30)","v":448},"Цена выросла"]
[null,"TPSK/PS12-2","Блок питания камеры для TPSK-2, 12VDC, 1 А",54,{"$f":"D31-(Содержание!$H$4*D31)","v":54}]
[null,"TPSK/PS24-2","Блок питания камеры для TPSK-2, 24VDC, 400 мА",58,{"$f":"D32-(Содержание!$H$4*D32)","v":58}]
[null,"TPSK/H12/24-2","Нагреватель для TPSK-2, 12VDC/24VAC",37,{"$f":"D33-(Содержание!$H$4*D33)","v":37}]
[null,"TPSK/H230-2","Нагреватель для TPSK-2, 230VAC",39,{"$f":"D34-(Содержание!$H$4*D34)","v":39}]
[]
[null,"DBH06","Wall bracket with internal cable channel for DBH18",70.72,{"$f":"D36-(Содержание!$H$4*D36)","v":70.72}]
[null,"DBH07","Ceiling and parapet mount bracket for DBH18",267.92,{"$f":"D37-(Содержание!$H$4*D37)","v":267.92}]
[null,"DBH18K0F022","MEDUSA dome enclosure with sunshield and smoked bubble (needs internal camera adapter)",307.36,{"$f":"D38-(Содержание!$H$4*D38)","v":307.36}]
[null,"DBH18K0F028","MEDUSA dome enclosure with sunshield and clear bubble (needs internal camera adapter)",307.36,{"$f":"D39-(Содержание!$H$4*D39)","v":307.36}]
[null,"DBHWGC","Pole adapter Ø from 210mm to 225mm (8.2in -8.85in)",116.96000000000001,{"$f":"D40-(Содержание!$H$4*D40)","v":116.96000000000001}]
[null,"DCJ.3","Matrix and telemetry control keyboard with three axis joystick",958.80000000000007,{"$f":"D41-(Содержание!$H$4*D41)","v":958.80000000000007}]
[null,"DCRE485","RS485 data multiplexer, 1 input / 8 outputs",455.6,{"$f":"D42-(Содержание!$H$4*D42)","v":455.6}]
[null,"DCT.2","Matrix, DVR and telemetry control keyboard, touch screen, equipped with three axis joystick",1179.1200000000001,{"$f":"D43-(Содержание!$H$4*D43)","v":1179.1200000000001}]
[null,"DCTEL","Панель управления для серии SM, до 16 камер, с телеметрией по коаксиальному кабелю или RS485",342,{"$f":"D44-(Содержание!$H$4*D44)","v":342}]
[null,"DCZ","USB keyboard for management of CCTV applications from PC",864.96,{"$f":"D45-(Содержание!$H$4*D45)","v":864.96}]
[null,"DTMRX2","Telemetry receiver 12 functions, 230Vac",393.04,{"$f":"D46-(Содержание!$H$4*D46)","v":393.04}]
[null,"DTMRX224","Telemetry receiver 12 functions, 24Vac",393.04,{"$f":"D47-(Содержание!$H$4*D47)","v":393.04}]
[null,"DTRX3","Telemetry receiver 17 functions, 230Vac",754,{"$f":"D48-(Содержание!$H$4*D48)","v":754}]
[null,"DTRX324","Приемник телеметрии 17 функций, с предустановками, тревожным интерфейсом и Videojet-совместимым интерфейсом, 230V ",684,{"$f":"D49-(Содержание!$H$4*D49)","v":684}]
[null,"DTRXDC","Telemetry receiver 13 functions for PTH355P",613.36,{"$f":"D50-(Содержание!$H$4*D50)","v":613.36}]
[null,"DTWRX","Optional board for the remote control of the wiper and the water pump in stand-alone housings, by RS485. To use with the tanks of the WASPT-series only.",66.64,{"$f":"D51-(Содержание!$H$4*D51)","v":66.64}]
[null,"HEB32K0A000B","HEB housing 320mm with sunshield",145.52000000000001,{"$f":"D52-(Содержание!$H$4*D52)","v":145.52000000000001}]
[null,"HEB32K1A000B","HEB housing 320mm with sunshield and heater IN 120/230Vac",176.8,{"$f":"D53-(Содержание!$H$4*D53)","v":176.8}]
[null,"HEB32K2A000B","HEB housing 320mm with sunshield and heater IN 12Vdc/24Vac",176.8,{"$f":"D54-(Содержание!$H$4*D54)","v":176.8}]
[null,"HEG37K0A000","HEG housing 365mm with sunshield",220.32000000000002,{"$f":"D55-(Содержание!$H$4*D55)","v":220.32000000000002}]
[null,"HEG37K1A000","HEG housing 365mm with sunshield and heater IN 120/230Vac",248.88000000000002,{"$f":"D56-(Содержание!$H$4*D56)","v":248.88000000000002}]
[null,"HEG37K1A074","HEG housing 365mm with sunshield and double heater IN 120/230Vac",299.20000000000005,{"$f":"D57-(Содержание!$H$4*D57)","v":299.20000000000005}]
[null,"HEG37K1A143","HEG housing 365mm with sunshield and fan-assisted triple heater IN 120/230Vac, 120W",368.56,{"$f":"D58-(Содержание!$H$4*D58)","v":368.56}]
[null,"HEG37K2A000","HEG housing 365mm with sunshield and heater IN 12Vdc/24Vac",248.88000000000002,{"$f":"D59-(Содержание!$H$4*D59)","v":248.88000000000002}]
[null,"HEG47K1A000","HEG housing 450mm with sunshield and heater IN 120/230Vac",266.56,{"$f":"D60-(Содержание!$H$4*D60)","v":266.56}]
[null,"HEG47K1A018","HEG housing 450mm with sunshield, heater and blower 230Vac with double filter for air exchange",412.08000000000004,{"$f":"D61-(Содержание!$H$4*D61)","v":412.08000000000004}]
[null,"HEG47K2A000","HEG housing 450mm with sunshield and heater IN 12Vdc/24Vac",266.56,{"$f":"D62-(Содержание!$H$4*D62)","v":266.56}]
[null,"HEG47K2A016","HEG housing 450mm with sunshield, heater and blower 24Vac with double filter for air exchange",364.48,{"$f":"D63-(Содержание!$H$4*D63)","v":364.48}]
[null,"HEK30K1Y000B","HEK housing 300mm with sunshield and heater IN 120/230Vac",134.64000000000001,{"$f":"D64-(Содержание!$H$4*D64)","v":134.64000000000001}]
[null,"HEK30K2Y000B","HEK housing 300mm with sunshield and heater IN 12Vdc/24Vac",134.64000000000001,{"$f":"D65-(Содержание!$H$4*D65)","v":134.64000000000001}]
[null,"HEK30K2Y015B","HEK housing 300mm with sunshield and fan assisted heater 24Vac",178.16000000000003,{"$f":"D66-(Содержание!$H$4*D66)","v":178.16000000000003}]
[null,"HGV52K1A100","HGV housing 520mm with sunshield, triple fan assisted heater, wiper 230Vac and power supply IN 100-240VAC - OUT 12Vdc",1697.2800000000002,{"$f":"D67-(Содержание!$H$4*D67)","v":1697.2800000000002}]
[null,"HGV52K2A200","HGV housing 520mm with sunshield, triple fan assisted heater, wiper 24Vac",1697.2800000000002,{"$f":"D68-(Содержание!$H$4*D68)","v":1697.2800000000002}]
[null,"HOT39D0A000","PUNTO housing",61.2,{"$f":"D69-(Содержание!$H$4*D69)","v":61.2}]
[null,"HOT39D1A000","PUNTO housing with heater IN 120/230Vac",76.160000000000011,{"$f":"D70-(Содержание!$H$4*D70)","v":76.160000000000011}]
[null,"HOT39D1A085","PUNTO housing with heater IN 120/230Vac and wall bracket WBOV2A",107.44000000000001,{"$f":"D71-(Содержание!$H$4*D71)","v":107.44000000000001}]
[null,"HOT39D2A000","PUNTO housing with heater IN 12Vdc/24Vac",76.160000000000011,{"$f":"D72-(Содержание!$H$4*D72)","v":76.160000000000011}]
[null,"HOT39D2A085","PUNTO housing with heater IN 12Vdc/24Vac and wall bracket WBOV2A",107.44000000000001,{"$f":"D73-(Содержание!$H$4*D73)","v":107.44000000000001}]
[null,"HOT39K1A000","PUNTO housing with sunshield and heater IN 120/230Vac",91.12,{"$f":"D74-(Содержание!$H$4*D74)","v":91.12}]
[null,"HOT39K2A000","PUNTO housing with sunshield and heater IN 12Vdc/24Vac",91.12,{"$f":"D75-(Содержание!$H$4*D75)","v":91.12}]
[null,"HOT39K2A700","PUNTO Hi-PoE housing for Power Over Ethernet cameras",217.60000000000002,{"$f":"D76-(Содержание!$H$4*D76)","v":217.60000000000002}]
[null,"HOV32K1A000","HOV housing 300mm with sunshield and heater IN 120/230Vac",186.32000000000002,{"$f":"D77-(Содержание!$H$4*D77)","v":186.32000000000002}]
[null,"HOV32K1A018","HOV housing 300mm with sunshield, heater and blower 230Vac with double filter for air exchange",335.92,{"$f":"D78-(Содержание!$H$4*D78)","v":335.92}]
[null,"HOV32K1A100","HOV housing 300mm with sunshield, heater IN 120/230Vac, wiper 230Vac",563.04000000000008,{"$f":"D79-(Содержание!$H$4*D79)","v":563.04000000000008}]
[null,"HOV32K2A000","HOV housing 300mm with sunshield and heater IN 12Vdc/24Vac",186.32000000000002,{"$f":"D80-(Содержание!$H$4*D80)","v":186.32000000000002}]
[null,"HOV32K2A016","HOV housing 300mm with sunshield, heater and blower 24Vac and with double filter for air exchange",289.68,{"$f":"D81-(Содержание!$H$4*D81)","v":289.68}]
[null,"HOV32K2A017","HOV housing 300mm with sunshield, heater and blower 12Vdc with double filter for air exchange",289.68,{"$f":"D82-(Содержание!$H$4*D82)","v":289.68}]
[null,"HOV32K2A147","HOV housing 300mm with sunshield, heater and blower 24Vac with double filter for air exchange, wiper 24Vac",656.88,{"$f":"D83-(Содержание!$H$4*D83)","v":656.88}]
[null,"HOV32K2A200","HOV housing 300mm with sunshield, heater IN 12Vdc/24Vac, wiper 24Vac",563.04000000000008,{"$f":"D84-(Содержание!$H$4*D84)","v":563.04000000000008}]
[null,"HOV32K2A700","HOV housing for Power Over Ethernet cameras with IPM technology",391.68,{"$f":"D85-(Содержание!$H$4*D85)","v":391.68}]
[null,"HOV32K2A716","HOV housing for Power Over Ethernet cameras with IPM technology, blower with double filter for air exchange",439.28000000000003,{"$f":"D86-(Содержание!$H$4*D86)","v":439.28000000000003}]
[null,"HOV32K2A720","HOV housing for Power Over Ethernet cameras with IPM technology, heater for glass de-icing",549.44000000000005,{"$f":"D87-(Содержание!$H$4*D87)","v":549.44000000000005}]
[null,"HPV36D0A000B","VERSO COMPACT housing 360mm",93.84,{"$f":"D88-(Содержание!$H$4*D88)","v":93.84}]
[null,"HPV36K0A000B","VERSO COMPACT housing 360mm with sunshield",108.80000000000001,{"$f":"D89-(Содержание!$H$4*D89)","v":108.80000000000001}]
[null,"HPV36K1A000B","VERSO COMPACT housing 360mm with sunshield and heater IN 120/230Vac",133.28,{"$f":"D90-(Содержание!$H$4*D90)","v":133.28}]
[null,"HPV36K2A000B","VERSO COMPACT housing 360mm with sunshield and heater IN 12Vdc/24Vac",133.28,{"$f":"D91-(Содержание!$H$4*D91)","v":133.28}]
[null,"HPV36K2A015B","VERSO COMPACT housing 360mm with sunshield and fan assisted heater 24Vac",170,{"$f":"D92-(Содержание!$H$4*D92)","v":170}]
[null,"HPV42K0A000","VERSO housing 420mm with sunshield",136,{"$f":"D93-(Содержание!$H$4*D93)","v":136}]
[null,"HPV42K1A000","VERSO housing 420mm with sunshield and heater IN 120/230Vac",160.48000000000002,{"$f":"D94-(Содержание!$H$4*D94)","v":160.48000000000002}]
[null,"HPV42K1A160","VERSO POLAR housing 420mm with sunshield and reinforced heater for low temperatures (-55°C) IN 120/230Vac, 120W",239.36,{"$f":"D95-(Содержание!$H$4*D95)","v":239.36}]
[null,"HPV42K2A000","VERSO housing 420mm with sunshield and heater IN 12Vdc/24Vac",160.48000000000002,{"$f":"D96-(Содержание!$H$4*D96)","v":160.48000000000002}]
[null,"HPV42K2A016","VERSO housing 420mm with sunshield, heater and blower 24Vac with double filter for air exchange",284.24,{"$f":"D97-(Содержание!$H$4*D97)","v":284.24}]
[null,"HPV42K2A017","VERSO housing 420mm with sunshield, heater and blower 12Vdc with double filter for air exchange",284.24,{"$f":"D98-(Содержание!$H$4*D98)","v":284.24}]
[null,"HPV42K2A160","VERSO POLAR housing 420mm with sunshield and reinforced heater for low temperatures (-55°C), IN 12Vdc/24Vac, 60W",239.36,{"$f":"D99-(Содержание!$H$4*D99)","v":239.36}]
[null,"HPV42K2A700","VERSO housing for Power Over Ethernet cameras with IPM technology",361.76000000000005,{"$f":"D100-(Содержание!$H$4*D100)","v":361.76000000000005}]
[null,"HPV42K2A716","VERSO housing for Power Over Ethernet cameras with IPM technology, blower with double filter for air exchange",409.36,{"$f":"D101-(Содержание!$H$4*D101)","v":409.36}]
[null,"HTG37K1A000","HTG housing 365mm with sunshield and heater IN 120/230Vac and Ø55mm Germanium front window",2136.56,{"$f":"D102-(Содержание!$H$4*D102)","v":2136.56}]
[null,"HTG37K2A000","HTG housing 365mm with sunshield and heater IN 12Vdc/24Vac and Ø55mm Germanium front window",2136.56,{"$f":"D103-(Содержание!$H$4*D103)","v":2136.56}]
[null,"HTV32K1A000","HTV housing 300mm with sunshield and heater IN 120/230Vac and Ø55mm Germanium front window",2011.44,{"$f":"D104-(Содержание!$H$4*D104)","v":2011.44}]
[null,"HTV32K2A000","HTV housing 300mm with sunshield and heater IN 12Vdc/24Vac and Ø55mm Germanium front window",2011.44,{"$f":"D105-(Содержание!$H$4*D105)","v":2011.44}]
[null,"IRH10H8A","Infrared LED illuminator 10°, Hi-Power, 850nm, 12/24Vdc-24Vac, distances up to 140m (460ft)",455.6,{"$f":"D106-(Содержание!$H$4*D106)","v":455.6}]
[null,"IRH10H9A","Infrared LED illuminator 10°, Hi-Power, 940nm, 12/24Vdc-24Vac, distances up to 100m (328ft)",613.36,{"$f":"D107-(Содержание!$H$4*D107)","v":613.36}]
[null,"IRH10L8A","Infrared LED illuminator 10°, Low-Power, 850nm, 12/24Vdc-24Vac, distances up to 100m (328ft)",314.16000000000003,{"$f":"D108-(Содержание!$H$4*D108)","v":314.16000000000003}]
[null,"IRH30H8A","Infrared LED illuminator 30°, Hi-Power, 850nm, 12/24Vdc-24Vac, distances up to 84m (276ft)",455.6,{"$f":"D109-(Содержание!$H$4*D109)","v":455.6}]
[null,"IRH30H9A","Infrared LED illuminator 30°, Hi-Power, 940nm, 12/24Vdc-24Vac, distances up to 60m (197ft)",613.36,{"$f":"D110-(Содержание!$H$4*D110)","v":613.36}]
[null,"IRH30HWA","LED illuminator white light 30°, 24Vac - 12/24Vdc, distances up to 60m",455.6,{"$f":"D111-(Содержание!$H$4*D111)","v":455.6}]
[null,"IRH30L8A","Infrared LED illuminator 30°, Low-Power, 850nm, 12/24Vdc-24Vac, distances up to 60m (197ft)",314.16000000000003,{"$f":"D112-(Содержание!$H$4*D112)","v":314.16000000000003}]
[null,"IRH60H8A","Infrared LED illuminator 60°, Hi-Power, 850nm, 12/24Vdc-24Vac, distances up to 56m (184ft)",455.6,{"$f":"D113-(Содержание!$H$4*D113)","v":455.6}]
[null,"IRH60H9A","Infrared LED illuminator 60°, Hi-Power, 940nm, 12/24Vdc-24Vac, distances up to 40m (131ft)",613.36,{"$f":"D114-(Содержание!$H$4*D114)","v":613.36}]
[null,"IRH60HWA","LED illuminator white light 60°, 24Vac - 12/24Vdc, distances up to 40m",455.6,{"$f":"D115-(Содержание!$H$4*D115)","v":455.6}]
[null,"IRH60L8A","Infrared LED illuminator 60°, Low-Power, 850nm, 12/24Vdc-24Vac, distances up to 40m (131ft)",314.16000000000003,{"$f":"D116-(Содержание!$H$4*D116)","v":314.16000000000003}]
[null,"IRHPS120","Power supply IN 120Vac 50/60Hz OUT 24Vac 30W",141.44,{"$f":"D117-(Содержание!$H$4*D117)","v":141.44}]
[null,"IRHPS230","Power supply IN 230Vac 50/60Hz OUT 24Vac 30W",141.44,{"$f":"D118-(Содержание!$H$4*D118)","v":141.44}]
[null,"IRN10A8AS00","Infrared LED illuminator 10°, 850nm, 100/240Vac, distances up to 240m",833.68000000000006,{"$f":"D119-(Содержание!$H$4*D119)","v":833.68000000000006}]
[null,"IRN10A9AS00","Infrared LED illuminator 10°, 940nm, 100/240Vac, distances up to 140m",1289.2800000000002,{"$f":"D120-(Содержание!$H$4*D120)","v":1289.2800000000002}]
[null,"IRN10B8AS00","Infrared LED illuminator 10°, 850nm, 24Vac-12/24Vdc, distances up to 240m",692.24,{"$f":"D121-(Содержание!$H$4*D121)","v":692.24}]
[null,"IRN10B9AS00","Infrared LED illuminator 10°, 940nm, 24Vac-12/24Vdc, distances up to 140m",1116.5600000000002,{"$f":"D122-(Содержание!$H$4*D122)","v":1116.5600000000002}]
[null,"IRN30A8AS00","Infrared LED illuminator 30°, 850nm, 100/240Vac, distances up to 130m",833.68000000000006,{"$f":"D123-(Содержание!$H$4*D123)","v":833.68000000000006}]
[null,"IRN30A9AS00","Infrared LED illuminator 30°, 940nm, 100/240Vac, distances up to 80m",1289.2800000000002,{"$f":"D124-(Содержание!$H$4*D124)","v":1289.2800000000002}]
[null,"IRN30AWAS00","LED illuminator white light 30°, 100/240Vac, distances up to 120m",833.68000000000006,{"$f":"D125-(Содержание!$H$4*D125)","v":833.68000000000006}]
[null,"IRN30B8AS00","Infrared LED illuminator 30°, 850nm, 24Vac - 12/24Vdc, distances up to 130m",692.24,{"$f":"D126-(Содержание!$H$4*D126)","v":692.24}]
[null,"IRN30B9AS00","Infrared LED illuminator 30°, 940nm, 24Vac - 12/24Vdc, distances up to 80m",1116.5600000000002,{"$f":"D127-(Содержание!$H$4*D127)","v":1116.5600000000002}]
[null,"IRN30BWAS00","LED illuminator white light 30°, 24Vac - 12/24Vdc, distances up to 120m",692.24,{"$f":"D128-(Содержание!$H$4*D128)","v":692.24}]
[null,"IRN60A8AS00","Infrared LED illuminator 60°, 850nm, 100/240Vac, distances up to 80m",833.68000000000006,{"$f":"D129-(Содержание!$H$4*D129)","v":833.68000000000006}]
[null,"IRN60A9AS00","Infrared LED illuminator 60°, 940nm, 100/240Vac, distances up to 60m",1289.2800000000002,{"$f":"D130-(Содержание!$H$4*D130)","v":1289.2800000000002}]
[null,"IRN60AWAS00","LED illuminator white light 60°, 100/240Vac, distances up to 90m",833.68000000000006,{"$f":"D131-(Содержание!$H$4*D131)","v":833.68000000000006}]
[null,"IRN60B8AS00","Infrared LED illuminator 60°, 850nm, 24Vac - 12/24Vdc, distances up to 80m",692.24,{"$f":"D132-(Содержание!$H$4*D132)","v":692.24}]
[null,"IRN60B9AS00","Infrared LED illuminator 60°, 940nm, 24Vac - 12/24Vdc, distances up to 60m",1116.5600000000002,{"$f":"D133-(Содержание!$H$4*D133)","v":1116.5600000000002}]
[null,"IRN60BWAS00","LED illuminator white light 60°, 24Vac - 12/24Vdc, distances up to 90m",692.24,{"$f":"D134-(Содержание!$H$4*D134)","v":692.24}]
[null,"NTC2K1309","Thermal camera with Uncooled VOx Microbolometer thermal imager, 9mm lens, 7.5-8.3Hz, 320x256, stainless steel housing, 24Vac",10529.12,{"$f":"D135-(Содержание!$H$4*D135)","v":10529.12}]
[null,"NTC2K1313","Thermal camera with Uncooled VOx Microbolometer thermal imager, 13mm lens, 7.5-8.3Hz, 320x256, stainless steel housing, 24Vac",10529.12,{"$f":"D136-(Содержание!$H$4*D136)","v":10529.12}]
[null,"NTC2K1319","Thermal camera with Uncooled VOx Microbolometer thermal imager, 19mm lens, 7.5-8.3Hz, 320x256, stainless steel housing, 24Vac",10529.12,{"$f":"D137-(Содержание!$H$4*D137)","v":10529.12}]
[null,"NTC2K1325","Thermal camera with Uncooled VOx Microbolometer thermal imager, 25mm lens, 7.5-8.3Hz, 320x256, stainless steel housing, 24Vac",11902.720000000001,{"$f":"D138-(Содержание!$H$4*D138)","v":11902.720000000001}]
[null,"NTC2K1335","Thermal camera with Uncooled VOx Microbolometer thermal imager, 35mm lens, 7.5-8.3Hz, 320x256, stainless steel housing, 24Vac",11902.720000000001,{"$f":"D139-(Содержание!$H$4*D139)","v":11902.720000000001}]
[null,"NTC2K1350","Thermal camera with Uncooled VOx Microbolometer thermal imager, 50mm lens, 7.5-8.3Hz, 320x256, stainless steel housing, 24Vac",13733.28,{"$f":"D140-(Содержание!$H$4*D140)","v":13733.28}]
[null,"NTC2K1360","Thermal camera with Uncooled VOx Microbolometer thermal imager, 60mm lens, 7.5-8.3Hz, 320x256, stainless steel housing, 24Vac",16938.800000000003,{"$f":"D141-(Содержание!$H$4*D141)","v":16938.800000000003}]
[null,"NTC2K1609","Thermal camera with Uncooled VOx Microbolometer thermal imager, 9mm lens, 7.5-8.3Hz, 640x512, stainless steel housing, 24Vac",18769.36,{"$f":"D142-(Содержание!$H$4*D142)","v":18769.36}]
[null,"NTC2K1613","Thermal camera with Uncooled VOx Microbolometer thermal imager, 13mm lens, 7.5-8.3Hz, 640x512, stainless steel housing, 24Vac",18769.36,{"$f":"D143-(Содержание!$H$4*D143)","v":18769.36}]
[null,"NTC2K1619","Thermal camera with Uncooled VOx Microbolometer thermal imager, 19mm lens, 7.5-8.3Hz, 640x512, stainless steel housing, 24Vac",18769.36,{"$f":"D144-(Содержание!$H$4*D144)","v":18769.36}]
[null,"NTC2K1625","Thermal camera with Uncooled VOx Microbolometer thermal imager, 25mm lens, 7.5-8.3Hz, 640x512, stainless steel housing, 24Vac",19990.640000000003,{"$f":"D145-(Содержание!$H$4*D145)","v":19990.640000000003}]
[null,"NTC2K1635","Thermal camera with Uncooled VOx Microbolometer thermal imager, 35mm lens, 7.5-8.3Hz, 640x512, stainless steel housing, 24Vac",19990.640000000003,{"$f":"D146-(Содержание!$H$4*D146)","v":19990.640000000003}]
[null,"NTC2K1650","Thermal camera with Uncooled VOx Microbolometer thermal imager, 50mm lens, 7.5-8.3Hz, 640x512, stainless steel housing, 24Vac",21973.52,{"$f":"D147-(Содержание!$H$4*D147)","v":21973.52}]
[null,"NTC2K1660","Thermal camera with Uncooled VOx Microbolometer thermal imager, 60mm lens, 7.5-8.3Hz, 640x512, stainless steel housing, 24Vac",25025.360000000001,{"$f":"D148-(Содержание!$H$4*D148)","v":25025.360000000001}]
[null,"NTL1K1000","Large stainless steel housing with sunshield, heater IN 120/230Vac and Ø55mm (2.1in) Germanium front window",4577.76,{"$f":"D149-(Содержание!$H$4*D149)","v":4577.76}]
[null,"NTL1K1300","Large stainless steel housing with sunshield, heater IN 120/230Vac and Ø70mm (2.8in) Germanium front window",6866.64,{"$f":"D150-(Содержание!$H$4*D150)","v":6866.64}]
[null,"NTL1K1500","Large stainless steel housing with sunshield, heater IN 120/230Vac and Ø110mm (4.3in) Germanium front window",10376.800000000001,{"$f":"D151-(Содержание!$H$4*D151)","v":10376.800000000001}]
[null,"NTM1K1000","Stainless steel housing with sunshield, heater IN 120/230Vac and Ø55mm (2.1in) Germanium front window",3662.4800000000005,{"$f":"D152-(Содержание!$H$4*D152)","v":3662.4800000000005}]
[null,"NTW0K2000","Liquid-cooled stainless steel housing equipped with Zinc Selenide glass for thermal cameras, wavelength 7.5 - 14μm (up to 200°C/500°F)",7935.6,{"$f":"D153-(Содержание!$H$4*D153)","v":7935.6}]
[null,"NTW0K3000","Liquid-cooled stainless steel housing equipped with Sapphire glass for shortwave thermal cameras, wavelength 0.75 – 4.5 μm (up to 400°C/752°F)",3662.4800000000005,{"$f":"D154-(Содержание!$H$4*D154)","v":3662.4800000000005}]
[null,"NXCOL","Pole mount adaptor for NXWBS1, NXWBPT and NXWBL",376.72,{"$f":"D155-(Содержание!$H$4*D155)","v":376.72}]
[null,"NXCW","Corner mount adaptor for NXWBS1, NXWBPT and NXWBL",189.04000000000002,{"$f":"D156-(Содержание!$H$4*D156)","v":189.04000000000002}]
[null,"NXFIGRU","Filtering group for compressed air cleaning",908.48,{"$f":"D157-(Содержание!$H$4*D157)","v":908.48}]
[null,"NXFWBT","Stainless steel parapet mount for NXPTH P&T",293.76000000000005,{"$f":"D158-(Содержание!$H$4*D158)","v":293.76000000000005}]
[null,"NXL1K1000","Stainless steel housing with sunshield and heater IN 120/230Vac",2702.32,{"$f":"D159-(Содержание!$H$4*D159)","v":2702.32}]
[null,"NXL2K1000","Stainless steel housing with sunshield and heater IN 12Vdc/24Vac",2702.32,{"$f":"D160-(Содержание!$H$4*D160)","v":2702.32}]
[null,"NXM0D1000B","Stainless steel housing",1360,{"$f":"D161-(Содержание!$H$4*D161)","v":1360}]
[null,"NXM1K1000B","Housing with sunshield and heater IN 120/230Vac, 40W",1493.2800000000002,{"$f":"D162-(Содержание!$H$4*D162)","v":1493.2800000000002}]
[null,"NXM1K1050","Stainless steel housing with sunshield and double heater IN 120/230Vac, 80W",1555.8400000000001,{"$f":"D163-(Содержание!$H$4*D163)","v":1555.8400000000001}]
[null,"NXM2K1000B","Stainless steel housing with sunshield and heater IN 12Vdc/24Vac, 20W",1493.2800000000002,{"$f":"D164-(Содержание!$H$4*D164)","v":1493.2800000000002}]
[null,"NXM36D0000","Stainless steel housing 360mm",904.40000000000009,{"$f":"D165-(Содержание!$H$4*D165)","v":904.40000000000009}]
[null,"NXM36K1000","Stainless steel housing 360mm with sunshield and heater IN 120/230Vac, 40W",990.08,{"$f":"D166-(Содержание!$H$4*D166)","v":990.08}]
[null,"NXM36K1050","Stainless steel housing 360mm with sunshield and double heater IN 120/230Vac, 80W",1037.68,{"$f":"D167-(Содержание!$H$4*D167)","v":1037.68}]
[null,"NXM36K2000","Stainless steel housing 360mm with sunshield and heater IN 12Vdc/24Vac, 20W",990.08,{"$f":"D168-(Содержание!$H$4*D168)","v":990.08}]
[null,"NXPTH210","Stainless steel Pan & Tilt 230Vac, 50/60Hz, with preset, max load 40kg (88lb)",5799.04,{"$f":"D169-(Содержание!$H$4*D169)","v":5799.04}]
[null,"NXPTH211","Stainless steel Pan & Tilt 24Vac, 50/60Hz, with preset, max load 40kg (88lb)",5799.04,{"$f":"D170-(Содержание!$H$4*D170)","v":5799.04}]
[null,"NXPTZ1PVW0000A","NXPTZ in AISI316L, 230Vac, with Day/Night camera 36x PAL, wiper",11292.08,{"$f":"D171-(Содержание!$H$4*D171)","v":11292.08}]
[null,"NXPTZ1PVW0Z00A","NXPTZ in AISI316L, IP version (H.264/AVC),  230Vac, with Day/Night camera 36x, wiper",12025.12,{"$f":"D172-(Содержание!$H$4*D172)","v":12025.12}]
[null,"NXPTZ2NVW0000A","NXPTZ in AISI316L, 24Vac, with Day/Night camera 36x NTSC, wiper",11292.08,{"$f":"D173-(Содержание!$H$4*D173)","v":11292.08}]
[null,"NXPTZ2PVW0000A","NXPTZ in AISI316L, 24Vac, with Day/Night camera 36x PAL, wiper",11292.08,{"$f":"D174-(Содержание!$H$4*D174)","v":11292.08}]
[null,"NXPTZ2PVW0Z00A","NXPTZ in AISI316L, IP version (H.264/AVC), 24Vac, with Day/Night camera 36x PAL, wiper",12025.12,{"$f":"D175-(Содержание!$H$4*D175)","v":12025.12}]
[null,"NXPTZ3NVW0000A","NXPTZ in AISI316L, 120Vac, with Day/Night camera 36x NTSC, wiper",11292.08,{"$f":"D176-(Содержание!$H$4*D176)","v":11292.08}]
[null,"NXPTZ3PVW0Z00A","NXPTZ in AISI316L, IP version (H.264/AVC), 120Vac, with Day/Night camera 36x, wiper",12025.12,{"$f":"D177-(Содержание!$H$4*D177)","v":12025.12}]
[null,"NXPTZCOL","Pole mount adaptor",465.12000000000006,{"$f":"D178-(Содержание!$H$4*D178)","v":465.12000000000006}]
[null,"NXPTZCW","Corner mount adaptor",340,{"$f":"D179-(Содержание!$H$4*D179)","v":340}]
[null,"NXPTZT1PAW0000A","NXPTZT stainless steel positioning unit 230Vac, with Day/Night camera 36x PAL, thermal camera 35mm, 320x256, 7.5-8.3Hz, wiper",23651.760000000002,{"$f":"D180-(Содержание!$H$4*D180)","v":23651.760000000002}]
[null,"NXPTZT1PAW0000AH","NXPTZT stainless steel positioning unit 230Vac, with Day/Night camera 36x PAL, thermal camera 35mm, 320x256, 25Hz, wiper",24110.080000000002,{"$f":"D181-(Содержание!$H$4*D181)","v":24110.080000000002}]
[null,"NXPTZT1PAW0Z00A","NXPTZT in AISI 316L, IP H.264 version, 230Vac, with Day/Night camera 36x,thermal camera 35mm, 320x256, 7.5-8.3Hz, wiper",24384.800000000003,{"$f":"D182-(Содержание!$H$4*D182)","v":24384.800000000003}]
[null,"NXPTZT1PAW0Z00AH","NXPTZT in AISI 316L, IP H.264 version, 230Vac, Day/Night camera 36x,thermal camera 35mm, 320x256, 25Hz, wiper",24843.120000000003,{"$f":"D183-(Содержание!$H$4*D183)","v":24843.120000000003}]
[null,"NXPTZT1PBW0000A","NXPTZT stainless steel positioning unit 230Vac, with Day/Night camera 36x PAL, thermal camera 25mm, 320x256, 7.5-8.3Hz, wiper",23651.760000000002,{"$f":"D184-(Содержание!$H$4*D184)","v":23651.760000000002}]
[null,"NXPTZT1PBW0000AH","NXPTZT stainless steel positioning unit 230Vac, with Day/Night camera 36x PAL, thermal camera 25mm, 320x256, 25Hz, wiper",24110.080000000002,{"$f":"D185-(Содержание!$H$4*D185)","v":24110.080000000002}]
[null,"NXPTZT1PBW0Z00A","NXPTZT in AISI 316L, IP H.264 version, 230Vac, with Day/Night camera 36x,thermal camera 25mm, 320x256, 7.5-8.3Hz, wiper",24384.800000000003,{"$f":"D186-(Содержание!$H$4*D186)","v":24384.800000000003}]
[null,"NXPTZT1PBW0Z00AH","NXPTZT in AISI 316L, IP H.264 version, 230Vac, Day/Night camera 36x,thermal camera 25mm, 320x256, 25Hz, wiper",24843.120000000003,{"$f":"D187-(Содержание!$H$4*D187)","v":24843.120000000003}]
[null,"NXPTZT1PDW0000A","NXPTZT in AISI 316L, 230Vac, Day/Night camera 36x, PAL, thermal camera 35mm, 640x512, 7.5-8.3Hz, wiper",33685.840000000004,{"$f":"D188-(Содержание!$H$4*D188)","v":33685.840000000004}]
[null,"NXPTZT1PDW0000AH","NXPTZT in AISI 316L, 230Vac, Day/Night camera 36x, PAL, thermal camera 35mm, 640x512, 25-30Hz, wiper",34142.800000000003,{"$f":"D189-(Содержание!$H$4*D189)","v":34142.800000000003}]
[null,"NXPTZT1PDW0Z00A","NXPTZT in AISI 316L, IP H.264 version, 230Vac, Day/Night camera 36x, thermal camera 35mm, 640x512, 7.5-8.3Hz, wiper",34417.520000000004,{"$f":"D190-(Содержание!$H$4*D190)","v":34417.520000000004}]
[null,"NXPTZT1PDW0Z00AH","NXPTZT in AISI 316L, IP H.264 version, 230Vac, Day/Night camera 36x, thermal camera 35mm, 640x512, 25-30Hz, wiper",34875.840000000004,{"$f":"D191-(Содержание!$H$4*D191)","v":34875.840000000004}]
[null,"NXPTZT1PEW0000A","NXPTZT in AISI 316L, 230Vac, Day/Night camera 36x, PAL, thermal camera 25mm, 640x512, 7.5-8.3Hz, wiper",33685.840000000004,{"$f":"D192-(Содержание!$H$4*D192)","v":33685.840000000004}]
[null,"NXPTZT1PEW0000AH","NXPTZT in AISI 316L, 230Vac, Day/Night camera 36x, PAL, thermal camera 25mm, 640x512, 25-30Hz, wiper",34142.800000000003,{"$f":"D193-(Содержание!$H$4*D193)","v":34142.800000000003}]
[null,"NXPTZT1PEW0Z00A","NXPTZT in AISI 316L, IP H.264 version, 230Vac, Day/Night camera 36x, thermal camera 25mm, 640x512, 7.5-8.3Hz, wiper",34417.520000000004,{"$f":"D194-(Содержание!$H$4*D194)","v":34417.520000000004}]
[null,"NXPTZT1PEW0Z00AH","NXPTZT in AISI 316L, IP H.264 version, 230Vac, Day/Night camera 36x, thermal camera 25mm, 640x512, 25-30Hz, wiper",34875.840000000004,{"$f":"D195-(Содержание!$H$4*D195)","v":34875.840000000004}]
[null,"NXPTZT2NAW0000A","NXPTZT stainless steel positioning unit 24Vac, with Day/Night camera 36x NTSC, thermal camera 35mm, 320x256, 7.5-8.3Hz, wiper",23651.760000000002,{"$f":"D196-(Содержание!$H$4*D196)","v":23651.760000000002}]
[null,"NXPTZT2NAW0000AH","NXPTZT stainless steel positioning unit 24Vac, with Day/Night camera 36x NTSC, thermal camera 35mm, 320x256, 25Hz, wiper",24110.080000000002,{"$f":"D197-(Содержание!$H$4*D197)","v":24110.080000000002}]
[null,"NXPTZT2NBW0000A","NXPTZT stainless steel positioning unit 24Vac, with Day/Night camera 36x NTSC, thermal camera 25mm, 320x256, 7.5-8.3Hz, wiper",23651.760000000002,{"$f":"D198-(Содержание!$H$4*D198)","v":23651.760000000002}]
[null,"NXPTZT2NBW0000AH","NXPTZT stainless steel positioning unit 24Vac, with Day/Night camera 36x NTSC, thermal camera 25mm, 320x256, 25Hz, wiper",24110.080000000002,{"$f":"D199-(Содержание!$H$4*D199)","v":24110.080000000002}]
[null,"NXPTZT2NDW0000A","NXPTZT in AISI 316L, 24Vac, Day/Night camera 36x, NTSC, thermal camera 35mm, 640x512, 7.5-8.3Hz, wiper",33685.840000000004,{"$f":"D200-(Содержание!$H$4*D200)","v":33685.840000000004}]
[null,"NXPTZT2NDW0000AH","NXPTZT in AISI 316L, 24Vac, Day/Night camera 36x, NTSC, thermal camera 35mm, 640x512, 25-30Hz, wiper",34142.800000000003,{"$f":"D201-(Содержание!$H$4*D201)","v":34142.800000000003}]
[null,"NXPTZT2NEW0000A","NXPTZT in AISI 316L, 24Vac, Day/Night camera 36x, NTSC, thermal camera 25mm, 640x512, 7.5-8.3Hz, wiper",33685.840000000004,{"$f":"D202-(Содержание!$H$4*D202)","v":33685.840000000004}]
[null,"NXPTZT2NEW0000AH","NXPTZT in AISI 316L, 24Vac, Day/Night camera 36x, NTSC, thermal camera 25mm, 640x512, 25-30Hz, wiper",34142.800000000003,{"$f":"D203-(Содержание!$H$4*D203)","v":34142.800000000003}]
[null,"NXPTZT2PAW0000A","NXPTZT stainless steel positioning unit 24Vac, with Day/Night camera 36x PAL, thermal camera 35mm, 320x256, 7.5-8.3Hz, wiper",23651.760000000002,{"$f":"D204-(Содержание!$H$4*D204)","v":23651.760000000002}]
[null,"NXPTZT2PAW0000AH","NXPTZT stainless steel positioning unit 24Vac, with Day/Night camera 36x PAL, thermal camera 35mm, 320x256, 25Hz, wiper",24110.080000000002,{"$f":"D205-(Содержание!$H$4*D205)","v":24110.080000000002}]
[null,"NXPTZT2PAW0Z00A","NXPTZT in AISI 316L, IP H.264 version, 24Vac, Day/Night camera 36x,thermal camera 35mm, 320x256, 7.5-8.3Hz, wiper",24384.800000000003,{"$f":"D206-(Содержание!$H$4*D206)","v":24384.800000000003}]
[null,"NXPTZT2PAW0Z00AH","NXPTZT in AISI 316L, IP H.264 version, 24Vac, with Day/Night camera 36x,thermal camera 35mm, 320x256, 25Hz, wiper",24843.120000000003,{"$f":"D207-(Содержание!$H$4*D207)","v":24843.120000000003}]
[null,"NXPTZT2PBW0000A","NXPTZT stainless steel positioning unit 24Vac, with Day/Night camera 36x PAL, thermal camera 25mm, 320x256, 7.5-8.3Hz, wiper",23651.760000000002,{"$f":"D208-(Содержание!$H$4*D208)","v":23651.760000000002}]
[null,"NXPTZT2PBW0000AH","NXPTZT stainless steel positioning unit 24Vac, with Day/Night camera 36x PAL, thermal camera 25mm, 320x256, 25Hz, wiper",24110.080000000002,{"$f":"D209-(Содержание!$H$4*D209)","v":24110.080000000002}]
[null,"NXPTZT2PBW0Z00A","NXPTZT  in AISI 316L, IP H.264 version, 24Vac, Day/Night camera 36x,thermal camera 25mm, 320x256, 7.5-8.3Hz, wiper",24384.800000000003,{"$f":"D210-(Содержание!$H$4*D210)","v":24384.800000000003}]
[null,"NXPTZT2PBW0Z00AH","NXPTZT in AISI 316L, IP H.264 version, 24Vac, Day/Night camera 36x,thermal camera 25mm, 320x256, 25Hz, wiper",24843.120000000003,{"$f":"D211-(Содержание!$H$4*D211)","v":24843.120000000003}]
[null,"NXPTZT2PDW0000A","NXPTZT in AISI 316L, 24Vac, Day/Night camera 36x, PAL, thermal camera 35mm, 640x512, 7.5-8.3Hz, wiper",33685.840000000004,{"$f":"D212-(Содержание!$H$4*D212)","v":33685.840000000004}]
[null,"NXPTZT2PDW0000AH","NXPTZT in AISI 316L, 24Vac, Day/Night camera 36x, PAL, thermal camera 35mm, 640x512, 25-30Hz, wiper",34142.800000000003,{"$f":"D213-(Содержание!$H$4*D213)","v":34142.800000000003}]
[null,"NXPTZT2PDW0Z00A","NXPTZT in AISI 316L, IP H.264 version, 24Vac, Day/Night camera 36x, thermal camera 35mm, 640x512, 7.5-8.3Hz, wiper",34417.520000000004,{"$f":"D214-(Содержание!$H$4*D214)","v":34417.520000000004}]
[null,"NXPTZT2PDW0Z00AH","NXPTZT in AISI 316L, IP H.264 version, 24Vac, Day/Night camera 36x, thermal camera 35mm, 640x512, 25-30Hz, wiper",34875.840000000004,{"$f":"D215-(Содержание!$H$4*D215)","v":34875.840000000004}]
[null,"NXPTZT2PEW0000A","NXPTZT in AISI 316L, 24Vac, Day/Night camera 36x, PAL, thermal camera 25mm, 640x512, 7.5-8.3Hz, wiper",33685.840000000004,{"$f":"D216-(Содержание!$H$4*D216)","v":33685.840000000004}]
[null,"NXPTZT2PEW0000AH","NXPTZT in AISI 316L, 24Vac, Day/Night camera 36x, PAL, thermal camera 25mm, 640x512, 25-30Hz, wiper",34142.800000000003,{"$f":"D217-(Содержание!$H$4*D217)","v":34142.800000000003}]
[null,"NXPTZT2PEW0Z00A","NXPTZT in AISI 316L, IP H.264 version, 24Vac, Day/Night camera 36x, thermal camera 25mm, 640x512, 7.5-8.3Hz, wiper",34417.520000000004,{"$f":"D218-(Содержание!$H$4*D218)","v":34417.520000000004}]
[null,"NXPTZT2PEW0Z00AH","NXPTZT in AISI 316L, IP H.264 version, 24Vac, Day/Night camera 36x, thermal camera 25mm, 640x512, 25-30Hz, wiper",34875.840000000004,{"$f":"D219-(Содержание!$H$4*D219)","v":34875.840000000004}]
[null,"NXPTZT3NAW0000A","NXPTZT stainless steel positioning unit 120Vac, with Day/Night camera 36x, NTSC,  thermal camera 35mm, 320x256, 7.5-8.3Hz, wiper",23651.760000000002,{"$f":"D220-(Содержание!$H$4*D220)","v":23651.760000000002}]
[null,"NXPTZT3NAW0000AH","NXPTZT stainless steel positioning unit 120Vac,  Day/Night camera 36x, thermal camera 35mm, 320x256, 25Hz, wiper",24110.080000000002,{"$f":"D221-(Содержание!$H$4*D221)","v":24110.080000000002}]
[null,"NXPTZT3NBW0000A","NXPTZT stainless steel positioning unit 120Vac, Day/Night camera 36x, NTSC, thermal camera 25mm, 320x256, 7.5-8.3Hz, wiper",23651.760000000002,{"$f":"D222-(Содержание!$H$4*D222)","v":23651.760000000002}]
[null,"NXPTZT3NBW0000AH","NXPTZT stainless steel positioning unit 120Vac, Day/Night camera 36x, thermal camera 25mm, 320x256, 25Hz, wiper",24110.080000000002,{"$f":"D223-(Содержание!$H$4*D223)","v":24110.080000000002}]
[null,"NXPTZT3NDW0000A","NXPTZT in AISI 316L, 120Vac, Day/Night camera 36x, NTSC, thermal camera 35mm, 640x512, 7.5-8.3Hz, wiper",33685.840000000004,{"$f":"D224-(Содержание!$H$4*D224)","v":33685.840000000004}]
[null,"NXPTZT3NDW0000AH","NXPTZT in AISI 316L, 120Vac, Day/Night camera 36x,, thermal camera 35mm, 640x512, 25-30Hz, wiper",34142.800000000003,{"$f":"D225-(Содержание!$H$4*D225)","v":34142.800000000003}]
[null,"NXPTZT3NEW0000A","NXPTZT in AISI 316L, 120Vac, Day/Night camera 36x,, thermal camera 25mm, 640x512, 7.5-8.3Hz, wiper",33685.840000000004,{"$f":"D226-(Содержание!$H$4*D226)","v":33685.840000000004}]
[null,"NXPTZT3NEW0000AH","NXPTZT in AISI 316L, 120Vac, Day/Night camera 36x,, thermal camera 25mm, 640x512, 25-30Hz, wiper",34142.800000000003,{"$f":"D227-(Содержание!$H$4*D227)","v":34142.800000000003}]
[null,"NXPTZT3PAW0Z00A","NXPTZT in AISI 316L, IP H.264 version, 120Vac, with Day/Night camera 36x,NTSC, thermal camera 35mm, 320x256, 7.5-8.3Hz, wiper",24384.800000000003,{"$f":"D228-(Содержание!$H$4*D228)","v":24384.800000000003}]
[null,"NXPTZT3PAW0Z00AH","NXPTZT in AISI 316L, IP H.264 version, 120Vac,  Day/Night camera 36x,NTSC, thermal camera 35mm, 320x256, 25Hz, wiper",24843.120000000003,{"$f":"D229-(Содержание!$H$4*D229)","v":24843.120000000003}]
[null,"NXPTZT3PBW0Z00A","NXPTZT in AISI 316L, IP H.264 version, 120Vac, Day/Night camera 36x,NTSC, thermal camera 25mm, 320x256, 7.5-8.3Hz, wiper",24384.800000000003,{"$f":"D230-(Содержание!$H$4*D230)","v":24384.800000000003}]
[null,"NXPTZT3PBW0Z00AH","NXPTZT in AISI 316L, IP H.264 version, 120Vac, Day/Night camera 36x,NTSC, thermal camera 25mm, 320x256, 25Hz, wiper",24843.120000000003,{"$f":"D231-(Содержание!$H$4*D231)","v":24843.120000000003}]
[null,"NXPTZT3PDW0Z00A","NXPTZT in AISI 316L, IP H.264 version, 120Vac, Day/Night camera 36x, thermal camera 35mm, 640x512, 7.5-8.3Hz, wiper",34417.520000000004,{"$f":"D232-(Содержание!$H$4*D232)","v":34417.520000000004}]
[null,"NXPTZT3PDW0Z00AH","NXPTZT in AISI 316L, IP H.264 version, 120Vac, Day/Night camera 36x, thermal camera 35mm, 640x512, 25-30Hz, wiper",34875.840000000004,{"$f":"D233-(Содержание!$H$4*D233)","v":34875.840000000004}]
[null,"NXPTZT3PEW0Z00A","NXPTZT in AISI 316L, IP H.264 version, 120Vac, Day/Night camera 36x, thermal camera 25mm, 640x512, 7.5-8.3Hz, wiper",34417.520000000004,{"$f":"D234-(Содержание!$H$4*D234)","v":34417.520000000004}]
[null,"NXPTZT3PEW0Z00AH","NXPTZT in AISI 316L, IP H.264 version, 120Vac, Day/Night camera 36x, thermal camera 25mm, 640x512, 25-30Hz, wiper",34875.840000000004,{"$f":"D235-(Содержание!$H$4*D235)","v":34875.840000000004}]
[null,"NXPTZTW","Bracket for ceiling or parapet mounting",270.64000000000004,{"$f":"D236-(Содержание!$H$4*D236)","v":270.64000000000004}]
[null,"NXPTZWB","Wall bracket",628.32000000000005,{"$f":"D237-(Содержание!$H$4*D237)","v":628.32000000000005}]
[null,"NXW0K1000","Liquid-cooled stainless steel housing with ONXAB2 air barrier, glass not included",2011.44,{"$f":"D238-(Содержание!$H$4*D238)","v":2011.44}]
[null,"NXW0K1025","Liquid-cooled stainless steel housing with ONXAB2 air barrier with IR-proof glass",2827.44,{"$f":"D239-(Содержание!$H$4*D239)","v":2827.44}]
[null,"NXWBL","Stainless steel wall bracket for NXL housing",707.2,{"$f":"D240-(Содержание!$H$4*D240)","v":707.2}]
[null,"NXWBPTH1","Wall mount for heavy duty stainless steel P&T",628.32000000000005,{"$f":"D241-(Содержание!$H$4*D241)","v":628.32000000000005}]
[null,"NXWBS1","Wall bracket for stainless steel housings",361.76000000000005,{"$f":"D242-(Содержание!$H$4*D242)","v":361.76000000000005}]
[null,"OBJA","Ball joint for housing",20.400000000000002,{"$f":"D243-(Содержание!$H$4*D243)","v":20.400000000000002}]
[null,"ODBH18H110","Camera adapter with fan-assisted heater IN 100-240Vac and camera power supply OUT 100-240Vac or 12Vdc, 3A",267.92,{"$f":"D244-(Содержание!$H$4*D244)","v":267.92}]
[null,"ODBH18H114","Camera adapter for SONY SNC-RX-530, SNC-RX-550, SNC-RX-570, SNC-RH124P, SNC-RS44P, SNC-RS46P with fan-assisted heater IN 100-240Vac, camera power supply OUT 12Vdc, 3A",267.92,{"$f":"D245-(Содержание!$H$4*D245)","v":267.92}]
[null,"ODBH18H211","Camera adapter with fan-assisted heater IN 24Vac",267.92,{"$f":"D246-(Содержание!$H$4*D246)","v":267.92}]
[null,"OHEBVF1","Blower kit with thermostat air filter IN 12Vdc, not compatible with WBOVA2 and WBOV3A2",44.88,{"$f":"D247-(Содержание!$H$4*D247)","v":44.88}]
[null,"OHEBVF2","Blower kit with thermostat air filter IN 24Vac, not compatible with WBOVA2 and WBOV3A2",44.88,{"$f":"D248-(Содержание!$H$4*D248)","v":44.88}]
[null,"OHEBVF3","Blower kit with thermostat air filter IN 230Vac, not compatible with WBOVA2 and WBOV3A2",82.960000000000008,{"$f":"D249-(Содержание!$H$4*D249)","v":82.960000000000008}]
[null,"OHEGBB","Weatherproof junction box, IP55",70.72,{"$f":"D250-(Содержание!$H$4*D250)","v":70.72}]
[null,"OHEGBPS1B","Wide range power supply for camera IN 100-240Vac - OUT 12Vdc in weatherproof box",116.96000000000001,{"$f":"D251-(Содержание!$H$4*D251)","v":116.96000000000001}]
[null,"OHEGBPS2B","Camera power supply IN 230Vac - OUT 24Vac in weatherproof box",116.96000000000001,{"$f":"D252-(Содержание!$H$4*D252)","v":116.96000000000001}]
[null,"OHEH01B","Heater IN 12Vdc/24Vac",27.200000000000003,{"$f":"D253-(Содержание!$H$4*D253)","v":27.200000000000003}]
[null,"OHEH02B","Heater IN 120/230Vac",27.200000000000003,{"$f":"D254-(Содержание!$H$4*D254)","v":27.200000000000003}]
[null,"OHEH05B","Heater IN 12Vdc/24Vac",29.92,{"$f":"D255-(Содержание!$H$4*D255)","v":29.92}]
[null,"OHEH06B","Heater IN 120/230Vac",29.92,{"$f":"D256-(Содержание!$H$4*D256)","v":29.92}]
[null,"OHEH24B","Heater IN 120/230Vac",28.560000000000002,{"$f":"D257-(Содержание!$H$4*D257)","v":28.560000000000002}]
[null,"OHEH25B","Heater IN 12Vdc/24Vac",28.560000000000002,{"$f":"D258-(Содержание!$H$4*D258)","v":28.560000000000002}]
[null,"OHEH26","Heater IN 120/230Vac",23.12,{"$f":"D259-(Содержание!$H$4*D259)","v":23.12}]
[null,"OHEH27","Heater IN 12Vdc/24Vac",23.12,{"$f":"D260-(Содержание!$H$4*D260)","v":23.12}]
[null,"OHEPOWINJ","Hi-PoE Power Injector, 1 channel",141.44,{"$f":"D261-(Содержание!$H$4*D261)","v":141.44}]
[null,"OHEPS01B","Wide range power supply for camera IN 100-240Vac - OUT 12Vdc",66.64,{"$f":"D262-(Содержание!$H$4*D262)","v":66.64}]
[null,"OHEPS02B","Camera power supply IN 230Vac - OUT 24Vac",58.480000000000004,{"$f":"D263-(Содержание!$H$4*D263)","v":58.480000000000004}]
[null,"OHEPS05","Camera power supply IN 230Vac - OUT 12Vdc",68,{"$f":"D264-(Содержание!$H$4*D264)","v":68}]
[null,"OHEPS06","Camera power supply IN 230Vac - OUT 24Vac",68,{"$f":"D265-(Содержание!$H$4*D265)","v":68}]
[null,"OHEPS10B","Wide range power supply for camera IN 100-240Vac - OUT 12Vdc",48.96,{"$f":"D266-(Содержание!$H$4*D266)","v":48.96}]
[null,"OHEPS11B","Camera power supply IN 230Vac - OUT 24Vac",48.96,{"$f":"D267-(Содержание!$H$4*D267)","v":48.96}]
[null,"OHEPS19B","Wide range power supply for camera IN 100-240Vac - OUT 12Vdc",46.24,{"$f":"D268-(Содержание!$H$4*D268)","v":46.24}]
[null,"OHEPS20","Camera power supply IN 230Vac - OUT 24Vac",36.720000000000006,{"$f":"D269-(Содержание!$H$4*D269)","v":36.720000000000006}]
[null,"OHEPS22","Wide range power supply for camera IN 100-240Vac - OUT 12Vdc, 1A",61.2,{"$f":"D270-(Содержание!$H$4*D270)","v":61.2}]
[null,"OHEPS23","Camera power supply IN 230Vac - OUT 24Vac, 400mA",61.2,{"$f":"D271-(Содержание!$H$4*D271)","v":61.2}]
[null,"OHEPS24","Camera power supply IN 230Vac - OUT 12Vdc, 400mA",59.84,{"$f":"D272-(Содержание!$H$4*D272)","v":59.84}]
[null,"OHEPS25","Camera power supply IN 230Vac - OUT 24Vac, 400mA",51.680000000000007,{"$f":"D273-(Содержание!$H$4*D273)","v":51.680000000000007}]
[null,"OHOTPS1","Wide range power supply for camera IN 100-240Vac - OUT 12Vdc, 1A",46.24,{"$f":"D274-(Содержание!$H$4*D274)","v":46.24}]
[null,"OHOTPS2","Camera power supply IN 230Vac - OUT 24Vac, 400mA",36.720000000000006,{"$f":"D275-(Содержание!$H$4*D275)","v":36.720000000000006}]
[null,"OHOTS","Sunshield",12.24,{"$f":"D276-(Содержание!$H$4*D276)","v":12.24}]
[null,"OHOVPOEIPM","Kit retrofit for IPM technology on HOV housings",235.28000000000003,{"$f":"D277-(Содержание!$H$4*D277)","v":235.28000000000003}]
[null,"OHOVPS1B","Wide range power supply for camera IN 100-240Vac - OUT 12Vdc",46.24,{"$f":"D278-(Содержание!$H$4*D278)","v":46.24}]
[null,"OHOVPS2B","Camera power supply IN 230Vac - OUT 24Vac",36.720000000000006,{"$f":"D279-(Содержание!$H$4*D279)","v":36.720000000000006}]
[null,"OHOVTA1","Tamper switch on board with tamper proof screws and key",57.120000000000005,{"$f":"D280-(Содержание!$H$4*D280)","v":57.120000000000005}]
[null,"OHOVV1","Heater fan assistant, continuous duty IN 12Vdc",35.36,{"$f":"D281-(Содержание!$H$4*D281)","v":35.36}]
[null,"OHOVV2","Heater fan assistant, continuous duty, IN 24Vac",35.36,{"$f":"D282-(Содержание!$H$4*D282)","v":35.36}]
[null,"OHOVV3","Heater fan assistant, continuous duty, IN 100/240Vac",69.36,{"$f":"D283-(Содержание!$H$4*D283)","v":69.36}]
[null,"OHPVCF3","Blower kit with thermostat and air filter IN 110/240Vac",77.52000000000001,{"$f":"D284-(Содержание!$H$4*D284)","v":77.52000000000001}]
[null,"OHPVPOEIPM","Kit retrofit for IPM technology on VERSO housings",235.28000000000003,{"$f":"D285-(Содержание!$H$4*D285)","v":235.28000000000003}]
[null,"OHPVTA1","Tamper switch with tamper proof screws and key",39.440000000000005,{"$f":"D286-(Содержание!$H$4*D286)","v":39.440000000000005}]
[null,"OHPVV1","Heater fan assistant, continuous duty IN 12Vdc",35.36,{"$f":"D287-(Содержание!$H$4*D287)","v":35.36}]
[null,"OHPVV2","Heater fan assistant, continuous duty IN 24Vac",35.36,{"$f":"D288-(Содержание!$H$4*D288)","v":35.36}]
[null,"OHPVV3","Heater fan assistant, continuous duty IN 100-240Vac",69.36,{"$f":"D289-(Содержание!$H$4*D289)","v":69.36}]
[null,"ONXAB1025B","Air barrier with IR-proof glass",1105.68,{"$f":"D290-(Содержание!$H$4*D290)","v":1105.68}]
[null,"ONXAB2","Air barrier with tempered glass included",499.12000000000006,{"$f":"D291-(Содержание!$H$4*D291)","v":499.12000000000006}]
[null,"ONXLH1","Heater IN 120/230Vac",29.92,{"$f":"D292-(Содержание!$H$4*D292)","v":29.92}]
[null,"ONXLH2","Heater IN 12Vdc/24Vac",29.92,{"$f":"D293-(Содержание!$H$4*D293)","v":29.92}]
[null,"ONXPS1B","Wide range power supply for camera IN 100-240Vac - OUT 12Vdc",55.760000000000005,{"$f":"D294-(Содержание!$H$4*D294)","v":55.760000000000005}]
[null,"ONXPS2B","Camera power supply IN 230Vac - OUT 24Vac",47.6,{"$f":"D295-(Содержание!$H$4*D295)","v":47.6}]
[null,"ONXWQG","Quartz Glass",455.6,{"$f":"D296-(Содержание!$H$4*D296)","v":455.6}]
[null,"ONXWTG","Tempered glass",34,{"$f":"D297-(Содержание!$H$4*D297)","v":34}]
[null,"OSUPPIR","Bracket for mounting 1 GEKO IRH illuminator under an housing",29.92,{"$f":"D298-(Содержание!$H$4*D298)","v":29.92}]
[null,"OUCHWR","Front kit with heated glass for ULISSE COMPACT",463.76000000000005,{"$f":"D299-(Содержание!$H$4*D299)","v":463.76000000000005}]
[null,"OVARK","Kit for ALBERT units rack-mounting",123.76,{"$f":"D300-(Содержание!$H$4*D300)","v":123.76}]
[null,"OWBIP2","Kit special gaskets for IP66 protection for WBOVA2 and WCM4A2 brackets",8.16,{"$f":"D301-(Содержание!$H$4*D301)","v":8.16}]
[null,"OWBIP3","Kit special gaskets for IP66 protection for WBOVA2 and WCM4A2 brackets",8.16,{"$f":"D302-(Содержание!$H$4*D302)","v":8.16}]
[null,"PTAC","Wall bracket for PTH300 P&T",39.440000000000005,{"$f":"D303-(Содержание!$H$4*D303)","v":39.440000000000005}]
[null,"PTCC1","Pole mount adaptor Ø 80 - 150mm (3.14 - 5.9in)",145.52000000000001,{"$f":"D304-(Содержание!$H$4*D304)","v":145.52000000000001}]
[null,"PTH310","Уличное поворотное устройство, max. нагрузка 12 кг, 230 VAC     ",1001,{"$f":"D305-(Содержание!$H$4*D305)","v":1001}]
[null,"PTH310P","Уличное поворотное устройство, max. нагрузка 12 кг, 230 VAC, preset     ",1213,{"$f":"D306-(Содержание!$H$4*D306)","v":1213}]
[null,"PTH311","Уличное поворотное устройство, max. нагрузка 12 кг, 24 VAC     ",977,{"$f":"D307-(Содержание!$H$4*D307)","v":977}]
[null,"PTH311P","Уличное поворотное устройство, max. нагрузка 12 кг, 24 VAC, preset     ",1201,{"$f":"D308-(Содержание!$H$4*D308)","v":1201}]
[null,"PTH355P","Variable speed Pan & Tilt 24Vdc, with preset, max load 12kg (26lb)",1314,{"$f":"D309-(Содержание!$H$4*D309)","v":1314}]
[null,"SM164B","Матрица 16 входов на 4 выхода, версия 19\", функция удаленного управления приемниками DTRX3 и DTMRX с DCBD, DCTEL, DCIR, DCK, DCJ, управление телеметрией по коаксиальному кабелю.",966,{"$f":"D310-(Содержание!$H$4*D310)","v":966}]
[null,"SM328B","Матрица 32 входа на 8 выходов, версия 19\", функция удаленного управления приемниками DTRX3 и DTMRX с DCK и DCJ, каскадируемая до 9 систем",3049,{"$f":"D311-(Содержание!$H$4*D311)","v":3049}]
[null,"SM82A","Video matrix, 8 inputs and 2 outputs",613.36,{"$f":"D312-(Содержание!$H$4*D312)","v":613.36}]
[null,"TWM2","Mini twisted pair video transmitter, IN 12Vdc/24Vac",153.68,{"$f":"D313-(Содержание!$H$4*D313)","v":153.68}]
[null,"TWRB2","Twisted pair video receiver in IP56 box, IN 12Vdc/24Vac",251.60000000000002,{"$f":"D314-(Содержание!$H$4*D314)","v":251.60000000000002}]
[null,"TWRB2A","Twisted pair video receiver in IP56 box, 230Vac",251.60000000000002,{"$f":"D315-(Содержание!$H$4*D315)","v":251.60000000000002}]
[null,"TWRC1","Rack box 19” for max 14 TWRR2 Europe cards and receivers power supply",616.08000000000004,{"$f":"D316-(Содержание!$H$4*D316)","v":616.08000000000004}]
[null,"TWRR2","Twisted pair video receiver on Europe card for rack version, IN 12Vdc/24Vac",251.60000000000002,{"$f":"D317-(Содержание!$H$4*D317)","v":251.60000000000002}]
[null,"TWT2","Twisted pair video transmitter in IP56 box, IN 12Vdc/24Vac",153.68,{"$f":"D318-(Содержание!$H$4*D318)","v":153.68}]
[null,"TWT2A","Twisted pair video transmitter in IP56 box, 230Vac",171.36,{"$f":"D319-(Содержание!$H$4*D319)","v":171.36}]
[null,"UC1BVRA000A","ULISSE COMPACT 230Vac, camera 10x PAL, IR LED illuminator 10°, I/O alarms",4447.5200000000004,{"$f":"D320-(Содержание!$H$4*D320)","v":4447.5200000000004}]
[null,"UC1PVQA000A","ULISSE COMPACT 230Vac, camera 36x PAL, IR LED illuminator 30°, I/O alarms",4998,{"$f":"D321-(Содержание!$H$4*D321)","v":4998}]
[null,"UC1PVQAZ00A","ULISSE COMPACT IP-based (H.264), 230Vac, camera 36x, IR LED illuminator 30°",5731.04,{"$f":"D322-(Содержание!$H$4*D322)","v":5731.04}]
[null,"UC1PVRA000A","ULISSE COMPACT 230Vac, camera 36x PAL, IR LED illuminator 10°, I/O alarms",4998,{"$f":"D323-(Содержание!$H$4*D323)","v":4998}]
[null,"UC1PVRAZ00A","ULISSE COMPACT IP-based (H.264), 230Vac, camera 36x, IR LED illuminator 10°",5731.04,{"$f":"D324-(Содержание!$H$4*D324)","v":5731.04}]
[null,"UC1PVSA000A","ULISSE COMPACT 230Vac, camera 36x PAL, I/O alarms",4264.96,{"$f":"D325-(Содержание!$H$4*D325)","v":4264.96}]
[null,"UC1PVSAZ00A","ULISSE COMPACT IP-based (H.264), 230Vac, camera 36x",4998,{"$f":"D326-(Содержание!$H$4*D326)","v":4998}]
[null,"UC1PVTA000A","ULISSE COMPACT 230Vac, camera 36x PAL, wiper, IR LED illuminator 10°, I/O alarms",5234.6400000000003,{"$f":"D327-(Содержание!$H$4*D327)","v":5234.6400000000003}]
[null,"UC1PVTAZ00A","ULISSE COMPACT IP-based (H.264), 230Vac, camera 36x, wiper, IR LED illuminator 10°",5967.68,{"$f":"D328-(Содержание!$H$4*D328)","v":5967.68}]
[null,"UC1PVUA000A","ULISSE COMPACT 230Vac, camera 36x PAL, wiper, IR LED illuminator 30°, I/O alarms",5234.6400000000003,{"$f":"D329-(Содержание!$H$4*D329)","v":5234.6400000000003}]
[null,"UC1PVUAZ00A","ULISSE COMPACT IP-based (H.264), 230Vac, camera 36x, wiper, IR LED illuminator 30°",5967.68,{"$f":"D330-(Содержание!$H$4*D330)","v":5967.68}]
[null,"UC1PVWA000A","ULISSE COMPACT 230Vac, camera 36x PAL, wiper, I/O alarms",4501.6000000000004,{"$f":"D331-(Содержание!$H$4*D331)","v":4501.6000000000004}]
[null,"UC1PVWAZ00A","ULISSE COMPACT IP-based (H.264), 230Vac, camera 36x, wiper",5234.6400000000003,{"$f":"D332-(Содержание!$H$4*D332)","v":5234.6400000000003}]
[null,"UC1PVZA000A","ULISSE COMPACT 230Vac, Day/night camera 36x PAL, wiper, white light LED illuminator 30°, I/O alarm card",5280.88,{"$f":"D333-(Содержание!$H$4*D333)","v":5280.88}]
[null,"UC1PVZAZ00A","ULISSE COMPACT IP-based (H.264), 230Vac, camera 36x, wiper, white light LED illuminator 30°",6012.56,{"$f":"D334-(Содержание!$H$4*D334)","v":6012.56}]
[null,"UC1QVQA000A","ULISSE COMPACT 230Vac, camera 28x PAL, IR LED illuminator 30°, I/O alarms",4807.6000000000004,{"$f":"D335-(Содержание!$H$4*D335)","v":4807.6000000000004}]
[null,"UC1QVQAZ00A","ULISSE COMPACT IP-based (H.264), 230Vac, camera 28x, IR LED illuminator 30°",5539.2800000000007,{"$f":"D336-(Содержание!$H$4*D336)","v":5539.2800000000007}]
[null,"UC1QVRA000A","ULISSE COMPACT 230Vac, camera 28x PAL, IR LED illuminator 10°, I/O alarms",4807.6000000000004,{"$f":"D337-(Содержание!$H$4*D337)","v":4807.6000000000004}]
[null,"UC1QVRAZ00A","ULISSE COMPACT IP-based (H.264), 230Vac, camera 28x, IR LED illuminator 10°",5539.2800000000007,{"$f":"D338-(Содержание!$H$4*D338)","v":5539.2800000000007}]
[null,"UC1QVTA000A","ULISSE COMPACT 230Vac, camera 28x PAL, wiper, IR LED illuminator 10°, I/O alarms",5044.2400000000007,{"$f":"D339-(Содержание!$H$4*D339)","v":5044.2400000000007}]
[null,"UC1QVTAZ00A","ULISSE COMPACT IP-based (H.264), 230Vac, camera 28x, wiper, IR LED illuminator 10°",5775.92,{"$f":"D340-(Содержание!$H$4*D340)","v":5775.92}]
[null,"UC1QVUA000A","ULISSE COMPACT 230Vac, camera 28x PAL, wiper, IR LED illuminator 30°, I/O alarms",5044.2400000000007,{"$f":"D341-(Содержание!$H$4*D341)","v":5044.2400000000007}]
[null,"UC1QVUAZ00A","ULISSE COMPACT IP-based (H.264), 230Vac, camera 28x, wiper, IR LED illuminator 30°",5775.92,{"$f":"D342-(Содержание!$H$4*D342)","v":5775.92}]
[null,"UC2MVQA000A","ULISSE COMPACT 24Vac, camera 28x NTSC, IR LED illuminator 30°, I/O alarms",4807.6000000000004,{"$f":"D343-(Содержание!$H$4*D343)","v":4807.6000000000004}]
[null,"UC2MVRA000A","ULISSE COMPACT 24Vac, camera 28x NTSC, IR LED illuminator 10°, I/O alarms",4807.6000000000004,{"$f":"D344-(Содержание!$H$4*D344)","v":4807.6000000000004}]
[null,"UC2MVSA000A","ULISSE COMPACT 24Vac, camera 28x NTSC, I/O alarms",4074.5600000000004,{"$f":"D345-(Содержание!$H$4*D345)","v":4074.5600000000004}]
[null,"UC2MVTA000A","ULISSE COMPACT 24Vac, camera 28x NTSC, wiper, IR LED illuminator 10°, I/O alarms",5044.2400000000007,{"$f":"D346-(Содержание!$H$4*D346)","v":5044.2400000000007}]
[null,"UC2MVUA000A","ULISSE COMPACT 24Vac, camera 28x NTSC, wiper, IR LED illuminator 30°, I/O alarms",5044.2400000000007,{"$f":"D347-(Содержание!$H$4*D347)","v":5044.2400000000007}]
[null,"UC2MVWA000A","ULISSE COMPACT 24Vac, camera 28x NTSC, wiper, I/O alarms",4311.2000000000007,{"$f":"D348-(Содержание!$H$4*D348)","v":4311.2000000000007}]
[null,"UC2NVQA000A","ULISSE COMPACT 24Vac, camera 36x NTSC, IR LED illuminator 30°, I/O alarms",4998,{"$f":"D349-(Содержание!$H$4*D349)","v":4998}]
[null,"UC2NVRA000A","ULISSE COMPACT 24Vac, camera 36x NTSC, IR LED illuminator 10°, I/O alarms",4998,{"$f":"D350-(Содержание!$H$4*D350)","v":4998}]
[null,"UC2NVSA000A","ULISSE COMPACT 24Vac, camera 36x NTSC, I/O alarms",4264.96,{"$f":"D351-(Содержание!$H$4*D351)","v":4264.96}]
[null,"UC2NVTA000A","ULISSE COMPACT 24Vac, camera 36x NTSC, wiper, IR LED illuminator 10°, I/O alarms",5234.6400000000003,{"$f":"D352-(Содержание!$H$4*D352)","v":5234.6400000000003}]
[null,"UC2NVUA000A","ULISSE COMPACT 24Vac, camera 36x NTSC, wiper, IR LED illuminator 30°, I/O alarms",5234.6400000000003,{"$f":"D353-(Содержание!$H$4*D353)","v":5234.6400000000003}]
[null,"UC2NVWA000A","ULISSE COMPACT 24Vac, camera 36x NTSC, wiper, I/O alarms",4501.6000000000004,{"$f":"D354-(Содержание!$H$4*D354)","v":4501.6000000000004}]
[null,"UC2NVZA000A","ULISSE COMPACT 24Vac with wiper, Day/Night camera 36x NTSC, white Light LED illuminator 30°, I/O alarm card",5280.88,{"$f":"D355-(Содержание!$H$4*D355)","v":5280.88}]
[null,"UC2PVQA000A","ULISSE COMPACT 24Vac, camera 36x PAL, IR LED illuminator 30°, I/O alarms",4998,{"$f":"D356-(Содержание!$H$4*D356)","v":4998}]
[null,"UC2PVQAZ00A","ULISSE COMPACT IP-based (H.264), 24Vac, camera 36x, IR LED illuminator 30°",5731.04,{"$f":"D357-(Содержание!$H$4*D357)","v":5731.04}]
[null,"UC2PVRA000A","ULISSE COMPACT 24Vac, camera 36x PAL, IR LED illuminator 10°, I/O alarms",4998,{"$f":"D358-(Содержание!$H$4*D358)","v":4998}]
[null,"UC2PVRAZ00A","ULISSE COMPACT IP-based (H.264), 24Vac, camera 36x, IR LED illuminator 10°",5731.04,{"$f":"D359-(Содержание!$H$4*D359)","v":5731.04}]
[null,"UC2PVSA000A","ULISSE COMPACT 24Vac, camera 36x PAL, I/O alarms",4264.96,{"$f":"D360-(Содержание!$H$4*D360)","v":4264.96}]
[null,"UC2PVSAZ00A","ULISSE COMPACT IP-based (H.264), 24Vac, camera 36x",4998,{"$f":"D361-(Содержание!$H$4*D361)","v":4998}]
[null,"UC2PVTA000A","ULISSE COMPACT 24Vac, camera 36x PAL, wiper, IR LED illuminator 10°, I/O alarms",5234.6400000000003,{"$f":"D362-(Содержание!$H$4*D362)","v":5234.6400000000003}]
[null,"UC2PVTAZ00A","ULISSE COMPACT IP-based (H.264), 24Vac, camera 36x, wiper, IR LED illuminator 10°",5967.68,{"$f":"D363-(Содержание!$H$4*D363)","v":5967.68}]
[null,"UC2PVUA000A","ULISSE COMPACT 24Vac, camera 36x PAL, wiper, IR LED illuminator 30°, I/O alarms",5234.6400000000003,{"$f":"D364-(Содержание!$H$4*D364)","v":5234.6400000000003}]
[null,"UC2PVUAZ00A","ULISSE COMPACT IP-based (H.264), 24Vac, camera 36x, wiper, IR LED illuminator 30°",5967.68,{"$f":"D365-(Содержание!$H$4*D365)","v":5967.68}]
[null,"UC2PVWA000A","ULISSE COMPACT 24Vac, camera 36x PAL, wiper, I/O alarms",4501.6000000000004,{"$f":"D366-(Содержание!$H$4*D366)","v":4501.6000000000004}]
[null,"UC2PVWAZ00A","ULISSE COMPACT IP-based (H.264), 24Vac, camera 36x, wiper",5234.6400000000003,{"$f":"D367-(Содержание!$H$4*D367)","v":5234.6400000000003}]
[null,"UC2PVZA000A","ULISSE COMPACT 24Vac, Day/Night camera 36x PAL, wiper, white light LED illuminator 30°, I/O alarms",5280.88,{"$f":"D368-(Содержание!$H$4*D368)","v":5280.88}]
[null,"UC2PVZAZ00A","ULISSE COMPACT IP-based (H.264), 24Vac, camera 36x, wiper, white light LED illuminator 30°",6012.56,{"$f":"D369-(Содержание!$H$4*D369)","v":6012.56}]
[null,"UC2QVQA000A","ULISSE COMPACT 24Vac, camera 28x PAL, IR LED illuminator 30°, I/O alarms",4807.6000000000004,{"$f":"D370-(Содержание!$H$4*D370)","v":4807.6000000000004}]
[null,"UC2QVQAZ00A","ULISSE COMPACT IP-based (H.264), 24Vac, camera 28x, IR LED illuminator 30°",5539.2800000000007,{"$f":"D371-(Содержание!$H$4*D371)","v":5539.2800000000007}]
[null,"UC2QVRA000A","ULISSE COMPACT 24Vac, camera 28x PAL, IR LED illuminator 10°, I/O alarms",4807.6000000000004,{"$f":"D372-(Содержание!$H$4*D372)","v":4807.6000000000004}]
[null,"UC2QVRAZ00A","ULISSE COMPACT IP-based (H.264), 24Vac, camera 28x, IR LED illuminator 10°",5539.2800000000007,{"$f":"D373-(Содержание!$H$4*D373)","v":5539.2800000000007}]
[null,"UC2QVSA000A","ULISSE COMPACT 24Vac, camera 28x PAL, I/O alarms",4074.5600000000004,{"$f":"D374-(Содержание!$H$4*D374)","v":4074.5600000000004}]
[null,"UC2QVSAZ00A","ULISSE COMPACT IP-based (H.264), 24Vac, camera 28x",4807.6000000000004,{"$f":"D375-(Содержание!$H$4*D375)","v":4807.6000000000004}]
[null,"UC2QVTA000A","ULISSE COMPACT 24Vac, camera 28x PAL, wiper, IR LED illuminator 10°, I/O alarms",5044.2400000000007,{"$f":"D376-(Содержание!$H$4*D376)","v":5044.2400000000007}]
[null,"UC2QVTAZ00A","ULISSE COMPACT IP-based (H.264), 24Vac, camera 28x, wiper, IR LED illuminator 10°",5775.92,{"$f":"D377-(Содержание!$H$4*D377)","v":5775.92}]
[null,"UC2QVUA000A","ULISSE COMPACT 24Vac, camera 28x PAL, wiper, IR LED illuminator 30°, I/O alarms",5044.2400000000007,{"$f":"D378-(Содержание!$H$4*D378)","v":5044.2400000000007}]
[null,"UC2QVUAZ00A","ULISSE COMPACT IP-based (H.264), 24Vac, camera 28x, wiper, IR LED illuminator 30°",5775.92,{"$f":"D379-(Содержание!$H$4*D379)","v":5775.92}]
[null,"UC2QVWA000A","ULISSE COMPACT 24Vac, camera 28x PAL, wiper, I/O alarms",4311.2000000000007,{"$f":"D380-(Содержание!$H$4*D380)","v":4311.2000000000007}]
[null,"UC2QVWAZ00A","ULISSE COMPACT IP-based (H.264), 24Vac, camera 28x, wiper",5044.2400000000007,{"$f":"D381-(Содержание!$H$4*D381)","v":5044.2400000000007}]
[null,"UC3MVQA000A","ULISSE COMPACT 120Vac, camera 28x NTSC, IR LED illuminator 30°, I/O alarms",4807.6000000000004,{"$f":"D382-(Содержание!$H$4*D382)","v":4807.6000000000004}]
[null,"UC3MVRA000A","ULISSE COMPACT 120Vac, camera 28x NTSC, IR LED illuminator 10°, I/O alarms",4807.6000000000004,{"$f":"D383-(Содержание!$H$4*D383)","v":4807.6000000000004}]
[null,"UC3MVSA000A","ULISSE COMPACT 120Vac, camera 28x NTSC, I/O alarms",4074.5600000000004,{"$f":"D384-(Содержание!$H$4*D384)","v":4074.5600000000004}]
[null,"UC3MVTA000A","ULISSE COMPACT 120Vac, camera 28x NTSC, wiper, IR LED illuminator 10°, I/O alarms",5044.2400000000007,{"$f":"D385-(Содержание!$H$4*D385)","v":5044.2400000000007}]
[null,"UC3MVUA000A","ULISSE COMPACT 120Vac, camera 28x NTSC, wiper, IR LED illuminator 30°, I/O alarms",5044.2400000000007,{"$f":"D386-(Содержание!$H$4*D386)","v":5044.2400000000007}]
[null,"UC3MVWA000A","ULISSE COMPACT 120Vac, camera 28x NTSC, wiper, I/O alarms",4311.2000000000007,{"$f":"D387-(Содержание!$H$4*D387)","v":4311.2000000000007}]
[null,"UC3NVQA000A","ULISSE COMPACT 120Vac, camera 36x NTSC, IR LED illuminator 30°, I/O alarms",4998,{"$f":"D388-(Содержание!$H$4*D388)","v":4998}]
[null,"UC3NVRA000A","ULISSE COMPACT 120Vac, camera 36x NTSC, IR LED illuminator 10°, I/O alarms",4998,{"$f":"D389-(Содержание!$H$4*D389)","v":4998}]
[null,"UC3NVSA000A","ULISSE COMPACT 120Vac, camera 36x NTSC, I/O alarms",4264.96,{"$f":"D390-(Содержание!$H$4*D390)","v":4264.96}]
[null,"UC3NVTA000A","ULISSE COMPACT 120Vac, camera 36x NTSC, wiper, IR LED illuminator 10°, I/O alarms",5234.6400000000003,{"$f":"D391-(Содержание!$H$4*D391)","v":5234.6400000000003}]
[null,"UC3NVUA000A","ULISSE COMPACT 120Vac, camera 36x NTSC, wiper, IR LED illuminator 30°, I/O alarms",5234.6400000000003,{"$f":"D392-(Содержание!$H$4*D392)","v":5234.6400000000003}]
[null,"UC3NVWA000A","ULISSE COMPACT 120Vac, camera 36x NTSC, wiper, I/O alarms",4501.6000000000004,{"$f":"D393-(Содержание!$H$4*D393)","v":4501.6000000000004}]
[null,"UC3NVZA000A","ULISSE COMPACT 120Vac, Day/night camera 36x NTSC, wiper, white light LED illuminator 30°, I/O alarm card",5280.88,{"$f":"D394-(Содержание!$H$4*D394)","v":5280.88}]
[null,"UC3PVQAZ00A","ULISSE COMPACT IP-based (H.264), IP 120Vac, camera 36x, IR LED illuminator 30°",5731.04,{"$f":"D395-(Содержание!$H$4*D395)","v":5731.04}]
[null,"UC3PVRAZ00A","ULISSE COMPACT IP-based (H.264), 120Vac, camera 36x, IR LED illuminator 10°",5731.04,{"$f":"D396-(Содержание!$H$4*D396)","v":5731.04}]
[null,"UC3PVSAZ00A","ULISSE COMPACT IP-based (H.264), 120Vac, camera 36x",4998,{"$f":"D397-(Содержание!$H$4*D397)","v":4998}]
[null,"UC3PVTAZ00A","ULISSE COMPACT IP-based (H.264), 120Vac, camera 36x, wiper, IR LED illuminator 10°",5967.68,{"$f":"D398-(Содержание!$H$4*D398)","v":5967.68}]
[null,"UC3PVUAZ00A","ULISSE COMPACT IP-based (H.264), 120Vac, camera 36x, wiper, IR LED illuminator 30°",5967.68,{"$f":"D399-(Содержание!$H$4*D399)","v":5967.68}]
[null,"UC3PVWAZ00A","ULISSE COMPACT IP-based (H.264), 120Vac, camera 36x, wiper",5234.6400000000003,{"$f":"D400-(Содержание!$H$4*D400)","v":5234.6400000000003}]
[null,"UC3PVZAZ00A","ULISSE COMPACT IP-based (H.264), 120Vac, camera 36x, wiper, white light LED illuminator 30°",6012.56,{"$f":"D401-(Содержание!$H$4*D401)","v":6012.56}]
[null,"UC3QVQAZ00A","ULISSE COMPACT IP version, H.264, 120Vac, camera 28x, IR LED illuminator 30°",5539.2800000000007,{"$f":"D402-(Содержание!$H$4*D402)","v":5539.2800000000007}]
[null,"UC3QVRAZ00A","ULISSE COMPACT IP-based (H.264), 120Vac, camera 28x, IR LED illuminator 10°",5539.2800000000007,{"$f":"D403-(Содержание!$H$4*D403)","v":5539.2800000000007}]
[null,"UC3QVSAZ00A","ULISSE COMPACT IP-based (H.264), 120Vac, camera 28x",4807.6000000000004,{"$f":"D404-(Содержание!$H$4*D404)","v":4807.6000000000004}]
[null,"UC3QVTAZ00A","ULISSE COMPACT IP-based (H.264), 120Vac, camera 28x, wiper, IR LED illuminator 10°",5775.92,{"$f":"D405-(Содержание!$H$4*D405)","v":5775.92}]
[null,"UC3QVUAZ00A","ULISSE COMPACT IP-based (H.264), 120Vac, camera 28x, wiper, IR LED illuminator 30°",5775.92,{"$f":"D406-(Содержание!$H$4*D406)","v":5775.92}]
[null,"UC3QVWAZ00A","ULISSE COMPACT IP-based (H.264), 120Vac, camera 28x, wiper",5044.2400000000007,{"$f":"D407-(Содержание!$H$4*D407)","v":5044.2400000000007}]
[null,"UCCMA","Ceiling bracket mount for upside down working of ULISSE COMPACT",455.6,{"$f":"D408-(Содержание!$H$4*D408)","v":455.6}]
[null,"UCHD1FNAZ00A","ULISSE COMPACT HD 230Vac, Day/Night camera FullHD 30x, H.264/AVC, IR LED illuminator 10° 940nm, wiper",7295.0400000000009,{"$f":"D409-(Содержание!$H$4*D409)","v":7295.0400000000009}]
[null,"UCHD1FTAZ00A","ULISSE COMPACT HD 230Vac, Day/Night camera FullHD 30x, H.264/AVC, IR LED illuminator 10° 850nm, wiper",7295.0400000000009,{"$f":"D410-(Содержание!$H$4*D410)","v":7295.0400000000009}]
[null,"UCHD1FUAZ00A","ULISSE COMPACT HD 230Vac, Day/Night camera FullHD 30x, H.264/AVC, IR LED illuminator 30° 850nm, wiper",7295.0400000000009,{"$f":"D411-(Содержание!$H$4*D411)","v":7295.0400000000009}]
[null,"UCHD1FWAZ00A","ULISSE COMPACT HD 230Vac, Day/Night camera FullHD 30x, H.264/AVC, wiper",6836.72,{"$f":"D412-(Содержание!$H$4*D412)","v":6836.72}]
[null,"UCHD1FZAZ00A","ULISSE COMPACT HD 230Vac, Day/Night camera FullHD 30x, H.264/AVC, LED illuminator 30° white light, wiper",7295.0400000000009,{"$f":"D413-(Содержание!$H$4*D413)","v":7295.0400000000009}]
[null,"UCHD2FNAZ00A","ULISSE COMPACT HD 24Vac, Day/Night camera FullHD 30x, H.264/AVC, IR LED illuminator 10° 940nm, wiper",7295.0400000000009,{"$f":"D414-(Содержание!$H$4*D414)","v":7295.0400000000009}]
[null,"UCHD2FTAZ00A","ULISSE COMPACT HD 24Vac, Day/Night camera FullHD 30x, H.264/AVC, IR LED illuminator 10° 850nm, wiper",7295.0400000000009,{"$f":"D415-(Содержание!$H$4*D415)","v":7295.0400000000009}]
[null,"UCHD2FUAZ00A","ULISSE COMPACT HD 24Vac, Day/Night camera FullHD 30x, H.264/AVC, IR LED illuminator 30° 850nm, wiper",7295.0400000000009,{"$f":"D416-(Содержание!$H$4*D416)","v":7295.0400000000009}]
[null,"UCHD2FWAZ00A","ULISSE COMPACT HD 24Vac, Day/Night camera FullHD 30x, H.264/AVC, wiper",6836.72,{"$f":"D417-(Содержание!$H$4*D417)","v":6836.72}]
[null,"UCHD2FZAZ00A","ULISSE COMPACT HD 24Vac, Day/Night camera FullHD 30x, H.264/AVC, LED illuminator 30° white light, wiper",7295.0400000000009,{"$f":"D418-(Содержание!$H$4*D418)","v":7295.0400000000009}]
[null,"UCHD3FNAZ00A","ULISSE COMPACT HD 120Vac, Day/Night camera FullHD 30x, H.264/AVC, IR LED illuminator 10° 940nm, wiper",7295.0400000000009,{"$f":"D419-(Содержание!$H$4*D419)","v":7295.0400000000009}]
[null,"UCHD3FTAZ00A","ULISSE COMPACT HD 120Vac, Day/Night camera FullHD 30x, H.264/AVC, IR LED illuminator 10° 850nm, wiper",7295.0400000000009,{"$f":"D420-(Содержание!$H$4*D420)","v":7295.0400000000009}]
[null,"UCHD3FUAZ00A","ULISSE COMPACT HD 120Vac, Day/Night camera FullHD 30x, H.264/AVC, IR LED illuminator 30° 850nm, wiper",7295.0400000000009,{"$f":"D421-(Содержание!$H$4*D421)","v":7295.0400000000009}]
[null,"UCHD3FWAZ00A","ULISSE COMPACT HD 120Vac, Day/Night camera FullHD 30x, H.264/AVC, wiper",6836.72,{"$f":"D422-(Содержание!$H$4*D422)","v":6836.72}]
[null,"UCHD3FZAZ00A","ULISSE COMPACT HD 120Vac, Day/Night camera FullHD 30x, H.264/AVC, LED illuminator 30° white light, wiper",7295.0400000000009,{"$f":"D423-(Содержание!$H$4*D423)","v":7295.0400000000009}]
[null,"UCT1PAWA000A","ULISSE COMPACT THERMAL 230Vac, Day/Night camera 36x PAL, thermal camera 35mm, 320x256, 7.5-8.3Hz, wiper",16480.48,{"$f":"D424-(Содержание!$H$4*D424)","v":16480.48}]
[null,"UCT1PAWA000AH","ULISSE COMPACT THERMAL 230Vac, Day/Night camera 36x PAL, thermal camera 35mm, 320x256, 25-30Hz, wiper",16725.280000000002,{"$f":"D425-(Содержание!$H$4*D425)","v":16725.280000000002}]
[null,"UCT1PBWA000A","ULISSE COMPACT THERMAL 230Vac, Day/Night camera 36x PAL, thermal camera 25mm, 320x256, 7.5-8.3Hz, wiper",16480.48,{"$f":"D426-(Содержание!$H$4*D426)","v":16480.48}]
[null,"UCT1PBWA000AH","ULISSE COMPACT THERMAL 230Vac, Day/Night camera 36x PAL, thermal camera 25mm, 320x256, 25-30Hz, wiper",16725.280000000002,{"$f":"D427-(Содержание!$H$4*D427)","v":16725.280000000002}]
[null,"UCT1PDWA000A","ULISSE COMPACT THERMAL 230Vac, Day/Night camera 36x PAL, thermal camera 35mm, 640x512, 7.5-8.3Hz, wiper",26719.920000000002,{"$f":"D428-(Содержание!$H$4*D428)","v":26719.920000000002}]
[null,"UCT1PDWA000AH","ULISSE COMPACT THERMAL 230Vac, Day/Night camera 36x PAL, thermal camera 35mm, 640x512, 25-30Hz, wiper",27208.160000000003,{"$f":"D429-(Содержание!$H$4*D429)","v":27208.160000000003}]
[null,"UCT1PEWA000A","ULISSE COMPACT THERMAL 230Vac, Day/Night camera 36x PAL, thermal camera 25mm, 640x512, 7.5-8.3Hz, wiper",26719.920000000002,{"$f":"D430-(Содержание!$H$4*D430)","v":26719.920000000002}]
[null,"UCT1PEWA000AH","ULISSE COMPACT THERMAL 230Vac, Day/Night camera 36x PAL, thermal camera 25mm, 640x512, 25-30Hz, wiper",27208.160000000003,{"$f":"D431-(Содержание!$H$4*D431)","v":27208.160000000003}]
[null,"UCT1QAWA000A","ULISSE COMPACT THERMAL 230Vac, Day/Night camera 28x PAL, thermal camera 35mm, 320x256, 7.5-8.3Hz, wiper",16290.080000000002,{"$f":"D432-(Содержание!$H$4*D432)","v":16290.080000000002}]
[null,"UCT1QAWA000AH","ULISSE COMPACT THERMAL 230Vac, Day/Night camera 28x PAL, thermal camera 35mm, 320x256, 25-30Hz, wiper",16533.52,{"$f":"D433-(Содержание!$H$4*D433)","v":16533.52}]
[null,"UCT1QBWA000A","ULISSE COMPACT THERMAL 230Vac, Day/Night camera 28x PAL, thermal camera 25mm, 320x256, 7.5-8.3Hz, wiper",16290.080000000002,{"$f":"D434-(Содержание!$H$4*D434)","v":16290.080000000002}]
[null,"UCT1QBWA000AH","ULISSE COMPACT THERMAL 230Vac, Day/Night camera 28x PAL, thermal camera 25mm, 320x256, 25-30Hz, wiper",16533.52,{"$f":"D435-(Содержание!$H$4*D435)","v":16533.52}]
[null,"UCT1QDWA000A","ULISSE COMPACT THERMAL 230Vac, Day/Night camera 28x PAL, thermal camera 35mm, 640x512, 7.5-8.3Hz, wiper",26528.160000000003,{"$f":"D436-(Содержание!$H$4*D436)","v":26528.160000000003}]
[null,"UCT1QDWA000AH","ULISSE COMPACT THERMAL 230Vac, Day/Night camera 28x PAL, thermal camera 35mm, 640x512, 25-30Hz, wiper",27017.760000000002,{"$f":"D437-(Содержание!$H$4*D437)","v":27017.760000000002}]
[null,"UCT1QEWA000A","ULISSE COMPACT THERMAL 230Vac, Day/Night camera 28x PAL, thermal camera 25mm, 640x512, 7.5-8.3Hz, wiper",26528.160000000003,{"$f":"D438-(Содержание!$H$4*D438)","v":26528.160000000003}]
[null,"UCT1QEWA000AH","ULISSE COMPACT THERMAL 230Vac, Day/Night camera 28x PAL, thermal camera 25mm, 640x512, 25-30Hz, wiper",27017.760000000002,{"$f":"D439-(Содержание!$H$4*D439)","v":27017.760000000002}]
[null,"UCT2MAWA000A","ULISSE COMPACT THERMAL 24Vac, Day/Night camera 28x NTSC, thermal camera 35mm, 320x256, 7.5-8.3Hz, wiper",16290.080000000002,{"$f":"D440-(Содержание!$H$4*D440)","v":16290.080000000002}]
[null,"UCT2MAWA000AH","ULISSE COMPACT THERMAL 24Vac, Day/Night camera 28x NTSC, thermal camera 35mm, 320x256, 25-30Hz, wiper",16533.52,{"$f":"D441-(Содержание!$H$4*D441)","v":16533.52}]
[null,"UCT2MBWA000A","ULISSE COMPACT THERMAL 24Vac, Day/Night camera 28x NTSC, thermal camera 25mm, 320x256, 7.5-8.3Hz, wiper",16290.080000000002,{"$f":"D442-(Содержание!$H$4*D442)","v":16290.080000000002}]
[null,"UCT2MBWA000AH","ULISSE COMPACT THERMAL 24Vac, Day/Night camera 28x NTSC, thermal camera 25mm, 320x256, 25-30Hz, wiper",16533.52,{"$f":"D443-(Содержание!$H$4*D443)","v":16533.52}]
[null,"UCT2MDWA000A","ULISSE COMPACT THERMAL 24Vac, Day/Night camera 28x NTSC, thermal camera 35mm, 640x512, 7.5-8.3Hz, wiper",26528.160000000003,{"$f":"D444-(Содержание!$H$4*D444)","v":26528.160000000003}]
[null,"UCT2MDWA000AH","ULISSE COMPACT THERMAL 24Vac, Day/Night camera 28x NTSC, thermal camera 35mm, 640x512, 25-30Hz, wiper",27017.760000000002,{"$f":"D445-(Содержание!$H$4*D445)","v":27017.760000000002}]
[null,"UCT2MEWA000A","ULISSE COMPACT THERMAL 24Vac, Day/Night camera 28x NTSC, thermal camera 25mm, 640x512, 7.5-8.3Hz, wiper",26528.160000000003,{"$f":"D446-(Содержание!$H$4*D446)","v":26528.160000000003}]
[null,"UCT2MEWA000AH","ULISSE COMPACT THERMAL 24Vac, Day/Night camera 28x NTSC, thermal camera 25mm, 640x512, 25-30Hz, wiper",27017.760000000002,{"$f":"D447-(Содержание!$H$4*D447)","v":27017.760000000002}]
[null,"UCT2NAWA000A","ULISSE COMPACT THERMAL 24Vac, Day/Night camera 36x NTSC, thermal camera 35mm, 320x256, 7.5-8.3Hz, wiper",16480.48,{"$f":"D448-(Содержание!$H$4*D448)","v":16480.48}]
[null,"UCT2NAWA000AH","ULISSE COMPACT THERMAL 24Vac, Day/Night camera 36x NTSC, thermal camera 35mm, 320x256, 25-30Hz, wiper",16725.280000000002,{"$f":"D449-(Содержание!$H$4*D449)","v":16725.280000000002}]
[null,"UCT2NBWA000A","ULISSE COMPACT THERMAL 24Vac, Day/Night camera 36x NTSC, thermal camera 25mm, 320x256, 7.5-8.3Hz, wiper",16480.48,{"$f":"D450-(Содержание!$H$4*D450)","v":16480.48}]
[null,"UCT2NBWA000AH","ULISSE COMPACT THERMAL 24Vac, Day/Night camera 36x NTSC, thermal camera 25mm, 320x256, 25-30Hz, wiper",16725.280000000002,{"$f":"D451-(Содержание!$H$4*D451)","v":16725.280000000002}]
[null,"UCT2NDWA000A","ULISSE COMPACT THERMAL 24Vac, Day/Night camera 36x NTSC, thermal camera 35mm, 640x512, 7.5-8.3Hz, wiper",26719.920000000002,{"$f":"D452-(Содержание!$H$4*D452)","v":26719.920000000002}]
[null,"UCT2NDWA000AH","ULISSE COMPACT THERMAL 24Vac, Day/Night camera 36x NTSC, thermal camera 35mm, 640x512, 25-30Hz, wiper",27208.160000000003,{"$f":"D453-(Содержание!$H$4*D453)","v":27208.160000000003}]
[null,"UCT2NEWA000A","ULISSE COMPACT THERMAL 24Vac, Day/Night camera 36x NTSC, thermal camera 25mm, 640x512, 7.5-8.3Hz, wiper",26719.920000000002,{"$f":"D454-(Содержание!$H$4*D454)","v":26719.920000000002}]
[null,"UCT2NEWA000AH","ULISSE COMPACT THERMAL 24Vac, Day/Night camera 36x NTSC, thermal camera 25mm, 640x512, 25-30Hz, wiper",27208.160000000003,{"$f":"D455-(Содержание!$H$4*D455)","v":27208.160000000003}]
[null,"UCT2PAWA000A","ULISSE COMPACT THERMAL 24Vac, Day/Night camera 36x PAL, thermal camera 35mm, 320x256, 7.5-8.3Hz, wiper",16480.48,{"$f":"D456-(Содержание!$H$4*D456)","v":16480.48}]
[null,"UCT2PAWA000AH","ULISSE COMPACT THERMAL 24Vac, Day/Night camera 36x PAL, thermal camera 35mm, 320x256, 25-30Hz, wiper",16725.280000000002,{"$f":"D457-(Содержание!$H$4*D457)","v":16725.280000000002}]
[null,"UCT2PBWA000A","ULISSE COMPACT THERMAL 24Vac, Day/Night camera 36x PAL, thermal camera 25mm, 320x256, 7.5-8.3Hz, wiper",16480.48,{"$f":"D458-(Содержание!$H$4*D458)","v":16480.48}]
[null,"UCT2PBWA000AH","ULISSE COMPACT THERMAL 24Vac, Day/Night camera 36x PAL, thermal camera 25mm, 320x256, 25-30Hz, wiper",16725.280000000002,{"$f":"D459-(Содержание!$H$4*D459)","v":16725.280000000002}]
[null,"UCT2PDWA000A","ULISSE COMPACT THERMAL 24Vac, Day/Night camera 36x PAL, thermal camera 35mm, 640x512, 7.5-8.3Hz, wiper",26719.920000000002,{"$f":"D460-(Содержание!$H$4*D460)","v":26719.920000000002}]
[null,"UCT2PDWA000AH","ULISSE COMPACT THERMAL 24Vac, Day/Night camera 36x PAL, thermal camera 35mm, 640x512, 25-30Hz, wiper",27208.160000000003,{"$f":"D461-(Содержание!$H$4*D461)","v":27208.160000000003}]
[null,"UCT2PEWA000A","ULISSE COMPACT THERMAL 24Vac, Day/Night camera 36x PAL, thermal camera 25mm, 640x512, 7.5-8.3Hz, wiper",26719.920000000002,{"$f":"D462-(Содержание!$H$4*D462)","v":26719.920000000002}]
[null,"UCT2PEWA000AH","ULISSE COMPACT THERMAL 24Vac, Day/Night camera 36x PAL, thermal camera 25mm, 640x512, 25-30Hz, wiper",27208.160000000003,{"$f":"D463-(Содержание!$H$4*D463)","v":27208.160000000003}]
[null,"UCT2QAWA000A","ULISSE COMPACT THERMAL 24Vac, Day/Night camera 28x PAL, thermal camera 35mm, 320x256, 7.5-8.3Hz, wiper",16290.080000000002,{"$f":"D464-(Содержание!$H$4*D464)","v":16290.080000000002}]
[null,"UCT2QAWA000AH","ULISSE COMPACT THERMAL 24Vac, Day/Night camera 28x PAL, thermal camera 35mm, 320x256, 25-30Hz, wiper",16533.52,{"$f":"D465-(Содержание!$H$4*D465)","v":16533.52}]
[null,"UCT2QBWA000A","ULISSE COMPACT THERMAL 24Vac, Day/Night camera 28x PAL, thermal camera 25mm, 320x256, 7.5-8.3Hz, wiper",16290.080000000002,{"$f":"D466-(Содержание!$H$4*D466)","v":16290.080000000002}]
[null,"UCT2QBWA000AH","ULISSE COMPACT THERMAL 24Vac, Day/Night camera 28x PAL, thermal camera 25mm, 320x256, 25-30Hz, wiper",16533.52,{"$f":"D467-(Содержание!$H$4*D467)","v":16533.52}]
[null,"UCT2QDWA000A","ULISSE COMPACT THERMAL 24Vac, Day/Night camera 28x PAL, thermal camera 35mm, 640x512, 7.5-8.3Hz, wiper",26528.160000000003,{"$f":"D468-(Содержание!$H$4*D468)","v":26528.160000000003}]
[null,"UCT2QDWA000AH","ULISSE COMPACT THERMAL 24Vac, Day/Night camera 28x PAL, thermal camera 35mm, 640x512, 25-30Hz, wiper",27017.760000000002,{"$f":"D469-(Содержание!$H$4*D469)","v":27017.760000000002}]
[null,"UCT2QEWA000A","ULISSE COMPACT THERMAL 24Vac, Day/Night camera 28x PAL, thermal camera 25mm, 640x512, 7.5-8.3Hz, wiper",26528.160000000003,{"$f":"D470-(Содержание!$H$4*D470)","v":26528.160000000003}]
[null,"UCT2QEWA000AH","ULISSE COMPACT THERMAL 24Vac, Day/Night camera 28x PAL, thermal camera 25mm, 640x512, 25-30Hz, wiper",27017.760000000002,{"$f":"D471-(Содержание!$H$4*D471)","v":27017.760000000002}]
[null,"UCT3MAWA000A","ULISSE COMPACT THERMAL 120Vac, Day/Night camera 28x NTSC, thermal camera 35mm, 320x256, 7.5-8.3Hz, wiper",16290.080000000002,{"$f":"D472-(Содержание!$H$4*D472)","v":16290.080000000002}]
[null,"UCT3MAWA000AH","ULISSE COMPACT THERMAL 120Vac, Day/Night camera 28x NTSC, thermal camera 35mm, 320x256, 25-30Hz, wiper",16533.52,{"$f":"D473-(Содержание!$H$4*D473)","v":16533.52}]
[null,"UCT3MBWA000A","ULISSE COMPACT THERMAL 120Vac, Day/Night camera 28x NTSC, thermal camera 25mm, 320x256, 7.5-8.3Hz, wiper",16290.080000000002,{"$f":"D474-(Содержание!$H$4*D474)","v":16290.080000000002}]
[null,"UCT3MBWA000AH","ULISSE COMPACT THERMAL 120Vac, Day/Night camera 28x NTSC, thermal camera 25mm, 320x256, 25-30Hz, wiper",16533.52,{"$f":"D475-(Содержание!$H$4*D475)","v":16533.52}]
[null,"UCT3MDWA000A","ULISSE COMPACT THERMAL 120Vac, Day/Night camera 28x NTSC, thermal camera 35mm, 640x512, 7.5-8.3Hz, wiper",26528.160000000003,{"$f":"D476-(Содержание!$H$4*D476)","v":26528.160000000003}]
[null,"UCT3MDWA000AH","ULISSE COMPACT THERMAL 120Vac, Day/Night camera 28x NTSC, thermal camera 35mm, 640x512, 25-30Hz, wiper",27017.760000000002,{"$f":"D477-(Содержание!$H$4*D477)","v":27017.760000000002}]
[null,"UCT3MEWA000A","ULISSE COMPACT THERMAL 120Vac, Day/Night camera 28x NTSC, thermal camera 25mm, 640x512, 7.5-8.3Hz, wiper",26528.160000000003,{"$f":"D478-(Содержание!$H$4*D478)","v":26528.160000000003}]
[null,"UCT3MEWA000AH","ULISSE COMPACT THERMAL 120Vac, Day/Night camera 28x NTSC, thermal camera 25mm, 640x512, 25-30Hz, wiper",27017.760000000002,{"$f":"D479-(Содержание!$H$4*D479)","v":27017.760000000002}]
[null,"UCT3NAWA000A","ULISSE COMPACT THERMAL 120Vac, Day/Night camera 36x NTSC, thermal camera 35mm, 320x256, 7.5-8.3Hz, wiper",16480.48,{"$f":"D480-(Содержание!$H$4*D480)","v":16480.48}]
[null,"UCT3NAWA000AH","ULISSE COMPACT THERMAL 120Vac, Day/Night camera 36x NTSC, thermal camera 35mm, 320x256, 25-30Hz, wiper",16725.280000000002,{"$f":"D481-(Содержание!$H$4*D481)","v":16725.280000000002}]
[null,"UCT3NBWA000A","ULISSE COMPACT THERMAL 120Vac, Day/Night camera 36x NTSC, thermal camera 25mm, 320x256, 7.5-8.3Hz, wiper",16480.48,{"$f":"D482-(Содержание!$H$4*D482)","v":16480.48}]
[null,"UCT3NBWA000AH","ULISSE COMPACT THERMAL 120Vac, Day/Night camera 36x NTSC, thermal camera 25mm, 320x256, 25-30Hz, wiper",16725.280000000002,{"$f":"D483-(Содержание!$H$4*D483)","v":16725.280000000002}]
[null,"UCT3NDWA000A","ULISSE COMPACT THERMAL 120Vac, Day/Night camera 36x NTSC, thermal camera 35mm, 640x512, 7.5-8.3Hz, wiper",26719.920000000002,{"$f":"D484-(Содержание!$H$4*D484)","v":26719.920000000002}]
[null,"UCT3NDWA000AH","ULISSE COMPACT THERMAL 120Vac, Day/Night camera 36x NTSC, thermal camera 35mm, 640x512, 25-30Hz, wiper",27208.160000000003,{"$f":"D485-(Содержание!$H$4*D485)","v":27208.160000000003}]
[null,"UCT3NEWA000A","ULISSE COMPACT THERMAL 120Vac, Day/Night camera 36x NTSC, thermal camera 25mm, 640x512, 7.5-8.3Hz, wiper",26719.920000000002,{"$f":"D486-(Содержание!$H$4*D486)","v":26719.920000000002}]
[null,"UCT3NEWA000AH","ULISSE COMPACT THERMAL 120Vac, Day/Night camera 36x NTSC, thermal camera 25mm, 640x512, 25-30Hz, wiper",27208.160000000003,{"$f":"D487-(Содержание!$H$4*D487)","v":27208.160000000003}]
[null,"UPK1QAWAN00A","ULISSE RADICAL PTZ, 230Vac, camera 18x, wiper",18170.88,{"$f":"D488-(Содержание!$H$4*D488)","v":18170.88}]
[null,"UPK1QEWAN00A","ULISSE RADICAL PTZ, 230Vac, camera 33x, with Thermal Compensation and Visible Cut Filter, wiper",34699.840000000004,{"$f":"D489-(Содержание!$H$4*D489)","v":34699.840000000004}]
[null,"UPK2QAJAN00A","ULISSE RADICAL PTZ, 24Vac, camera 18x, wiper, bracket for illuminators",18170.88,{"$f":"D490-(Содержание!$H$4*D490)","v":18170.88}]
[null,"UPK2QEJAN00A","ULISSE RADICAL PTZ, 24Vac, camera 33x, with Thermal Compensation and Visible Cut Filter, wiper, bracket for illuminators",34699.840000000004,{"$f":"D491-(Содержание!$H$4*D491)","v":34699.840000000004}]
[null,"UPK3QAWAN00A","ULISSE RADICAL PTZ, 120Vac, camera 18x, wiper",18170.88,{"$f":"D492-(Содержание!$H$4*D492)","v":18170.88}]
[null,"UPK3QEWAN00A","ULISSE RADICAL PTZ, 120Vac, camera 33x, with Thermal Compensation and Visible Cut Filter, wiper",34699.840000000004,{"$f":"D493-(Содержание!$H$4*D493)","v":34699.840000000004}]
[null,"UPKT1AFSA000A","ULISSE RADICAL THERMAL PTZ 230Vac, thermal camera optical zoom 3x (digital zoom 8x), 640X512, 7.5-8.3Hz",39533.760000000002,{"$f":"D494-(Содержание!$H$4*D494)","v":39533.760000000002}]
[null,"UPKT1AFSA000AH","ULISSE RADICAL THERMAL PTZ 230Vac, thermal camera optical zoom 3x (digital zoom 8x), 640X512, 25-30Hz",39533.760000000002,{"$f":"D495-(Содержание!$H$4*D495)","v":39533.760000000002}]
[null,"UPKT1AFSAN00A","ULISSE RADICAL THERMAL PTZ Full IP, H.264, Onvif-S, 230Vac, thermal camera optical zoom 3x (digital zoom 8x), 640X512, 7.5-8.3Hz",40447.68,{"$f":"D496-(Содержание!$H$4*D496)","v":40447.68}]
[null,"UPKT1AFSAN00AH","ULISSE RADICAL THERMAL PTZ Full IP, H.264, Onvif-S, 230Vac, thermal camera optical zoom 3x (digital zoom 8x), 640X512, 25-30Hz",40447.68,{"$f":"D497-(Содержание!$H$4*D497)","v":40447.68}]
[null,"UPKT1BFSA000A","ULISSE RADICAL THERMAL PTZ 230Vac, thermal camera optical zoom 3x (digital zoom 4x), 336X256, 7.5-8.3Hz",31931.200000000004,{"$f":"D498-(Содержание!$H$4*D498)","v":31931.200000000004}]
[null,"UPKT1BFSA000AH","ULISSE RADICAL THERMAL PTZ 230Vac, thermal camera optical zoom 3x (digital zoom 4x), 336X256, 25-30Hz",31931.200000000004,{"$f":"D499-(Содержание!$H$4*D499)","v":31931.200000000004}]
[null,"UPKT1BFSAN00A","ULISSE RADICAL THERMAL PTZ Full IP, H.264, Onvif-S, 230Vac, thermal camera optical zoom 3x (digital zoom 4x), 336X256, 7.5-8.3Hz",32845.120000000003,{"$f":"D500-(Содержание!$H$4*D500)","v":32845.120000000003}]
[null,"UPKT1BFSAN00AH","ULISSE RADICAL THERMAL PTZ Full IP, H.264, Onvif-S, 230Vac, thermal camera optical zoom 3x (digital zoom 4x), 336X256, 25-30Hz",32845.120000000003,{"$f":"D501-(Содержание!$H$4*D501)","v":32845.120000000003}]
[null,"UPKT2AFSA000A","ULISSE RADICAL THERMAL PTZ 24Vac, thermal camera optical zoom 3x (digital zoom 8x), 640X512, 7.5-8.3Hz",39533.760000000002,{"$f":"D502-(Содержание!$H$4*D502)","v":39533.760000000002}]
[null,"UPKT2AFSA000AH","ULISSE RADICAL THERMAL PTZ 24Vac, thermal camera optical zoom 3x (digital zoom 8x), 640X512, 25-30Hz",39533.760000000002,{"$f":"D503-(Содержание!$H$4*D503)","v":39533.760000000002}]
[null,"UPKT2AFSAN00A","ULISSE RADICAL THERMAL PTZ Full IP, H.264, Onvif-S, 24Vac, thermal camera optical zoom 3x (digital zoom 8x), 640X512, 7.5-8.3Hz",40447.68,{"$f":"D504-(Содержание!$H$4*D504)","v":40447.68}]
[null,"UPKT2AFSAN00AH","ULISSE RADICAL THERMAL PTZ Full IP, H.264, Onvif-S, 24Vac, thermal camera optical zoom 3x (digital zoom 8x), 640X512, 25-30Hz",40447.68,{"$f":"D505-(Содержание!$H$4*D505)","v":40447.68}]
[null,"UPKT2BFSA000A","ULISSE RADICAL THERMAL PTZ 24Vac, thermal camera optical zoom 3x (digital zoom 4x), 336X256, 7.5-8.3Hz",31931.200000000004,{"$f":"D506-(Содержание!$H$4*D506)","v":31931.200000000004}]
[null,"UPKT2BFSA000AH","ULISSE RADICAL THERMAL PTZ 24Vac, thermal camera optical zoom 3x (digital zoom 4x), 336X256, 25-30Hz",31931.200000000004,{"$f":"D507-(Содержание!$H$4*D507)","v":31931.200000000004}]
[null,"UPKT2BFSAN00A","ULISSE RADICAL THERMAL PTZ Full IP, H.264, Onvif-S, 24Vac, thermal camera optical zoom 3x (digital zoom 4x), 336X256, 7.5-8.3Hz",32845.120000000003,{"$f":"D508-(Содержание!$H$4*D508)","v":32845.120000000003}]
[null,"UPKT2BFSAN00AH","ULISSE RADICAL THERMAL PTZ Full IP, H.264, Onvif-S, 24Vac, thermal camera optical zoom 3x (digital zoom 4x), 336X256, 25-30Hz",32845.120000000003,{"$f":"D509-(Содержание!$H$4*D509)","v":32845.120000000003}]
[null,"UPKT3AFSA000A","ULISSE RADICAL THERMAL PTZ 120Vac,  thermal camera optical zoom 3x (digital zoom 8x), 640X512, 7.5-8.3Hz",39533.760000000002,{"$f":"D510-(Содержание!$H$4*D510)","v":39533.760000000002}]
[null,"UPKT3AFSA000AH","ULISSE RADICAL THERMAL PTZ 120Vac,  thermal camera optical zoom 3x (digital zoom 8x), 640X512, 25-30Hz",39533.760000000002,{"$f":"D511-(Содержание!$H$4*D511)","v":39533.760000000002}]
[null,"UPKT3AFSAN00A","ULISSE RADICAL THERMAL PTZ Full IP, H.264, Onvif-S, 120Vac,  thermal camera optical zoom 3x (digital zoom 8x), 640X512, 7.5-8.3Hz",40447.68,{"$f":"D512-(Содержание!$H$4*D512)","v":40447.68}]
[null,"UPKT3AFSAN00AH","ULISSE RADICAL THERMAL PTZ Full IP, H.264, Onvif-S, 120Vac,  thermal camera optical zoom 3x (digital zoom 8x), 640X512, 25-30Hz",40447.68,{"$f":"D513-(Содержание!$H$4*D513)","v":40447.68}]
[null,"UPKT3BFSA000A","ULISSE RADICAL THERMAL PTZ 120Vac,  thermal camera optical zoom 3x (digital zoom 4x), 336X256, 7.5-8.3Hz",31931.200000000004,{"$f":"D514-(Содержание!$H$4*D514)","v":31931.200000000004}]
[null,"UPKT3BFSA000AH","ULISSE RADICAL THERMAL PTZ 120Vac,  thermal camera optical zoom 3x (digital zoom 4x), 336X256, 25-30Hz",31931.200000000004,{"$f":"D515-(Содержание!$H$4*D515)","v":31931.200000000004}]
[null,"UPKT3BFSAN00A","ULISSE RADICAL THERMAL PTZ Full IP, H.264, Onvif-S, 120Vac,  thermal camera optical zoom 3x (digital zoom 4x), 336X256, 7.5-8.3Hz",32845.120000000003,{"$f":"D516-(Содержание!$H$4*D516)","v":32845.120000000003}]
[null,"UPKT3BFSAN00AH","ULISSE RADICAL THERMAL PTZ Full IP, H.264, Onvif-S, 120Vac,  thermal camera optical zoom 3x (digital zoom 4x), 336X256, 25-30Hz",32845.120000000003,{"$f":"D517-(Содержание!$H$4*D517)","v":32845.120000000003}]
[null,"UPT1PVSA000E","ULISSE 230Vac, 36x Day/Night camera, PAL",5722.88,{"$f":"D518-(Содержание!$H$4*D518)","v":5722.88}]
[null,"UPT1PVWA000E","ULISSE 230Vac, 36x Day/Night camera, PAL, wiper",6196.1600000000008,{"$f":"D519-(Содержание!$H$4*D519)","v":6196.1600000000008}]
[null,"UPT1SLGA000E","ULISSE MAXI for analog thermal camera, 230Vac, wiper",12299.84,{"$f":"D520-(Содержание!$H$4*D520)","v":12299.84}]
[null,"UPT1SLGAN00E","ULISSE MAXI for thermal network camera 230Vac, wiper",12986.640000000001,{"$f":"D521-(Содержание!$H$4*D521)","v":12986.640000000001}]
[null,"UPT1SLWA000E","ULISSE MAXI for analog camera, 230Vac, wiper",7935.6,{"$f":"D522-(Содержание!$H$4*D522)","v":7935.6}]
[null,"UPT1SLWAN00E","ULISSE MAXI for network camera 230Vac, wiper",8622.4000000000015,{"$f":"D523-(Содержание!$H$4*D523)","v":8622.4000000000015}]
[null,"UPT1SMWA000E","ULISSE PLUS for analog camera, 230Vac, wiper",5951.3600000000006,{"$f":"D524-(Содержание!$H$4*D524)","v":5951.3600000000006}]
[null,"UPT1SMWAN00E","ULISSE PLUS for network camera 230Vac, wiper",6638.1600000000008,{"$f":"D525-(Содержание!$H$4*D525)","v":6638.1600000000008}]
[null,"UPT1SVGA000E","ULISSE for thermal analog camera 230Vac",6249.2000000000007,{"$f":"D526-(Содержание!$H$4*D526)","v":6249.2000000000007}]
[null,"UPT1SVGAN00E","ULISSE for thermal network camera 230Vac",6936.0000000000009,{"$f":"D527-(Содержание!$H$4*D527)","v":6936.0000000000009}]
[null,"UPT1SVSA000E","ULISSE for analog camera 230Vac",3892.32,{"$f":"D528-(Содержание!$H$4*D528)","v":3892.32}]
[null,"UPT1SVSAN00E","ULISSE for network camera 230Vac",4577.76,{"$f":"D529-(Содержание!$H$4*D529)","v":4577.76}]
[null,"UPT1SVWA000E","ULISSE for analog camera 230Vac, wiper",4364.2400000000007,{"$f":"D530-(Содержание!$H$4*D530)","v":4364.2400000000007}]
[null,"UPT1SVWAN00E","ULISSE for network camera 230Vac, wiper",5051.04,{"$f":"D531-(Содержание!$H$4*D531)","v":5051.04}]
[null,"UPT2MVJA000E","ULISSE 24Vac, 28x Day/Night camera, NTSC, wiper, bracket for LED illuminators",6310.4000000000005,{"$f":"D532-(Содержание!$H$4*D532)","v":6310.4000000000005}]
[null,"UPT2MVKA000E","ULISSE 24Vac, 28x Day/Night camera, NTSC, bracket for LED illuminators",5837.1200000000008,{"$f":"D533-(Содержание!$H$4*D533)","v":5837.1200000000008}]
[null,"UPT2NVJA000E","ULISSE 24Vac, 36x day/night camera, NTSC, wiper, bracket for LED illuminators",6500.8,{"$f":"D534-(Содержание!$H$4*D534)","v":6500.8}]
[null,"UPT2NVKA000E","ULISSE 24Vac, 36x Day/Night camera, NTSC, bracket for LED illuminators",6027.52,{"$f":"D535-(Содержание!$H$4*D535)","v":6027.52}]
[null,"UPT2NVSA000E","ULISSE 24Vac, 36x Day/Night camera, NTSC",5722.88,{"$f":"D536-(Содержание!$H$4*D536)","v":5722.88}]
[null,"UPT2NVWA000E","ULISSE 24Vac, 36x Day/Night camera, NTSC, wiper",6196.1600000000008,{"$f":"D537-(Содержание!$H$4*D537)","v":6196.1600000000008}]
[null,"UPT2PVJA000E","ULISSE 24Vac, 36x Day/Night camera, PAL, wiper, bracket for LED illuminators",6500.8,{"$f":"D538-(Содержание!$H$4*D538)","v":6500.8}]
[null,"UPT2PVKA000E","ULISSE 24Vac, 36x Day/Night camera, PAL, bracket for LED illuminators",6027.52,{"$f":"D539-(Содержание!$H$4*D539)","v":6027.52}]
[null,"UPT2PVSA000E","ULISSE 24Vac, 36x Day/Night camera, PAL",5722.88,{"$f":"D540-(Содержание!$H$4*D540)","v":5722.88}]
[null,"UPT2PVWA000E","ULISSE 24Vac, 36x Day/Night camera, PAL, wiper",6196.1600000000008,{"$f":"D541-(Содержание!$H$4*D541)","v":6196.1600000000008}]
[null,"UPT2QVJA000E","ULISSE 24Vac, 28x Day/Night camera, PAL, wiper, bracket for LED illuminators",6310.4000000000005,{"$f":"D542-(Содержание!$H$4*D542)","v":6310.4000000000005}]
[null,"UPT2QVKA000E","ULISSE 24Vac, 28x Day/Night camera, PAL, bracket for LED illuminators",5837.1200000000008,{"$f":"D543-(Содержание!$H$4*D543)","v":5837.1200000000008}]
[null,"UPT2SLGA000E","ULISSE MAXI for analog thermal camera, 24Vac, wiper",12299.84,{"$f":"D544-(Содержание!$H$4*D544)","v":12299.84}]
[null,"UPT2SLGAN00E","ULISSE MAXI for network thermal camera, 24Vac, wiper",12986.640000000001,{"$f":"D545-(Содержание!$H$4*D545)","v":12986.640000000001}]
[null,"UPT2SLJA000E","ULISSE MAXI for analog camera, 24Vac, wiper, bracket for LED illuminators",7935.6,{"$f":"D546-(Содержание!$H$4*D546)","v":7935.6}]
[null,"UPT2SLJAN00E","ULISSE MAXI for network camera, 24Vac, wiper, bracket for LED illuminators",8622.4000000000015,{"$f":"D547-(Содержание!$H$4*D547)","v":8622.4000000000015}]
[null,"UPT2SMJA000E","ULISSE PLUS for analog camera, 24Vac, wiper, bracket for LED illuminators",6363.4400000000005,{"$f":"D548-(Содержание!$H$4*D548)","v":6363.4400000000005}]
[null,"UPT2SMJAN00E","ULISSE PLUS for network camera 24Vac, wiper, bracket for LED illuminators",7050.2400000000007,{"$f":"D549-(Содержание!$H$4*D549)","v":7050.2400000000007}]
[null,"UPT2SMWA000E","ULISSE PLUS for analog camera, 24Vac, wiper",5951.3600000000006,{"$f":"D550-(Содержание!$H$4*D550)","v":5951.3600000000006}]
[null,"UPT2SMWAN00E","ULISSE PLUS for network camera 24Vac, wiper",6638.1600000000008,{"$f":"D551-(Содержание!$H$4*D551)","v":6638.1600000000008}]
[null,"UPT2SVGA000E","ULISSE for analog thermal camera, 24Vac",6249.2000000000007,{"$f":"D552-(Содержание!$H$4*D552)","v":6249.2000000000007}]
[null,"UPT2SVGAN00E","ULISSE for thermal network camera, 24Vac",6936.0000000000009,{"$f":"D553-(Содержание!$H$4*D553)","v":6936.0000000000009}]
[null,"UPT2SVJA000E","ULISSE for analog camera, 24Vac, wiper, bracket for LED illuminators",4670.2400000000007,{"$f":"D554-(Содержание!$H$4*D554)","v":4670.2400000000007}]
[null,"UPT2SVJAN00E","ULISSE for network camera, 24Vac, wiper, bracket for LED illuminators",5463.1200000000008,{"$f":"D555-(Содержание!$H$4*D555)","v":5463.1200000000008}]
[null,"UPT2SVKA000E","ULISSE for analog camera, 24Vac, bracket for LED illuminators",4196.96,{"$f":"D556-(Содержание!$H$4*D556)","v":4196.96}]
[null,"UPT2SVKAN00E","ULISSE for network camera, 24Vac, bracket for LED illuminators",4989.84,{"$f":"D557-(Содержание!$H$4*D557)","v":4989.84}]
[null,"UPT2SVSA000E","ULISSE for analog camera, 24Vac",3892.32,{"$f":"D558-(Содержание!$H$4*D558)","v":3892.32}]
[null,"UPT2SVSAN00E","ULISSE for network camera, 24Vac",4577.76,{"$f":"D559-(Содержание!$H$4*D559)","v":4577.76}]
[null,"UPT2SVWA000E","ULISSE for analog camera, 24Vac, wiper",4364.2400000000007,{"$f":"D560-(Содержание!$H$4*D560)","v":4364.2400000000007}]
[null,"UPT2SVWAN00E","ULISSE for network camera 24Vac, wiper",5051.04,{"$f":"D561-(Содержание!$H$4*D561)","v":5051.04}]
[null,"UPT3NVSA000E","ULISSE 120Vac, 36x Day/Night camera, NTSC",5722.88,{"$f":"D562-(Содержание!$H$4*D562)","v":5722.88}]
[null,"UPT3NVWA000E","ULISSE 120Vac, 36x Day/Night camera, NTSC, wiper",6196.1600000000008,{"$f":"D563-(Содержание!$H$4*D563)","v":6196.1600000000008}]
[null,"UPT3SLGA000E","ULISSE MAXI for analog thermal camera, 120Vac, wiper",12299.84,{"$f":"D564-(Содержание!$H$4*D564)","v":12299.84}]
[null,"UPT3SLGAN00E","ULISSE MAXI for network thermal camera, 120Vac, wiper",12986.640000000001,{"$f":"D565-(Содержание!$H$4*D565)","v":12986.640000000001}]
[null,"UPT3SLWA000E","ULISSE MAXI for analog camera, 120Vac, wiper",7935.6,{"$f":"D566-(Содержание!$H$4*D566)","v":7935.6}]
[null,"UPT3SLWAN00E","ULISSE MAXI for network camera 120Vac, wiper",8622.4000000000015,{"$f":"D567-(Содержание!$H$4*D567)","v":8622.4000000000015}]
[null,"UPT3SMWA000E","ULISSE PLUS for analog camera, 120Vac, wiper",5951.3600000000006,{"$f":"D568-(Содержание!$H$4*D568)","v":5951.3600000000006}]
[null,"UPT3SMWAN00E","ULISSE PLUS for network camera 120Vac, wiper",6638.1600000000008,{"$f":"D569-(Содержание!$H$4*D569)","v":6638.1600000000008}]
[null,"UPT3SVGA000E","ULISSE for analog thermal camera, 120Vac",6249.2000000000007,{"$f":"D570-(Содержание!$H$4*D570)","v":6249.2000000000007}]
[null,"UPT3SVGAN00E","ULISSE for thermal network camera, 120Vac",6936.0000000000009,{"$f":"D571-(Содержание!$H$4*D571)","v":6936.0000000000009}]
[null,"UPT3SVSA000E","ULISSE 120Vac",3892.32,{"$f":"D572-(Содержание!$H$4*D572)","v":3892.32}]
[null,"UPT3SVSAN00E","ULISSE for network camera, 120Vac",4577.76,{"$f":"D573-(Содержание!$H$4*D573)","v":4577.76}]
[null,"UPT3SVWA000E","ULISSE 120Vac, wiper",4364.2400000000007,{"$f":"D574-(Содержание!$H$4*D574)","v":4364.2400000000007}]
[null,"UPT3SVWAN00E","ULISSE for network camera 120Vac, wiper",5051.04,{"$f":"D575-(Содержание!$H$4*D575)","v":5051.04}]
[null,"UPTHT1","Reinforced heater for ULISSE with generic lens/cameras",189.04000000000002,{"$f":"D576-(Содержание!$H$4*D576)","v":189.04000000000002}]
[null,"UPTHT2","Reinforced heater for ULISSE with integrated block camera",189.04000000000002,{"$f":"D577-(Содержание!$H$4*D577)","v":189.04000000000002}]
[null,"UPTIRN108A00","LED illuminator for ULISSE 10° 850nm, 24Vac - 12/24Vdc",692.24,{"$f":"D578-(Содержание!$H$4*D578)","v":692.24}]
[null,"UPTIRN109A00","LED illuminator for ULISSE 10°, 940nm, 24Vac - 12/24Vdc",1116.5600000000002,{"$f":"D579-(Содержание!$H$4*D579)","v":1116.5600000000002}]
[null,"UPTIRN10WA00","LED illuminator for ULISSE, white light 10°, 24Vac-12/24Vdc",692.24,{"$f":"D580-(Содержание!$H$4*D580)","v":692.24}]
[null,"UPTIRN308A00","LED illuminator for ULISSE 30° 850nm, 24Vac - 12/24Vdc",692.24,{"$f":"D581-(Содержание!$H$4*D581)","v":692.24}]
[null,"UPTIRN309A00","LED illuminator for ULISSE 30°, 940nm, 24Vac - 12/24Vdc",1116.5600000000002,{"$f":"D582-(Содержание!$H$4*D582)","v":1116.5600000000002}]
[null,"UPTIRN30WA00","LED illuminator for ULISSE, white light 30°, 24Vac-12/24Vdc",692.24,{"$f":"D583-(Содержание!$H$4*D583)","v":692.24}]
[null,"UPTIRN608A00","LED illuminator for ULISSE 60° 850nm, 24Vac - 12/24Vdc",692.24,{"$f":"D584-(Содержание!$H$4*D584)","v":692.24}]
[null,"UPTIRN60WA00","LED illuminator for ULISSE, white light 60°, 24Vac-12/24Vdc",692.24,{"$f":"D585-(Содержание!$H$4*D585)","v":692.24}]
[null,"UPTIRPS100N","Sensor and  Power supply for ULISSE with illuminators, IN 100Vac in waterproof metal box",550.80000000000007,{"$f":"D586-(Содержание!$H$4*D586)","v":550.80000000000007}]
[null,"UPTIRPS120UL","Sensor and  Power supply for ULISSE with illuminators, IN 120Vac in waterproof metal box (UL certified)",692.24,{"$f":"D587-(Содержание!$H$4*D587)","v":692.24}]
[null,"UPTIRPS230N","Sensor and  Power supply for ULISSE with illuminator, IN 230Vac in waterproof metal box",550.80000000000007,{"$f":"D588-(Содержание!$H$4*D588)","v":550.80000000000007}]
[null,"UPTJBUL","UL junction weatherproof box",307.36,{"$f":"D589-(Содержание!$H$4*D589)","v":307.36}]
[null,"UPTWBA","Wall bracket with internal cable channel",141.44,{"$f":"D590-(Содержание!$H$4*D590)","v":141.44}]
[null,"UPTWBTAB","Parapet bracket with internal cable channel",141.44,{"$f":"D591-(Содержание!$H$4*D591)","v":141.44}]
[null,"USB485","USB-RS485 converter for PC connection of control keyboard DCJ and DCT",63.92,{"$f":"D592-(Содержание!$H$4*D592)","v":63.92}]
[null,"VA01002","ALBERT digital encoder for intelligent video content analysis, 1 video channel H264, bidirectional audio, bidirectional RS485/RS422, alarm inputs/outputs, SD slot",2042.7200000000003,{"$f":"D593-(Содержание!$H$4*D593)","v":2042.7200000000003}]
[null,"VA03002","ALBERT digital encoder for intelligent video content analysis, 1 video channel, H264, bidirectional audio, bidirectional RS485/RS422, alarm inputs/outputs, SD slot and 40GB Industrial Hard Disk for H264 recording",2671.0400000000004,{"$f":"D594-(Содержание!$H$4*D594)","v":2671.0400000000004}]
[null,"VD18T1","Video distributor 1 input / 8 outputs",221.68,{"$f":"D595-(Содержание!$H$4*D595)","v":221.68}]
[null,"VD48P1","Programmable video distributor 4 inputs / 8 outputs",276.08000000000004,{"$f":"D596-(Содержание!$H$4*D596)","v":276.08000000000004}]
[null,"VD816PR1","Programmable video distributor 8 inputs / 16 outputs, rack version",519.52,{"$f":"D597-(Содержание!$H$4*D597)","v":519.52}]
[null,"VIP6A1","Wiper kit 230Vac",550.80000000000007,{"$f":"D598-(Содержание!$H$4*D598)","v":550.80000000000007}]
[null,"VIP6A2","Wiper kit 24Vac",550.80000000000007,{"$f":"D599-(Содержание!$H$4*D599)","v":550.80000000000007}]
[null,"VIPNX1C","Stainless steel wiper 230Vac",1021.3600000000001,{"$f":"D600-(Содержание!$H$4*D600)","v":1021.3600000000001}]
[null,"VIPNX2C","Stainless steel wiper 24Vac",1021.3600000000001,{"$f":"D601-(Содержание!$H$4*D601)","v":1021.3600000000001}]
[null,"VIPNXL1C","Stainless steel wiper 230Vac",1021.3600000000001,{"$f":"D602-(Содержание!$H$4*D602)","v":1021.3600000000001}]
[null,"VIPNXL2C","Stainless steel wiper 24Vac",1021.3600000000001,{"$f":"D603-(Содержание!$H$4*D603)","v":1021.3600000000001}]
[null,"WAS0V23L11M00","Tank 23l (6gal), IN 230Vac-24Vac-120Vac washer pump, delivery up to 11m (36ft)",864.96,{"$f":"D604-(Содержание!$H$4*D604)","v":864.96}]
[null,"WAS0V23L5M00","Tank 23l (6gal), IN 230Vac-24Vac-120Vac washer pump delivery up to 5m (16ft)",597.04000000000008,{"$f":"D605-(Содержание!$H$4*D605)","v":597.04000000000008}]
[null,"WAS0V5L5M00","Tank 5l (1.3gal), IN 230Vac-24Vac-120Vac washer pump delivery up to 5m (16ft)",534.48,{"$f":"D606-(Содержание!$H$4*D606)","v":534.48}]
[null,"WAS1V23L30M00","Tank 23l (6gal), IN 230Vac washer pump delivery up to 30m (98ft) with water float",1634.72,{"$f":"D607-(Содержание!$H$4*D607)","v":1634.72}]
[null,"WAS3V23L30M00","Tank 23l (6gal), IN 120Vac washer pump delivery up to 30m (98ft) with water float",1634.72,{"$f":"D608-(Содержание!$H$4*D608)","v":1634.72}]
[null,"WASPT0V23L11M00","Tank 23l (6gal), IN 230Vac-24Vac-120Vac washer pump, delivery up to 11m (36ft), with water float",1162.8000000000002,{"$f":"D609-(Содержание!$H$4*D609)","v":1162.8000000000002}]
[null,"WASPT0V23L5M00","Tank 23l (6gal), IN 230Vac-24Vac-120Vac washer pump delivery up to 5m (16ft)",754.80000000000007,{"$f":"D610-(Содержание!$H$4*D610)","v":754.80000000000007}]
[null,"WASPT0V5L5M00","Tank 5l (1.3gal), IN 230Vac-24Vac-120Vac washer pump delivery up to 5m (16ft)",707.2,{"$f":"D611-(Содержание!$H$4*D611)","v":707.2}]
[null,"WASPT1V23L30M00","Tank 23l (6gal), IN 230Vac washer pump delivery up to 30m (98ft) with water float",2011.44,{"$f":"D612-(Содержание!$H$4*D612)","v":2011.44}]
[null,"WASPT3V23L30M00","Tank 23l (6gal), IN 120Vac washer pump delivery up to 30m (98ft) with water float",2011.44,{"$f":"D613-(Содержание!$H$4*D613)","v":2011.44}]
[null,"WBCLA","Technopolymer wall/ceiling camera bracket, RAL9002",8.16,{"$f":"D614-(Содержание!$H$4*D614)","v":8.16}]
[null,"WBJA","Housing wall bracket with ball joint",25.840000000000003,{"$f":"D615-(Содержание!$H$4*D615)","v":25.840000000000003}]
[null,"WBLA","Wall bracket for HGV housing with ball joint in non-corrosive sturdy anticorodal aluminium alloy",802.40000000000009,{"$f":"D616-(Содержание!$H$4*D616)","v":802.40000000000009}]
[null,"WBMA","Housing wall bracket with ball joint",25.840000000000003,{"$f":"D617-(Содержание!$H$4*D617)","v":25.840000000000003}]
[null,"WBOV3A2","WBOVA2 wall bracket with support plate and integrated junction box with internal cable channel",206.72000000000003,{"$f":"D618-(Содержание!$H$4*D618)","v":206.72000000000003}]
[null,"WBOVA2","Wall bracket with internal cable channel (HOT, HOV, HEB, HEK, VERSO, VERSO Compact)",38.080000000000005,{"$f":"D619-(Содержание!$H$4*D619)","v":38.080000000000005}]
[null,"WCM3A","Ceiling bracket with ball joint",80.240000000000009,{"$f":"D620-(Содержание!$H$4*D620)","v":80.240000000000009}]
[null,"WCM4A2","Ceiling bracket with internal cable channel",114.24000000000001,{"$f":"D621-(Содержание!$H$4*D621)","v":114.24000000000001}]
[null,"WCM5A","Ceiling bracket with ball joint",127.84,{"$f":"D622-(Содержание!$H$4*D622)","v":127.84}]
[null,"WCMPA","Extension for WCM4A2 and WCM5A brackets, 500mm (20in)",36.720000000000006,{"$f":"D623-(Содержание!$H$4*D623)","v":36.720000000000006}]
[null,"WCPA","Wall bracket adaptor plate",39.440000000000005,{"$f":"D624-(Содержание!$H$4*D624)","v":39.440000000000005}]
[null,"WCWA","Corner mount adaptor",61.2,{"$f":"D625-(Содержание!$H$4*D625)","v":61.2}]
[null,"WCWGC","Corner adaptor",103.36000000000001,{"$f":"D626-(Содержание!$H$4*D626)","v":103.36000000000001}]
[null,"WFWBTA","Column bracket for PTH P&T series",70.72,{"$f":"D627-(Содержание!$H$4*D627)","v":70.72}]
[null,"WFWCA","Column mount with ball joint for housing",106.08000000000001,{"$f":"D628-(Содержание!$H$4*D628)","v":106.08000000000001}]
[null,"WSFPA","Pole mount adaptor Ø from 65mm to 110mm (2.5in - 4.3in)",70.72,{"$f":"D629-(Содержание!$H$4*D629)","v":70.72}]

{"sheet":"Raytec","index":7,"n_rows":478,"n_cols":5,"rows_kept":478,"cut":false,"hidden":false,"merged":[]}
["Raytec"]
[]
[]
["Модель","Описание","Розница, USD","Моя цена","Комментарии"]
["VAR-i8-3","VARIO i8 Adaptive Illumination, triple panel, 850nm with 3 angle options included, 12-24V ",3408.33,{"$f":"ROUNDUP(C5-(Содержание!$H$4*C5),0)","v":3409}]
["VAR-i4-3","VARIO i4 Adaptive Illumination, triple panel, 850nm with 3 angle options included, 12-24V ",1905.27,{"$f":"ROUNDUP(C6-(Содержание!$H$4*C6),0)","v":1906}]
[]
["VAR-i8-2","VARIO i8 Adaptive Illumination, double panel, 850nm with 3 angle options included, 12-24V ",2366.52,{"$f":"ROUNDUP(C8-(Содержание!$H$4*C8),0)","v":2367}]
["VAR-i4-2","VARIO i4 Adaptive Illumination,double panel, 850nm with 3 angle options included, 12-24V ",1280.43,{"$f":"ROUNDUP(C9-(Содержание!$H$4*C9),0)","v":1281}]
["VAR-i2-2","VARIO i2 Adaptive Illumination, double panel, 850nm with 3 angle options included, 12-24V ",892.98,{"$f":"ROUNDUP(C10-(Содержание!$H$4*C10),0)","v":893}]
[]
["**NEW**"]
["VAR-i16-1","VARIO i16 standard pack 10°x10°, 35°x10° and 60°x25° angles included, clear and black, 24V, 850nm",2009.82,{"$f":"ROUNDUP(C13-(Содержание!$H$4*C13),0)","v":2010}]
["VAR-i8-1","VARIO i8 standard pack 10°x10°, 35°x10° and 60°x25° angles included, clear and black, 12-24V, 850nm",1205.4000000000001,{"$f":"ROUNDUP(C14-(Содержание!$H$4*C14),0)","v":1206}]
["VAR-i4-1","VARIO i4 standard pack 10°x10°, 35°x10° and 60°x25° angles included, clear and black, 12-24V, 850nm",654.36,{"$f":"ROUNDUP(C15-(Содержание!$H$4*C15),0)","v":655}]
["VAR-i2-1","VARIO i2 standard pack 10°x10°, 35°x10° and 60°x25° angles included, clear and black, 12-24V, 850nm",461.25,{"$f":"ROUNDUP(C16-(Содержание!$H$4*C16),0)","v":462}]
[]
[null,"940nm options available. Add -C to codes above. Add 10% to price."]
[]
["VARIO White-Light Series"]
["VAR-w8-3","VARIO w8 Adaptive Illumination, triple panel, White-Light with 3 angle options included, 12-24V ",3408.33,{"$f":"ROUNDUP(C21-(Содержание!$H$4*C21),0)","v":3409}]
["VAR-w4-3","VARIO w4 Adaptive Illumination, triple panel, White-Light with 3 angle options included, 12-24V ",1905.27,{"$f":"ROUNDUP(C22-(Содержание!$H$4*C22),0)","v":1906}]
[]
["VAR-w8-2","VARIO w8 Adaptive Illumination, double panel, White-Light with 3 angle options included, 12-24V ",2366.52,{"$f":"ROUNDUP(C24-(Содержание!$H$4*C24),0)","v":2367}]
["VAR-w4-2","VARIO w4 Adaptive Illumination, double panel, White-Light with 3 angle options included, 12-24V ",1280.43,{"$f":"ROUNDUP(C25-(Содержание!$H$4*C25),0)","v":1281}]
["VAR-w2-2","VARIO w2 Adaptive Illumination, double panel, White-Light with 3 angle options included, 12-24V",892.98,{"$f":"ROUNDUP(C26-(Содержание!$H$4*C26),0)","v":893}]
[]
["**NEW**"]
["VAR-w16-1","VARIO w16, standard pack 10°x10°, 35°x10° and 60°x25° angles included, silver and white, 24V, white-light",2009.82,{"$f":"ROUNDUP(C29-(Содержание!$H$4*C29),0)","v":2010}]
["VAR-w8-1","VARIO w8, standard pack 10°x10°, 35°x10° and 60°x25° angles included, silver and white, 12-24V, white-light",1205.4000000000001,{"$f":"ROUNDUP(C30-(Содержание!$H$4*C30),0)","v":1206}]
["VAR-w4-1","VARIO w4, standard pack 10x10, 35x10 and 60x25 angles included, silver and white, 12-24V, white-light",654.36,{"$f":"ROUNDUP(C31-(Содержание!$H$4*C31),0)","v":655}]
["VAR-w2-1","VARIO w2, standard pack 10°x10°, 35°x10° and 60°x25° angles included, silver and white, 12-24V, white-light",461.25,{"$f":"ROUNDUP(C32-(Содержание!$H$4*C32),0)","v":462}]
[]
["Please note: All VARIO illuminators utilise standard Raytec interchangeable lenses."]
[]
[]
["VARIO IP PoE Network Illuminators - Low Voltage"]
[]
["VARIO IP PoE Infra-Red Series – 24V DC Input"]
["VAR-IPPoE-i8-1","VARIO IP PoE Network Illuminator - i8, 850nm with 3 angle options included, 24V DC or PoE++ power input & Cat 5 data input",1383.75,{"$f":"ROUNDUP(C40-(Содержание!$H$4*C40),0)","v":1384}]
["VAR-IPPoE-i4-1","VARIO IP PoE Network Illuminator - i4, 850nm with 3 angle options included, 24V DC or PoE+ power input & Cat 5 data input",892.98,{"$f":"ROUNDUP(C41-(Содержание!$H$4*C41),0)","v":893}]
[null,"940nm options available. Add -C to codes above. Add 10% to price.",0]
["VARIO IP PoE White-Light Series – 24V DC Input",null,0]
["VAR-IPPoE-w8-1","VARIO IP PoE Network Illuminator - w8, White-Light with 3 angle options included, 24V DC or PoE++ power input & Cat 5 data input",1383.75,{"$f":"ROUNDUP(C44-(Содержание!$H$4*C44),0)","v":1384}]
["VAR-IPPoE-w4-1","VARIO IP PoE Network Illuminator - w4, White-Light with 3 angle options included, 24V DC or PoE+ power input & Cat 5 data input",892.98,{"$f":"ROUNDUP(C45-(Содержание!$H$4*C45),0)","v":893}]
[]
[]
["VARIO Specialist Lighting"]
[]
[]
["VARIO Hybrid - Combined Infra-Red and White-Light in a single unit"]
["VAR-hy8-1 ","VARIO Hybrid 8 Infra-Red 850nm and White-Light, with 3 angle options included, 12-24V ",1503.06,{"$f":"ROUNDUP(C52-(Содержание!$H$4*C52),0)","v":1504}]
["VAR-hy8-1-C ","VARIO Hybrid 8 Infra-Red 940nm and White-Light, with 3 angle options included, 12-24V  ",1666.6499999999999,{"$f":"ROUNDUP(C53-(Содержание!$H$4*C53),0)","v":1667}]
[]
[]
["VARIO Lighthouse Kit - Fully integrated lighting and housing solution",null,0]
["VAR-VLK-i4-2","VARIO Lighthouse Kit , 2 x 850nm, 3 angle options, Cat5e and power/aux cable",1741.68,{"$f":"ROUNDUP(C57-(Содержание!$H$4*C57),0)","v":1742}]
["VAR-VLK-i4-2-C","VARIO Lighthouse Kit , 2 x 940nm, 3 angle options, Cat5e and power/aux cable",1860.99,{"$f":"ROUNDUP(C58-(Содержание!$H$4*C58),0)","v":1861}]
["VAR-VLK-w4-2","VARIO Lighthouse Kit , 2 x White-Light, 3 angle options, Cat5e and power/aux cable",1741.68,{"$f":"ROUNDUP(C59-(Содержание!$H$4*C59),0)","v":1742}]
[]
[]
["VARIO D-zoom - High power LED with remotely adjustable beam angle"]
["VAR-DZ -i8-1","VARIO D-Zoom i8, Infra-Red, 850nm – angles 10° to 80°",1383.75,{"$f":"ROUNDUP(C63-(Содержание!$H$4*C63),0)","v":1384}]
["VAR-DZ -i8-1-C","VARIO D-Zoom i8, Infra-Red, 940nm – angles 10° to 80°",1517.82,{"$f":"ROUNDUP(C64-(Содержание!$H$4*C64),0)","v":1518}]
["VAR-DZ -w8-1","VARIO D-Zoom w8, White-Light – angles 10° to 80°",1383.75,{"$f":"ROUNDUP(C65-(Содержание!$H$4*C65),0)","v":1384}]
[]
["VARIO ESP"]
["Purpose Designed VARIO LED Lighting for the Pelco Esprit “Specific SMR model” "]
["powered directly from the camera"]
[]
["Order x2 VAR-i2-1","For Pelco Esprit SMR # 1-208BV1 "]
["Order x2 VAR-i4-1","For Pelco Esprit  SMR # 1-2BUUEI"]
["Order x2 VAR-i8-1","For Pelco Esprit SMR # 1-26OSZH"]
[]
["Mixed angle combinations available via adjusting the VARIO interchangeable lensing."]
["940nm and White-Light versions available - contact Raytec."]
[]
["VARIO Accessories"]
["Please note: All VARIO illuminators utilise standard Raytec interchangeable lenses (not applicable for VARIO D-Zoom)"]
[]
["VARIO Infra-Red Interchangeable Lenses"]
[]
["**NEW**"]
["VAR-i16-LENS-8030","VARIO i16 lens insert - 80°H x 30°V ",59.04,{"$f":"ROUNDUP(C84-(Содержание!$H$4*C84),0)","v":60}]
["VAR-i16-LENS-12050","VARIO i16 lens insert - 120°H x 50°V ",59.04,{"$f":"ROUNDUP(C85-(Содержание!$H$4*C85),0)","v":60}]
["VAR-i8-LENS-8030","VARIO i8 lens insert - 80°H x 30°V ",59.04,{"$f":"ROUNDUP(C86-(Содержание!$H$4*C86),0)","v":60}]
["VAR-i8-LENS-12050","VARIO i8 lens insert - 120°H x 50°V ",59.04,{"$f":"ROUNDUP(C87-(Содержание!$H$4*C87),0)","v":60}]
["VAR-i4-LENS-8030","VARIO i4 lens insert - 80°H x 30°V ",59.04,{"$f":"ROUNDUP(C88-(Содержание!$H$4*C88),0)","v":60}]
["VAR-i4-LENS-12050","VARIO i4 lens insert - 120°H x 50°V ",59.04,{"$f":"ROUNDUP(C89-(Содержание!$H$4*C89),0)","v":60}]
["VAR-i2-LENS-8030","VARIO i2 lens insert - 80°H x 30°V ",59.04,{"$f":"ROUNDUP(C90-(Содержание!$H$4*C90),0)","v":60}]
["VAR-i2-LENS-12050","VARIO i2 lens insert - 120°H x 50°V ",59.04,{"$f":"ROUNDUP(C91-(Содержание!$H$4*C91),0)","v":60}]
[]
["VARIO White-Light Interchangeable Lenses"]
[]
["**NEW**"]
["VAR-w16-LENS-8030","VARIO w16 lens insert -  80°H x 30°V ",59.04,{"$f":"ROUNDUP(C96-(Содержание!$H$4*C96),0)","v":60}]
["VAR-w16-LENS-12050","VARIO w16 lens insert - 120°H x 50°V ",59.04,{"$f":"ROUNDUP(C97-(Содержание!$H$4*C97),0)","v":60}]
["VAR-w8-LENS-8030","VARIO w8 lens insert -  80°H x 30°V ",59.04,{"$f":"ROUNDUP(C98-(Содержание!$H$4*C98),0)","v":60}]
["VAR-w8-LENS-12050","VARIO w8 lens insert - 120°H x 50°V ",59.04,{"$f":"ROUNDUP(C99-(Содержание!$H$4*C99),0)","v":60}]
["VAR-w4-LENS-8030","VARIO w4 lens insert - 80°H x 30°V",59.04,{"$f":"ROUNDUP(C100-(Содержание!$H$4*C100),0)","v":60}]
["VAR-w4-LENS-12050","VARIO w4 lens insert - 120°H x 50°V ",59.04,{"$f":"ROUNDUP(C101-(Содержание!$H$4*C101),0)","v":60}]
["VAR-w2-LENS-8030","VARIO w2 lens insert - 80°H x 30°V ",59.04,{"$f":"ROUNDUP(C102-(Содержание!$H$4*C102),0)","v":60}]
["VAR-w2-LENS-12050","VARIO w2 lens insert - 120°H x 50°V ",59.04,{"$f":"ROUNDUP(C103-(Содержание!$H$4*C103),0)","v":60}]
[]
["VARIO Remote Control"]
["(Not applicable for VARIO IP)"]
["VAR-rc-V1","Remote control to enable advanced features in VARIO",75.03,{"$f":"ROUNDUP(C107-(Содержание!$H$4*C107),0)","v":76}]
[]
[]
["VARIO Power Supply Units"]
["Purpose designed to power all VARIO illuminators including VARIO IP"]
["VAR-PSU-1x2","VARIO PSU - 24V, 20W, 1xO/P for 1x2 series VARIO illuminator",223.85999999999999,{"$f":"ROUNDUP(C112-(Содержание!$H$4*C112),0)","v":224}]
["VAR-PSU-2x4","VARIO PSU - 24V, 50W, 2xO/P for 2x4 series VARIO illuminators",268.14,{"$f":"ROUNDUP(C113-(Содержание!$H$4*C113),0)","v":269}]
["VAR-PSU-2x8","VARIO PSU - 24V, 100W, 2xO/P for 2x8 series VARIO illuminators",387.45,{"$f":"ROUNDUP(C114-(Содержание!$H$4*C114),0)","v":388}]
["VAR-PSU-3x8","VARIO PSU - 24V, 150W, 3xO/P for 3x8 series VARIO illuminators",521.52,{"$f":"ROUNDUP(C115-(Содержание!$H$4*C115),0)","v":522}]
[]
["VARIO Daytime Set-up Tool"]
["VAR-DST","Daytime set-up/positioning tool for all VARIO lighting units ",59.04,{"$f":"ROUNDUP(C118-(Содержание!$H$4*C118),0)","v":60}]
[]
[]
["PLATINUM IR Series - Ultra High Performance – High Voltage"]
[]
["Includes standard PSU"]
["RM300-PLT-AI-05","RAYMAX 300, 5-15° Platinum Adaptive Illumination, 850nm, inc PSU",3825.2999999999997,{"$f":"ROUNDUP(C124-(Содержание!$H$4*C124),0)","v":3826}]
["RM300-PLT-AI-10","RAYMAX 300, 10-30° Platinum Adaptive Illumination, 850nm, inc PSU",3482.13,{"$f":"ROUNDUP(C125-(Содержание!$H$4*C125),0)","v":3483}]
["RM300-PLT-AI-30","RAYMAX 300, 30-90° Platinum Adaptive Illumination, 850nm, inc PSU",3482.13,{"$f":"ROUNDUP(C126-(Содержание!$H$4*C126),0)","v":3483}]
["RM300-PLT-AI-50","RAYMAX 300, 50-180° Platinum Adaptive Illumination, 850nm, inc PSU",3482.13,{"$f":"ROUNDUP(C127-(Содержание!$H$4*C127),0)","v":3483}]
[]
["RM200-PLT-AI-10","RAYMAX 200, 10-20° Platinum Adaptive Illumination, 850nm, inc PSU",2605.14,{"$f":"ROUNDUP(C129-(Содержание!$H$4*C129),0)","v":2606}]
["RM200-PLT-AI-30","RAYMAX 200, 30-60° Platinum Adaptive Illumination, 850nm, inc PSU",2605.14,{"$f":"ROUNDUP(C130-(Содержание!$H$4*C130),0)","v":2606}]
["RM200-PLT-AI-50","RAYMAX 200, 50-100° Platinum Adaptive Illumination, 850nm, inc PSU",2605.14,{"$f":"ROUNDUP(C131-(Содержание!$H$4*C131),0)","v":2606}]
["RM200-PLT-AI-120","RAYMAX 200, 120-180° Platinum Adaptive Illumination, 850nm, inc PSU",2605.14,{"$f":"ROUNDUP(C132-(Содержание!$H$4*C132),0)","v":2606}]
[]
["RM100-PLT-AI-10","RAYMAX 100, 10-20° Platinum Adaptive Illumination, 850nm, inc PSU",1845,{"$f":"ROUNDUP(C134-(Содержание!$H$4*C134),0)","v":1845}]
["RM100-PLT-AI-30","RAYMAX 100, 30-60° Platinum Adaptive Illumination, 850nm, inc PSU",1845,{"$f":"ROUNDUP(C135-(Содержание!$H$4*C135),0)","v":1845}]
["RM100-PLT-AI-50","RAYMAX 100, 50-100° Platinum Adaptive Illumination, 850nm, inc PSU",1845,{"$f":"ROUNDUP(C136-(Содержание!$H$4*C136),0)","v":1845}]
["RM100-PLT-AI-120","RAYMAX 100, 120-180° Platinum Adaptive Illumination, 850nm, inc PSU",1845,{"$f":"ROUNDUP(C137-(Содержание!$H$4*C137),0)","v":1845}]
[]
[null,"940nm Options Available. Add -C to codes above. Same price as 10 degree model. 5° versions available for ultimate distance."]
[]
[]
["RAYMAX Series - High Voltage Infra-Red"]
[]
["**NEW**"]
["Panoramic Ultra Series"]
["RM300-AI-PANUT","RAYMAX 300, Panoramic Ultra Illumination, 60-180°x 5°, 850nm, inc PSU",3125.43,{"$f":"ROUNDUP(C146-(Содержание!$H$4*C146),0)","v":3126}]
["RM150-AI-PANUT","RAYMAX 150, Panoramic Ultra Illumination, 60-180°x 5°,  850nm, inc PSU",2188.17,{"$f":"ROUNDUP(C147-(Содержание!$H$4*C147),0)","v":2189}]
[]
["Ultimate Adaptive Illumination Products - Triple Panel"]
["RAYMAX 300 - includes standard PSU"]
["RM300-AI-10","RAYMAX 300, 10-30° Adaptive Illumination, 850nm, inc PSU ",3482.13,{"$f":"ROUNDUP(C151-(Содержание!$H$4*C151),0)","v":3483}]
["RM300-AI-30","RAYMAX 300, 30-90° Adaptive Illumination, 850nm, inc PSU ",3229.98,{"$f":"ROUNDUP(C152-(Содержание!$H$4*C152),0)","v":3230}]
["RM300-AI-50","RAYMAX 300, 50-180° Adaptive Illumination, 850nm, inc PSU",3229.98,{"$f":"ROUNDUP(C153-(Содержание!$H$4*C153),0)","v":3230}]
[null,"940nm Options Available. Add -C to codes above. Same price as 10° model."]
[]
["RAYMAX 150 - includes standard PSU"]
["RM150-AI-30","RAYMAX 150, 30-100° Adaptive Illumination, 850nm, inc PSU",2068.86,{"$f":"ROUNDUP(C157-(Содержание!$H$4*C157),0)","v":2069}]
["RM150-AI-50","RAYMAX 150, 50-180° Adaptive Illumination, 850nm, inc PSU",2068.86,{"$f":"ROUNDUP(C158-(Содержание!$H$4*C158),0)","v":2069}]
[null,"940nm Options Available. Add -C to codes above. Same price as 10° model."]
[]
["Adaptive Illumination Products"]
["RAYMAX 200 - includes standard PSU"]
["RM200-AI-10","RAYMAX 200, 10-20° Adaptive Illumination, 850nm, inc PSU",2605.14,{"$f":"ROUNDUP(C163-(Содержание!$H$4*C163),0)","v":2606}]
["RM200-AI-30","RAYMAX 200, 30-60° Adaptive Illumination, 850nm, inc PSU",2366.52,{"$f":"ROUNDUP(C164-(Содержание!$H$4*C164),0)","v":2367}]
["RM200-AI-50","RAYMAX 200, 50-100° Adaptive Illumination, 850nm, inc PSU",2366.52,{"$f":"ROUNDUP(C165-(Содержание!$H$4*C165),0)","v":2367}]
["RM200-AI-120","RAYMAX 200, 120-180° Adaptive Illumination, 850nm, inc PSU",2366.52,{"$f":"ROUNDUP(C166-(Содержание!$H$4*C166),0)","v":2367}]
[null,"940nm Options Available. Add -C to codes above. Same price as 10° model."]
[]
["RAYMAX 100 - includes standard PSU"]
["RM100-AI-10","RAYMAX 100, 10-20° Adaptive Illumination, 850nm, inc PSU",1845,{"$f":"ROUNDUP(C170-(Содержание!$H$4*C170),0)","v":1845}]
["RM100-AI-30","RAYMAX 100, 30-60° Adaptive Illumination, 850nm, inc PSU",1368.99,{"$f":"ROUNDUP(C171-(Содержание!$H$4*C171),0)","v":1369}]
["RM100-AI-50","RAYMAX 100, 50-100° Adaptive Illumination, 850nm, inc PSU",1368.99,{"$f":"ROUNDUP(C172-(Содержание!$H$4*C172),0)","v":1369}]
["RM100-AI-120","RAYMAX 100, 120-180° Adaptive Illumination, 850nm, inc PSU",1368.99,{"$f":"ROUNDUP(C173-(Содержание!$H$4*C173),0)","v":1369}]
[null,"940nm Options Available. Add -C to codes above. Same price as 10° model."]
[]
["RAYMAX 50 - includes standard PSU"]
["RM50-AI-10","RAYMAX 50, 10-20° Adaptive Illumination, 850nm, inc PSU",952.02,{"$f":"ROUNDUP(C177-(Содержание!$H$4*C177),0)","v":953}]
["RM50-AI-30","RAYMAX 50, 30-60° Adaptive Illumination, 850nm, inc PSU",744.15,{"$f":"ROUNDUP(C178-(Содержание!$H$4*C178),0)","v":745}]
["RM50-AI-50","RAYMAX 50, 50-100° Adaptive Illumination, 850nm, inc PSU",744.15,{"$f":"ROUNDUP(C179-(Содержание!$H$4*C179),0)","v":745}]
["RM50-AI-120","RAYMAX 50, 120-180° Adaptive Illumination, 850nm, inc PSU",744.15,{"$f":"ROUNDUP(C180-(Содержание!$H$4*C180),0)","v":745}]
[null,"940nm Options Available. Add -C to codes above. Same price as 10° model."]
[]
["RAYMAX 25 - includes standard PSU - non AI"]
["RM25-10","RAYMAX 25, 10°, 850nm, inc PSU",624.84,{"$f":"ROUNDUP(C184-(Содержание!$H$4*C184),0)","v":625}]
["RM25-30","RAYMAX 25, 30°, 850nm, inc PSU",521.52,{"$f":"ROUNDUP(C185-(Содержание!$H$4*C185),0)","v":522}]
["RM25-50","RAYMAX 25, 50°, 850nm, inc PSU",521.52,{"$f":"ROUNDUP(C186-(Содержание!$H$4*C186),0)","v":522}]
["RM25-120","RAYMAX 25, 120°, 850nm, inc PSU",521.52,{"$f":"ROUNDUP(C187-(Содержание!$H$4*C187),0)","v":522}]
[null,"940nm Options Available. Add -C to codes above. Same price as 10° model."]
[]
["Raymax Illuminators with PoE Input - For internal applications only"]
["RAYMAX 25 PoE Series - includes integrated PSU, can be powered via PoE or 12-24V"]
["RM25-10-PoE","RAYMAX 25, 10°, 850nm, PoE compatible",536.28,{"$f":"ROUNDUP(C192-(Содержание!$H$4*C192),0)","v":537}]
["RM25-30-PoE","RAYMAX 25, 30°, 850nm, PoE compatible",490.77,{"$f":"ROUNDUP(C193-(Содержание!$H$4*C193),0)","v":491}]
["RM25-50-PoE","RAYMAX 25, 50°, 850nm, PoE compatible",490.77,{"$f":"ROUNDUP(C194-(Содержание!$H$4*C194),0)","v":491}]
["RM25-120-PoE","RAYMAX 25, 120°, 850nm, PoE compatible",490.77,{"$f":"ROUNDUP(C195-(Содержание!$H$4*C195),0)","v":491}]
[null,"940nm Options Available. Add -C to codes above. Same price as 10 degree model."]
[]
["Raymax High Power PoE Illuminators with PoE Input - For internal and external applications "]
["RAYMAX 50 PoE Series - includes integrated PSU, powered via PoE"]
["RM50-10-PoE","RAYMAX 50, 10°, 850nm, PoE compatible",788.43,{"$f":"ROUNDUP(C200-(Содержание!$H$4*C200),0)","v":789}]
["RM50-30-PoE","RAYMAX 50, 30°, 850nm, PoE compatible",729.39,{"$f":"ROUNDUP(C201-(Содержание!$H$4*C201),0)","v":730}]
["RM50-50-PoE","RAYMAX 50, 50°, 850nm, PoE compatible",729.39,{"$f":"ROUNDUP(C202-(Содержание!$H$4*C202),0)","v":730}]
["RM50-120-PoE","RAYMAX 50, 120°, 850nm, PoE compatible",729.39,{"$f":"ROUNDUP(C203-(Содержание!$H$4*C203),0)","v":730}]
[null,"940nm Options Available. Add -C to codes above. Same price as 10 degree model."]
[]
[]
["RAYLUX Series - Hi Voltage White-Light  All RAYLUX products are now powered by PLATINUM technology."]
[]
["Panoramic Series"]
["RL300-AI-PAN","RAYLUX 300, Panoramic Illumination, 60-180°x25°, White-Light inc PSU",3066.39,{"$f":"ROUNDUP(C210-(Содержание!$H$4*C210),0)","v":3067}]
["RL150-AI-PAN","RAYLUX 150, Panoramic Illumination, 60-180°x25°, White-Light inc PSU",2188.17,{"$f":"ROUNDUP(C211-(Содержание!$H$4*C211),0)","v":2189}]
[]
["Raylux Directional Series"]
["Ultimate Adaptive Illumination Products - Triple Panel"]
["RAYLUX 300 - includes standard PSU"]
["RL300-AI-05","RAYLUX 300, 5-15° Adaptive Illumination, White-Light, inc PSU",3825.2999999999997,{"$f":"ROUNDUP(C216-(Содержание!$H$4*C216),0)","v":3826}]
["RL300-AI-10","RAYLUX 300, 10-30° Adaptive Illumination, White-Light, inc PSU",3303.7799999999997,{"$f":"ROUNDUP(C217-(Содержание!$H$4*C217),0)","v":3304}]
["RL300-AI-30","RAYLUX 300, 30-90° Adaptive Illumination, White-Light, inc PSU",3066.39,{"$f":"ROUNDUP(C218-(Содержание!$H$4*C218),0)","v":3067}]
["RL300-AI-50","RAYLUX 300, 50-180° Adaptive Illumination, White-Light, inc PSU",3066.39,{"$f":"ROUNDUP(C219-(Содержание!$H$4*C219),0)","v":3067}]
[]
["RAYLUX 150 - includes standard PSU"]
["RL150-AI-30","RAYLUX 150, 30-90° Adaptive Illumination, White-Light, inc PSU",2188.17,{"$f":"ROUNDUP(C222-(Содержание!$H$4*C222),0)","v":2189}]
["RL150-AI-50","RAYLUX 150, 50-180° Adaptive Illumination, White-Light, inc PSU",2188.17,{"$f":"ROUNDUP(C223-(Содержание!$H$4*C223),0)","v":2189}]
[]
["Adaptive Illumination Products"]
["RAYLUX 200 - includes standard PSU"]
["RL200-AI-10","RAYLUX 200, 10-20° Adaptive Illumination, White-Light, inc PSU",2425.56,{"$f":"ROUNDUP(C227-(Содержание!$H$4*C227),0)","v":2426}]
["RL200-AI-30","RAYLUX 200, 30-60° Adaptive Illumination, White-Light, inc PSU",2188.17,{"$f":"ROUNDUP(C228-(Содержание!$H$4*C228),0)","v":2189}]
["RL200-AI-50","RAYLUX 200, 50-100° Adaptive Illumination, White-Light, inc PSU",2188.17,{"$f":"ROUNDUP(C229-(Содержание!$H$4*C229),0)","v":2189}]
["RL200-AI-120","RAYLUX 200, 120-180° Adaptive Illumination, White-Light, inc PSU",2188.17,{"$f":"ROUNDUP(C230-(Содержание!$H$4*C230),0)","v":2189}]
[]
["RAYLUX 100 - includes standard PSU"]
["RL100-AI-10","RAYLUX 100, 10-20° Adaptive Illumination, White-Light, inc PSU",1503.06,{"$f":"ROUNDUP(C233-(Содержание!$H$4*C233),0)","v":1504}]
["RL100-AI-30","RAYLUX 100, 30-60° Adaptive Illumination, White-Light, inc PSU",1368.99,{"$f":"ROUNDUP(C234-(Содержание!$H$4*C234),0)","v":1369}]
["RL100-AI-50","RAYLUX 100, 50-100° Adaptive Illumination, White-Light, inc PSU",1368.99,{"$f":"ROUNDUP(C235-(Содержание!$H$4*C235),0)","v":1369}]
["RL100-AI-120","RAYLUX 100, 120-180° Adaptive Illumination, White-Light, inc PSU",1368.99,{"$f":"ROUNDUP(C236-(Содержание!$H$4*C236),0)","v":1369}]
[]
["RAYLUX 50 - includes standard PSU"]
["RL50-AI-10","RAYLUX 50,10-20 degree Adaptive Illumination, White-Light, inc PSU",952.02,{"$f":"ROUNDUP(C239-(Содержание!$H$4*C239),0)","v":953}]
["RL50-AI-30","RAYLUX 50, 30-60° Adaptive Illumination, White-Light, inc PSU",863.46,{"$f":"ROUNDUP(C240-(Содержание!$H$4*C240),0)","v":864}]
["RL50-AI-50","RAYLUX 50, 50-100° Adaptive Illumination, White-Light, inc PSU",863.46,{"$f":"ROUNDUP(C241-(Содержание!$H$4*C241),0)","v":864}]
["RL50-AI-120","RAYLUX 50, 120-180° Adaptive Illumination, White-Light, inc PSU",863.46,{"$f":"ROUNDUP(C242-(Содержание!$H$4*C242),0)","v":864}]
[]
["RAYLUX 25 - includes standard PSU - non AI"]
["RL25-10","RAYLUX 25, 10°, White-Light, inc PSU",624.84,{"$f":"ROUNDUP(C245-(Содержание!$H$4*C245),0)","v":625}]
["RL25-30","RAYLUX 25, 30°, White-Light, inc PSU",551.04,{"$f":"ROUNDUP(C246-(Содержание!$H$4*C246),0)","v":552}]
["RL25-50","RAYLUX 25, 50°, White-Light, inc PSU",551.04,{"$f":"ROUNDUP(C247-(Содержание!$H$4*C247),0)","v":552}]
["RL25-120","RAYLUX 25, 120°, White Light, inc PSU",551.04,{"$f":"ROUNDUP(C248-(Содержание!$H$4*C248),0)","v":552}]
[]
["Raylux High Power Poe Illuminators with PoE Input – For internal and external applications "]
["RAYLUX 50 PoE Series - includes integrated PSU, powered via PoE"]
["RL50-10-PoE","RAYLUX 50, 10°, White-Light, PoE compatible",788.43,{"$f":"ROUNDUP(C252-(Содержание!$H$4*C252),0)","v":789}]
["RL50-30-PoE","RAYLUX 50, 30°, White-Light, PoE compatible",729.39,{"$f":"ROUNDUP(C253-(Содержание!$H$4*C253),0)","v":730}]
["RL50-50-PoE","RAYLUX 50, 50°, White-Light, PoE compatible",729.39,{"$f":"ROUNDUP(C254-(Содержание!$H$4*C254),0)","v":730}]
["RL50-120-PoE","RAYLUX 50, 120°, White-Light, PoE compatible",729.39,{"$f":"ROUNDUP(C255-(Содержание!$H$4*C255),0)","v":730}]
[]
[]
[]
["RAYLUX URBAN Series"]
[]
["Urban - Adaptive Illumination Products (UBA)"]
["Includes standard PSU and environmental protection shield"]
["UBA-48-50","RAYLUX URBAN, 80W Max, 50°+ AI, White-Light, inc PSU",2247.21,{"$f":"ROUNDUP(C263-(Содержание!$H$4*C263),0)","v":2248}]
["UBA-48-120","RAYLUX URBAN, 80W Max, 120°+ AI, White-Light, inc PSU",2247.21,{"$f":"ROUNDUP(C264-(Содержание!$H$4*C264),0)","v":2248}]
["UBA-48-120H-80V","RAYLUX URBAN, 80W Max, 120°+ Horizontal x 80° Vertical, Oval AI, White-Light, inc PSU",2247.21,{"$f":"ROUNDUP(C265-(Содержание!$H$4*C265),0)","v":2248}]
[null,"Warm White Options Available"]
[]
["UBA-32-50","RAYLUX URBAN, 50W Max, 50°+ AI, White-Light, inc PSU",1607.61,{"$f":"ROUNDUP(C268-(Содержание!$H$4*C268),0)","v":1608}]
["UBA-32-120","RAYLUX URBAN, 50W Max, 120°+ AI, White-Light, inc PSU",1607.61,{"$f":"ROUNDUP(C269-(Содержание!$H$4*C269),0)","v":1608}]
["UBA-32-120H-80V","RAYLUX URBAN, 50W Max, 120°+ Horizontal x 80° Vertical, Oval AI, White-Light, inc PSU",1607.61,{"$f":"ROUNDUP(C270-(Содержание!$H$4*C270),0)","v":1608}]
[null,"Warm White Options Available"]
[]
["URBAN - Fixed Illumination Products (UBF)"]
["Includes standard PSU and environmental protection shield"]
["UBF-24-50","RAYLUX URBAN, 40W Max, 50° Illumination, White-Light, inc PSU",1280.43,{"$f":"ROUNDUP(C275-(Содержание!$H$4*C275),0)","v":1281}]
["UBF-24-120","RAYLUX URBAN, 40W Max,120° Illumination, White-Light, inc PSU",1280.43,{"$f":"ROUNDUP(C276-(Содержание!$H$4*C276),0)","v":1281}]
["UBF-24-120H-80V","RAYLUX URBAN, 40W Max, 120° Horizontal x 80° Vertical, Oval Illumination, White-Light, inc PSU",1280.43,{"$f":"ROUNDUP(C277-(Содержание!$H$4*C277),0)","v":1281}]
[null,"Warm White Options Available"]
[]
["UBF-16-50","RAYLUX URBAN, 25W Max, 50° Illumination, White-Light, inc PSU",1086.0899999999999,{"$f":"ROUNDUP(C280-(Содержание!$H$4*C280),0)","v":1087}]
["UBF-16-120","RAYLUX URBAN, 25W Max,120° Illumination, White-Light, inc PSU",1086.0899999999999,{"$f":"ROUNDUP(C281-(Содержание!$H$4*C281),0)","v":1087}]
["UBF-16-120H-80V","RAYLUX URBAN, 25W Max, 120° Horizontal x 80° Vertical, Oval Illumination, White-Light, inc PSU",1086.0899999999999,{"$f":"ROUNDUP(C282-(Содержание!$H$4*C282),0)","v":1087}]
[null,"Warm White Options Available"]
[]
["URBAN PLUS "]
["UBPL-70-001","RAYLUX URBAN PLUS, 79W Max, narrow angle, White-Light, integrated PSU and bracket, 90-305V ac",2783.49,{"$f":"ROUNDUP(C286-(Содержание!$H$4*C286),0)","v":2784}]
["UBPL-70-002","RAYLUX URBAN PLUS, 79W Max, standard angle,White-Light, integrated PSU and bracket,90-305V ac",2783.49,{"$f":"ROUNDUP(C287-(Содержание!$H$4*C287),0)","v":2784}]
["UBPL-70-003","RAYLUX URBAN PLUS, 79W Max, wide angle, White-Light, integrated PSU and bracket, 90-305V ac",2783.49,{"$f":"ROUNDUP(C288-(Содержание!$H$4*C288),0)","v":2784}]
[]
["UBPL-56-001","RAYLUX URBAN PLUS, 61W Max, narrow angle, White-Light, integrated PSU and bracket, 90-305V ac",2425.56,{"$f":"ROUNDUP(C290-(Содержание!$H$4*C290),0)","v":2426}]
["UBPL-56-002","RAYLUX URBAN PLUS, 61W Max, standard angle, White-Light, integrated PSU and bracket, 90-305V ac",2425.56,{"$f":"ROUNDUP(C291-(Содержание!$H$4*C291),0)","v":2426}]
["UBPL-56-003","RAYLUX URBAN PLUS, 61W Max, wide angle, White-Light, integrated PSU and bracket, 90-305V ac",2425.56,{"$f":"ROUNDUP(C292-(Содержание!$H$4*C292),0)","v":2426}]
[]
["UBPL-42-001","RAYLUX URBAN PLUS, 48W Max, narrow angle, White-Light, integrated PSU and bracket, 90-305V ac",2083.62,{"$f":"ROUNDUP(C294-(Содержание!$H$4*C294),0)","v":2084}]
["UBPL-42-002","RAYLUX URBAN PLUS, 48W Max, standard angle, White-Light, integrated PSU and bracket, 90-305V ac",2083.62,{"$f":"ROUNDUP(C295-(Содержание!$H$4*C295),0)","v":2084}]
["UBPL-42-003","RAYLUX URBAN PLUS, 48W Max, wide angle, White-Light, integrated PSU and bracket, 90-305V ac",2083.62,{"$f":"ROUNDUP(C296-(Содержание!$H$4*C296),0)","v":2084}]
[]
[]
["UBBAY-70-N-001","RAYLUX URBAN BAY. 145W max, Neutral White-Light, integrated PSU, rack optimized spread, 90-305V ac",1920.03,{"$f":"ROUNDUP(C299-(Содержание!$H$4*C299),0)","v":1921}]
["UBBAY-70-N-002","RAYLUX URBAN BAY. 145W max, Neutral White-Light, integrated PSU, high optimized spread, 90-305V ac",1920.03,{"$f":"ROUNDUP(C300-(Содержание!$H$4*C300),0)","v":1921}]
["UBBAY-70-N-003","RAYLUX URBAN BAY. 145W max, Neutral White-Light, integrated PSU, area optimized spread, 90-305V ac",1920.03,{"$f":"ROUNDUP(C301-(Содержание!$H$4*C301),0)","v":1921}]
[]
["UBBAY-70-C-001","RAYLUX URBAN BAY. 145W max, Cool White-Light, integrated PSU, rack optimized spread, 90-305V ac",1920.03,{"$f":"ROUNDUP(C303-(Содержание!$H$4*C303),0)","v":1921}]
["UBBAY-70-C-002","RAYLUX URBAN BAY. 145W max, Cool White-Light, integrated PSU, high optimized spread, 90-305V ac",1920.03,{"$f":"ROUNDUP(C304-(Содержание!$H$4*C304),0)","v":1921}]
["UBBAY-70-C-003","RAYLUX URBAN BAY. 145W max, Cool White-Light, integrated PSU, area optimized spread, 90-305V ac",1920.03,{"$f":"ROUNDUP(C305-(Содержание!$H$4*C305),0)","v":1921}]
[]
[]
["SPARTAN Hazardous Area Lighting"]
["ATEX and IEC Ex LED Floodlights for Zone 1 and Zone 2"]
[]
["SPARTAN Flood Infra-Red"]
[]
["SPARTAN Flood IR 12 (Small)"]
["Circular Beam Pattern "]
["SPX-FL12-I-1010","SPARTAN Flood 12 LED, 850nm 10°x10° beam",2456.31,{"$f":"ROUNDUP(C315-(Содержание!$H$4*C315),0)","v":2457}]
["SPX-FL12-I-3030","SPARTAN Flood 12 LED, 850nm 30°x30° beam",2456.31,{"$f":"ROUNDUP(C316-(Содержание!$H$4*C316),0)","v":2457}]
["SPX-FL12-I-5050 ","SPARTAN Flood 12 LED, 850nm 50°x50° beam",2456.31,{"$f":"ROUNDUP(C317-(Содержание!$H$4*C317),0)","v":2457}]
["SPX-FL12-I-120120","SPARTAN Flood 12 LED, 850nm 120°x120° beam",2456.31,{"$f":"ROUNDUP(C318-(Содержание!$H$4*C318),0)","v":2457}]
["Elliptical Beam Pattern "]
["SPX-FL12-I-3510","SPARTAN Flood 12 LED, 850nm 35°x10° beam",2456.31,{"$f":"ROUNDUP(C320-(Содержание!$H$4*C320),0)","v":2457}]
["SPX-FL12-I-6025","SPARTAN Flood 12 LED, 850nm 60°x25° beam",2456.31,{"$f":"ROUNDUP(C321-(Содержание!$H$4*C321),0)","v":2457}]
["SPX-FL12-I-8030","SPARTAN Flood 12 LED, 850nm 80°x30° beam",2456.31,{"$f":"ROUNDUP(C322-(Содержание!$H$4*C322),0)","v":2457}]
["SPX-FL12-I-12050","SPARTAN Flood 12 LED, 850nm 120°x50° beam",2456.31,{"$f":"ROUNDUP(C323-(Содержание!$H$4*C323),0)","v":2457}]
[]
["SPARTAN Flood IR 24 (Medium) "]
["Circular Beam Pattern "]
["SPX-FL24-I-1010","SPARTAN Flood 24 LED, 850nm 10°x10° beam",3140.19,{"$f":"ROUNDUP(C327-(Содержание!$H$4*C327),0)","v":3141}]
["SPX-FL24-I-3030","SPARTAN Flood 24 LED, 850nm 30°x30° beam",3140.19,{"$f":"ROUNDUP(C328-(Содержание!$H$4*C328),0)","v":3141}]
["SPX-FL24-I-5050","SPARTAN Flood 24 LED, 850nm 50°x50° beam",3140.19,{"$f":"ROUNDUP(C329-(Содержание!$H$4*C329),0)","v":3141}]
["SPX-FL24-I-120120","SPARTAN Flood 24 LED, 850nm 120°x120° beam",3140.19,{"$f":"ROUNDUP(C330-(Содержание!$H$4*C330),0)","v":3141}]
["Elliptical Beam Pattern"]
["SPX-FL24-I-3510","SPARTAN Flood 24 LED, 850nm 35°x10° beam",3140.19,{"$f":"ROUNDUP(C332-(Содержание!$H$4*C332),0)","v":3141}]
["SPX-FL24-I-6025","SPARTAN Flood 24 LED, 850nm 60°x25° beam",3140.19,{"$f":"ROUNDUP(C333-(Содержание!$H$4*C333),0)","v":3141}]
["SPX-FL24-I-8030","SPARTAN Flood 24 LED, 850nm 80°x30° beam ",3140.19,{"$f":"ROUNDUP(C334-(Содержание!$H$4*C334),0)","v":3141}]
["SPX-FL24-I-12050","SPARTAN Flood 24 LED, 850nm 120°x50° beam",3140.19,{"$f":"ROUNDUP(C335-(Содержание!$H$4*C335),0)","v":3141}]
[]
["SPARTAN Flood IR 48 (Large)"]
["Circular Beam Pattern "]
["SPX-FL48-I-1010","SPARTAN Flood 48 LED, 850nm 10°x10° beam",6280.38,{"$f":"ROUNDUP(C339-(Содержание!$H$4*C339),0)","v":6281}]
["SPX-FL48-I-3030","SPARTAN Flood 48 LED, 850nm 30°x30° beam",6280.38,{"$f":"ROUNDUP(C340-(Содержание!$H$4*C340),0)","v":6281}]
["SPX-FL48-I-5050","SPARTAN Flood 48 LED, 850nm 50°x50° beam ",6280.38,{"$f":"ROUNDUP(C341-(Содержание!$H$4*C341),0)","v":6281}]
["SPX-FL48-I-120120","SPARTAN Flood 48 LED, 850nm 120°x120° beam",6280.38,{"$f":"ROUNDUP(C342-(Содержание!$H$4*C342),0)","v":6281}]
["Elliptical Beam Pattern "]
["SPX-FL48-I-3510","SPARTAN Flood 48 LED, 850nm 35°x10° beam ",6280.38,{"$f":"ROUNDUP(C344-(Содержание!$H$4*C344),0)","v":6281}]
["SPX-FL48-I-6025","SPARTAN Flood 48 LED, 850nm 60°x25° beam ",6280.38,{"$f":"ROUNDUP(C345-(Содержание!$H$4*C345),0)","v":6281}]
["SPX-FL48-I-8030","SPARTAN Flood 48 LED, 850nm 80°x30° beam ",6280.38,{"$f":"ROUNDUP(C346-(Содержание!$H$4*C346),0)","v":6281}]
["SPX-FL48-I-12050","SPARTAN Flood 48 LED, 850nm 120°x50° beam",6280.38,{"$f":"ROUNDUP(C347-(Содержание!$H$4*C347),0)","v":6281}]
[]
["SPARTAN Flood White-Light"]
[]
["SPARTAN Flood WL 12 (Small) "]
["Circular Beam Pattern"]
["SPX-FL12-W-1010","SPARTAN Flood 12 LED, White-Light 10°x10° beam",2456.31,{"$f":"ROUNDUP(C353-(Содержание!$H$4*C353),0)","v":2457}]
["SPX-FL12-W-3030","SPARTAN Flood 12 LED, White-Light 30°x30° beam",2456.31,{"$f":"ROUNDUP(C354-(Содержание!$H$4*C354),0)","v":2457}]
["SPX-FL12-W-5050","SPARTAN Flood 12 LED, White-Light 50°x50° beam",2456.31,{"$f":"ROUNDUP(C355-(Содержание!$H$4*C355),0)","v":2457}]
["SPX-FL12-W-120120","SPARTAN Flood 12 LED, White-Light 120°x120° beam",2456.31,{"$f":"ROUNDUP(C356-(Содержание!$H$4*C356),0)","v":2457}]
["Elliptical Beam Pattern "]
["SPX-FL12-W-3510","SPARTAN Flood 12 LED, White-Light 35°x10° beam ",2456.31,{"$f":"ROUNDUP(C358-(Содержание!$H$4*C358),0)","v":2457}]
["SPX-FL12-W-6025  ","SPARTAN Flood 12 LED, White-Light 60°x25° beam",2456.31,{"$f":"ROUNDUP(C359-(Содержание!$H$4*C359),0)","v":2457}]
["SPX-FL12-W-8030  ","SPARTAN Flood 12 LED, White-Light 80°x30° beam",2456.31,{"$f":"ROUNDUP(C360-(Содержание!$H$4*C360),0)","v":2457}]
["SPX-FL12-W-12050","SPARTAN Flood 12 LED, White-Light 120°x50° beam",2456.31,{"$f":"ROUNDUP(C361-(Содержание!$H$4*C361),0)","v":2457}]
[]
["SPARTAN Flood WL 24 (Medium)"]
["Circular Beam Pattern"]
["SPX-FL24-W-1010","SPARTAN Flood 24 LED, White-Light 10°x10° beam",3140.19,{"$f":"ROUNDUP(C365-(Содержание!$H$4*C365),0)","v":3141}]
["SPX-FL24-W-3030","SPARTAN Flood 24 LED, White-Light 30°x30° beam",3140.19,{"$f":"ROUNDUP(C366-(Содержание!$H$4*C366),0)","v":3141}]
["SPX-FL24-W-5050","SPARTAN Flood 24 LED, White-Light 50°x50° beam",3140.19,{"$f":"ROUNDUP(C367-(Содержание!$H$4*C367),0)","v":3141}]
["SPX-FL24-W-120120","SPARTAN Flood 24 LED, White-Light 120°x120° beam",3140.19,{"$f":"ROUNDUP(C368-(Содержание!$H$4*C368),0)","v":3141}]
["Elliptical Beam Pattern"]
["SPX-FL24-W-3510  ","SPARTAN Flood 24 LED, White-Light 35°x10° beam",3140.19,{"$f":"ROUNDUP(C370-(Содержание!$H$4*C370),0)","v":3141}]
["SPX-FL24-W-6025","SPARTAN Flood 24 LED, White-Light 60°x25° beam",3140.19,{"$f":"ROUNDUP(C371-(Содержание!$H$4*C371),0)","v":3141}]
["SPX-FL24-W-8030","SPARTAN Flood 24 LED, White-Light 80°x30° beam",3140.19,{"$f":"ROUNDUP(C372-(Содержание!$H$4*C372),0)","v":3141}]
["SPX-FL24-W-12050","SPARTAN Flood 24 LED, White-Light 120°x50° beam",3140.19,{"$f":"ROUNDUP(C373-(Содержание!$H$4*C373),0)","v":3141}]
[]
["SPARTAN Flood WL 48 (Large) "]
["Circular Beam Pattern"]
["SPX-FL48-W-1010  ","SPARTAN Flood 48 LED, White-Light 10°x10° beam",6280.38,{"$f":"ROUNDUP(C377-(Содержание!$H$4*C377),0)","v":6281}]
["SPX-FL48-W-3030  ","SPARTAN Flood 48 LED, White-Light 30°x30° beam",6280.38,{"$f":"ROUNDUP(C378-(Содержание!$H$4*C378),0)","v":6281}]
["SPX-FL48-W-5050  ","SPARTAN Flood 48 LED, White-Light 50°x50° beam",6280.38,{"$f":"ROUNDUP(C379-(Содержание!$H$4*C379),0)","v":6281}]
["SPX-FL48-W-120120  ","SPARTAN Flood 48 LED, White-Light 120°x120° beam",6280.38,{"$f":"ROUNDUP(C380-(Содержание!$H$4*C380),0)","v":6281}]
["Elliptical Beam Pattern "]
["SPX-FL48-W-3510","SPARTAN Flood 48 LED, White-Light 35°x10° beam",6280.38,{"$f":"ROUNDUP(C382-(Содержание!$H$4*C382),0)","v":6281}]
["SPX-FL48-W-6025  ","SPARTAN Flood 48 LED, White-Light 60°x25° beam",6280.38,{"$f":"ROUNDUP(C383-(Содержание!$H$4*C383),0)","v":6281}]
["SPX-FL48-W-8030  ","SPARTAN Flood 48 LED, White-Light 80°x30° beam",6280.38,{"$f":"ROUNDUP(C384-(Содержание!$H$4*C384),0)","v":6281}]
["SPX-FL48-W-12050  ","SPARTAN Flood 48 LED, White-Light 120°x50° beam",6280.38,{"$f":"ROUNDUP(C385-(Содержание!$H$4*C385),0)","v":6281}]
[]
["T4 as standard – Contact Raytec for T5 and T6 Variants"]
[]
["SPARTAN Options"]
["With Photocell","Add ‘-PC’ to the end of the part code."]
["Emergency Versions","Available for all 24 and 48 size models. Add ‘-EM’ to the end of the part code."]
[]
[]
["Specialist Lighting"]
[]
["Hybrid Series – IR + White-Light"]
[]
["HYBRID 300 - includes standard PSU"]
["HY300-10","HYBRID 300, 2 x 10° IR, 850nm, 10° White-Light, AI, inc PSU",3482.13,{"$f":"ROUNDUP(C399-(Содержание!$H$4*C399),0)","v":3483}]
["HY300-30","HYBRID 300, 2 x 30° IR, 850nm, 30° White-Light, AI, inc PSU",3229.98,{"$f":"ROUNDUP(C400-(Содержание!$H$4*C400),0)","v":3230}]
["HY300-50","HYBRID 300, 2 x 50° IR, 850nm, 50° White-Light, AI, inc PSU",3229.98,{"$f":"ROUNDUP(C401-(Содержание!$H$4*C401),0)","v":3230}]
["HY300-120","HYBRID 300, 2 x 120° IR, 850nm, 120° White-Light, AI, inc PSU",3229.98,{"$f":"ROUNDUP(C402-(Содержание!$H$4*C402),0)","v":3230}]
[null,"Mixed angles available."]
[]
["HYBRID 200 - includes standard PSU"]
["HY200-10","HYBRID 200, 10° IR, 850nm, 10° White-Light, AI, inc PSU",2605.14,{"$f":"ROUNDUP(C406-(Содержание!$H$4*C406),0)","v":2606}]
["HY200-30","HYBRID 200, 30° IR, 850nm, 30° White-Light, AI, inc PSU",2366.52,{"$f":"ROUNDUP(C407-(Содержание!$H$4*C407),0)","v":2367}]
["HY200-50","HYBRID 200, 50° IR, 850nm, 50° White-Light, AI, inc PSU",2366.52,{"$f":"ROUNDUP(C408-(Содержание!$H$4*C408),0)","v":2367}]
["HY200-120","HYBRID 200, 120° IR, 850nm, 120° White-Light, AI, inc PSU",2366.52,{"$f":"ROUNDUP(C409-(Содержание!$H$4*C409),0)","v":2367}]
[null,"Mixed angles available."]
[]
["HYBRID 150 - includes standard PSU"]
["HY150-10","HYBRID 150, 2 x 10° IR, 850nm, 10° White-Light, AI, inc PSU",2276.73,{"$f":"ROUNDUP(C413-(Содержание!$H$4*C413),0)","v":2277}]
["HY150-30","HYBRID 150, 2 x 30° IR, 850nm, 30° White-Light, AI, inc PSU",2068.86,{"$f":"ROUNDUP(C414-(Содержание!$H$4*C414),0)","v":2069}]
["HY150-50","HYBRID 150, 2 x 50° IR, 850nm, 50° White-Light, AI, inc PSU",2068.86,{"$f":"ROUNDUP(C415-(Содержание!$H$4*C415),0)","v":2069}]
["HY150-120","HYBRID 150, 2 x 120° IR, 850nm, 120° White-Light, AI, inc PSU",2068.86,{"$f":"ROUNDUP(C416-(Содержание!$H$4*C416),0)","v":2069}]
[null,"Mixed angles available."]
[]
["**NEW**"]
["VARIO Universal Bracketry"]
[]
["VUB-WALL","VARIO Universal Bracket - Wall Mount, incl fixings",44.28,{"$f":"ROUNDUP(C422-(Содержание!$H$4*C422),0)","v":45}]
["VUB-POLE","VARIO Universal Bracket - Pole Mount, incl fixings",59.04,{"$f":"ROUNDUP(C423-(Содержание!$H$4*C423),0)","v":60}]
["VUB-PLATE-3x2","VUB Mounting Plate for 3x VARIO 2 series illuminators",59.04,{"$f":"ROUNDUP(C424-(Содержание!$H$4*C424),0)","v":60}]
["VUB-PLATE-3x4","VUB Mounting Plate for 3x VARIO 4 series illuminators",75.03,{"$f":"ROUNDUP(C425-(Содержание!$H$4*C425),0)","v":76}]
["VUB-PLATE-3x8","VUB Mounting Plate for 3x VARIO 8 series illuminators",75.03,{"$f":"ROUNDUP(C426-(Содержание!$H$4*C426),0)","v":76}]
["VUB-PLATE-1x16","VUB Mounting Plate for 1x VARIO 16 series illuminators",29.52,{"$f":"ROUNDUP(C427-(Содержание!$H$4*C427),0)","v":30}]
["VUB-PLATE-PSU","VUB Mounting Plate for 1x VARIO PSU",59.04,{"$f":"ROUNDUP(C428-(Содержание!$H$4*C428),0)","v":60}]
[]
["VARIO/ RAYMAX / RAYLUX Bracketry options"]
[]
["SB1","Single Bracket for Top Pan/Tilt mount ",75.03,{"$f":"ROUNDUP(C432-(Содержание!$H$4*C432),0)","v":76}]
["DB2","Twin Bracket for Top Pan/Tilt mount ",89.789999999999992,{"$f":"ROUNDUP(C433-(Содержание!$H$4*C433),0)","v":90}]
["WB1","Wall Bracket - L Bracket",44.28,{"$f":"ROUNDUP(C434-(Содержание!$H$4*C434),0)","v":45}]
["PBC-1","Pole Bracket Clamp for 1x RAYMAX or RAYLUX Illuminator",75.03,{"$f":"ROUNDUP(C435-(Содержание!$H$4*C435),0)","v":76}]
["PBC-2","Pole Bracket Clamp for 2x RAYMAX or RAYLUX Illuminators",134.07,{"$f":"ROUNDUP(C436-(Содержание!$H$4*C436),0)","v":135}]
["PBC-PSU-ADAP","Adaptor plate to allow the aditional mounting of PSU to pole - see ordering table below",75.03,{"$f":"ROUNDUP(C437-(Содержание!$H$4*C437),0)","v":76}]
[]
[null,"Pole Mounting Product Combinations"]
[null,"To Mount 1x illuminator (PSU mounted elsewhere)"]
[null,"To Mount 2x illuminators (PSU mounted elsewhere)"]
[null,"To Mount 1x illuminator + 1x PSU (to suit RM/RL25, 50, 100, 200)"]
[null,"To Mount 2x illuminators + 2x PSUs  (to suit RM/RL25, 50, 100, 200)"]
[null,"To Mount 1x RM/RL 300 series illuminator + 1x PSU "]
[]
[]
["RAYLUX Urban Bracketry Options"]
[]
["UB-WB","RAYLUX URBAN, Wall Bracket, 90 Degree, Cable Managed",59.04,{"$f":"ROUNDUP(C449-(Содержание!$H$4*C449),0)","v":60}]
["UB-TS-S","RAYLUX URBAN, Top Stub Bracket, Single, 90 Degree, Cable Managed",372.69,{"$f":"ROUNDUP(C450-(Содержание!$H$4*C450),0)","v":373}]
["UB-TS-T","RAYLUX URBAN, Top Stub Bracket, Twin, 90 Degree, Cable Managed",551.04,{"$f":"ROUNDUP(C451-(Содержание!$H$4*C451),0)","v":552}]
["UB-TS-S-5","RAYLUX URBAN, Top Stub Bracket, Single, 5 Degree Uplift, Cable Managed",372.69,{"$f":"ROUNDUP(C452-(Содержание!$H$4*C452),0)","v":373}]
["UB-TS-T-5","RAYLUX URBAN, Top Stub Bracket, Twin, 5 Degree Uplift, Cable Managed",551.04,{"$f":"ROUNDUP(C453-(Содержание!$H$4*C453),0)","v":552}]
["UB-HB-S","RAYLUX URBAN, Hockey Bracket, Single, Cable Managed",624.84,{"$f":"ROUNDUP(C454-(Содержание!$H$4*C454),0)","v":625}]
["UB-HB-T","RAYLUX URBAN, Hockey Bracket, Twin, Cable Managed",1041.81,{"$f":"ROUNDUP(C455-(Содержание!$H$4*C455),0)","v":1042}]
[]
[]
["RAYMAX / RAYLUX Additional Power Supply Options"]
["Special Feature Power Supplies"]
[]
["Twin & Multiple PSUs","Available on request"]
[]
["~ PRO PRO Series PSU","Includes photocell following contact for switching of dual mode cameras and 12V dc output for powering cameras PLUS: ",59.04,{"$f":"ROUNDUP(C463-(Содержание!$H$4*C463),0)","v":60}]
[null,"Platform for upgrade via additional plug in module boards with advanced lighting features"]
[null,"Platform for upgrade via additional plug in module boards with advanced lighting features"]
[null,"TO ORDER: Add ~ PRO to product code, available only with 100 and 200 series."]
[]
[null,"PRO Series PSU’s are not ordered as a separate line item. To order a PRO series PSU, add the PSU part code as "]
[null,"a suffix to the original illuminator part code and add the price of the PSU to the price of the illuminator. "]
[null,"Eg: To order an RM200-AI-30 with a PRO series PSU the part code is RM200-AI-30-PRO."]
[]
["IQ- Module (For PRO PSU)","Additional plug in board for the PRO series PSU offering increased  functionality for all RAYMAX and RAYLUX ",75.03,{"$f":"ROUNDUP(C472-(Содержание!$H$4*C472),0)","v":76}]
[null,"illuminators. Settings include: Ecologic, Perma Light, Dim, Boost, Detterent, Timer Function."]
[]
["Pulse-Module (for PRO PSU)","Additional plug in board for the PRO series PSU allowing Raytec illuminators to deliver pulsed lighting. ",75.03,{"$f":"ROUNDUP(C475-(Содержание!$H$4*C475),0)","v":76}]
[null,"Compatible with IR and WL options, both PAL and NTSC cameras and both analogue and digital systems."]
[null,"Note: Plug in PSU modules are ordered as a separate line item and are supplied separatley to the core products."]
[null,"Installation is a simple one click fit into the PRO PSU."]

{"sheet":"NVT","index":8,"n_rows":103,"n_cols":5,"rows_kept":103,"cut":false,"hidden":false,"merged":[]}
["NVT / Transmission"]
[]
[]
[null,"Модель","Описание","Розница, USD","Моя цена"]
["EoC System "]
[null,"NV-EC1701","Single Channel EoC Transceiver (power supply not included)",570,{"$f":"ROUNDUP(D6-(Содержание!$H$4*D6),0)","v":570}]
["EoC System Kits"]
[null,"NV-EC1701-KIT1","1 - Camera EoC Transmission System; (2) NV-EC1701 & (1) NV-PS48-60W, (1) NV-PC4PR, (1) NV-PC2PR",1271,{"$f":"ROUNDUP(D8-(Содержание!$H$4*D8),0)","v":1271}]
[null,"NV-EC1701-KIT2","2 - Camera EoC Transmission System; (3) NV-EC1701 & (1) NV-PS48-60W & (1) NV-BNCT, (2) NV-PC4PR, (1) NV-PC2PR",1852,{"$f":"ROUNDUP(D9-(Содержание!$H$4*D9),0)","v":1852}]
[null,"NV-EC1701-KIT3","3 - Camera EoC Transmission System; (4) NV-EC1701 & (1) NV-PS48-60W & (1) NV-EC4BNC, (3) NV-PC4PR, (1) NV-PC2PR ",2437,{"$f":"ROUNDUP(D10-(Содержание!$H$4*D10),0)","v":2437}]
[null,"NV-EC1701-KIT4","4 - Camera EoC Transmission System; (5) NV-EC1701 & (1) NV-PS48-60W & (1) NV-EC4BNC, (4) NV-PC4PR, (1) NV-PC2PR  ",3022,{"$f":"ROUNDUP(D11-(Содержание!$H$4*D11),0)","v":3022}]
["Eo2 Transceiver",null,null,0]
[null,"NV-EC1701U","Single Channel Eo2 Transceiver (power supply not included)",570,{"$f":"ROUNDUP(D13-(Содержание!$H$4*D13),0)","v":570}]
["Eo2 System Kits",null,null,0]
[null,"NV-EC1701U-KIT1","1 - Camera Eo2 Transmission System; (2) NV-EC1701U & (1) NV-PS48-60W, (1) NV-PC4PR, (1) NV-PC2PR",1271,{"$f":"ROUNDUP(D15-(Содержание!$H$4*D15),0)","v":1271}]
[null,"NV-EC1701U-KIT2","2 - Camera Eo2Transmission System; (3) NV-EC1701U & (1) NV-PS48-60W &  (2) NV-PC4PR, (1) NV-PC2PR",1852,{"$f":"ROUNDUP(D16-(Содержание!$H$4*D16),0)","v":1852}]
[null,"NV-EC1701U-KIT3","3 - Camera Eo2 Transmission System; (4) NV-EC1701U & (1) NV-PS48-60W &  (3) NV-PC4PR, (1) NV-PC2PR ",2437,{"$f":"ROUNDUP(D17-(Содержание!$H$4*D17),0)","v":2437}]
[null,"NV-EC1701U-KIT4","4 - Camera Eo2 Transmission System; (5) NV-EC1701U & (1) NV-PS48-60W &  (4) NV-PC4PR, (1) NV-PC2PR  ",3022,{"$f":"ROUNDUP(D18-(Содержание!$H$4*D18),0)","v":3022}]
["Accessories",null,null,0]
[null,"NV-PS48-60W","48VDC power supply, 60 watts with IEC line cord",119,{"$f":"ROUNDUP(D20-(Содержание!$H$4*D20),0)","v":119}]
[null,"NV-PS56-60W","56VDC Power Supply, 60 watts with IEC line cord",154,{"$f":"ROUNDUP(D21-(Содержание!$H$4*D21),0)","v":154}]
[null,"NV-PS56-90W","56VDC Power Supply, 90 watts with IEC line cord",185,{"$f":"ROUNDUP(D22-(Содержание!$H$4*D22),0)","v":185}]
[null,"NV-PC4PR","RJ45 Patch Cord, 4-pair 3' (1m) Grey",12,{"$f":"ROUNDUP(D23-(Содержание!$H$4*D23),0)","v":12}]
[null,"NV-PC2PR","RJ45 Patch Cord, 2-pair 3' (1m) Red",12,{"$f":"ROUNDUP(D24-(Содержание!$H$4*D24),0)","v":12}]
[null,"NV-BNCT","BNC \"T\" Adaptor",12,{"$f":"ROUNDUP(D25-(Содержание!$H$4*D25),0)","v":12}]
[null,"NV-RM8/10","Rack mount kit, 19\" X 2U, holds up to (4) NV-EC1701 transceivers",89,{"$f":"ROUNDUP(D26-(Содержание!$H$4*D26),0)","v":89}]
[null,"NV-RMEC16","EoC Rack Mount Tray Kit - up to (4) NV-EC1701 Transceivers w/Power Supplies (not included)",300,{"$f":"ROUNDUP(D27-(Содержание!$H$4*D27),0)","v":300}]
[null,"NV-RMEC16U","Eo2 Rack Mount Tray Kit - up to (4) NV-EC1701U Transceivers w/Power Supplies (not included)",300,{"$f":"ROUNDUP(D28-(Содержание!$H$4*D28),0)","v":300}]
[null,"NV-DPSC4","Detachable Power Supply Cord Splitter 1:4 x 2ft",31,{"$f":"ROUNDUP(D29-(Содержание!$H$4*D29),0)","v":31}]
[null,"NV-EC4BNC","BNC Coax Splitter 1:4",31,{"$f":"ROUNDUP(D30-(Содержание!$H$4*D30),0)","v":31}]
[]
[]
["Passive Transceiver"]
[null,"NV-213A (&A-M)","Passive Video Transceiver",246,{"$f":"ROUNDUP(D34-(Содержание!$H$4*D34),0)","v":246}]
[null,"NV-208A-M","Passive Video Transceiver",100,{"$f":"ROUNDUP(D35-(Содержание!$H$4*D35),0)","v":100}]
[null,"NV-214A-M","Passive Video Transceiver",100,{"$f":"ROUNDUP(D36-(Содержание!$H$4*D36),0)","v":100}]
[null,"NV-215J-M","Passive Video Transceiver with RJ45",100,{"$f":"ROUNDUP(D37-(Содержание!$H$4*D37),0)","v":100}]
[null,"NV-217J-M","Passive Video Transceiver with RJ45",100,{"$f":"ROUNDUP(D38-(Содержание!$H$4*D38),0)","v":100}]
["Active Receiver/Transmitter",null,""]
[null,"NV-652R","Active Video Receiver *",431,{"$f":"ROUNDUP(D40-(Содержание!$H$4*D40),0)","v":431}]
[null,"NV-653T","Active Video Transmitter *",424,{"$f":"ROUNDUP(D41-(Содержание!$H$4*D41),0)","v":424}]
[null,null,""]
[null,"NV-413A","4-Ch Passive Video Transceiver",747,{"$f":"ROUNDUP(D43-(Содержание!$H$4*D43),0)","v":747}]
[null,"NV-452R","4-Ch Active Video Receiver *",1502,{"$f":"ROUNDUP(D44-(Содержание!$H$4*D44),0)","v":1502}]
["Passive Hub",null,""]
[null,"NV-813","8-Channel Passive Hub ▲",1748,{"$f":"ROUNDUP(D46-(Содержание!$H$4*D46),0)","v":1748}]
[null,"NV-813S","8-Channel  Passive Stub Hub ►",978,{"$f":"ROUNDUP(D47-(Содержание!$H$4*D47),0)","v":978}]
[null,"NV-1613","16-Channel Passive Hub ▲",3384,{"$f":"ROUNDUP(D48-(Содержание!$H$4*D48),0)","v":3384}]
[null,"NV-1613S","16-Channel  Passive Stub Hub ►",1883,{"$f":"ROUNDUP(D49-(Содержание!$H$4*D49),0)","v":1883}]
[null,"NV-3213","32-Channel Passive Hub ▲",6206,{"$f":"ROUNDUP(D50-(Содержание!$H$4*D50),0)","v":6206}]
[null,"NV-3213S","32-Channel  Passive Stub Hub ►",3631,{"$f":"ROUNDUP(D51-(Содержание!$H$4*D51),0)","v":3631}]
["Active Hub",null,""]
[null,"NV-442","4-Channel Active StubEQ Receiver Hub †",1525,{"$f":"ROUNDUP(D53-(Содержание!$H$4*D53),0)","v":1525}]
[null,"NV-842","8-Channel DigitalEQ Stub Hub † ►",1925,{"$f":"ROUNDUP(D54-(Содержание!$H$4*D54),0)","v":1925}]
[null,"NV-1642","16-Channel DigitalEQ Stub Hub † ►",3723,{"$f":"ROUNDUP(D55-(Содержание!$H$4*D55),0)","v":3723}]
[null,"NV-3242","32-Channel DigitalEQ Stub Hub † ►",6834,{"$f":"ROUNDUP(D56-(Содержание!$H$4*D56),0)","v":6834}]
[null,"NV-872","8-Channel DigitalEQ Hub †▲",2976,{"$f":"ROUNDUP(D57-(Содержание!$H$4*D57),0)","v":2976}]
[null,"NV-1672","16-Channel DigitalEQ Hub †▲",5744,{"$f":"ROUNDUP(D58-(Содержание!$H$4*D58),0)","v":5744}]
[null,"NV-3272","32-Channel DigitalEQ Hub †▲",10541,{"$f":"ROUNDUP(D59-(Содержание!$H$4*D59),0)","v":10541}]
["Power, Video, Data",null,""]
[null,"NV-216A-PV","Power-Video Transceiver ",123,{"$f":"ROUNDUP(D61-(Содержание!$H$4*D61),0)","v":123}]
[null,"NV-218A-PVD","Power-Video-Data Transceiver ",196,{"$f":"ROUNDUP(D62-(Содержание!$H$4*D62),0)","v":196}]
[null,"NV-226J-PV","Video Transmitter & 12VDC Converter †",239,{"$f":"ROUNDUP(D63-(Содержание!$H$4*D63),0)","v":239}]
[null,"NV-4PS10- PVD","Power Supply Cable Integrator Hub †",628,{"$f":"ROUNDUP(D64-(Содержание!$H$4*D64),0)","v":628}]
[null,"NV-16PS10-PVD","Power Supply Cable Integrator Hub †",1898,{"$f":"ROUNDUP(D65-(Содержание!$H$4*D65),0)","v":1898}]
[null,"NV-4PS13-PVD","Power Supply Passive Receiver Hub †►",1332,{"$f":"ROUNDUP(D66-(Содержание!$H$4*D66),0)","v":1332}]
[null,"NV-8PS13-PVD","Power Supply Passive Receiver Hub †▲",2668,{"$f":"ROUNDUP(D67-(Содержание!$H$4*D67),0)","v":2668}]
[null,"NV-16PS13-PVD","Power Supply Passive Receiver Hub †▲",5336,{"$f":"ROUNDUP(D68-(Содержание!$H$4*D68),0)","v":5336}]
[null,"NV-8PS42-PVD","8-Channel Power Supply StubEQ Active Receiver Hub †",2799,{"$f":"ROUNDUP(D69-(Содержание!$H$4*D69),0)","v":2799}]
[null,"NV-16PS42-PVD","16-Channel Power Supply StubEQ Active Receiver Hub †",5532,{"$f":"ROUNDUP(D70-(Содержание!$H$4*D70),0)","v":5532}]
[null,"NV-32PS42-PVD","32-Channel Power Supply StubEQ Active Receiver Hub †",10730,{"$f":"ROUNDUP(D71-(Содержание!$H$4*D71),0)","v":10730}]
[null,"NV-704J-PVD","4-Ch PVD Cable Integrator *",285,{"$f":"ROUNDUP(D72-(Содержание!$H$4*D72),0)","v":285}]
[null,"NV-716J-PVD","16-Ch PVD Cable Integrator *",524,{"$f":"ROUNDUP(D73-(Содержание!$H$4*D73),0)","v":524}]
["Multimedia",null,""]
[null,"NV-314A","Passive Video & Audio Transceiver",385,{"$f":"ROUNDUP(D75-(Содержание!$H$4*D75),0)","v":385}]
[null,"NV-418A","Dual Passive AV Transceiver",497,{"$f":"ROUNDUP(D76-(Содержание!$H$4*D76),0)","v":497}]
[null,"NV-418AR","Dual Passive AV Transceiver, Rackmt",497,{"$f":"ROUNDUP(D77-(Содержание!$H$4*D77),0)","v":497}]
[null,"NV-518A ","Dual AV Transceiver *",905,{"$f":"ROUNDUP(D78-(Содержание!$H$4*D78),0)","v":905}]
[null,"NV-518AR","Dual AV Transceiver, Rackmt ",905,{"$f":"ROUNDUP(D79-(Содержание!$H$4*D79),0)","v":905}]
[null,"NV-RM-15","Rackmount Chassis †",1436,{"$f":"ROUNDUP(D80-(Содержание!$H$4*D80),0)","v":1436}]
["Accessories",null,""]
[null,"NV-4PSRMBK","Rack Panel Kit for 4 Port Power Supply Product",100,{"$f":"ROUNDUP(D82-(Содержание!$H$4*D82),0)","v":100}]
[null,"NV-BKT214-8","Mounting Bracket for 8 NV-214AM's",23,{"$f":"ROUNDUP(D83-(Содержание!$H$4*D83),0)","v":23}]
[null,"NV-BNC-8","Coax Jumper Cables 2ft (8-pack)",100,{"$f":"ROUNDUP(D84-(Содержание!$H$4*D84),0)","v":100}]
[null,"NV-RJ45A","RJ45/Screw Terminal Block Adapter (2 each)",15,{"$f":"ROUNDUP(D85-(Содержание!$H$4*D85),0)","v":15}]
[null,"NV-RM8/10","Rack Panel Kit",100,{"$f":"ROUNDUP(D86-(Содержание!$H$4*D86),0)","v":100}]
[null,"NV-RMBK","Rear Mounting Bracket Kit",100,{"$f":"ROUNDUP(D87-(Содержание!$H$4*D87),0)","v":100}]
[null,"NV-WMBK","Wall Mounting Bracket Kit",100,{"$f":"ROUNDUP(D88-(Содержание!$H$4*D88),0)","v":100}]
[]
["Transmission IP - Other"]
[null,"IP01","IP Extender over Coax - Passive type (2 pieces/one set package)",94,{"$f":"ROUNDUP(D91-(Содержание!$H$4*D91),0)","v":94}]
[null,"IP01H","4 port Ethernet Switch Kit (over coax, BNC interface)  (power adapter included)",280,{"$f":"ROUNDUP(D92-(Содержание!$H$4*D92),0)","v":280}]
[null,"IP01K","4 x IP01+1 x IP01H 5 port Ethernet Switch Kit (over coax, BNC interface)",430,{"$f":"ROUNDUP(D93-(Содержание!$H$4*D93),0)","v":430}]
[null,"IP01P","POE Extender over Coax 300M  (Package without POE switch/injector)",280,{"$f":"ROUNDUP(D94-(Содержание!$H$4*D94),0)","v":280}]
[null,"IP02P","IP Extender with Power over Coax 180M, including TX x1, RX x 1 (power adapter included)",448,{"$f":"ROUNDUP(D95-(Содержание!$H$4*D95),0)","v":448}]
[null,"IP02","Active IP Extender over Coax,  including TX x1, RX x1 (power adapter included)",634,{"$f":"ROUNDUP(D96-(Содержание!$H$4*D96),0)","v":634}]
[null,"IP03","Active IP Extender over CAT5,  including TX x1, RX x1 (power adapter included)",634,{"$f":"ROUNDUP(D97-(Содержание!$H$4*D97),0)","v":634}]
[null,"IP03P","Internet and POE or UTP, Coax, telefone, bell, alarm / power Cabels",708,{"$f":"ROUNDUP(D98-(Содержание!$H$4*D98),0)","v":708}]
[null,"IP04","POE Repeater 300Meters",186,{"$f":"ROUNDUP(D99-(Содержание!$H$4*D99),0)","v":186}]
[null,"IP07M","Chainable IP Extender with Power over Coax/Two Wire IP07M x 1 unit",243,{"$f":"ROUNDUP(D100-(Содержание!$H$4*D100),0)","v":243}]
[null,"IP07MK-DC24V","Chainable IP Extender IP07M x 2 units with 1 x DC24V power adapter",522,{"$f":"ROUNDUP(D101-(Содержание!$H$4*D101),0)","v":522}]
[null,"IP07MK-DC48V","Chainable IP Extender IP07M x 2 units with 1 x DC48V power adapter",541,{"$f":"ROUNDUP(D102-(Содержание!$H$4*D102),0)","v":541}]
[null,"IP07MK-DC56V","Chainable IP Extender IP07M x 2 units with 1 x DC56V power adapter",616,{"$f":"ROUNDUP(D103-(Содержание!$H$4*D103),0)","v":616}]